Workbook

Sheet 总表
A1: 综测排名 | B1: 必修课排名 | C1: 学号 | D1: 姓名 | E1: 班级 | F1: 德育成绩 | T1: 智育成绩 | Z1: 体育成绩 | AH1: 美育成绩 | AL1: 劳育成绩 | AP1: 综合测评总分 | AQ1: 优良率 | AR1: 四级成绩 | AS1: 是否挂科
F2: 班级互评分 | G2: 辅导员打分 | H2: 班团委员打分 | I2: 班主任打分 | J2: 班级互评分×0.2 | K2: 辅导员打分×0.5 | L2: 班团委员打分*0.2 | M2: 班主任打分*0.1 | N2: 学生思想品德测评分值 | O2: 学生干部加分 | P2: 德育加分 | Q2: 德育扣分 | R2: 德育成绩 | S2: 德育成绩×0.15 | T2: 必修课加权平均分 | U2: 选修课加权平均分 | V2: 智育成绩（必修课×0.9+选修课×0.1） | W2: 智育加分 | X2: 智育成绩 | Y2: 智育成绩×0.70 | Z2: 体测成绩 | AA2: 锻炼成绩 | AB2: 体测成绩×0.8 | AC2: 锻炼成绩×0.2 | AD2: 体育锻炼成绩 | AE2: 体育加分 | AF2: 体育成绩 | AG2: 体育成绩×0.05 | AH2: 文化艺术活动 | AI2: 美育加分 | AJ2: 美育成绩 | AK2: 美育成绩×0.05 | AL2: 劳动实践 | AM2: 劳育加分 | AN2: 劳育成绩 | AO2: 劳育成绩×0.05
F3: vlookup | G3: vlookup | H3: vlookup | I3: vlookup | J3: 公式求和 | K3: 公式求和 | L3: 公式求和 | M3: 公式求和 | N3: 公式求和 | O3: VLOOKUP | P3: 汇总统计 | Q3: 汇总统计 | R3: 公式求和 | S3: 公式求和 | T3: vlookup | U3: vlookup | V3: 公式求和 | W3: 汇总统计 | X3: 公式求和 | Y3: 公式求和 | Z3: 单独做表vlookup | AA3: vlookup | AB3: 公式求和 | AC3: 公式求和 | AD3: 公式求和 | AE3: 汇总统计 | AF3: 公式求和 | AG3: 公式求和 | AH3: VLOOKUP | AI3: VLOOKUP | AJ3: 公式求和 | AK3: 公式计算 | AL3: VLOOKUP | AM3: VLOOKUP | AN3: 公式求和 | AO3: 公式计算 | AP3: 公式求和 | AQ3: vlookup | AR3: vlookup | AS3: vlookup
A4: 1 | B4: 4 | C4: 2024010590 | D4: 杨航维 | E4: =VLOOKUP(D4,美育!B$2:E$182,2,FALSE) -> 化工类24-5班 | F4: =VLOOKUP(D4,互评分!C$2:F$181,4,FALSE) -> 99.6296 | G4: =VLOOKUP(D4,辅导员加分!B$2:C$176,2,FALSE) -> 94.0000 | H4: =VLOOKUP(D4,互评分!C$2:F$181,3,FALSE) -> 100.0000 | I4: =VLOOKUP(D4,互评分!C$2:F$181,2,FALSE) -> 95.0000 | J4: =F4*0.2 -> 19.9259 | K4: =G4*0.5 -> 47.0000 | L4: =H4*0.2 -> 20.0000 | M4: =I4*0.1 -> 9.5000 | N4: =SUM(J4:M4)*0.7 -> 67.4981 | O4: =VLOOKUP(D4,学生干部加分!A$1:C$140,3,FALSE) -> 7.0000 | P4: 0.0000 | Q4: 0.0000 | R4: =N4+O4+P4-Q4 -> 74.4981 | S4: =R4*0.15 -> 11.1747 | T4: 90.0854 | U4: 90.3333 | V4: =IF(U4>0,T4*0.9+U4*0.1,T4) -> 90.1102 | W4: =VLOOKUP(D4,智育加分汇总!A$2:C$44,3,FALSE) -> 15.0000 | X4: =V4*0.85+W4 -> 91.5936 | Y4: =0.7*X4 -> 64.1155 | Z4: =VLOOKUP(D4,体测成绩!B$2:C$273,2,FALSE) -> 72.0000 | AA4: =VLOOKUP(D4,体育锻炼成绩!A$2:B$182,2,FALSE) -> 100.00 | AB4: =0.8*Z4 -> 57.6000 | AC4: =AA4*0.2 -> 20.0000 | AD4: =SUM(AB4:AC4)*0.7 -> 54.3200 | AE4: =VLOOKUP(D4,体育加分汇总!A$1:C$79,3,FALSE) -> 1.0000 | AF4: =AD4+AE4 -> 55.3200 | AG4: =AF4*0.05 -> 2.7660 | AH4: =VLOOKUP(D4,美育!B$2:F$182,5,FALSE) -> 36.0000 | AI4: =VLOOKUP(D4,美育!B$2:E$182,4,FALSE) -> 0.0000 | AJ4: =AH4+AI4 -> 36.0000 | AK4: =AJ4*0.05 -> 1.8000 | AL4: =VLOOKUP(D4,劳育基础分!B$3:AF$182,31,FALSE) -> 44.0000 | AM4: 0.0000 | AN4: =AL4+AM4 -> 44.0000 | AO4: =AN4*0.05 -> 2.2000 | AP4: =S4+Y4+AG4+AK4+AO4 -> 82.0563 | AQ4: =VLOOKUP(D4,必修课优良率!A$1:B$173,2,FALSE) -> 85.71% | AR4: =VLOOKUP(D4,四级成绩!B$2:C$178,2,FALSE) -> 607 | AS4: =VLOOKUP(D4,必修课优良率!A$1:D$173,4,FALSE) -> 否
A5: 2 | B5: 7 | C5: 2024010582 | D5: 刘文清 | E5: =VLOOKUP(D5,美育!B$2:E$182,2,FALSE) -> 化工类24-5班 | F5: =VLOOKUP(D5,互评分!C$2:F$181,4,FALSE) -> 99.6296 | G5: =VLOOKUP(D5,辅导员加分!B$2:C$176,2,FALSE) -> 94.0000 | H5: =VLOOKUP(D5,互评分!C$2:F$181,3,FALSE) -> 100.0000 | I5: =VLOOKUP(D5,互评分!C$2:F$181,2,FALSE) -> 95.0000 | J5: =F5*0.2 -> 19.9259 | K5: =G5*0.5 -> 47.0000 | L5: =H5*0.2 -> 20.0000 | M5: =I5*0.1 -> 9.5000 | N5: =SUM(J5:M5)*0.7 -> 67.4981 | O5: =VLOOKUP(D5,学生干部加分!A$1:C$140,3,FALSE) -> 7.0000 | P5: 0.0000 | Q5: 0.0000 | R5: =N5+O5+P5-Q5 -> 74.4981 | S5: =R5*0.15 -> 11.1747 | T5: 87.9268 | U5: 91.5000 | V5: =IF(U5>0,T5*0.9+U5*0.1,T5) -> 88.2841 | W5: =VLOOKUP(D5,智育加分汇总!A$2:C$44,3,FALSE) -> 12.2000 | X5: =V5*0.85+W5 -> 87.2415 | Y5: =0.7*X5 -> 61.0691 | Z5: =VLOOKUP(D5,体测成绩!B$2:C$273,2,FALSE) -> 74.2000 | AA5: =VLOOKUP(D5,体育锻炼成绩!A$2:B$182,2,FALSE) -> 100.00 | AB5: =0.8*Z5 -> 59.3600 | AC5: =AA5*0.2 -> 20.0000 | AD5: =SUM(AB5:AC5)*0.7 -> 55.5520 | AE5: =VLOOKUP(D5,体育加分汇总!A$1:C$79,3,FALSE) -> 2.0000 | AF5: =AD5+AE5 -> 57.5520 | AG5: =AF5*0.05 -> 2.8776 | AH5: =VLOOKUP(D5,美育!B$2:F$182,5,FALSE) -> 70.0000 | AI5: =VLOOKUP(D5,美育!B$2:E$182,4,FALSE) -> 0.0000 | AJ5: =AH5+AI5 -> 70.0000 | AK5: =AJ5*0.05 -> 3.5000 | AL5: =VLOOKUP(D5,劳育基础分!B$3:AF$182,31,FALSE) -> 42.5000 | AM5: 0.0000 | AN5: =AL5+AM5 -> 42.5000 | AO5: =AN5*0.05 -> 2.1250 | AP5: =S5+Y5+AG5+AK5+AO5 -> 80.7464 | AQ5: =VLOOKUP(D5,必修课优良率!A$1:B$173,2,FALSE) -> 100.00% | AR5: =VLOOKUP(D5,四级成绩!B$2:C$178,2,FALSE) -> 540 | AS5: =VLOOKUP(D5,必修课优良率!A$1:D$173,4,FALSE) -> 否
A6: 3 | B6: 12 | C6: 2024010525 | D6: 何佳 | E6: =VLOOKUP(D6,美育!B$2:E$182,2,FALSE) -> 化工类24-3班 | F6: =VLOOKUP(D6,互评分!C$2:F$181,4,FALSE) -> 99.5926 | G6: =VLOOKUP(D6,辅导员加分!B$2:C$176,2,FALSE) -> 95.0000 | H6: =VLOOKUP(D6,互评分!C$2:F$181,3,FALSE) -> 100.0000 | I6: =VLOOKUP(D6,互评分!C$2:F$181,2,FALSE) -> 100.0000 | J6: =F6*0.2 -> 19.9185 | K6: =G6*0.5 -> 47.5000 | L6: =H6*0.2 -> 20.0000 | M6: =I6*0.1 -> 10.0000 | N6: =SUM(J6:M6)*0.7 -> 68.1930 | O6: =VLOOKUP(D6,学生干部加分!A$1:C$140,3,FALSE) -> 8.0000 | P6: =VLOOKUP(D6,德育加分!C$2:K$30,9,FALSE) -> 5.0000 | Q6: 0.0000 | R6: =N6+O6+P6-Q6 -> 81.1930 | S6: =R6*0.15 -> 12.1789 | T6: 86.8780 | U6: 85.6667 | V6: =IF(U6>0,T6*0.9+U6*0.1,T6) -> 86.7569 | W6: =VLOOKUP(D6,智育加分汇总!A$2:C$44,3,FALSE) -> 7.8000 | X6: =V6*0.85+W6 -> 81.5434 | Y6: =0.7*X6 -> 57.0804 | Z6: =VLOOKUP(D6,体测成绩!B$2:C$273,2,FALSE) -> 81.2000 | AA6: =VLOOKUP(D6,体育锻炼成绩!A$2:B$182,2,FALSE) -> 100.0000 | AB6: =0.8*Z6 -> 64.9600 | AC6: =AA6*0.2 -> 20.0000 | AD6: =SUM(AB6:AC6)*0.7 -> 59.4720 | AE6: =VLOOKUP(D6,体育加分汇总!A$1:C$79,3,FALSE) -> 9.0000 | AF6: =AD6+AE6 -> 68.4720 | AG6: =AF6*0.05 -> 3.4236 | AH6: =VLOOKUP(D6,美育!B$2:F$182,5,FALSE) -> 70.0000 | AI6: =VLOOKUP(D6,美育!B$2:E$182,4,FALSE) -> 0.0000 | AJ6: =AH6+AI6 -> 70.0000 | AK6: =AJ6*0.05 -> 3.5000 | AL6: =VLOOKUP(D6,劳育基础分!B$3:AF$182,31,FALSE) -> 42.0000 | AM6: =VLOOKUP(D6,劳育加分!A$3:I$34,9,FALSE) -> 4.0000 | AN6: =AL6+AM6 -> 46.0000 | AO6: =AN6*0.05 -> 2.3000 | AP6: =S6+Y6+AG6+AK6+AO6 -> 78.4829 | AQ6: =VLOOKUP(D6,必修课优良率!A$1:B$173,2,FALSE) -> 85.71% | AR6: =VLOOKUP(D6,四级成绩!B$2:C$178,2,FALSE) -> 561 | AS6: =VLOOKUP(D6,必修课优良率!A$1:D$173,4,FALSE) -> 否
A7: 4 | B7: 93 | C7: 2024010617 | D7: 严翊中 | E7: =VLOOKUP(D7,美育!B$2:E$182,2,FALSE) -> 化工类24-6班 | F7: =VLOOKUP(D7,互评分!C$2:F$181,4,FALSE) -> 97.6923 | G7: =VLOOKUP(D7,辅导员加分!B$2:C$176,2,FALSE) -> 92.0000 | H7: =VLOOKUP(D7,互评分!C$2:F$181,3,FALSE) -> 98.5714 | I7: =VLOOKUP(D7,互评分!C$2:F$181,2,FALSE) -> 100.0000 | J7: =F7*0.2 -> 19.5385 | K7: =G7*0.5 -> 46.0000 | L7: =H7*0.2 -> 19.7143 | M7: =I7*0.1 -> 10.0000 | N7: =SUM(J7:M7)*0.7 -> 66.6769 | O7: =VLOOKUP(D7,学生干部加分!A$1:C$140,3,FALSE) -> 8.0000 | P7: =VLOOKUP(D7,德育加分!C$2:K$30,9,FALSE) -> 6.0000 | Q7: 0.0000 | R7: =N7+O7+P7-Q7 -> 80.6769 | S7: =R7*0.15 -> 12.1015 | T7: 76.9512 | U7: 87.8571 | V7: =IF(U7>0,T7*0.9+U7*0.1,T7) -> 78.0418 | W7: =VLOOKUP(D7,智育加分汇总!A$2:C$44,3,FALSE) -> 15.0000 | X7: =V7*0.85+W7 -> 81.3355 | Y7: =0.7*X7 -> 56.9349 | Z7: =VLOOKUP(D7,体测成绩!B$2:C$273,2,FALSE) -> 65.4000 | AA7: =VLOOKUP(D7,体育锻炼成绩!A$2:B$182,2,FALSE) -> 100.00 | AB7: =0.8*Z7 -> 52.3200 | AC7: =AA7*0.2 -> 20.0000 | AD7: =SUM(AB7:AC7)*0.7 -> 50.6240 | AE7: =VLOOKUP(D7,体育加分汇总!A$1:C$79,3,FALSE) -> 8.0000 | AF7: =AD7+AE7 -> 58.6240 | AG7: =AF7*0.05 -> 2.9312 | AH7: =VLOOKUP(D7,美育!B$2:F$182,5,FALSE) -> 70.0000 | AI7: =VLOOKUP(D7,美育!B$2:E$182,4,FALSE) -> 4.0000 | AJ7: =AH7+AI7 -> 74.0000 | AK7: =AJ7*0.05 -> 3.7000 | AL7: =VLOOKUP(D7,劳育基础分!B$3:AF$182,31,FALSE) -> 40.0000 | AM7: =VLOOKUP(D7,劳育加分!A$3:I$34,9,FALSE) -> 4.0000 | AN7: =AL7+AM7 -> 44.0000 | AO7: =AN7*0.05 -> 2.2000 | AP7: =S7+Y7+AG7+AK7+AO7 -> 77.8676 | AQ7: =VLOOKUP(D7,必修课优良率!A$1:B$173,2,FALSE) -> 52.38% | AR7: =VLOOKUP(D7,四级成绩!B$2:C$178,2,FALSE) -> 496 | AS7: =VLOOKUP(D7,必修课优良率!A$1:D$173,4,FALSE) -> 是
A8: 5 | B8: 1 | C8: 2024010608 | D8: 温晓阳 | E8: =VLOOKUP(D8,美育!B$2:E$182,2,FALSE) -> 化工类24-6班 | F8: =VLOOKUP(D8,互评分!C$2:F$181,4,FALSE) -> 98.8462 | G8: =VLOOKUP(D8,辅导员加分!B$2:C$176,2,FALSE) -> 94.0000 | H8: =VLOOKUP(D8,互评分!C$2:F$181,3,FALSE) -> 100.0000 | I8: =VLOOKUP(D8,互评分!C$2:F$181,2,FALSE) -> 100.0000 | J8: =F8*0.2 -> 19.7692 | K8: =G8*0.5 -> 47.0000 | L8: =H8*0.2 -> 20.0000 | M8: =I8*0.1 -> 10.0000 | N8: =SUM(J8:M8)*0.7 -> 67.7385 | O8: =VLOOKUP(D8,学生干部加分!A$1:C$140,3,FALSE) -> 8.0000 | P8: 0.0000 | Q8: 0.0000 | R8: =N8+O8+P8-Q8 -> 75.7385 | S8: =R8*0.15 -> 11.3608 | T8: =VLOOKUP(D8,[1]必修课成绩!C$71:AE$100,29,FALSE) -> 92.4875 | U8: =VLOOKUP(D8,[1]选修课成绩!C$72:AC$101,27,FALSE) -> 89.0000 | V8: =IF(U8>0,T8*0.9+U8*0.1,T8) -> 92.1388 | W8: =VLOOKUP(D8,智育加分汇总!A$2:C$44,3,FALSE) -> 3.0000 | X8: =V8*0.85+W8 -> 81.3179 | Y8: =0.7*X8 -> 56.9226 | Z8: =VLOOKUP(D8,体测成绩!B$2:C$273,2,FALSE) -> 78.5000 | AA8: =VLOOKUP(D8,体育锻炼成绩!A$2:B$182,2,FALSE) -> 100.00 | AB8: =0.8*Z8 -> 62.8000 | AC8: =AA8*0.2 -> 20.0000 | AD8: =SUM(AB8:AC8)*0.7 -> 57.9600 | AE8: =VLOOKUP(D8,体育加分汇总!A$1:C$79,3,FALSE) -> 1.0000 | AF8: =AD8+AE8 -> 58.9600 | AG8: =AF8*0.05 -> 2.9480 | AH8: =VLOOKUP(D8,美育!B$2:F$182,5,FALSE) -> 70.0000 | AI8: =VLOOKUP(D8,美育!B$2:E$182,4,FALSE) -> 4.0000 | AJ8: =AH8+AI8 -> 74.0000 | AK8: =AJ8*0.05 -> 3.7000 | AL8: =VLOOKUP(D8,劳育基础分!B$3:AF$182,31,FALSE) -> 50.0000 | AM8: 0.0000 | AN8: =AL8+AM8 -> 50.0000 | AO8: =AN8*0.05 -> 2.5000 | AP8: =S8+Y8+AG8+AK8+AO8 -> 77.4313 | AQ8: =VLOOKUP(D8,必修课优良率!A$1:B$173,2,FALSE) -> 90.48% | AR8: =VLOOKUP(D8,四级成绩!B$2:C$178,2,FALSE) -> 526 | AS8: =VLOOKUP(D8,必修课优良率!A$1:D$173,4,FALSE) -> 否
A9: 6 | B9: 10 | C9: 2024010584 | D9: 刘玲嘉 | E9: =VLOOKUP(D9,美育!B$2:E$182,2,FALSE) -> 化工类24-5班 | F9: =VLOOKUP(D9,互评分!C$2:F$181,4,FALSE) -> 99.6667 | G9: =VLOOKUP(D9,辅导员加分!B$2:C$176,2,FALSE) -> 96.0000 | H9: =VLOOKUP(D9,互评分!C$2:F$181,3,FALSE) -> 100.0000 | I9: =VLOOKUP(D9,互评分!C$2:F$181,2,FALSE) -> 95.0000 | J9: =F9*0.2 -> 19.9333 | K9: =G9*0.5 -> 48.0000 | L9: =H9*0.2 -> 20.0000 | M9: =I9*0.1 -> 9.5000 | N9: =SUM(J9:M9)*0.7 -> 68.2033 | O9: =VLOOKUP(D9,学生干部加分!A$1:C$140,3,FALSE) -> 9.0000 | P9: 0.0000 | Q9: 0.0000 | R9: =N9+O9+P9-Q9 -> 77.2033 | S9: =R9*0.15 -> 11.5805 | T9: 87.4146 | U9: 82.0000 | V9: =IF(U9>0,T9*0.9+U9*0.1,T9) -> 86.8732 | W9: =VLOOKUP(D9,智育加分汇总!A$2:C$44,3,FALSE) -> 5.0000 | X9: =V9*0.85+W9 -> 78.8422 | Y9: =0.7*X9 -> 55.1895 | Z9: =VLOOKUP(D9,体测成绩!B$2:C$273,2,FALSE) -> 88.8000 | AA9: =VLOOKUP(D9,体育锻炼成绩!A$2:B$182,2,FALSE) -> 100.00 | AB9: =0.8*Z9 -> 71.0400 | AC9: =AA9*0.2 -> 20.0000 | AD9: =SUM(AB9:AC9)*0.7 -> 63.7280 | AE9: =VLOOKUP(D9,体育加分汇总!A$1:C$79,3,FALSE) -> 8.0000 | AF9: =AD9+AE9 -> 71.7280 | AG9: =AF9*0.05 -> 3.5864 | AH9: =VLOOKUP(D9,美育!B$2:F$182,5,FALSE) -> 70.0000 | AI9: =VLOOKUP(D9,美育!B$2:E$182,4,FALSE) -> 4.0000 | AJ9: =AH9+AI9 -> 74.0000 | AK9: =AJ9*0.05 -> 3.7000 | AL9: =VLOOKUP(D9,劳育基础分!B$3:AF$182,31,FALSE) -> 44.5000 | AM9: 0.0000 | AN9: =AL9+AM9 -> 44.5000 | AO9: =AN9*0.05 -> 2.2250 | AP9: =S9+Y9+AG9+AK9+AO9 -> 76.2814 | AQ9: =VLOOKUP(D9,必修课优良率!A$1:B$173,2,FALSE) -> 95.24% | AR9: =VLOOKUP(D9,四级成绩!B$2:C$178,2,FALSE) -> 533 | AS9: =VLOOKUP(D9,必修课优良率!A$1:D$173,4,FALSE) -> 否
A10: 7 | B10: 21 | C10: 2024010578 | D10: 张钰涵 | E10: =VLOOKUP(D10,美育!B$2:E$182,2,FALSE) -> 化工类24-5班 | F10: =VLOOKUP(D10,互评分!C$2:F$181,4,FALSE) -> 99.5926 | G10: =VLOOKUP(D10,辅导员加分!B$2:C$176,2,FALSE) -> 94.0000 | H10: =VLOOKUP(D10,互评分!C$2:F$181,3,FALSE) -> 100.0000 | I10: =VLOOKUP(D10,互评分!C$2:F$181,2,FALSE) -> 93.0000 | J10: =F10*0.2 -> 19.9185 | K10: =G10*0.5 -> 47.0000 | L10: =H10*0.2 -> 20.0000 | M10: =I10*0.1 -> 9.3000 | N10: =SUM(J10:M10)*0.7 -> 67.3530 | O10: =VLOOKUP(D10,学生干部加分!A$1:C$140,3,FALSE) -> 7.0000 | P10: 0.0000 | Q10: 0.0000 | R10: =N10+O10+P10-Q10 -> 74.3530 | S10: =R10*0.15 -> 11.1529 | T10: 84.9634 | U10: 84.0000 | V10: =IF(U10>0,T10*0.9+U10*0.1,T10) -> 84.8671 | W10: =VLOOKUP(D10,智育加分汇总!A$2:C$44,3,FALSE) -> 8.0000 | X10: =V10*0.85+W10 -> 80.1370 | Y10: =0.7*X10 -> 56.0959 | Z10: =VLOOKUP(D10,体测成绩!B$2:C$273,2,FALSE) -> 75.6000 | AA10: =VLOOKUP(D10,体育锻炼成绩!A$2:B$182,2,FALSE) -> 100.00 | AB10: =0.8*Z10 -> 60.4800 | AC10: =AA10*0.2 -> 20.0000 | AD10: =SUM(AB10:AC10)*0.7 -> 56.3360 | AE10: =VLOOKUP(D10,体育加分汇总!A$1:C$79,3,FALSE) -> 10.0000 | AF10: =AD10+AE10 -> 66.3360 | AG10: =AF10*0.05 -> 3.3168 | AH10: =VLOOKUP(D10,美育!B$2:F$182,5,FALSE) -> 70.0000 | AI10: =VLOOKUP(D10,美育!B$2:E$182,4,FALSE) -> 0.0000 | AJ10: =AH10+AI10 -> 70.0000 | AK10: =AJ10*0.05 -> 3.5000 | AL10: =VLOOKUP(D10,劳育基础分!B$3:AF$182,31,FALSE) -> 42.5000 | AM10: 0.0000 | AN10: =AL10+AM10 -> 42.5000 | AO10: =AN10*0.05 -> 2.1250 | AP10: =S10+Y10+AG10+AK10+AO10 -> 76.1907 | AQ10: =VLOOKUP(D10,必修课优良率!A$1:B$173,2,FALSE) -> 100.00% | AR10: =VLOOKUP(D10,四级成绩!B$2:C$178,2,FALSE) -> 525 | AS10: =VLOOKUP(D10,必修课优良率!A$1:D$173,4,FALSE) -> 否
A11: 8 | B11: 9 | C11: 2024010480 | D11: 谢煜轩 | E11: =VLOOKUP(D11,美育!B$2:E$182,2,FALSE) -> 化工类24-1班 | F11: =VLOOKUP(D11,互评分!C$2:F$181,4,FALSE) -> 99.2963 | G11: =VLOOKUP(D11,辅导员加分!B$2:C$176,2,FALSE) -> 94.0000 | H11: =VLOOKUP(D11,互评分!C$2:F$181,3,FALSE) -> 100.0000 | I11: =VLOOKUP(D11,互评分!C$2:F$181,2,FALSE) -> 99.0000 | J11: =F11*0.2 -> 19.8593 | K11: =G11*0.5 -> 47.0000 | L11: =H11*0.2 -> 20.0000 | M11: =I11*0.1 -> 9.9000 | N11: =SUM(J11:M11)*0.7 -> 67.7315 | O11: =VLOOKUP(D11,学生干部加分!A$1:C$140,3,FALSE) -> 9.0000 | P11: =VLOOKUP(D11,德育加分!C$2:K$30,9,FALSE) -> 5.0000 | Q11: 0.0000 | R11: =N11+O11+P11-Q11 -> 81.7315 | S11: =R11*0.15 -> 12.2597 | T11: 87.6951 | U11: 92.1250 | V11: =IF(U11>0,T11*0.9+U11*0.1,T11) -> 88.1381 | W11: =VLOOKUP(D11,智育加分汇总!A$2:C$44,3,FALSE) -> 3.0000 | X11: =V11*0.85+W11 -> 77.9174 | Y11: =0.7*X11 -> 54.5422 | Z11: =VLOOKUP(D11,体测成绩!B$2:C$273,2,FALSE) -> 71.2000 | AA11: =VLOOKUP(D11,体育锻炼成绩!A$2:B$182,2,FALSE) -> 100.00 | AB11: =0.8*Z11 -> 56.9600 | AC11: =AA11*0.2 -> 20.0000 | AD11: =SUM(AB11:AC11)*0.7 -> 53.8720 | AE11: =VLOOKUP(D11,体育加分汇总!A$1:C$79,3,FALSE) -> 8.0000 | AF11: =AD11+AE11 -> 61.8720 | AG11: =AF11*0.05 -> 3.0936 | AH11: =VLOOKUP(D11,美育!B$2:F$182,5,FALSE) -> 70.0000 | AI11: =VLOOKUP(D11,美育!B$2:E$182,4,FALSE) -> 0.0000 | AJ11: =AH11+AI11 -> 70.0000 | AK11: =AJ11*0.05 -> 3.5000 | AL11: =VLOOKUP(D11,劳育基础分!B$3:AF$182,31,FALSE) -> 42.0000 | AM11: =VLOOKUP(D11,劳育加分!A$3:I$34,9,FALSE) -> 4.0000 | AN11: =AL11+AM11 -> 46.0000 | AO11: =AN11*0.05 -> 2.3000 | AP11: =S11+Y11+AG11+AK11+AO11 -> 75.6955 | AQ11: =VLOOKUP(D11,必修课优良率!A$1:B$173,2,FALSE) -> 95.24% | AR11: 562 | AS11: =VLOOKUP(D11,必修课优良率!A$1:D$173,4,FALSE) -> 否
A12: 9 | B12: 51 | C12: 2024010626 | D12: 李鑫涛 | E12: =VLOOKUP(D12,美育!B$2:E$182,2,FALSE) -> 化工类24-6班 | F12: =VLOOKUP(D12,互评分!C$2:F$181,4,FALSE) -> 97.3077 | G12: =VLOOKUP(D12,辅导员加分!B$2:C$176,2,FALSE) -> 92.0000 | H12: =VLOOKUP(D12,互评分!C$2:F$181,3,FALSE) -> 100.0000 | I12: =VLOOKUP(D12,互评分!C$2:F$181,2,FALSE) -> 100.0000 | J12: =F12*0.2 -> 19.4615 | K12: =G12*0.5 -> 46.0000 | L12: =H12*0.2 -> 20.0000 | M12: =I12*0.1 -> 10.0000 | N12: =SUM(J12:M12)*0.7 -> 66.8231 | O12: =VLOOKUP(D12,学生干部加分!A$1:C$140,3,FALSE) -> 6.0000 | P12: 0.0000 | Q12: 0.0000 | R12: =N12+O12+P12-Q12 -> 72.8231 | S12: =R12*0.15 -> 10.9235 | T12: 81.0000 | U12: 84.0000 | V12: =IF(U12>0,T12*0.9+U12*0.1,T12) -> 81.3000 | W12: =VLOOKUP(D12,智育加分汇总!A$2:C$44,3,FALSE) -> 15.0000 | X12: =V12*0.85+W12 -> 84.1050 | Y12: =0.7*X12 -> 58.8735 | Z12: =VLOOKUP(D12,体测成绩!B$2:C$273,2,FALSE) -> 67.2000 | AA12: =VLOOKUP(D12,体育锻炼成绩!A$2:B$182,2,FALSE) -> 100.00 | AB12: =0.8*Z12 -> 53.7600 | AC12: =AA12*0.2 -> 20.0000 | AD12: =SUM(AB12:AC12)*0.7 -> 51.6320 | AE12: 0.0000 | AF12: =AD12+AE12 -> 51.6320 | AG12: =AF12*0.05 -> 2.5816 | AH12: =VLOOKUP(D12,美育!B$2:F$182,5,FALSE) -> 10.0000 | AI12: =VLOOKUP(D12,美育!B$2:E$182,4,FALSE) -> 0.0000 | AJ12: =AH12+AI12 -> 10.0000 | AK12: =AJ12*0.05 -> 0.5000 | AL12: =VLOOKUP(D12,劳育基础分!B$3:AF$182,31,FALSE) -> 41.0000 | AM12: 0.0000 | AN12: =AL12+AM12 -> 41.0000 | AO12: =AN12*0.05 -> 2.0500 | AP12: =S12+Y12+AG12+AK12+AO12 -> 74.9286 | AQ12: =VLOOKUP(D12,必修课优良率!A$1:B$173,2,FALSE) -> 71.43% | AR12: =VLOOKUP(D12,四级成绩!B$2:C$178,2,FALSE) -> 361 | AS12: =VLOOKUP(D12,必修课优良率!A$1:D$173,4,FALSE) -> 否
A13: 10 | B13: 34 | C13: 2024010599 | D13: 林方宇 | E13: =VLOOKUP(D13,美育!B$2:E$182,2,FALSE) -> 化工类24-5班 | F13: =VLOOKUP(D13,互评分!C$2:F$181,4,FALSE) -> 99.6667 | G13: =VLOOKUP(D13,辅导员加分!B$2:C$176,2,FALSE) -> 92.0000 | H13: =VLOOKUP(D13,互评分!C$2:F$181,3,FALSE) -> 100.0000 | I13: =VLOOKUP(D13,互评分!C$2:F$181,2,FALSE) -> 90.0000 | J13: =F13*0.2 -> 19.9333 | K13: =G13*0.5 -> 46.0000 | L13: =H13*0.2 -> 20.0000 | M13: =I13*0.1 -> 9.0000 | N13: =SUM(J13:M13)*0.7 -> 66.4533 | O13: =VLOOKUP(D13,学生干部加分!A$1:C$140,3,FALSE) -> 6.0000 | P13: 0.0000 | Q13: 0.0000 | R13: =N13+O13+P13-Q13 -> 72.4533 | S13: =R13*0.15 -> 10.8680 | T13: 82.8902 | U13: 77.0000 | V13: =IF(U13>0,T13*0.9+U13*0.1,T13) -> 82.3012 | W13: =VLOOKUP(D13,智育加分汇总!A$2:C$44,3,FALSE) -> 10.4000 | X13: =V13*0.85+W13 -> 80.3560 | Y13: =0.7*X13 -> 56.2492 | Z13: =VLOOKUP(D13,体测成绩!B$2:C$273,2,FALSE) -> 67.7000 | AA13: =VLOOKUP(D13,体育锻炼成绩!A$2:B$182,2,FALSE) -> 100.00 | AB13: =0.8*Z13 -> 54.1600 | AC13: =AA13*0.2 -> 20.0000 | AD13: =SUM(AB13:AC13)*0.7 -> 51.9120 | AE13: 0.0000 | AF13: =AD13+AE13 -> 51.9120 | AG13: =AF13*0.05 -> 2.5956 | AH13: =VLOOKUP(D13,美育!B$2:F$182,5,FALSE) -> 64.0000 | AI13: =VLOOKUP(D13,美育!B$2:E$182,4,FALSE) -> 0.0000 | AJ13: =AH13+AI13 -> 64.0000 | AK13: =AJ13*0.05 -> 3.2000 | AL13: =VLOOKUP(D13,劳育基础分!B$3:AF$182,31,FALSE) -> 40.0000 | AM13: 0.0000 | AN13: =AL13+AM13 -> 40.0000 | AO13: =AN13*0.05 -> 2.0000 | AP13: =S13+Y13+AG13+AK13+AO13 -> 74.9128 | AQ13: =VLOOKUP(D13,必修课优良率!A$1:B$173,2,FALSE) -> 80.95% | AR13: =VLOOKUP(D13,四级成绩!B$2:C$178,2,FALSE) -> 576 | AS13: =VLOOKUP(D13,必修课优良率!A$1:D$173,4,FALSE) -> 否
A14: 11 | B14: 75 | C14: 2024010519 | D14: 赵梓伯 | E14: =VLOOKUP(D14,美育!B$2:E$182,2,FALSE) -> 化工类24-3班 | F14: =VLOOKUP(D14,互评分!C$2:F$181,4,FALSE) -> 99.2222 | G14: =VLOOKUP(D14,辅导员加分!B$2:C$176,2,FALSE) -> 90.0000 | H14: =VLOOKUP(D14,互评分!C$2:F$181,3,FALSE) -> 100.0000 | I14: =VLOOKUP(D14,互评分!C$2:F$181,2,FALSE) -> 99.0000 | J14: =F14*0.2 -> 19.8444 | K14: =G14*0.5 -> 45.0000 | L14: =H14*0.2 -> 20.0000 | M14: =I14*0.1 -> 9.9000 | N14: =SUM(J14:M14)*0.7 -> 66.3211 | O14: =VLOOKUP(D14,学生干部加分!A$1:C$140,3,FALSE) -> 5.0000 | P14: 0.0000 | Q14: 0.0000 | R14: =N14+O14+P14-Q14 -> 71.3211 | S14: =R14*0.15 -> 10.6982 | T14: =VLOOKUP(D14,[1]必修课成绩!C$71:AE$100,29,FALSE) -> 78.7125 | U14: =VLOOKUP(D14,[1]选修课成绩!C$72:AC$101,27,FALSE) -> 80.0000 | V14: =IF(U14>0,T14*0.9+U14*0.1,T14) -> 78.8413 | W14: =VLOOKUP(D14,智育加分汇总!A$2:C$44,3,FALSE) -> 15.0000 | X14: =V14*0.85+W14 -> 82.0151 | Y14: =0.7*X14 -> 57.4105 | Z14: =VLOOKUP(D14,体测成绩!B$2:C$273,2,FALSE) -> 66.8000 | AA14: =VLOOKUP(D14,体育锻炼成绩!A$2:B$182,2,FALSE) -> 100.00 | AB14: =0.8*Z14 -> 53.4400 | AC14: =AA14*0.2 -> 20.0000 | AD14: =SUM(AB14:AC14)*0.7 -> 51.4080 | AE14: =VLOOKUP(D14,体育加分汇总!A$1:C$79,3,FALSE) -> 4.0000 | AF14: =AD14+AE14 -> 55.4080 | AG14: =AF14*0.05 -> 2.7704 | AH14: =VLOOKUP(D14,美育!B$2:F$182,5,FALSE) -> 28.0000 | AI14: =VLOOKUP(D14,美育!B$2:E$182,4,FALSE) -> 0.0000 | AJ14: =AH14+AI14 -> 28.0000 | AK14: =AJ14*0.05 -> 1.4000 | AL14: =VLOOKUP(D14,劳育基础分!B$3:AF$182,31,FALSE) -> 40.0000 | AM14: 0.0000 | AN14: =AL14+AM14 -> 40.0000 | AO14: =AN14*0.05 -> 2.0000 | AP14: =S14+Y14+AG14+AK14+AO14 -> 74.2791 | AQ14: =VLOOKUP(D14,必修课优良率!A$1:B$173,2,FALSE) -> 66.67% | AR14: =VLOOKUP(D14,四级成绩!B$2:C$178,2,FALSE) -> 526 | AS14: =VLOOKUP(D14,必修课优良率!A$1:D$173,4,FALSE) -> 否
A15: 12 | B15: 50 | C15: 2024010458 | D15: 施朝阳 | E15: =VLOOKUP(D15,美育!B$2:E$182,2,FALSE) -> 化工类24-1班 | F15: =VLOOKUP(D15,互评分!C$2:F$181,4,FALSE) -> 96.6296 | G15: =VLOOKUP(D15,辅导员加分!B$2:C$176,2,FALSE) -> 96.0000 | H15: =VLOOKUP(D15,互评分!C$2:F$181,3,FALSE) -> 97.5000 | I15: =VLOOKUP(D15,互评分!C$2:F$181,2,FALSE) -> 99.0000 | J15: =F15*0.2 -> 19.3259 | K15: =G15*0.5 -> 48.0000 | L15: =H15*0.2 -> 19.5000 | M15: =I15*0.1 -> 9.9000 | N15: =SUM(J15:M15)*0.7 -> 67.7081 | O15: =VLOOKUP(D15,学生干部加分!A$1:C$140,3,FALSE) -> 8.0000 | P15: 0.0000 | Q15: 0.0000 | R15: =N15+O15+P15-Q15 -> 75.7081 | S15: =R15*0.15 -> 11.3562 | T15: =VLOOKUP(D15,[2]必修课成绩!C$59:BO$82,65,FALSE) -> 81.0244 | U15: =VLOOKUP(D15,[2]选修课成绩!C$60:BI$83,59,FALSE) -> 90.5000 | V15: =IF(U15>0,T15*0.9+U15*0.1,T15) -> 81.9720 | W15: =VLOOKUP(D15,智育加分汇总!A$2:C$44,3,FALSE) -> 9.0000 | X15: =V15*0.85+W15 -> 78.6762 | Y15: =0.7*X15 -> 55.0733 | Z15: =VLOOKUP(D15,体测成绩!B$2:C$273,2,FALSE) -> 64.3000 | AA15: =VLOOKUP(D15,体育锻炼成绩!A$2:B$182,2,FALSE) -> 100.00 | AB15: =0.8*Z15 -> 51.4400 | AC15: =AA15*0.2 -> 20.0000 | AD15: =SUM(AB15:AC15)*0.7 -> 50.0080 | AE15: 0.0000 | AF15: =AD15+AE15 -> 50.0080 | AG15: =AF15*0.05 -> 2.5004 | AH15: =VLOOKUP(D15,美育!B$2:F$182,5,FALSE) -> 43.0000 | AI15: =VLOOKUP(D15,美育!B$2:E$182,4,FALSE) -> 8.0000 | AJ15: =AH15+AI15 -> 51.0000 | AK15: =AJ15*0.05 -> 2.5500 | AL15: =VLOOKUP(D15,劳育基础分!B$3:AF$182,31,FALSE) -> 40.0000 | AM15: 0.0000 | AN15: =AL15+AM15 -> 40.0000 | AO15: =AN15*0.05 -> 2.0000 | AP15: =S15+Y15+AG15+AK15+AO15 -> 73.4799 | AQ15: =VLOOKUP(D15,必修课优良率!A$1:B$173,2,FALSE) -> 80.95% | AR15: =VLOOKUP(D15,四级成绩!B$2:C$178,2,FALSE) -> 546 | AS15: =VLOOKUP(D15,必修课优良率!A$1:D$173,4,FALSE) -> 否
A16: 13 | B16: 11 | C16: 2024010553 | D16: 尤雅 | E16: =VLOOKUP(D16,美育!B$2:E$182,2,FALSE) -> 化工类24-4班 | F16: =VLOOKUP(D16,互评分!C$2:F$181,4,FALSE) -> 96.2860 | G16: =VLOOKUP(D16,辅导员加分!B$2:C$176,2,FALSE) -> 94.0000 | H16: =VLOOKUP(D16,互评分!C$2:F$181,3,FALSE) -> 97.0000 | I16: =VLOOKUP(D16,互评分!C$2:F$181,2,FALSE) -> 100.0000 | J16: =F16*0.2 -> 19.2572 | K16: =G16*0.5 -> 47.0000 | L16: =H16*0.2 -> 19.4000 | M16: =I16*0.1 -> 10.0000 | N16: =SUM(J16:M16)*0.7 -> 66.9600 | O16: =VLOOKUP(D16,学生干部加分!A$1:C$140,3,FALSE) -> 9.0000 | P16: 0.0000 | Q16: 0.0000 | R16: =N16+O16+P16-Q16 -> 75.9600 | S16: =R16*0.15 -> 11.3940 | T16: =VLOOKUP(D16,[2]必修课成绩!C$59:BO$82,65,FALSE) -> 86.9634 | U16: =VLOOKUP(D16,[2]选修课成绩!C$60:BI$83,59,FALSE) -> 92.0000 | V16: =IF(U16>0,T16*0.9+U16*0.1,T16) -> 87.4671 | W16: 0.0000 | X16: =V16*0.85+W16 -> 74.3470 | Y16: =0.7*X16 -> 52.0429 | Z16: =VLOOKUP(D16,体测成绩!B$2:C$273,2,FALSE) -> 75.0000 | AA16: =VLOOKUP(D16,体育锻炼成绩!A$2:B$182,2,FALSE) -> 100.00 | AB16: =0.8*Z16 -> 60.0000 | AC16: =AA16*0.2 -> 20.0000 | AD16: =SUM(AB16:AC16)*0.7 -> 56.0000 | AE16: =VLOOKUP(D16,体育加分汇总!A$1:C$79,3,FALSE) -> 9.0000 | AF16: =AD16+AE16 -> 65.0000 | AG16: =AF16*0.05 -> 3.2500 | AH16: =VLOOKUP(D16,美育!B$2:F$182,5,FALSE) -> 70.0000 | AI16: =VLOOKUP(D16,美育!B$2:E$182,4,FALSE) -> 19.0000 | AJ16: =AH16+AI16 -> 89.0000 | AK16: =AJ16*0.05 -> 4.4500 | AL16: =VLOOKUP(D16,劳育基础分!B$3:AF$182,31,FALSE) -> 40.0000 | AM16: 0.0000 | AN16: =AL16+AM16 -> 40.0000 | AO16: =AN16*0.05 -> 2.0000 | AP16: =S16+Y16+AG16+AK16+AO16 -> 73.1369 | AQ16: =VLOOKUP(D16,必修课优良率!A$1:B$173,2,FALSE) -> 90.48% | AR16: =VLOOKUP(D16,四级成绩!B$2:C$178,2,FALSE) -> 492 | AS16: =VLOOKUP(D16,必修课优良率!A$1:D$173,4,FALSE) -> 否
A17: 14 | B17: 3 | C17: 2024010550 | D17: 梁金玉 | E17: =VLOOKUP(D17,美育!B$2:E$182,2,FALSE) -> 化工类24-4班 | F17: =VLOOKUP(D17,互评分!C$2:F$181,4,FALSE) -> 97.5357 | G17: =VLOOKUP(D17,辅导员加分!B$2:C$176,2,FALSE) -> 97.0000 | H17: =VLOOKUP(D17,互评分!C$2:F$181,3,FALSE) -> 98.4286 | I17: =VLOOKUP(D17,互评分!C$2:F$181,2,FALSE) -> 100.0000 | J17: =F17*0.2 -> 19.5071 | K17: =G17*0.5 -> 48.5000 | L17: =H17*0.2 -> 19.6857 | M17: =I17*0.1 -> 10.0000 | N17: =SUM(J17:M17)*0.7 -> 68.3850 | O17: =VLOOKUP(D17,学生干部加分!A$1:C$140,3,FALSE) -> 8.0000 | P17: 0.0000 | Q17: 0.0000 | R17: =N17+O17+P17-Q17 -> 76.3850 | S17: =R17*0.15 -> 11.4577 | T17: 90.2073 | U17: 83.5000 | V17: =IF(U17>0,T17*0.9+U17*0.1,T17) -> 89.5366 | W17: =VLOOKUP(D17,智育加分汇总!A$2:C$44,3,FALSE) -> 3.0000 | X17: =V17*0.85+W17 -> 79.1061 | Y17: =0.7*X17 -> 55.3743 | Z17: =VLOOKUP(D17,体测成绩!B$2:C$273,2,FALSE) -> 69.5000 | AA17: =VLOOKUP(D17,体育锻炼成绩!A$2:B$182,2,FALSE) -> 100.00 | AB17: =0.8*Z17 -> 55.6000 | AC17: =AA17*0.2 -> 20.0000 | AD17: =SUM(AB17:AC17)*0.7 -> 52.9200 | AE17: =VLOOKUP(D17,体育加分汇总!A$1:C$79,3,FALSE) -> 0.0000 | AF17: =AD17+AE17 -> 52.9200 | AG17: =AF17*0.05 -> 2.6460 | AH17: =VLOOKUP(D17,美育!B$2:F$182,5,FALSE) -> 25.0000 | AI17: =VLOOKUP(D17,美育!B$2:E$182,4,FALSE) -> 0.0000 | AJ17: =AH17+AI17 -> 25.0000 | AK17: =AJ17*0.05 -> 1.2500 | AL17: =VLOOKUP(D17,劳育基础分!B$3:AF$182,31,FALSE) -> 42.0000 | AM17: 0.0000 | AN17: =AL17+AM17 -> 42.0000 | AO17: =AN17*0.05 -> 2.1000 | AP17: =S17+Y17+AG17+AK17+AO17 -> 72.8280 | AQ17: =VLOOKUP(D17,必修课优良率!A$1:B$173,2,FALSE) -> 100.00% | AR17: =VLOOKUP(D17,四级成绩!B$2:C$178,2,FALSE) -> 583 | AS17: =VLOOKUP(D17,必修课优良率!A$1:D$173,4,FALSE) -> 否
A18: 15 | B18: 6 | C18: 2024010623 | D18: 郝雪普 | E18: =VLOOKUP(D18,美育!B$2:E$182,2,FALSE) -> 化工类24-6班 | F18: =VLOOKUP(D18,互评分!C$2:F$181,4,FALSE) -> 98.4615 | G18: =VLOOKUP(D18,辅导员加分!B$2:C$176,2,FALSE) -> 92.0000 | H18: =VLOOKUP(D18,互评分!C$2:F$181,3,FALSE) -> 100.0000 | I18: =VLOOKUP(D18,互评分!C$2:F$181,2,FALSE) -> 100.0000 | J18: =F18*0.2 -> 19.6923 | K18: =G18*0.5 -> 46.0000 | L18: =H18*0.2 -> 20.0000 | M18: =I18*0.1 -> 10.0000 | N18: =SUM(J18:M18)*0.7 -> 66.9846 | O18: =VLOOKUP(D18,学生干部加分!A$1:C$140,3,FALSE) -> 6.0000 | P18: 0.0000 | Q18: 0.0000 | R18: =N18+O18+P18-Q18 -> 72.9846 | S18: =R18*0.15 -> 10.9477 | T18: 89.5122 | U18: 94.0000 | V18: =IF(U18>0,T18*0.9+U18*0.1,T18) -> 89.9610 | W18: 0.0000 | X18: =V18*0.85+W18 -> 76.4668 | Y18: =0.7*X18 -> 53.5268 | Z18: =VLOOKUP(D18,体测成绩!B$2:C$273,2,FALSE) -> 65.4000 | AA18: =VLOOKUP(D18,体育锻炼成绩!A$2:B$182,2,FALSE) -> 100.00 | AB18: =0.8*Z18 -> 52.3200 | AC18: =AA18*0.2 -> 20.0000 | AD18: =SUM(AB18:AC18)*0.7 -> 50.6240 | AE18: =VLOOKUP(D18,体育加分汇总!A$1:C$79,3,FALSE) -> 0.0000 | AF18: =AD18+AE18 -> 50.6240 | AG18: =AF18*0.05 -> 2.5312 | AH18: =VLOOKUP(D18,美育!B$2:F$182,5,FALSE) -> 70.0000 | AI18: =VLOOKUP(D18,美育!B$2:E$182,4,FALSE) -> 0.0000 | AJ18: =AH18+AI18 -> 70.0000 | AK18: =AJ18*0.05 -> 3.5000 | AL18: =VLOOKUP(D18,劳育基础分!B$3:AF$182,31,FALSE) -> 42.0000 | AM18: 0.0000 | AN18: =AL18+AM18 -> 42.0000 | AO18: =AN18*0.05 -> 2.1000 | AP18: =S18+Y18+AG18+AK18+AO18 -> 72.6057 | AQ18: =VLOOKUP(D18,必修课优良率!A$1:B$173,2,FALSE) -> 95.24% | AR18: =VLOOKUP(D18,四级成绩!B$2:C$178,2,FALSE) -> 585 | AS18: =VLOOKUP(D18,必修课优良率!A$1:D$173,4,FALSE) -> 否
A19: 16 | B19: 5 | C19: 2024010585 | D19: 吴佳妮 | E19: =VLOOKUP(D19,美育!B$2:E$182,2,FALSE) -> 化工类24-5班 | F19: =VLOOKUP(D19,互评分!C$2:F$181,4,FALSE) -> 99.6296 | G19: =VLOOKUP(D19,辅导员加分!B$2:C$176,2,FALSE) -> 92.0000 | H19: =VLOOKUP(D19,互评分!C$2:F$181,3,FALSE) -> 100.0000 | I19: =VLOOKUP(D19,互评分!C$2:F$181,2,FALSE) -> 95.0000 | J19: =F19*0.2 -> 19.9259 | K19: =G19*0.5 -> 46.0000 | L19: =H19*0.2 -> 20.0000 | M19: =I19*0.1 -> 9.5000 | N19: =SUM(J19:M19)*0.7 -> 66.7981 | O19: =VLOOKUP(D19,学生干部加分!A$1:C$140,3,FALSE) -> 4.0000 | P19: 0.0000 | Q19: 0.0000 | R19: =N19+O19+P19-Q19 -> 70.7981 | S19: =R19*0.15 -> 10.6197 | T19: 90.0732 | U19: 88.0000 | V19: =IF(U19>0,T19*0.9+U19*0.1,T19) -> 89.8659 | W19: 0.0000 | X19: =V19*0.85+W19 -> 76.3860 | Y19: =0.7*X19 -> 53.4702 | Z19: =VLOOKUP(D19,体测成绩!B$2:C$273,2,FALSE) -> 83.4000 | AA19: =VLOOKUP(D19,体育锻炼成绩!A$2:B$182,2,FALSE) -> 100.00 | AB19: =0.8*Z19 -> 66.7200 | AC19: =AA19*0.2 -> 20.0000 | AD19: =SUM(AB19:AC19)*0.7 -> 60.7040 | AE19: =VLOOKUP(D19,体育加分汇总!A$1:C$79,3,FALSE) -> 13.0000 | AF19: =AD19+AE19 -> 73.7040 | AG19: =AF19*0.05 -> 3.6852 | AH19: =VLOOKUP(D19,美育!B$2:F$182,5,FALSE) -> 50.0000 | AI19: =VLOOKUP(D19,美育!B$2:E$182,4,FALSE) -> 0.0000 | AJ19: =AH19+AI19 -> 50.0000 | AK19: =AJ19*0.05 -> 2.5000 | AL19: =VLOOKUP(D19,劳育基础分!B$3:AF$182,31,FALSE) -> 44.5000 | AM19: 0.0000 | AN19: =AL19+AM19 -> 44.5000 | AO19: =AN19*0.05 -> 2.2250 | AP19: =S19+Y19+AG19+AK19+AO19 -> 72.5001 | AQ19: =VLOOKUP(D19,必修课优良率!A$1:B$173,2,FALSE) -> 100.00% | AR19: =VLOOKUP(D19,四级成绩!B$2:C$178,2,FALSE) -> 540 | AS19: =VLOOKUP(D19,必修课优良率!A$1:D$173,4,FALSE) -> 否
A20: 17 | B20: 38 | C20: 2024010464 | D20: 胡婷 | E20: =VLOOKUP(D20,美育!B$2:E$182,2,FALSE) -> 化工类24-1班 | F20: =VLOOKUP(D20,互评分!C$2:F$181,4,FALSE) -> 96.6296 | G20: =VLOOKUP(D20,辅导员加分!B$2:C$176,2,FALSE) -> 92.0000 | H20: =VLOOKUP(D20,互评分!C$2:F$181,3,FALSE) -> 96.0000 | I20: =VLOOKUP(D20,互评分!C$2:F$181,2,FALSE) -> 98.0000 | J20: =F20*0.2 -> 19.3259 | K20: =G20*0.5 -> 46.0000 | L20: =H20*0.2 -> 19.2000 | M20: =I20*0.1 -> 9.8000 | N20: =SUM(J20:M20)*0.7 -> 66.0281 | O20: =VLOOKUP(D20,学生干部加分!A$1:C$140,3,FALSE) -> 8.0000 | P20: =VLOOKUP(D20,德育加分!C$2:K$30,9,FALSE) -> 2.0000 | Q20: 0.0000 | R20: =N20+O20+P20-Q20 -> 76.0281 | S20: =R20*0.15 -> 11.4042 | T20: =VLOOKUP(D20,[2]必修课成绩!C$59:BO$82,65,FALSE) -> 82.3902 | U20: =VLOOKUP(D20,[2]选修课成绩!C$60:BI$83,59,FALSE) -> 91.0000 | V20: =IF(U20>0,T20*0.9+U20*0.1,T20) -> 83.2512 | W20: =VLOOKUP(D20,智育加分汇总!A$2:C$44,3,FALSE) -> 3.6000 | X20: =V20*0.85+W20 -> 74.3635 | Y20: =0.7*X20 -> 52.0545 | Z20: =VLOOKUP(D20,体测成绩!B$2:C$273,2,FALSE) -> 80.4000 | AA20: =VLOOKUP(D20,体育锻炼成绩!A$2:B$182,2,FALSE) -> 100.00 | AB20: =0.8*Z20 -> 64.3200 | AC20: =AA20*0.2 -> 20.0000 | AD20: =SUM(AB20:AC20)*0.7 -> 59.0240 | AE20: =VLOOKUP(D20,体育加分汇总!A$1:C$79,3,FALSE) -> 7.0000 | AF20: =AD20+AE20 -> 66.0240 | AG20: =AF20*0.05 -> 3.3012 | AH20: =VLOOKUP(D20,美育!B$2:F$182,5,FALSE) -> 70.0000 | AI20: =VLOOKUP(D20,美育!B$2:E$182,4,FALSE) -> 4.0000 | AJ20: =AH20+AI20 -> 74.0000 | AK20: =AJ20*0.05 -> 3.7000 | AL20: =VLOOKUP(D20,劳育基础分!B$3:AF$182,31,FALSE) -> 40.0000 | AM20: 0.0000 | AN20: =AL20+AM20 -> 40.0000 | AO20: =AN20*0.05 -> 2.0000 | AP20: =S20+Y20+AG20+AK20+AO20 -> 72.4599 | AQ20: =VLOOKUP(D20,必修课优良率!A$1:B$173,2,FALSE) -> 76.19% | AR20: =VLOOKUP(D20,四级成绩!B$2:C$178,2,FALSE) -> 452 | AS20: =VLOOKUP(D20,必修课优良率!A$1:D$173,4,FALSE) -> 否
A21: 18 | B21: 28 | C21: 2024010460 | D21: 袁翊淼 | E21: =VLOOKUP(D21,美育!B$2:E$182,2,FALSE) -> 化工类24-1班 | F21: =VLOOKUP(D21,互评分!C$2:F$181,4,FALSE) -> 95.5556 | G21: =VLOOKUP(D21,辅导员加分!B$2:C$176,2,FALSE) -> 94.0000 | H21: =VLOOKUP(D21,互评分!C$2:F$181,3,FALSE) -> 96.6667 | I21: =VLOOKUP(D21,互评分!C$2:F$181,2,FALSE) -> 92.0000 | J21: =F21*0.2 -> 19.1111 | K21: =G21*0.5 -> 47.0000 | L21: =H21*0.2 -> 19.3333 | M21: =I21*0.1 -> 9.2000 | N21: =SUM(J21:M21)*0.7 -> 66.2511 | O21: =VLOOKUP(D21,学生干部加分!A$1:C$140,3,FALSE) -> 5.0000 | P21: 0.0000 | Q21: 0.0000 | R21: =N21+O21+P21-Q21 -> 71.2511 | S21: =R21*0.15 -> 10.6877 | T21: =VLOOKUP(D21,[1]必修课成绩!C$71:AE$100,29,FALSE) -> 84.2875 | U21: =VLOOKUP(D21,[1]选修课成绩!C$72:AC$101,27,FALSE) -> 89.0000 | V21: =IF(U21>0,T21*0.9+U21*0.1,T21) -> 84.7588 | W21: =VLOOKUP(D21,智育加分汇总!A$2:C$44,3,FALSE) -> 7.0000 | X21: =V21*0.85+W21 -> 79.0449 | Y21: =0.7*X21 -> 55.3315 | Z21: =VLOOKUP(D21,体测成绩!B$2:C$273,2,FALSE) -> 67.2000 | AA21: =VLOOKUP(D21,体育锻炼成绩!A$2:B$182,2,FALSE) -> 100.00 | AB21: =0.8*Z21 -> 53.7600 | AC21: =AA21*0.2 -> 20.0000 | AD21: =SUM(AB21:AC21)*0.7 -> 51.6320 | AE21: 0.0000 | AF21: =AD21+AE21 -> 51.6320 | AG21: =AF21*0.05 -> 2.5816 | AH21: =VLOOKUP(D21,美育!B$2:F$182,5,FALSE) -> 30.0000 | AI21: =VLOOKUP(D21,美育!B$2:E$182,4,FALSE) -> 0.0000 | AJ21: =AH21+AI21 -> 30.0000 | AK21: =AJ21*0.05 -> 1.5000 | AL21: =VLOOKUP(D21,劳育基础分!B$3:AF$182,31,FALSE) -> 40.0000 | AM21: 0.0000 | AN21: =AL21+AM21 -> 40.0000 | AO21: =AN21*0.05 -> 2.0000 | AP21: =S21+Y21+AG21+AK21+AO21 -> 72.1007 | AQ21: =VLOOKUP(D21,必修课优良率!A$1:B$173,2,FALSE) -> 85.71% | AR21: =VLOOKUP(D21,四级成绩!B$2:C$178,2,FALSE) -> 577 | AS21: =VLOOKUP(D21,必修课优良率!A$1:D$173,4,FALSE) -> 否
A22: 19 | B22: 67 | C22: 2024010593 | D22: 康铭坤 | E22: =VLOOKUP(D22,美育!B$2:E$182,2,FALSE) -> 化工类24-5班 | F22: =VLOOKUP(D22,互评分!C$2:F$181,4,FALSE) -> 99.6667 | G22: =VLOOKUP(D22,辅导员加分!B$2:C$176,2,FALSE) -> 94.0000 | H22: =VLOOKUP(D22,互评分!C$2:F$181,3,FALSE) -> 100.0000 | I22: =VLOOKUP(D22,互评分!C$2:F$181,2,FALSE) -> 90.0000 | J22: =F22*0.2 -> 19.9333 | K22: =G22*0.5 -> 47.0000 | L22: =H22*0.2 -> 20.0000 | M22: =I22*0.1 -> 9.0000 | N22: =SUM(J22:M22)*0.7 -> 67.1533 | O22: =VLOOKUP(D22,学生干部加分!A$1:C$140,3,FALSE) -> 6.0000 | P22: 0.0000 | Q22: 0.0000 | R22: =N22+O22+P22-Q22 -> 73.1533 | S22: =R22*0.15 -> 10.9730 | T22: 79.4390 | U22: 78.3333 | V22: =IF(U22>0,T22*0.9+U22*0.1,T22) -> 79.3285 | W22: =VLOOKUP(D22,智育加分汇总!A$2:C$44,3,FALSE) -> 6.0000 | X22: =V22*0.85+W22 -> 73.4292 | Y22: =0.7*X22 -> 51.4004 | Z22: =VLOOKUP(D22,体测成绩!B$2:C$273,2,FALSE) -> 61.7000 | AA22: =VLOOKUP(D22,体育锻炼成绩!A$2:B$182,2,FALSE) -> 100.00 | AB22: =0.8*Z22 -> 49.3600 | AC22: =AA22*0.2 -> 20.0000 | AD22: =SUM(AB22:AC22)*0.7 -> 48.5520 | AE22: =VLOOKUP(D22,体育加分汇总!A$1:C$79,3,FALSE) -> 20.0000 | AF22: =AD22+AE22 -> 68.5520 | AG22: =AF22*0.05 -> 3.4276 | AH22: =VLOOKUP(D22,美育!B$2:F$182,5,FALSE) -> 70.0000 | AI22: =VLOOKUP(D22,美育!B$2:E$182,4,FALSE) -> 2.0000 | AJ22: =AH22+AI22 -> 72.0000 | AK22: =AJ22*0.05 -> 3.6000 | AL22: =VLOOKUP(D22,劳育基础分!B$3:AF$182,31,FALSE) -> 45.5000 | AM22: =VLOOKUP(D22,劳育加分!A$3:I$34,9,FALSE) -> 4.0000 | AN22: =AL22+AM22 -> 49.5000 | AO22: =AN22*0.05 -> 2.4750 | AP22: =S22+Y22+AG22+AK22+AO22 -> 71.8760 | AQ22: =VLOOKUP(D22,必修课优良率!A$1:B$173,2,FALSE) -> 66.67% | AR22: =VLOOKUP(D22,四级成绩!B$2:C$178,2,FALSE) -> 388 | AS22: =VLOOKUP(D22,必修课优良率!A$1:D$173,4,FALSE) -> 否
A23: 20 | B23: 14 | C23: 2024010461 | D23: 卢力瑛 | E23: =VLOOKUP(D23,美育!B$2:E$182,2,FALSE) -> 化工类24-1班 | F23: =VLOOKUP(D23,互评分!C$2:F$181,4,FALSE) -> 95.2593 | G23: =VLOOKUP(D23,辅导员加分!B$2:C$176,2,FALSE) -> 94.0000 | H23: =VLOOKUP(D23,互评分!C$2:F$181,3,FALSE) -> 96.6667 | I23: =VLOOKUP(D23,互评分!C$2:F$181,2,FALSE) -> 90.0000 | J23: =F23*0.2 -> 19.0519 | K23: =G23*0.5 -> 47.0000 | L23: =H23*0.2 -> 19.3333 | M23: =I23*0.1 -> 9.0000 | N23: =SUM(J23:M23)*0.7 -> 66.0696 | O23: =VLOOKUP(D23,学生干部加分!A$1:C$140,3,FALSE) -> 5.5000 | P23: 0.0000 | Q23: 0.0000 | R23: =N23+O23+P23-Q23 -> 71.5696 | S23: =R23*0.15 -> 10.7354 | T23: =VLOOKUP(D23,[1]必修课成绩!C$71:AE$100,29,FALSE) -> 86.5125 | U23: =VLOOKUP(D23,[1]选修课成绩!C$72:AC$101,27,FALSE) -> 85.0000 | V23: =IF(U23>0,T23*0.9+U23*0.1,T23) -> 86.3613 | W23: 0.0000 | X23: =V23*0.85+W23 -> 73.4071 | Y23: =0.7*X23 -> 51.3849 | Z23: =VLOOKUP(D23,体测成绩!B$2:C$273,2,FALSE) -> 80.4000 | AA23: =VLOOKUP(D23,体育锻炼成绩!A$2:B$182,2,FALSE) -> 100.00 | AB23: =0.8*Z23 -> 64.3200 | AC23: =AA23*0.2 -> 20.0000 | AD23: =SUM(AB23:AC23)*0.7 -> 59.0240 | AE23: 0.0000 | AF23: =AD23+AE23 -> 59.0240 | AG23: =AF23*0.05 -> 2.9512 | AH23: =VLOOKUP(D23,美育!B$2:F$182,5,FALSE) -> 70.0000 | AI23: =VLOOKUP(D23,美育!B$2:E$182,4,FALSE) -> 0.0000 | AJ23: =AH23+AI23 -> 70.0000 | AK23: =AJ23*0.05 -> 3.5000 | AL23: =VLOOKUP(D23,劳育基础分!B$3:AF$182,31,FALSE) -> 57.0000 | AM23: =VLOOKUP(D23,劳育加分!A$3:I$34,9,FALSE) -> 5.0000 | AN23: =AL23+AM23 -> 62.0000 | AO23: =AN23*0.05 -> 3.1000 | AP23: =S23+Y23+AG23+AK23+AO23 -> 71.6716 | AQ23: =VLOOKUP(D23,必修课优良率!A$1:B$173,2,FALSE) -> 90.48% | AR23: =VLOOKUP(D23,四级成绩!B$2:C$178,2,FALSE) -> 533 | AS23: =VLOOKUP(D23,必修课优良率!A$1:D$173,4,FALSE) -> 否
A24: 21 | B24: 16 | C24: 2024010625 | D24: 方文正 | E24: =VLOOKUP(D24,美育!B$2:E$182,2,FALSE) -> 化工类24-6班 | F24: =VLOOKUP(D24,互评分!C$2:F$181,4,FALSE) -> 98.8462 | G24: =VLOOKUP(D24,辅导员加分!B$2:C$176,2,FALSE) -> 94.0000 | H24: =VLOOKUP(D24,互评分!C$2:F$181,3,FALSE) -> 100.0000 | I24: =VLOOKUP(D24,互评分!C$2:F$181,2,FALSE) -> 100.0000 | J24: =F24*0.2 -> 19.7692 | K24: =G24*0.5 -> 47.0000 | L24: =H24*0.2 -> 20.0000 | M24: =I24*0.1 -> 10.0000 | N24: =SUM(J24:M24)*0.7 -> 67.7385 | O24: =VLOOKUP(D24,学生干部加分!A$1:C$140,3,FALSE) -> 6.0000 | P24: =VLOOKUP(D24,德育加分!C$2:K$30,9,FALSE) -> 2.0000 | Q24: 0.0000 | R24: =N24+O24+P24-Q24 -> 75.7385 | S24: =R24*0.15 -> 11.3608 | T24: 86.2308 | U24: 87.0000 | V24: =IF(U24>0,T24*0.9+U24*0.1,T24) -> 86.3077 | W24: =VLOOKUP(D24,智育加分汇总!A$2:C$44,3,FALSE) -> 2.0000 | X24: =V24*0.85+W24 -> 75.3615 | Y24: =0.7*X24 -> 52.7531 | Z24: =VLOOKUP(D24,体测成绩!B$2:C$273,2,FALSE) -> 60.0000 | AA24: =VLOOKUP(D24,体育锻炼成绩!A$2:B$182,2,FALSE) -> 100.00 | AB24: =0.8*Z24 -> 48.0000 | AC24: =AA24*0.2 -> 20.0000 | AD24: =SUM(AB24:AC24)*0.7 -> 47.6000 | AE24: 0.0000 | AF24: =AD24+AE24 -> 47.6000 | AG24: =AF24*0.05 -> 2.3800 | AH24: =VLOOKUP(D24,美育!B$2:F$182,5,FALSE) -> 45.0000 | AI24: =VLOOKUP(D24,美育!B$2:E$182,4,FALSE) -> 0.0000 | AJ24: =AH24+AI24 -> 45.0000 | AK24: =AJ24*0.05 -> 2.2500 | AL24: =VLOOKUP(D24,劳育基础分!B$3:AF$182,31,FALSE) -> 41.0000 | AM24: 0.0000 | AN24: =AL24+AM24 -> 41.0000 | AO24: =AN24*0.05 -> 2.0500 | AP24: =S24+Y24+AG24+AK24+AO24 -> 70.7938 | AQ24: =VLOOKUP(D24,必修课优良率!A$1:B$173,2,FALSE) -> 94.74% | AR24: =VLOOKUP(D24,四级成绩!B$2:C$178,2,FALSE) -> 521 | AS24: =VLOOKUP(D24,必修课优良率!A$1:D$173,4,FALSE) -> 否
A25: 22 | B25: 24 | C25: 2024010538 | D25: 王超卓 | E25: =VLOOKUP(D25,美育!B$2:E$182,2,FALSE) -> 化工类24-3班 | F25: =VLOOKUP(D25,互评分!C$2:F$181,4,FALSE) -> 99.2963 | G25: =VLOOKUP(D25,辅导员加分!B$2:C$176,2,FALSE) -> 92.0000 | H25: =VLOOKUP(D25,互评分!C$2:F$181,3,FALSE) -> 100.0000 | I25: =VLOOKUP(D25,互评分!C$2:F$181,2,FALSE) -> 99.0000 | J25: =F25*0.2 -> 19.8593 | K25: =G25*0.5 -> 46.0000 | L25: =H25*0.2 -> 20.0000 | M25: =I25*0.1 -> 9.9000 | N25: =SUM(J25:M25)*0.7 -> 67.0315 | O25: =VLOOKUP(D25,学生干部加分!A$1:C$140,3,FALSE) -> 4.0000 | P25: 0.0000 | Q25: 0.0000 | R25: =N25+O25+P25-Q25 -> 71.0315 | S25: =R25*0.15 -> 10.6547 | T25: =VLOOKUP(D25,[1]必修课成绩!C$71:AE$100,29,FALSE) -> 84.6750 | U25: =VLOOKUP(D25,[1]选修课成绩!C$72:AC$101,27,FALSE) -> 89.0000 | V25: =IF(U25>0,T25*0.9+U25*0.1,T25) -> 85.1075 | W25: =VLOOKUP(D25,智育加分汇总!A$2:C$44,3,FALSE) -> 3.0000 | X25: =V25*0.85+W25 -> 75.3414 | Y25: =0.7*X25 -> 52.7390 | Z25: =VLOOKUP(D25,体测成绩!B$2:C$273,2,FALSE) -> 75.6000 | AA25: =VLOOKUP(D25,体育锻炼成绩!A$2:B$182,2,FALSE) -> 100.0000 | AB25: =0.8*Z25 -> 60.4800 | AC25: =AA25*0.2 -> 20.0000 | AD25: =SUM(AB25:AC25)*0.7 -> 56.3360 | AE25: 0.0000 | AF25: =AD25+AE25 -> 56.3360 | AG25: =AF25*0.05 -> 2.8168 | AH25: =VLOOKUP(D25,美育!B$2:F$182,5,FALSE) -> 40.0000 | AI25: =VLOOKUP(D25,美育!B$2:E$182,4,FALSE) -> 0.0000 | AJ25: =AH25+AI25 -> 40.0000 | AK25: =AJ25*0.05 -> 2.0000 | AL25: =VLOOKUP(D25,劳育基础分!B$3:AF$182,31,FALSE) -> 42.0000 | AM25: 0.0000 | AN25: =AL25+AM25 -> 42.0000 | AO25: =AN25*0.05 -> 2.1000 | AP25: =S25+Y25+AG25+AK25+AO25 -> 70.3105 | AQ25: =VLOOKUP(D25,必修课优良率!A$1:B$173,2,FALSE) -> 71.43% | AR25: =VLOOKUP(D25,四级成绩!B$2:C$178,2,FALSE) -> 415 | AS25: =VLOOKUP(D25,必修课优良率!A$1:D$173,4,FALSE) -> 否
A26: 23 | B26: 13 | C26: 2024010527 | D26: 叶霖 | E26: =VLOOKUP(D26,美育!B$2:E$182,2,FALSE) -> 化工类24-3班 | F26: =VLOOKUP(D26,互评分!C$2:F$181,4,FALSE) -> 99.5926 | G26: =VLOOKUP(D26,辅导员加分!B$2:C$176,2,FALSE) -> 94.0000 | H26: =VLOOKUP(D26,互评分!C$2:F$181,3,FALSE) -> 100.0000 | I26: =VLOOKUP(D26,互评分!C$2:F$181,2,FALSE) -> 100.0000 | J26: =F26*0.2 -> 19.9185 | K26: =G26*0.5 -> 47.0000 | L26: =H26*0.2 -> 20.0000 | M26: =I26*0.1 -> 10.0000 | N26: =SUM(J26:M26)*0.7 -> 67.8430 | O26: =VLOOKUP(D26,学生干部加分!A$1:C$140,3,FALSE) -> 3.0000 | P26: 0.0000 | Q26: 0.0000 | R26: =N26+O26+P26-Q26 -> 70.8430 | S26: =R26*0.15 -> 10.6264 | T26: 86.5679 | U26: 75.0000 | V26: =IF(U26>0,T26*0.9+U26*0.1,T26) -> 85.4111 | W26: =VLOOKUP(D26,智育加分汇总!A$2:C$44,3,FALSE) -> 3.0000 | X26: =V26*0.85+W26 -> 75.5994 | Y26: =0.7*X26 -> 52.9196 | Z26: =VLOOKUP(D26,体测成绩!B$2:C$273,2,FALSE) -> 88.5000 | AA26: =VLOOKUP(D26,体育锻炼成绩!A$2:B$182,2,FALSE) -> 100.00 | AB26: =0.8*Z26 -> 70.8000 | AC26: =AA26*0.2 -> 20.0000 | AD26: =SUM(AB26:AC26)*0.7 -> 63.5600 | AE26: =VLOOKUP(D26,体育加分汇总!A$1:C$79,3,FALSE) -> 9.0000 | AF26: =AD26+AE26 -> 72.5600 | AG26: =AF26*0.05 -> 3.6280 | AH26: =VLOOKUP(D26,美育!B$2:F$182,5,FALSE) -> 38.0000 | AI26: =VLOOKUP(D26,美育!B$2:E$182,4,FALSE) -> 0.0000 | AJ26: =AH26+AI26 -> 38.0000 | AK26: =AJ26*0.05 -> 1.9000 | AL26: =VLOOKUP(D26,劳育基础分!B$3:AF$182,31,FALSE) -> 23.0000 | AM26: 0.0000 | AN26: =AL26+AM26 -> 23.0000 | AO26: =AN26*0.05 -> 1.1500 | AP26: =S26+Y26+AG26+AK26+AO26 -> 70.2241 | AQ26: 92.59% | AR26: 562 | AS26: 否
A27: 24 | B27: 26 | C27: 2024010555 | D27: 苏晴 | E27: =VLOOKUP(D27,美育!B$2:E$182,2,FALSE) -> 化工类24-4班 | F27: =VLOOKUP(D27,互评分!C$2:F$181,4,FALSE) -> 98.2143 | G27: =VLOOKUP(D27,辅导员加分!B$2:C$176,2,FALSE) -> 92.0000 | H27: =VLOOKUP(D27,互评分!C$2:F$181,3,FALSE) -> 99.8571 | I27: =VLOOKUP(D27,互评分!C$2:F$181,2,FALSE) -> 100.0000 | J27: =F27*0.2 -> 19.6429 | K27: =G27*0.5 -> 46.0000 | L27: =H27*0.2 -> 19.9714 | M27: =I27*0.1 -> 10.0000 | N27: =SUM(J27:M27)*0.7 -> 66.9300 | O27: =VLOOKUP(D27,学生干部加分!A$1:C$140,3,FALSE) -> 4.0000 | P27: 0.0000 | Q27: 0.0000 | R27: =N27+O27+P27-Q27 -> 70.9300 | S27: =R27*0.15 -> 10.6395 | T27: =VLOOKUP(D27,[2]必修课成绩!C$59:BO$82,65,FALSE) -> 84.4146 | U27: =VLOOKUP(D27,[2]选修课成绩!C$60:BI$83,59,FALSE) -> 96.0000 | V27: =IF(U27>0,T27*0.9+U27*0.1,T27) -> 85.5732 | W27: 0.0000 | X27: =V27*0.85+W27 -> 72.7372 | Y27: =0.7*X27 -> 50.9160 | Z27: =VLOOKUP(D27,体测成绩!B$2:C$273,2,FALSE) -> 78.1000 | AA27: =VLOOKUP(D27,体育锻炼成绩!A$2:B$182,2,FALSE) -> 100.00 | AB27: =0.8*Z27 -> 62.4800 | AC27: =AA27*0.2 -> 20.0000 | AD27: =SUM(AB27:AC27)*0.7 -> 57.7360 | AE27: =VLOOKUP(D27,体育加分汇总!A$1:C$79,3,FALSE) -> 9.0000 | AF27: =AD27+AE27 -> 66.7360 | AG27: =AF27*0.05 -> 3.3368 | AH27: =VLOOKUP(D27,美育!B$2:F$182,5,FALSE) -> 60.0000 | AI27: =VLOOKUP(D27,美育!B$2:E$182,4,FALSE) -> 0.0000 | AJ27: =AH27+AI27 -> 60.0000 | AK27: =AJ27*0.05 -> 3.0000 | AL27: =VLOOKUP(D27,劳育基础分!B$3:AF$182,31,FALSE) -> 41.0000 | AM27: 0.0000 | AN27: =AL27+AM27 -> 41.0000 | AO27: =AN27*0.05 -> 2.0500 | AP27: =S27+Y27+AG27+AK27+AO27 -> 69.9423 | AQ27: =VLOOKUP(D27,必修课优良率!A$1:B$173,2,FALSE) -> 80.95% | AR27: =VLOOKUP(D27,四级成绩!B$2:C$178,2,FALSE) -> 545 | AS27: =VLOOKUP(D27,必修课优良率!A$1:D$173,4,FALSE) -> 否
A28: 25 | B28: 15 | C28: 2024010535 | D28: 侯星辰 | E28: =VLOOKUP(D28,美育!B$2:E$182,2,FALSE) -> 化工类24-3班 | F28: =VLOOKUP(D28,互评分!C$2:F$181,4,FALSE) -> 99.5926 | G28: =VLOOKUP(D28,辅导员加分!B$2:C$176,2,FALSE) -> 92.0000 | H28: =VLOOKUP(D28,互评分!C$2:F$181,3,FALSE) -> 100.0000 | I28: =VLOOKUP(D28,互评分!C$2:F$181,2,FALSE) -> 100.0000 | J28: =F28*0.2 -> 19.9185 | K28: =G28*0.5 -> 46.0000 | L28: =H28*0.2 -> 20.0000 | M28: =I28*0.1 -> 10.0000 | N28: =SUM(J28:M28)*0.7 -> 67.1430 | O28: =VLOOKUP(D28,学生干部加分!A$1:C$140,3,FALSE) -> 6.0000 | P28: 0.0000 | Q28: 0.0000 | R28: =N28+O28+P28-Q28 -> 73.1430 | S28: =R28*0.15 -> 10.9714 | T28: =VLOOKUP(D28,[1]必修课成绩!C$71:AE$100,29,FALSE) -> 86.5000 | U28: =VLOOKUP(D28,[1]选修课成绩!C$72:AC$101,27,FALSE) -> 87.0000 | V28: =IF(U28>0,T28*0.9+U28*0.1,T28) -> 86.5500 | W28: 0.0000 | X28: =V28*0.85+W28 -> 73.5675 | Y28: =0.7*X28 -> 51.4973 | Z28: =VLOOKUP(D28,体测成绩!B$2:C$273,2,FALSE) -> 80.9000 | AA28: =VLOOKUP(D28,体育锻炼成绩!A$2:B$182,2,FALSE) -> 100.00 | AB28: =0.8*Z28 -> 64.7200 | AC28: =AA28*0.2 -> 20.0000 | AD28: =SUM(AB28:AC28)*0.7 -> 59.3040 | AE28: =VLOOKUP(D28,体育加分汇总!A$1:C$79,3,FALSE) -> 8.0000 | AF28: =AD28+AE28 -> 67.3040 | AG28: =AF28*0.05 -> 3.3652 | AH28: =VLOOKUP(D28,美育!B$2:F$182,5,FALSE) -> 45.0000 | AI28: =VLOOKUP(D28,美育!B$2:E$182,4,FALSE) -> 0.0000 | AJ28: =AH28+AI28 -> 45.0000 | AK28: =AJ28*0.05 -> 2.2500 | AL28: =VLOOKUP(D28,劳育基础分!B$3:AF$182,31,FALSE) -> 34.0000 | AM28: 0.0000 | AN28: =AL28+AM28 -> 34.0000 | AO28: =AN28*0.05 -> 1.7000 | AP28: =S28+Y28+AG28+AK28+AO28 -> 69.7839 | AQ28: =VLOOKUP(D28,必修课优良率!A$1:B$173,2,FALSE) -> 76.19% | AR28: =VLOOKUP(D28,四级成绩!B$2:C$178,2,FALSE) -> 506 | AS28: =VLOOKUP(D28,必修课优良率!A$1:D$173,4,FALSE) -> 否
A29: 26 | B29: 18 | C29: 2024010577 | D29: 孔梓涵 | E29: =VLOOKUP(D29,美育!B$2:E$182,2,FALSE) -> 化工类24-5班 | F29: =VLOOKUP(D29,互评分!C$2:F$181,4,FALSE) -> 99.6296 | G29: =VLOOKUP(D29,辅导员加分!B$2:C$176,2,FALSE) -> 93.0000 | H29: =VLOOKUP(D29,互评分!C$2:F$181,3,FALSE) -> 100.0000 | I29: =VLOOKUP(D29,互评分!C$2:F$181,2,FALSE) -> 93.0000 | J29: =F29*0.2 -> 19.9259 | K29: =G29*0.5 -> 46.5000 | L29: =H29*0.2 -> 20.0000 | M29: =I29*0.1 -> 9.3000 | N29: =SUM(J29:M29)*0.7 -> 67.0081 | O29: =VLOOKUP(D29,学生干部加分!A$1:C$140,3,FALSE) -> 6.0000 | P29: 0.0000 | Q29: 0.0000 | R29: =N29+O29+P29-Q29 -> 73.0081 | S29: =R29*0.15 -> 10.9512 | T29: 85.9878 | U29: 89.0000 | V29: =IF(U29>0,T29*0.9+U29*0.1,T29) -> 86.2890 | W29: 0.0000 | X29: =V29*0.85+W29 -> 73.3457 | Y29: =0.7*X29 -> 51.3420 | Z29: =VLOOKUP(D29,体测成绩!B$2:C$273,2,FALSE) -> 80.8000 | AA29: =VLOOKUP(D29,体育锻炼成绩!A$2:B$182,2,FALSE) -> 100.00 | AB29: =0.8*Z29 -> 64.6400 | AC29: =AA29*0.2 -> 20.0000 | AD29: =SUM(AB29:AC29)*0.7 -> 59.2480 | AE29: =VLOOKUP(D29,体育加分汇总!A$1:C$79,3,FALSE) -> 20.0000 | AF29: =AD29+AE29 -> 79.2480 | AG29: =AF29*0.05 -> 3.9624 | AH29: =VLOOKUP(D29,美育!B$2:F$182,5,FALSE) -> 28.0000 | AI29: =VLOOKUP(D29,美育!B$2:E$182,4,FALSE) -> 2.0000 | AJ29: =AH29+AI29 -> 30.0000 | AK29: =AJ29*0.05 -> 1.5000 | AL29: =VLOOKUP(D29,劳育基础分!B$3:AF$182,31,FALSE) -> 40.5000 | AM29: 0.0000 | AN29: =AL29+AM29 -> 40.5000 | AO29: =AN29*0.05 -> 2.0250 | AP29: =S29+Y29+AG29+AK29+AO29 -> 69.7806 | AQ29: =VLOOKUP(D29,必修课优良率!A$1:B$173,2,FALSE) -> 90.48% | AR29: =VLOOKUP(D29,四级成绩!B$2:C$178,2,FALSE) -> 616 | AS29: =VLOOKUP(D29,必修课优良率!A$1:D$173,4,FALSE) -> 否
A30: 27 | B30: 57 | C30: 2024010607 | D30: 杨睿 | E30: =VLOOKUP(D30,美育!B$2:E$182,2,FALSE) -> 化工类24-6班 | F30: =VLOOKUP(D30,互评分!C$2:F$181,4,FALSE) -> 99.1154 | G30: =VLOOKUP(D30,辅导员加分!B$2:C$176,2,FALSE) -> 94.0000 | H30: =VLOOKUP(D30,互评分!C$2:F$181,3,FALSE) -> 100.0000 | I30: =VLOOKUP(D30,互评分!C$2:F$181,2,FALSE) -> 100.0000 | J30: =F30*0.2 -> 19.8231 | K30: =G30*0.5 -> 47.0000 | L30: =H30*0.2 -> 20.0000 | M30: =I30*0.1 -> 10.0000 | N30: =SUM(J30:M30)*0.7 -> 67.7762 | O30: =VLOOKUP(D30,学生干部加分!A$1:C$140,3,FALSE) -> 9.0000 | P30: 0.0000 | Q30: 0.0000 | R30: =N30+O30+P30-Q30 -> 76.7762 | S30: =R30*0.15 -> 11.5164 | T30: 80.6790 | U30: 86.0000 | V30: =IF(U30>0,T30*0.9+U30*0.1,T30) -> 81.2111 | W30: =VLOOKUP(D30,智育加分汇总!A$2:C$44,3,FALSE) -> 3.0000 | X30: =V30*0.85+W30 -> 72.0294 | Y30: =0.7*X30 -> 50.4206 | Z30: =VLOOKUP(D30,体测成绩!B$2:C$273,2,FALSE) -> 80.9000 | AA30: =VLOOKUP(D30,体育锻炼成绩!A$2:B$182,2,FALSE) -> 100.00 | AB30: =0.8*Z30 -> 64.7200 | AC30: =AA30*0.2 -> 20.0000 | AD30: =SUM(AB30:AC30)*0.7 -> 59.3040 | AE30: =VLOOKUP(D30,体育加分汇总!A$1:C$79,3,FALSE) -> 1.0000 | AF30: =AD30+AE30 -> 60.3040 | AG30: =AF30*0.05 -> 3.0152 | AH30: =VLOOKUP(D30,美育!B$2:F$182,5,FALSE) -> 43.0000 | AI30: =VLOOKUP(D30,美育!B$2:E$182,4,FALSE) -> 4.0000 | AJ30: =AH30+AI30 -> 47.0000 | AK30: =AJ30*0.05 -> 2.3500 | AL30: =VLOOKUP(D30,劳育基础分!B$3:AF$182,31,FALSE) -> 41.5000 | AM30: =VLOOKUP(D30,劳育加分!A$3:I$34,9,FALSE) -> 4.0000 | AN30: =AL30+AM30 -> 45.5000 | AO30: =AN30*0.05 -> 2.2750 | AP30: =S30+Y30+AG30+AK30+AO30 -> 69.5772 | AQ30: 70.0000% | AR30: =VLOOKUP(D30,四级成绩!B$2:C$178,2,FALSE) -> 535 | AS30: 否
A31: 28 | B31: 41 | C31: 2024010475 | D31: 葛亿盛 | E31: =VLOOKUP(D31,美育!B$2:E$182,2,FALSE) -> 化工类24-1班 | F31: =VLOOKUP(D31,互评分!C$2:F$181,4,FALSE) -> 98.5556 | G31: =VLOOKUP(D31,辅导员加分!B$2:C$176,2,FALSE) -> 96.0000 | H31: =VLOOKUP(D31,互评分!C$2:F$181,3,FALSE) -> 100.0000 | I31: =VLOOKUP(D31,互评分!C$2:F$181,2,FALSE) -> 99.0000 | J31: =F31*0.2 -> 19.7111 | K31: =G31*0.5 -> 48.0000 | L31: =H31*0.2 -> 20.0000 | M31: =I31*0.1 -> 9.9000 | N31: =SUM(J31:M31)*0.7 -> 68.3278 | O31: =VLOOKUP(D31,学生干部加分!A$1:C$140,3,FALSE) -> 8.0000 | P31: =VLOOKUP(D31,德育加分!C$2:K$30,9,FALSE) -> 5.0000 | Q31: 0.0000 | R31: =N31+O31+P31-Q31 -> 81.3278 | S31: =R31*0.15 -> 12.1992 | T31: 82.1585 | U31: 86.6667 | V31: =IF(U31>0,T31*0.9+U31*0.1,T31) -> 82.6093 | W31: 0.0000 | X31: =V31*0.85+W31 -> 70.2179 | Y31: =0.7*X31 -> 49.1526 | Z31: =VLOOKUP(D31,体测成绩!B$2:C$273,2,FALSE) -> 87.8000 | AA31: =VLOOKUP(D31,体育锻炼成绩!A$2:B$182,2,FALSE) -> 100.00 | AB31: =0.8*Z31 -> 70.2400 | AC31: =AA31*0.2 -> 20.0000 | AD31: =SUM(AB31:AC31)*0.7 -> 63.1680 | AE31: =VLOOKUP(D31,体育加分汇总!A$1:C$79,3,FALSE) -> 8.0000 | AF31: =AD31+AE31 -> 71.1680 | AG31: =AF31*0.05 -> 3.5584 | AH31: =VLOOKUP(D31,美育!B$2:F$182,5,FALSE) -> 46.0000 | AI31: =VLOOKUP(D31,美育!B$2:E$182,4,FALSE) -> 0.0000 | AJ31: =AH31+AI31 -> 46.0000 | AK31: =AJ31*0.05 -> 2.3000 | AL31: =VLOOKUP(D31,劳育基础分!B$3:AF$182,31,FALSE) -> 42.0000 | AM31: =VLOOKUP(D31,劳育加分!A$3:I$34,9,FALSE) -> 5.0000 | AN31: =AL31+AM31 -> 47.0000 | AO31: =AN31*0.05 -> 2.3500 | AP31: =S31+Y31+AG31+AK31+AO31 -> 69.5601 | AQ31: =VLOOKUP(D31,必修课优良率!A$1:B$173,2,FALSE) -> 71.43% | AR31: =VLOOKUP(D31,四级成绩!B$2:C$178,2,FALSE) -> 519 | AS31: =VLOOKUP(D31,必修课优良率!A$1:D$173,4,FALSE) -> 否
A32: 29 | B32: 8 | C32: 2024010576 | D32: 徐桢 | E32: =VLOOKUP(D32,美育!B$2:E$182,2,FALSE) -> 化工类24-4班 | F32: =VLOOKUP(D32,互评分!C$2:F$181,4,FALSE) -> 96.4286 | G32: =VLOOKUP(劳育基础分!B173,辅导员加分!B$2:C$176,2,FALSE) -> 92.0000 | H32: =VLOOKUP(D32,互评分!C$2:F$181,3,FALSE) -> 95.5714 | I32: =VLOOKUP(D32,互评分!C$2:F$181,2,FALSE) -> 100.0000 | J32: =F32*0.2 -> 19.2857 | K32: =G32*0.5 -> 46.0000 | L32: =H32*0.2 -> 19.1143 | M32: =I32*0.1 -> 10.0000 | N32: =SUM(J32:M32)*0.7 -> 66.0800 | O32: =VLOOKUP(D32,学生干部加分!A$1:C$140,3,FALSE) -> 2.0000 | P32: 0.0000 | Q32: 0.0000 | R32: =N32+O32+P32-Q32 -> 68.0800 | S32: =R32*0.15 -> 10.2120 | T32: 87.7342 | U32: 83.0000 | V32: =IF(U32>0,T32*0.9+U32*0.1,T32) -> 87.2608 | W32: =VLOOKUP(D32,智育加分汇总!A$2:C$44,3,FALSE) -> 4.0000 | X32: =V32*0.85+W32 -> 78.1716 | Y32: =0.7*X32 -> 54.7202 | Z32: =VLOOKUP(劳育基础分!B173,体测成绩!B$2:C$273,2,FALSE) -> 68.7000 | AA32: =VLOOKUP(劳育基础分!B173,体育锻炼成绩!A$2:B$182,2,FALSE) -> 100.00 | AB32: =0.8*Z32 -> 54.9600 | AC32: =AA32*0.2 -> 20.0000 | AD32: =SUM(AB32:AC32)*0.7 -> 52.4720 | AE32: 0.0000 | AF32: =AD32+AE32 -> 52.4720 | AG32: =AF32*0.05 -> 2.6236 | AH32: =VLOOKUP(D32,美育!B$2:F$182,5,FALSE) -> 20.0000 | AI32: =VLOOKUP(D32,美育!B$2:E$182,4,FALSE) -> 0.0000 | AJ32: =AH32+AI32 -> 20.0000 | AK32: =AJ32*0.05 -> 1.0000 | AL32: =VLOOKUP(D32,劳育基础分!B$3:AF$182,31,FALSE) -> 20.0000 | AM32: 0.0000 | AN32: =AL32+AM32 -> 20.0000 | AO32: =AN32*0.05 -> 1.0000 | AP32: =S32+Y32+AG32+AK32+AO32 -> 69.5558 | AQ32: 80.0000% | AR32: 429 | AS32: 否
A33: 30 | B33: 25 | C33: 2024010523 | D33: 胡启红 | E33: =VLOOKUP(D33,美育!B$2:E$182,2,FALSE) -> 化工类24-3班 | F33: =VLOOKUP(D33,互评分!C$2:F$181,4,FALSE) -> 99.1481 | G33: =VLOOKUP(D33,辅导员加分!B$2:C$176,2,FALSE) -> 94.0000 | H33: =VLOOKUP(D33,互评分!C$2:F$181,3,FALSE) -> 100.0000 | I33: =VLOOKUP(D33,互评分!C$2:F$181,2,FALSE) -> 99.0000 | J33: =F33*0.2 -> 19.8296 | K33: =G33*0.5 -> 47.0000 | L33: =H33*0.2 -> 20.0000 | M33: =I33*0.1 -> 9.9000 | N33: =SUM(J33:M33)*0.7 -> 67.7107 | O33: =VLOOKUP(D33,学生干部加分!A$1:C$140,3,FALSE) -> 8.0000 | P33: =VLOOKUP(D33,德育加分!C$2:K$30,9,FALSE) -> 8.0000 | Q33: 0.0000 | R33: =N33+O33+P33-Q33 -> 83.7107 | S33: =R33*0.15 -> 12.5566 | T33: 84.5119 | U33: 85.0000 | V33: =IF(U33>0,T33*0.9+U33*0.1,T33) -> 84.5607 | W33: 0.0000 | X33: =V33*0.85+W33 -> 71.8766 | Y33: =0.7*X33 -> 50.3136 | Z33: =VLOOKUP(D33,体测成绩!B$2:C$273,2,FALSE) -> 64.3000 | AA33: =VLOOKUP(D33,体育锻炼成绩!A$2:B$182,2,FALSE) -> 100.0000 | AB33: =0.8*Z33 -> 51.4400 | AC33: =AA33*0.2 -> 20.0000 | AD33: =SUM(AB33:AC33)*0.7 -> 50.0080 | AE33: =VLOOKUP(D33,体育加分汇总!A$1:C$79,3,FALSE) -> 0.0000 | AF33: =AD33+AE33 -> 50.0080 | AG33: =AF33*0.05 -> 2.5004 | AH33: =VLOOKUP(D33,美育!B$2:F$182,5,FALSE) -> 40.0000 | AI33: =VLOOKUP(D33,美育!B$2:E$182,4,FALSE) -> 0.0000 | AJ33: =AH33+AI33 -> 40.0000 | AK33: =AJ33*0.05 -> 2.0000 | AL33: =VLOOKUP(D33,劳育基础分!B$3:AF$182,31,FALSE) -> 40.0000 | AM33: 0.0000 | AN33: =AL33+AM33 -> 40.0000 | AO33: =AN33*0.05 -> 2.0000 | AP33: =S33+Y33+AG33+AK33+AO33 -> 69.3706 | AQ33: =VLOOKUP(D33,必修课优良率!A$1:B$173,2,FALSE) -> 76.19% | AR33: =VLOOKUP(D33,四级成绩!B$2:C$178,2,FALSE) -> 534 | AS33: =VLOOKUP(D33,必修课优良率!A$1:D$173,4,FALSE) -> 否
A34: 31 | B34: 54 | C34: 2024010547 | D34: 董宇昕 | E34: =VLOOKUP(D34,美育!B$2:E$182,2,FALSE) -> 化工类24-4班 | F34: =VLOOKUP(D34,互评分!C$2:F$181,4,FALSE) -> 97.6071 | G34: =VLOOKUP(D34,辅导员加分!B$2:C$176,2,FALSE) -> 92.0000 | H34: =VLOOKUP(D34,互评分!C$2:F$181,3,FALSE) -> 98.4286 | I34: =VLOOKUP(D34,互评分!C$2:F$181,2,FALSE) -> 100.0000 | J34: =F34*0.2 -> 19.5214 | K34: =G34*0.5 -> 46.0000 | L34: =H34*0.2 -> 19.6857 | M34: =I34*0.1 -> 10.0000 | N34: =SUM(J34:M34)*0.7 -> 66.6450 | O34: =VLOOKUP(D34,学生干部加分!A$1:C$140,3,FALSE) -> 2.0000 | P34: 0.0000 | Q34: 0.0000 | R34: =N34+O34+P34-Q34 -> 68.6450 | S34: =R34*0.15 -> 10.2967 | T34: 80.8537 | U34: 88.3333 | V34: =IF(U34>0,T34*0.9+U34*0.1,T34) -> 81.6016 | W34: =VLOOKUP(D34,智育加分汇总!A$2:C$44,3,FALSE) -> 4.0000 | X34: =V34*0.85+W34 -> 73.3614 | Y34: =0.7*X34 -> 51.3530 | Z34: =VLOOKUP(D34,体测成绩!B$2:C$273,2,FALSE) -> 80.8000 | AA34: =VLOOKUP(D34,体育锻炼成绩!A$2:B$182,2,FALSE) -> 100.00 | AB34: =0.8*Z34 -> 64.6400 | AC34: =AA34*0.2 -> 20.0000 | AD34: =SUM(AB34:AC34)*0.7 -> 59.2480 | AE34: 0.0000 | AF34: =AD34+AE34 -> 59.2480 | AG34: =AF34*0.05 -> 2.9624 | AH34: =VLOOKUP(D34,美育!B$2:F$182,5,FALSE) -> 55.0000 | AI34: =VLOOKUP(D34,美育!B$2:E$182,4,FALSE) -> 0.0000 | AJ34: =AH34+AI34 -> 55.0000 | AK34: =AJ34*0.05 -> 2.7500 | AL34: =VLOOKUP(D34,劳育基础分!B$3:AF$182,31,FALSE) -> 40.0000 | AM34: 0.0000 | AN34: =AL34+AM34 -> 40.0000 | AO34: =AN34*0.05 -> 2.0000 | AP34: =S34+Y34+AG34+AK34+AO34 -> 69.3621 | AQ34: =VLOOKUP(D34,必修课优良率!A$1:B$173,2,FALSE) -> 71.43% | AR34: =VLOOKUP(D34,四级成绩!B$2:C$178,2,FALSE) -> 483 | AS34: =VLOOKUP(D34,必修课优良率!A$1:D$173,4,FALSE) -> 否
A35: 32 | B35: 85 | C35: 2024010605 | D35: 杜向栋 | E35: =VLOOKUP(D35,美育!B$2:E$182,2,FALSE) -> 化工类24-5班 | F35: =VLOOKUP(D35,互评分!C$2:F$181,4,FALSE) -> 99.4815 | G35: =VLOOKUP(D35,辅导员加分!B$2:C$176,2,FALSE) -> 90.0000 | H35: =VLOOKUP(D35,互评分!C$2:F$181,3,FALSE) -> 100.0000 | I35: =VLOOKUP(D35,互评分!C$2:F$181,2,FALSE) -> 90.0000 | J35: =F35*0.2 -> 19.8963 | K35: =G35*0.5 -> 45.0000 | L35: =H35*0.2 -> 20.0000 | M35: =I35*0.1 -> 9.0000 | N35: =SUM(J35:M35)*0.7 -> 65.7274 | O35: =VLOOKUP(D35,学生干部加分!A$1:C$140,3,FALSE) -> 8.0000 | P35: 0.0000 | Q35: 0.0000 | R35: =N35+O35+P35-Q35 -> 73.7274 | S35: =R35*0.15 -> 11.0591 | T35: 77.4643 | U35: 87.6000 | V35: =IF(U35>0,T35*0.9+U35*0.1,T35) -> 78.4779 | W35: =VLOOKUP(D35,智育加分汇总!A$2:C$44,3,FALSE) -> 5.0000 | X35: =V35*0.85+W35 -> 71.7062 | Y35: =0.7*X35 -> 50.1943 | Z35: =VLOOKUP(D35,体测成绩!B$2:C$273,2,FALSE) -> 60.0000 | AA35: =VLOOKUP(D35,体育锻炼成绩!A$2:B$182,2,FALSE) -> 100.00 | AB35: =0.8*Z35 -> 48.0000 | AC35: =AA35*0.2 -> 20.0000 | AD35: =SUM(AB35:AC35)*0.7 -> 47.6000 | AE35: 0.0000 | AF35: =AD35+AE35 -> 47.6000 | AG35: =AF35*0.05 -> 2.3800 | AH35: =VLOOKUP(D35,美育!B$2:F$182,5,FALSE) -> 40.0000 | AI35: =VLOOKUP(D35,美育!B$2:E$182,4,FALSE) -> 2.0000 | AJ35: =AH35+AI35 -> 42.0000 | AK35: =AJ35*0.05 -> 2.1000 | AL35: =VLOOKUP(D35,劳育基础分!B$3:AF$182,31,FALSE) -> 62.5000 | AM35: =VLOOKUP(D35,劳育加分!A$3:I$34,9,FALSE) -> 4.0000 | AN35: =AL35+AM35 -> 66.5000 | AO35: =AN35*0.05 -> 3.3250 | AP35: =S35+Y35+AG35+AK35+AO35 -> 69.0584 | AQ35: =VLOOKUP(D35,必修课优良率!A$1:B$173,2,FALSE) -> 47.62% | AR35: =VLOOKUP(D35,四级成绩!B$2:C$178,2,FALSE) -> 451 | AS35: =VLOOKUP(D35,必修课优良率!A$1:D$173,4,FALSE) -> 否
A36: 33 | B36: 40 | C36: 2024010459 | D36: 靳铭超 | E36: =VLOOKUP(D36,美育!B$2:E$182,2,FALSE) -> 化工类24-1班 | F36: =VLOOKUP(D36,互评分!C$2:F$181,4,FALSE) -> 97.2593 | G36: =VLOOKUP(D36,辅导员加分!B$2:C$176,2,FALSE) -> 96.0000 | H36: =VLOOKUP(D36,互评分!C$2:F$181,3,FALSE) -> 97.5000 | I36: =VLOOKUP(D36,互评分!C$2:F$181,2,FALSE) -> 98.0000 | J36: =F36*0.2 -> 19.4519 | K36: =G36*0.5 -> 48.0000 | L36: =H36*0.2 -> 19.5000 | M36: =I36*0.1 -> 9.8000 | N36: =SUM(J36:M36)*0.7 -> 67.7263 | O36: =VLOOKUP(D36,学生干部加分!A$1:C$140,3,FALSE) -> 5.7500 | P36: 0.0000 | Q36: 0.0000 | R36: =N36+O36+P36-Q36 -> 73.4763 | S36: =R36*0.15 -> 11.0214 | T36: =VLOOKUP(D36,[2]必修课成绩!C$59:BO$82,65,FALSE) -> 82.2927 | U36: =VLOOKUP(D36,[2]选修课成绩!C$60:BI$83,59,FALSE) -> 81.0000 | V36: =IF(U36>0,T36*0.9+U36*0.1,T36) -> 82.1634 | W36: 0.0000 | X36: =V36*0.85+W36 -> 69.8389 | Y36: =0.7*X36 -> 48.8872 | Z36: =VLOOKUP(D36,体测成绩!B$2:C$273,2,FALSE) -> 79.3000 | AA36: =VLOOKUP(D36,体育锻炼成绩!A$2:B$182,2,FALSE) -> 100.00 | AB36: =0.8*Z36 -> 63.4400 | AC36: =AA36*0.2 -> 20.0000 | AD36: =SUM(AB36:AC36)*0.7 -> 58.4080 | AE36: =VLOOKUP(D36,体育加分汇总!A$1:C$79,3,FALSE) -> 8.0000 | AF36: =AD36+AE36 -> 66.4080 | AG36: =AF36*0.05 -> 3.3204 | AH36: =VLOOKUP(D36,美育!B$2:F$182,5,FALSE) -> 63.0000 | AI36: =VLOOKUP(D36,美育!B$2:E$182,4,FALSE) -> 4.0000 | AJ36: =AH36+AI36 -> 67.0000 | AK36: =AJ36*0.05 -> 3.3500 | AL36: =VLOOKUP(D36,劳育基础分!B$3:AF$182,31,FALSE) -> 47.0000 | AM36: 0.0000 | AN36: =AL36+AM36 -> 47.0000 | AO36: =AN36*0.05 -> 2.3500 | AP36: =S36+Y36+AG36+AK36+AO36 -> 68.9291 | AQ36: =VLOOKUP(D36,必修课优良率!A$1:B$173,2,FALSE) -> 80.95% | AR36: =VLOOKUP(D36,四级成绩!B$2:C$178,2,FALSE) -> 529 | AS36: =VLOOKUP(D36,必修课优良率!A$1:D$173,4,FALSE) -> 否
A37: 34 | B37: 52 | C37: 2024010465 | D37: 郝美超 | E37: =VLOOKUP(D37,美育!B$2:E$182,2,FALSE) -> 化工类24-1班 | F37: =VLOOKUP(D37,互评分!C$2:F$181,4,FALSE) -> 96.5185 | G37: =VLOOKUP(D37,辅导员加分!B$2:C$176,2,FALSE) -> 94.0000 | H37: =VLOOKUP(D37,互评分!C$2:F$181,3,FALSE) -> 100.0000 | I37: =VLOOKUP(D37,互评分!C$2:F$181,2,FALSE) -> 99.0000 | J37: =F37*0.2 -> 19.3037 | K37: =G37*0.5 -> 47.0000 | L37: =H37*0.2 -> 20.0000 | M37: =I37*0.1 -> 9.9000 | N37: =SUM(J37:M37)*0.7 -> 67.3426 | O37: =VLOOKUP(D37,学生干部加分!A$1:C$140,3,FALSE) -> 7.5000 | P37: =VLOOKUP(D37,德育加分!C$2:K$30,9,FALSE) -> 0.0000 | Q37: 0.0000 | R37: =N37+O37+P37-Q37 -> 74.8426 | S37: =R37*0.15 -> 11.2264 | T37: 80.9878 | U37: 89.0000 | V37: =IF(U37>0,T37*0.9+U37*0.1,T37) -> 81.7890 | W37: 0.0000 | X37: =V37*0.85+W37 -> 69.5207 | Y37: =0.7*X37 -> 48.6645 | Z37: =VLOOKUP(D37,体测成绩!B$2:C$273,2,FALSE) -> 60.0000 | AA37: =VLOOKUP(D37,体育锻炼成绩!A$2:B$182,2,FALSE) -> 100.00 | AB37: =0.8*Z37 -> 48.0000 | AC37: =AA37*0.2 -> 20.0000 | AD37: =SUM(AB37:AC37)*0.7 -> 47.6000 | AE37: =VLOOKUP(D37,体育加分汇总!A$1:C$79,3,FALSE) -> 8.0000 | AF37: =AD37+AE37 -> 55.6000 | AG37: =AF37*0.05 -> 2.7800 | AH37: =VLOOKUP(D37,美育!B$2:F$182,5,FALSE) -> 70.0000 | AI37: =VLOOKUP(D37,美育!B$2:E$182,4,FALSE) -> 10.0000 | AJ37: =AH37+AI37 -> 80.0000 | AK37: =AJ37*0.05 -> 4.0000 | AL37: =VLOOKUP(D37,劳育基础分!B$3:AF$182,31,FALSE) -> 40.0000 | AM37: =VLOOKUP(D37,劳育加分!A$3:I$34,9,FALSE) -> 4.0000 | AN37: =AL37+AM37 -> 44.0000 | AO37: =AN37*0.05 -> 2.2000 | AP37: =S37+Y37+AG37+AK37+AO37 -> 68.8709 | AQ37: =VLOOKUP(D37,必修课优良率!A$1:B$173,2,FALSE) -> 66.67% | AR37: =VLOOKUP(D37,四级成绩!B$2:C$178,2,FALSE) -> 523 | AS37: =VLOOKUP(D37,必修课优良率!A$1:D$173,4,FALSE) -> 否
A38: 35 | B38: 55 | C38: 2024010581 | D38: 董家慧 | E38: =VLOOKUP(D38,美育!B$2:E$182,2,FALSE) -> 化工类24-5班 | F38: =VLOOKUP(D38,互评分!C$2:F$181,4,FALSE) -> 99.5926 | G38: =VLOOKUP(D38,辅导员加分!B$2:C$176,2,FALSE) -> 94.0000 | H38: =VLOOKUP(D38,互评分!C$2:F$181,3,FALSE) -> 100.0000 | I38: =VLOOKUP(D38,互评分!C$2:F$181,2,FALSE) -> 90.0000 | J38: =F38*0.2 -> 19.9185 | K38: =G38*0.5 -> 47.0000 | L38: =H38*0.2 -> 20.0000 | M38: =I38*0.1 -> 9.0000 | N38: =SUM(J38:M38)*0.7 -> 67.1430 | O38: =VLOOKUP(D38,学生干部加分!A$1:C$140,3,FALSE) -> 6.0000 | P38: 0.0000 | Q38: 0.0000 | R38: =N38+O38+P38-Q38 -> 73.1430 | S38: =R38*0.15 -> 10.9714 | T38: 80.8537 | U38: 85.0000 | V38: =IF(U38>0,T38*0.9+U38*0.1,T38) -> 81.2683 | W38: 0.0000 | X38: =V38*0.85+W38 -> 69.0780 | Y38: =0.7*X38 -> 48.3546 | Z38: =VLOOKUP(D38,体测成绩!B$2:C$273,2,FALSE) -> 77.4000 | AA38: =VLOOKUP(D38,体育锻炼成绩!A$2:B$182,2,FALSE) -> 100.00 | AB38: =0.8*Z38 -> 61.9200 | AC38: =AA38*0.2 -> 20.0000 | AD38: =SUM(AB38:AC38)*0.7 -> 57.3440 | AE38: =VLOOKUP(D38,体育加分汇总!A$1:C$79,3,FALSE) -> 20.0000 | AF38: =AD38+AE38 -> 77.3440 | AG38: =AF38*0.05 -> 3.8672 | AH38: =VLOOKUP(D38,美育!B$2:F$182,5,FALSE) -> 70.0000 | AI38: =VLOOKUP(D38,美育!B$2:E$182,4,FALSE) -> 0.0000 | AJ38: =AH38+AI38 -> 70.0000 | AK38: =AJ38*0.05 -> 3.5000 | AL38: =VLOOKUP(D38,劳育基础分!B$3:AF$182,31,FALSE) -> 42.5000 | AM38: 0.0000 | AN38: =AL38+AM38 -> 42.5000 | AO38: =AN38*0.05 -> 2.1250 | AP38: =S38+Y38+AG38+AK38+AO38 -> 68.8183 | AQ38: =VLOOKUP(D38,必修课优良率!A$1:B$173,2,FALSE) -> 76.19% | AR38: =VLOOKUP(D38,四级成绩!B$2:C$178,2,FALSE) -> 486 | AS38: =VLOOKUP(D38,必修课优良率!A$1:D$173,4,FALSE) -> 否
A39: 36 | B39: 17 | C39: 2024010479 | D39: 刘韬 | E39: =VLOOKUP(D39,美育!B$2:E$182,2,FALSE) -> 化工类24-1班 | F39: =VLOOKUP(D39,互评分!C$2:F$181,4,FALSE) -> 99.1111 | G39: =VLOOKUP(D39,辅导员加分!B$2:C$176,2,FALSE) -> 92.0000 | H39: =VLOOKUP(D39,互评分!C$2:F$181,3,FALSE) -> 100.0000 | I39: =VLOOKUP(D39,互评分!C$2:F$181,2,FALSE) -> 99.0000 | J39: =F39*0.2 -> 19.8222 | K39: =G39*0.5 -> 46.0000 | L39: =H39*0.2 -> 20.0000 | M39: =I39*0.1 -> 9.9000 | N39: =SUM(J39:M39)*0.7 -> 67.0056 | O39: =VLOOKUP(D39,学生干部加分!A$1:C$140,3,FALSE) -> 4.0000 | P39: =VLOOKUP(D39,德育加分!C$2:K$30,9,FALSE) -> 5.0000 | Q39: 0.0000 | R39: =N39+O39+P39-Q39 -> 76.0056 | S39: =R39*0.15 -> 11.4008 | T39: 86.0854 | U39: 88.5714 | V39: =IF(U39>0,T39*0.9+U39*0.1,T39) -> 86.3340 | W39: 0.0000 | X39: =V39*0.85+W39 -> 73.3839 | Y39: =0.7*X39 -> 51.3687 | Z39: =VLOOKUP(D39,体测成绩!B$2:C$273,2,FALSE) -> 70.5000 | AA39: =VLOOKUP(D39,体育锻炼成绩!A$2:B$182,2,FALSE) -> 100.00 | AB39: =0.8*Z39 -> 56.4000 | AC39: =AA39*0.2 -> 20.0000 | AD39: =SUM(AB39:AC39)*0.7 -> 53.4800 | AE39: 0.0000 | AF39: =AD39+AE39 -> 53.4800 | AG39: =AF39*0.05 -> 2.6740 | AH39: =VLOOKUP(D39,美育!B$2:F$182,5,FALSE) -> 25.0000 | AI39: =VLOOKUP(D39,美育!B$2:E$182,4,FALSE) -> 0.0000 | AJ39: =AH39+AI39 -> 25.0000 | AK39: =AJ39*0.05 -> 1.2500 | AL39: =VLOOKUP(D39,劳育基础分!B$3:AF$182,31,FALSE) -> 42.0000 | AM39: 0.0000 | AN39: =AL39+AM39 -> 42.0000 | AO39: =AN39*0.05 -> 2.1000 | AP39: =S39+Y39+AG39+AK39+AO39 -> 68.7935 | AQ39: =VLOOKUP(D39,必修课优良率!A$1:B$173,2,FALSE) -> 100.00% | AR39: =VLOOKUP(D39,四级成绩!B$2:C$178,2,FALSE) -> 586 | AS39: =VLOOKUP(D39,必修课优良率!A$1:D$173,4,FALSE) -> 否
A40: 37 | B40: 19 | C40: 2024010513 | D40: 朱健健 | E40: =VLOOKUP(D40,美育!B$2:E$182,2,FALSE) -> 化工类24-2班 | F40: =VLOOKUP(D40,互评分!C$2:F$181,4,FALSE) -> 97.2143 | G40: =VLOOKUP(D40,辅导员加分!B$2:C$176,2,FALSE) -> 92.0000 | H40: =VLOOKUP(D40,互评分!C$2:F$181,3,FALSE) -> 100.0000 | I40: =VLOOKUP(D40,互评分!C$2:F$181,2,FALSE) -> 92.0000 | J40: =F40*0.2 -> 19.4429 | K40: =G40*0.5 -> 46.0000 | L40: =H40*0.2 -> 20.0000 | M40: =I40*0.1 -> 9.2000 | N40: =SUM(J40:M40)*0.7 -> 66.2500 | O40: 0.0000 | P40: 0.0000 | Q40: 0.0000 | R40: =N40+O40+P40-Q40 -> 66.2500 | S40: =R40*0.15 -> 9.9375 | T40: 85.5488 | U40: 0.0000 | V40: =IF(U40>0,T40*0.9+U40*0.1,T40) -> 85.5488 | W40: 0.0000 | X40: =V40*0.85+W40 -> 72.7165 | Y40: =0.7*X40 -> 50.9015 | Z40: =VLOOKUP(D40,体测成绩!B$2:C$273,2,FALSE) -> 60.0000 | AA40: =VLOOKUP(D40,体育锻炼成绩!A$2:B$182,2,FALSE) -> 100.00 | AB40: =0.8*Z40 -> 48.0000 | AC40: =AA40*0.2 -> 20.0000 | AD40: =SUM(AB40:AC40)*0.7 -> 47.6000 | AE40: 0.0000 | AF40: =AD40+AE40 -> 47.6000 | AG40: =AF40*0.05 -> 2.3800 | AH40: =VLOOKUP(D40,美育!B$2:F$182,5,FALSE) -> 70.0000 | AI40: =VLOOKUP(D40,美育!B$2:E$182,4,FALSE) -> 0.0000 | AJ40: =AH40+AI40 -> 70.0000 | AK40: =AJ40*0.05 -> 3.5000 | AL40: =VLOOKUP(D40,劳育基础分!B$3:AF$182,31,FALSE) -> 39.0000 | AM40: 0.0000 | AN40: =AL40+AM40 -> 39.0000 | AO40: =AN40*0.05 -> 1.9500 | AP40: =S40+Y40+AG40+AK40+AO40 -> 68.6690 | AQ40: =VLOOKUP(D40,必修课优良率!A$1:B$173,2,FALSE) -> 85.71% | AR40: =VLOOKUP(D40,四级成绩!B$2:C$178,2,FALSE) -> 481 | AS40: =VLOOKUP(D40,必修课优良率!A$1:D$173,4,FALSE) -> 否
A41: 38 | B41: 2 | C41: 2024010621 | D41: 侯垚 | E41: =VLOOKUP(D41,美育!B$2:E$182,2,FALSE) -> 化工类24-6班 | F41: =VLOOKUP(D41,互评分!C$2:F$181,4,FALSE) -> 98.4615 | G41: =VLOOKUP(D41,辅导员加分!B$2:C$176,2,FALSE) -> 92.0000 | H41: =VLOOKUP(D41,互评分!C$2:F$181,3,FALSE) -> 100.0000 | I41: =VLOOKUP(D41,互评分!C$2:F$181,2,FALSE) -> 100.0000 | J41: =F41*0.2 -> 19.6923 | K41: =G41*0.5 -> 46.0000 | L41: =H41*0.2 -> 20.0000 | M41: =I41*0.1 -> 10.0000 | N41: =SUM(J41:M41)*0.7 -> 66.9846 | O41: 0.0000 | P41: 0.0000 | Q41: 0.0000 | R41: =N41+O41+P41-Q41 -> 66.9846 | S41: =R41*0.15 -> 10.0477 | T41: 90.6463 | U41: 93.0000 | V41: =IF(U41>0,T41*0.9+U41*0.1,T41) -> 90.8817 | W41: 0.0000 | X41: =V41*0.85+W41 -> 77.2495 | Y41: =0.7*X41 -> 54.0746 | Z41: =VLOOKUP(D41,体测成绩!B$2:C$273,2,FALSE) -> 62.9000 | AA41: =VLOOKUP(D41,体育锻炼成绩!A$2:B$182,2,FALSE) -> 100.00 | AB41: =0.8*Z41 -> 50.3200 | AC41: =AA41*0.2 -> 20.0000 | AD41: =SUM(AB41:AC41)*0.7 -> 49.2240 | AE41: =VLOOKUP(D41,体育加分汇总!A$1:C$79,3,FALSE) -> 0.0000 | AF41: =AD41+AE41 -> 49.2240 | AG41: =AF41*0.05 -> 2.4612 | AH41: =VLOOKUP(D41,美育!B$2:F$182,5,FALSE) -> 20.0000 | AI41: =VLOOKUP(D41,美育!B$2:E$182,4,FALSE) -> 0.0000 | AJ41: =AH41+AI41 -> 20.0000 | AK41: =AJ41*0.05 -> 1.0000 | AL41: =VLOOKUP(D41,劳育基础分!B$3:AF$182,31,FALSE) -> 20.0000 | AM41: 0.0000 | AN41: =AL41+AM41 -> 20.0000 | AO41: =AN41*0.05 -> 1.0000 | AP41: =S41+Y41+AG41+AK41+AO41 -> 68.5835 | AQ41: =VLOOKUP(D41,必修课优良率!A$1:B$173,2,FALSE) -> 85.71% | AR41: =VLOOKUP(D41,四级成绩!B$2:C$178,2,FALSE) -> 605 | AS41: =VLOOKUP(D41,必修课优良率!A$1:D$173,4,FALSE) -> 否
A42: 39 | B42: 23 | C42: 2024010628 | D42: 柯二文 | E42: =VLOOKUP(D42,美育!B$2:E$182,2,FALSE) -> 化工类24-6班 | F42: =VLOOKUP(D42,互评分!C$2:F$181,4,FALSE) -> 97.6923 | G42: =VLOOKUP(D42,辅导员加分!B$2:C$176,2,FALSE) -> 92.0000 | H42: =VLOOKUP(D42,互评分!C$2:F$181,3,FALSE) -> 100.0000 | I42: =VLOOKUP(D42,互评分!C$2:F$181,2,FALSE) -> 100.0000 | J42: =F42*0.2 -> 19.5385 | K42: =G42*0.5 -> 46.0000 | L42: =H42*0.2 -> 20.0000 | M42: =I42*0.1 -> 10.0000 | N42: =SUM(J42:M42)*0.7 -> 66.8769 | O42: =VLOOKUP(D42,学生干部加分!A$1:C$140,3,FALSE) -> 4.0000 | P42: 0.0000 | Q42: 0.0000 | R42: =N42+O42+P42-Q42 -> 70.8769 | S42: =R42*0.15 -> 10.6315 | T42: 84.7805 | U42: 84.0000 | V42: =IF(U42>0,T42*0.9+U42*0.1,T42) -> 84.7024 | W42: =VLOOKUP(D42,智育加分汇总!A$2:C$44,3,FALSE) -> 1.0000 | X42: =V42*0.85+W42 -> 72.9971 | Y42: =0.7*X42 -> 51.0980 | Z42: =VLOOKUP(D42,体测成绩!B$2:C$273,2,FALSE) -> 73.9000 | AA42: =VLOOKUP(D42,体育锻炼成绩!A$2:B$182,2,FALSE) -> 100.00 | AB42: =0.8*Z42 -> 59.1200 | AC42: =AA42*0.2 -> 20.0000 | AD42: =SUM(AB42:AC42)*0.7 -> 55.3840 | AE42: 0.0000 | AF42: =AD42+AE42 -> 55.3840 | AG42: =AF42*0.05 -> 2.7692 | AH42: =VLOOKUP(D42,美育!B$2:F$182,5,FALSE) -> 38.0000 | AI42: =VLOOKUP(D42,美育!B$2:E$182,4,FALSE) -> 0.0000 | AJ42: =AH42+AI42 -> 38.0000 | AK42: =AJ42*0.05 -> 1.9000 | AL42: =VLOOKUP(D42,劳育基础分!B$3:AF$182,31,FALSE) -> 42.0000 | AM42: 0.0000 | AN42: =AL42+AM42 -> 42.0000 | AO42: =AN42*0.05 -> 2.1000 | AP42: =S42+Y42+AG42+AK42+AO42 -> 68.4987 | AQ42: =VLOOKUP(D42,必修课优良率!A$1:B$173,2,FALSE) -> 76.19% | AR42: =VLOOKUP(D42,四级成绩!B$2:C$178,2,FALSE) -> 539 | AS42: =VLOOKUP(D42,必修课优良率!A$1:D$173,4,FALSE) -> 否
A43: 40 | B43: 127 | C43: 2024010481 | D43: 任熙嘉 | E43: =VLOOKUP(D43,美育!B$2:E$182,2,FALSE) -> 化工类24-1班 | F43: =VLOOKUP(D43,互评分!C$2:F$181,4,FALSE) -> 99.9259 | G43: =VLOOKUP(D43,辅导员加分!B$2:C$176,2,FALSE) -> 94.0000 | H43: =VLOOKUP(D43,互评分!C$2:F$181,3,FALSE) -> 100.0000 | I43: =VLOOKUP(D43,互评分!C$2:F$181,2,FALSE) -> 99.0000 | J43: =F43*0.2 -> 19.9852 | K43: =G43*0.5 -> 47.0000 | L43: =H43*0.2 -> 20.0000 | M43: =I43*0.1 -> 9.9000 | N43: =SUM(J43:M43)*0.7 -> 67.8196 | O43: =VLOOKUP(D43,学生干部加分!A$1:C$140,3,FALSE) -> 8.0000 | P43: =VLOOKUP(D43,德育加分!C$2:K$30,9,FALSE) -> 2.0000 | Q43: 0.0000 | R43: =N43+O43+P43-Q43 -> 77.8196 | S43: =R43*0.15 -> 11.6729 | T43: 73.8537 | U43: 88.6667 | V43: =IF(U43>0,T43*0.9+U43*0.1,T43) -> 75.3350 | W43: =VLOOKUP(D43,智育加分汇总!A$2:C$44,3,FALSE) -> 6.0000 | X43: =V43*0.85+W43 -> 70.0347 | Y43: =0.7*X43 -> 49.0243 | Z43: =VLOOKUP(D43,体测成绩!B$2:C$273,2,FALSE) -> 75.6000 | AA43: =VLOOKUP(D43,体育锻炼成绩!A$2:B$182,2,FALSE) -> 100.00 | AB43: =0.8*Z43 -> 60.4800 | AC43: =AA43*0.2 -> 20.0000 | AD43: =SUM(AB43:AC43)*0.7 -> 56.3360 | AE43: =VLOOKUP(D43,体育加分汇总!A$1:C$79,3,FALSE) -> 8.0000 | AF43: =AD43+AE43 -> 64.3360 | AG43: =AF43*0.05 -> 3.2168 | AH43: =VLOOKUP(D43,美育!B$2:F$182,5,FALSE) -> 45.0000 | AI43: =VLOOKUP(D43,美育!B$2:E$182,4,FALSE) -> 4.0000 | AJ43: =AH43+AI43 -> 49.0000 | AK43: =AJ43*0.05 -> 2.4500 | AL43: =VLOOKUP(D43,劳育基础分!B$3:AF$182,31,FALSE) -> 42.0000 | AM43: 0.0000 | AN43: =AL43+AM43 -> 42.0000 | AO43: =AN43*0.05 -> 2.1000 | AP43: =S43+Y43+AG43+AK43+AO43 -> 68.4640 | AQ43: =VLOOKUP(D43,必修课优良率!A$1:B$173,2,FALSE) -> 66.67% | AR43: =VLOOKUP(D43,四级成绩!B$2:C$178,2,FALSE) -> 461 | AS43: =VLOOKUP(D43,必修课优良率!A$1:D$173,4,FALSE) -> 否
A44: 41 | B44: 29 | C44: 2024010579 | D44: 刘芮 | E44: =VLOOKUP(D44,美育!B$2:E$182,2,FALSE) -> 化工类24-5班 | F44: =VLOOKUP(D44,互评分!C$2:F$181,4,FALSE) -> 99.6296 | G44: =VLOOKUP(D44,辅导员加分!B$2:C$176,2,FALSE) -> 91.0000 | H44: =VLOOKUP(D44,互评分!C$2:F$181,3,FALSE) -> 100.0000 | I44: =VLOOKUP(D44,互评分!C$2:F$181,2,FALSE) -> 93.0000 | J44: =F44*0.2 -> 19.9259 | K44: =G44*0.5 -> 45.5000 | L44: =H44*0.2 -> 20.0000 | M44: =I44*0.1 -> 9.3000 | N44: =SUM(J44:M44)*0.7 -> 66.3081 | O44: =VLOOKUP(D44,学生干部加分!A$1:C$140,3,FALSE) -> 7.0000 | P44: 0.0000 | Q44: 0.0000 | R44: =N44+O44+P44-Q44 -> 73.3081 | S44: =R44*0.15 -> 10.9962 | T44: 83.8537 | U44: 84.5000 | V44: =IF(U44>0,T44*0.9+U44*0.1,T44) -> 83.9183 | W44: 0.0000 | X44: =V44*0.85+W44 -> 71.3305 | Y44: =0.7*X44 -> 49.9314 | Z44: =VLOOKUP(D44,体测成绩!B$2:C$273,2,FALSE) -> 66.3000 | AA44: =VLOOKUP(D44,体育锻炼成绩!A$2:B$182,2,FALSE) -> 100.0000 | AB44: =0.8*Z44 -> 53.0400 | AC44: =AA44*0.2 -> 20.0000 | AD44: =SUM(AB44:AC44)*0.7 -> 51.1280 | AE44: =VLOOKUP(D44,体育加分汇总!A$1:C$79,3,FALSE) -> 4.0000 | AF44: =AD44+AE44 -> 55.1280 | AG44: =AF44*0.05 -> 2.7564 | AH44: =VLOOKUP(D44,美育!B$2:F$182,5,FALSE) -> 48.0000 | AI44: =VLOOKUP(D44,美育!B$2:E$182,4,FALSE) -> 2.0000 | AJ44: =AH44+AI44 -> 50.0000 | AK44: =AJ44*0.05 -> 2.5000 | AL44: =VLOOKUP(D44,劳育基础分!B$3:AF$182,31,FALSE) -> 42.5000 | AM44: 0.0000 | AN44: =AL44+AM44 -> 42.5000 | AO44: =AN44*0.05 -> 2.1250 | AP44: =S44+Y44+AG44+AK44+AO44 -> 68.3090 | AQ44: =VLOOKUP(D44,必修课优良率!A$1:B$173,2,FALSE) -> 76.19% | AR44: =VLOOKUP(D44,四级成绩!B$2:C$178,2,FALSE) -> 501 | AS44: =VLOOKUP(D44,必修课优良率!A$1:D$173,4,FALSE) -> 否
A45: 42 | B45: 47 | C45: 2024010484 | D45: 任俊玮 | E45: =VLOOKUP(D45,美育!B$2:E$182,2,FALSE) -> 化工类24-1班 | F45: =VLOOKUP(D45,互评分!C$2:F$181,4,FALSE) -> 99.7037 | G45: =VLOOKUP(D45,辅导员加分!B$2:C$176,2,FALSE) -> 92.0000 | H45: =VLOOKUP(D45,互评分!C$2:F$181,3,FALSE) -> 100.0000 | I45: =VLOOKUP(D45,互评分!C$2:F$181,2,FALSE) -> 99.0000 | J45: =F45*0.2 -> 19.9407 | K45: =G45*0.5 -> 46.0000 | L45: =H45*0.2 -> 20.0000 | M45: =I45*0.1 -> 9.9000 | N45: =SUM(J45:M45)*0.7 -> 67.0885 | O45: =VLOOKUP(D45,学生干部加分!A$1:C$140,3,FALSE) -> 8.0000 | P45: =VLOOKUP(D45,德育加分!C$2:K$30,9,FALSE) -> 5.0000 | Q45: 0.0000 | R45: =N45+O45+P45-Q45 -> 80.0885 | S45: =R45*0.15 -> 12.0133 | T45: 81.4146 | U45: 79.0000 | V45: =IF(U45>0,T45*0.9+U45*0.1,T45) -> 81.1732 | W45: 0.0000 | X45: =V45*0.85+W45 -> 68.9972 | Y45: =0.7*X45 -> 48.2980 | Z45: =VLOOKUP(D45,体测成绩!B$2:C$273,2,FALSE) -> 78.6000 | AA45: =VLOOKUP(D45,体育锻炼成绩!A$2:B$182,2,FALSE) -> 100.00 | AB45: =0.8*Z45 -> 62.8800 | AC45: =AA45*0.2 -> 20.0000 | AD45: =SUM(AB45:AC45)*0.7 -> 58.0160 | AE45: =VLOOKUP(D45,体育加分汇总!A$1:C$79,3,FALSE) -> 6.0000 | AF45: =AD45+AE45 -> 64.0160 | AG45: =AF45*0.05 -> 3.2008 | AH45: =VLOOKUP(D45,美育!B$2:F$182,5,FALSE) -> 50.0000 | AI45: =VLOOKUP(D45,美育!B$2:E$182,4,FALSE) -> 0.0000 | AJ45: =AH45+AI45 -> 50.0000 | AK45: =AJ45*0.05 -> 2.5000 | AL45: =VLOOKUP(D45,劳育基础分!B$3:AF$182,31,FALSE) -> 42.0000 | AM45: 0.0000 | AN45: =AL45+AM45 -> 42.0000 | AO45: =AN45*0.05 -> 2.1000 | AP45: =S45+Y45+AG45+AK45+AO45 -> 68.1121 | AQ45: =VLOOKUP(D45,必修课优良率!A$1:B$173,2,FALSE) -> 76.19% | AR45: =VLOOKUP(D45,四级成绩!B$2:C$178,2,FALSE) -> 484 | AS45: =VLOOKUP(D45,必修课优良率!A$1:D$173,4,FALSE) -> 否
A46: 43 | B46: 27 | C46: 2024010549 | D46: 冯苗鸽 | E46: =VLOOKUP(D46,美育!B$2:E$182,2,FALSE) -> 化工类24-4班 | F46: =VLOOKUP(D46,互评分!C$2:F$181,4,FALSE) -> 97.6429 | G46: =VLOOKUP(D46,辅导员加分!B$2:C$176,2,FALSE) -> 92.0000 | H46: =VLOOKUP(D46,互评分!C$2:F$181,3,FALSE) -> 98.4286 | I46: =VLOOKUP(D46,互评分!C$2:F$181,2,FALSE) -> 100.0000 | J46: =F46*0.2 -> 19.5286 | K46: =G46*0.5 -> 46.0000 | L46: =H46*0.2 -> 19.6857 | M46: =I46*0.1 -> 10.0000 | N46: =SUM(J46:M46)*0.7 -> 66.6500 | O46: =VLOOKUP(D46,学生干部加分!A$1:C$140,3,FALSE) -> 7.5000 | P46: 0.0000 | Q46: 0.0000 | R46: =N46+O46+P46-Q46 -> 74.1500 | S46: =R46*0.15 -> 11.1225 | T46: 84.3659 | U46: 83.6667 | V46: =IF(U46>0,T46*0.9+U46*0.1,T46) -> 84.2959 | W46: 0.0000 | X46: =V46*0.85+W46 -> 71.6515 | Y46: =0.7*X46 -> 50.1561 | Z46: =VLOOKUP(D46,体测成绩!B$2:C$273,2,FALSE) -> 81.6000 | AA46: =VLOOKUP(D46,体育锻炼成绩!A$2:B$182,2,FALSE) -> 100.00 | AB46: =0.8*Z46 -> 65.2800 | AC46: =AA46*0.2 -> 20.0000 | AD46: =SUM(AB46:AC46)*0.7 -> 59.6960 | AE46: 0.0000 | AF46: =AD46+AE46 -> 59.6960 | AG46: =AF46*0.05 -> 2.9848 | AH46: =VLOOKUP(D46,美育!B$2:F$182,5,FALSE) -> 35.0000 | AI46: =VLOOKUP(D46,美育!B$2:E$182,4,FALSE) -> 0.0000 | AJ46: =AH46+AI46 -> 35.0000 | AK46: =AJ46*0.05 -> 1.7500 | AL46: =VLOOKUP(D46,劳育基础分!B$3:AF$182,31,FALSE) -> 40.0000 | AM46: 0.0000 | AN46: =AL46+AM46 -> 40.0000 | AO46: =AN46*0.05 -> 2.0000 | AP46: =S46+Y46+AG46+AK46+AO46 -> 68.0134 | AQ46: =VLOOKUP(D46,必修课优良率!A$1:B$173,2,FALSE) -> 80.95% | AR46: =VLOOKUP(D46,四级成绩!B$2:C$178,2,FALSE) -> 517 | AS46: =VLOOKUP(D46,必修课优良率!A$1:D$173,4,FALSE) -> 否
A47: 44 | B47: 89 | C47: 2024010482 | D47: 方泽 | E47: =VLOOKUP(D47,美育!B$2:E$182,2,FALSE) -> 化工类24-1班 | F47: =VLOOKUP(D47,互评分!C$2:F$181,4,FALSE) -> 93.3704 | G47: =VLOOKUP(D47,辅导员加分!B$2:C$176,2,FALSE) -> 93.0000 | H47: =VLOOKUP(D47,互评分!C$2:F$181,3,FALSE) -> 86.0000 | I47: =VLOOKUP(D47,互评分!C$2:F$181,2,FALSE) -> 90.0000 | J47: =F47*0.2 -> 18.6741 | K47: =G47*0.5 -> 46.5000 | L47: =H47*0.2 -> 17.2000 | M47: =I47*0.1 -> 9.0000 | N47: =SUM(J47:M47)*0.7 -> 63.9619 | O47: =VLOOKUP(D47,学生干部加分!A$1:C$140,3,FALSE) -> 6.0000 | P47: 0.0000 | Q47: 0.0000 | R47: =N47+O47+P47-Q47 -> 69.9619 | S47: =R47*0.15 -> 10.4943 | T47: 77.2073 | U47: 80.0000 | V47: =IF(U47>0,T47*0.9+U47*0.1,T47) -> 77.4866 | W47: =VLOOKUP(D47,智育加分汇总!A$2:C$44,3,FALSE) -> 4.5000 | X47: =V47*0.85+W47 -> 70.3636 | Y47: =0.7*X47 -> 49.2545 | Z47: =VLOOKUP(D47,体测成绩!B$2:C$273,2,FALSE) -> 73.3000 | AA47: =VLOOKUP(D47,体育锻炼成绩!A$2:B$182,2,FALSE) -> 100.00 | AB47: =0.8*Z47 -> 58.6400 | AC47: =AA47*0.2 -> 20.0000 | AD47: =SUM(AB47:AC47)*0.7 -> 55.0480 | AE47: =VLOOKUP(D47,体育加分汇总!A$1:C$79,3,FALSE) -> 9.0000 | AF47: =AD47+AE47 -> 64.0480 | AG47: =AF47*0.05 -> 3.2024 | AH47: =VLOOKUP(D47,美育!B$2:F$182,5,FALSE) -> 51.0000 | AI47: =VLOOKUP(D47,美育!B$2:E$182,4,FALSE) -> 4.0000 | AJ47: =AH47+AI47 -> 55.0000 | AK47: =AJ47*0.05 -> 2.7500 | AL47: =VLOOKUP(D47,劳育基础分!B$3:AF$182,31,FALSE) -> 42.0000 | AM47: =VLOOKUP(D47,劳育加分!A$3:I$34,9,FALSE) -> 4.0000 | AN47: =AL47+AM47 -> 46.0000 | AO47: =AN47*0.05 -> 2.3000 | AP47: =S47+Y47+AG47+AK47+AO47 -> 68.0012 | AQ47: =VLOOKUP(D47,必修课优良率!A$1:B$173,2,FALSE) -> 66.67% | AR47: =VLOOKUP(D47,四级成绩!B$2:C$178,2,FALSE) -> 435 | AS47: =VLOOKUP(D47,必修课优良率!A$1:D$173,4,FALSE) -> 是
A48: 45 | B48: 64 | C48: 2024010580 | D48: 刘春硕 | E48: =VLOOKUP(D48,美育!B$2:E$182,2,FALSE) -> 化工类24-5班 | F48: =VLOOKUP(D48,互评分!C$2:F$181,4,FALSE) -> 99.6667 | G48: =VLOOKUP(D48,辅导员加分!B$2:C$176,2,FALSE) -> 94.0000 | H48: =VLOOKUP(D48,互评分!C$2:F$181,3,FALSE) -> 100.0000 | I48: =VLOOKUP(D48,互评分!C$2:F$181,2,FALSE) -> 88.0000 | J48: =F48*0.2 -> 19.9333 | K48: =G48*0.5 -> 47.0000 | L48: =H48*0.2 -> 20.0000 | M48: =I48*0.1 -> 8.8000 | N48: =SUM(J48:M48)*0.7 -> 67.0133 | O48: =VLOOKUP(D48,学生干部加分!A$1:C$140,3,FALSE) -> 6.0000 | P48: 0.0000 | Q48: 0.0000 | R48: =N48+O48+P48-Q48 -> 73.0133 | S48: =R48*0.15 -> 10.9520 | T48: 79.5976 | U48: 85.5000 | V48: =IF(U48>0,T48*0.9+U48*0.1,T48) -> 80.1878 | W48: 0.0000 | X48: =V48*0.85+W48 -> 68.1596 | Y48: =0.7*X48 -> 47.7117 | Z48: =VLOOKUP(D48,体测成绩!B$2:C$273,2,FALSE) -> 72.1000 | AA48: =VLOOKUP(D48,体育锻炼成绩!A$2:B$182,2,FALSE) -> 100.00 | AB48: =0.8*Z48 -> 57.6800 | AC48: =AA48*0.2 -> 20.0000 | AD48: =SUM(AB48:AC48)*0.7 -> 54.3760 | AE48: =VLOOKUP(D48,体育加分汇总!A$1:C$79,3,FALSE) -> 20.0000 | AF48: =AD48+AE48 -> 74.3760 | AG48: =AF48*0.05 -> 3.7188 | AH48: =VLOOKUP(D48,美育!B$2:F$182,5,FALSE) -> 68.0000 | AI48: =VLOOKUP(D48,美育!B$2:E$182,4,FALSE) -> 0.0000 | AJ48: =AH48+AI48 -> 68.0000 | AK48: =AJ48*0.05 -> 3.4000 | AL48: =VLOOKUP(D48,劳育基础分!B$3:AF$182,31,FALSE) -> 42.5000 | AM48: 0.0000 | AN48: =AL48+AM48 -> 42.5000 | AO48: =AN48*0.05 -> 2.1250 | AP48: =S48+Y48+AG48+AK48+AO48 -> 67.9075 | AQ48: =VLOOKUP(D48,必修课优良率!A$1:B$173,2,FALSE) -> 71.43% | AR48: =VLOOKUP(D48,四级成绩!B$2:C$178,2,FALSE) -> 553 | AS48: =VLOOKUP(D48,必修课优良率!A$1:D$173,4,FALSE) -> 否
A49: 46 | B49: 31 | C49: 2024010492 | D49: 吕莎莎 | F49: =VLOOKUP(D49,互评分!C$2:F$181,4,FALSE) -> 98.1429 | G49: 92.0000 | H49: =VLOOKUP(D49,互评分!C$2:F$181,3,FALSE) -> 100.0000 | I49: =VLOOKUP(D49,互评分!C$2:F$181,2,FALSE) -> 92.0000 | J49: =F49*0.2 -> 19.6286 | K49: =G49*0.5 -> 46.0000 | L49: =H49*0.2 -> 20.0000 | M49: =I49*0.1 -> 9.2000 | N49: =SUM(J49:M49)*0.7 -> 66.3800 | O49: =VLOOKUP(D49,学生干部加分!A$1:C$140,3,FALSE) -> 8.0000 | R49: =N49+O49+P49-Q49 -> 74.3800 | S49: =R49*0.15 -> 11.1570 | T49: 83.5662 | U49: 88.0000 | V49: =T49*0.9+U49*0.1 -> 84.0096 | W49: 0.0000 | X49: =V49*0.85+W49 -> 71.4081 | Y49: =0.7*X49 -> 49.9857 | Z49: =VLOOKUP(D49,体测成绩!B$2:C$273,2,FALSE) -> 80.9000 | AA49: 100.0000 | AB49: =0.8*Z49 -> 64.7200 | AC49: =AA49*0.2 -> 20.0000 | AD49: =SUM(AB49:AC49)*0.7 -> 59.3040 | AE49: 0.0000 | AF49: =AD49+AE49 -> 59.3040 | AG49: =AF49*0.05 -> 2.9652 | AH49: 30.0000 | AI49: =VLOOKUP(D49,美育!B$2:E$182,4,FALSE) -> 0.0000 | AJ49: =AH49+AI49 -> 30.0000 | AK49: =AJ49*0.05 -> 1.5000 | AL49: 40.0000 | AM49: 0.0000 | AN49: =AL49+AM49 -> 40.0000 | AO49: =AN49*0.05 -> 2.0000 | AP49: =S49+Y49+AG49+AK49+AO49 -> 67.6079 | AQ49: 95.2400% | AR49: 591 | AS49: 否
A50: 47 | B50: 20 | C50: 2024010515 | D50: 刘起睿 | E50: 化工类24-2班 | F50: =VLOOKUP(D50,互评分!C$2:F$181,4,FALSE) -> 97.2500 | G50: 92.0000 | H50: =VLOOKUP(D50,互评分!C$2:F$181,3,FALSE) -> 100.0000 | I50: =VLOOKUP(D50,互评分!C$2:F$181,2,FALSE) -> 91.0000 | J50: =F50*0.2 -> 19.4500 | K50: =G50*0.5 -> 46.0000 | L50: =H50*0.2 -> 20.0000 | M50: =I50*0.1 -> 9.1000 | N50: =SUM(J50:M50)*0.7 -> 66.1850 | O50: =VLOOKUP(D50,学生干部加分!A$1:C$140,3,FALSE) -> 4.0000 | P50: 0.0000 | Q50: 2.0000 | R50: =N50+O50+P50-Q50 -> 68.1850 | S50: =R50*0.15 -> 10.2278 | T50: 85.2694 | U50: 0.0000 | V50: 85.2694 | W50: 0.0000 | X50: =V50*0.85+W50 -> 72.4790 | Y50: =0.7*X50 -> 50.7353 | Z50: =VLOOKUP(D50,体测成绩!B$2:C$273,2,FALSE) -> 67.7000 | AA50: =VLOOKUP(D50,体育锻炼成绩!A$2:B$182,2,FALSE) -> 100.00 | AB50: =0.8*Z50 -> 54.1600 | AC50: =AA50*0.2 -> 20.0000 | AD50: =SUM(AB50:AC50)*0.7 -> 51.9120 | AE50: 0.0000 | AF50: =AD50+AE50 -> 51.9120 | AG50: =AF50*0.05 -> 2.5956 | AH50: =VLOOKUP(D50,美育!B$2:F$182,5,FALSE) -> 35.0000 | AI50: =VLOOKUP(D50,美育!B$2:E$182,4,FALSE) -> 0.0000 | AJ50: =AH50+AI50 -> 35.0000 | AK50: =AJ50*0.05 -> 1.7500 | AL50: =VLOOKUP(D50,劳育基础分!B$3:AF$182,31,FALSE) -> 35.0000 | AM50: 2.0000 | AN50: =AL50+AM50 -> 37.0000 | AO50: =AN50*0.05 -> 1.8500 | AP50: =S50+Y50+AG50+AK50+AO50 -> 67.1586 | AQ50: 73.6800% | AR50: 537 | AS50: 否
A51: 48 | B51: 76 | C51: 2024010611 | D51: 高瑞苹 | E51: =VLOOKUP(D51,美育!B$2:E$182,2,FALSE) -> 化工类24-6班 | F51: =VLOOKUP(D51,互评分!C$2:F$181,4,FALSE) -> 98.8846 | G51: =VLOOKUP(D51,辅导员加分!B$2:C$176,2,FALSE) -> 94.0000 | H51: =VLOOKUP(D51,互评分!C$2:F$181,3,FALSE) -> 98.5714 | I51: =VLOOKUP(D51,互评分!C$2:F$181,2,FALSE) -> 100.0000 | J51: =F51*0.2 -> 19.7769 | K51: =G51*0.5 -> 47.0000 | L51: =H51*0.2 -> 19.7143 | M51: =I51*0.1 -> 10.0000 | N51: =SUM(J51:M51)*0.7 -> 67.5438 | O51: =VLOOKUP(D51,学生干部加分!A$1:C$140,3,FALSE) -> 6.0000 | P51: 0.0000 | Q51: 0.0000 | R51: =N51+O51+P51-Q51 -> 73.5438 | S51: =R51*0.15 -> 11.0316 | T51: =VLOOKUP(D51,[1]必修课成绩!C$71:AE$100,29,FALSE) -> 78.6250 | U51: =VLOOKUP(D51,[1]选修课成绩!C$72:AC$101,27,FALSE) -> 85.0000 | V51: =IF(U51>0,T51*0.9+U51*0.1,T51) -> 79.2625 | W51: 0.0000 | X51: =V51*0.85+W51 -> 67.3731 | Y51: =0.7*X51 -> 47.1612 | Z51: =VLOOKUP(D51,体测成绩!B$2:C$273,2,FALSE) -> 77.1000 | AA51: =VLOOKUP(D51,体育锻炼成绩!A$2:B$182,2,FALSE) -> 100.00 | AB51: =0.8*Z51 -> 61.6800 | AC51: =AA51*0.2 -> 20.0000 | AD51: =SUM(AB51:AC51)*0.7 -> 57.1760 | AE51: =VLOOKUP(D51,体育加分汇总!A$1:C$79,3,FALSE) -> 14.0000 | AF51: =AD51+AE51 -> 71.1760 | AG51: =AF51*0.05 -> 3.5588 | AH51: =VLOOKUP(D51,美育!B$2:F$182,5,FALSE) -> 68.0000 | AI51: =VLOOKUP(D51,美育!B$2:E$182,4,FALSE) -> 0.0000 | AJ51: =AH51+AI51 -> 68.0000 | AK51: =AJ51*0.05 -> 3.4000 | AL51: =VLOOKUP(D51,劳育基础分!B$3:AF$182,31,FALSE) -> 40.0000 | AM51: 0.0000 | AN51: =AL51+AM51 -> 40.0000 | AO51: =AN51*0.05 -> 2.0000 | AP51: =S51+Y51+AG51+AK51+AO51 -> 67.1516 | AQ51: =VLOOKUP(D51,必修课优良率!A$1:B$173,2,FALSE) -> 61.90% | AR51: =VLOOKUP(D51,四级成绩!B$2:C$178,2,FALSE) -> 337 | AS51: =VLOOKUP(D51,必修课优良率!A$1:D$173,4,FALSE) -> 是
A52: 49 | B52: 46 | C52: 2024010490 | D52: 聂玲琳 | E52: =VLOOKUP(D52,美育!B$2:E$182,2,FALSE) -> 化工类24-2班 | F52: =VLOOKUP(D52,互评分!C$2:F$181,4,FALSE) -> 97.6786 | G52: =VLOOKUP(D52,辅导员加分!B$2:C$176,2,FALSE) -> 92.0000 | H52: =VLOOKUP(D52,互评分!C$2:F$181,3,FALSE) -> 98.5000 | I52: =VLOOKUP(D52,互评分!C$2:F$181,2,FALSE) -> 90.0000 | J52: =F52*0.2 -> 19.5357 | K52: =G52*0.5 -> 46.0000 | L52: =H52*0.2 -> 19.7000 | M52: =I52*0.1 -> 9.0000 | N52: =SUM(J52:M52)*0.7 -> 65.9650 | O52: =VLOOKUP(D52,学生干部加分!A$1:C$140,3,FALSE) -> 6.0000 | P52: 0.0000 | Q52: 0.0000 | R52: =N52+O52+P52-Q52 -> 71.9650 | S52: =R52*0.15 -> 10.7948 | T52: =VLOOKUP(D52,[2]必修课成绩!C$59:BO$82,65,FALSE) -> 81.7439 | U52: =VLOOKUP(D52,[2]选修课成绩!C$60:BI$83,59,FALSE) -> 0.0000 | V52: =IF(U52>0,T52*0.9+U52*0.1,T52) -> 81.7439 | W52: 0.0000 | X52: =V52*0.85+W52 -> 69.4823 | Y52: =0.7*X52 -> 48.6376 | Z52: =VLOOKUP(D52,体测成绩!B$2:C$273,2,FALSE) -> 68.1000 | AA52: =VLOOKUP(D52,体育锻炼成绩!A$2:B$182,2,FALSE) -> 100.00 | AB52: =0.8*Z52 -> 54.4800 | AC52: =AA52*0.2 -> 20.0000 | AD52: =SUM(AB52:AC52)*0.7 -> 52.1360 | AE52: 0.0000 | AF52: =AD52+AE52 -> 52.1360 | AG52: =AF52*0.05 -> 2.6068 | AH52: =VLOOKUP(D52,美育!B$2:F$182,5,FALSE) -> 55.0000 | AI52: =VLOOKUP(D52,美育!B$2:E$182,4,FALSE) -> 0.0000 | AJ52: =AH52+AI52 -> 55.0000 | AK52: =AJ52*0.05 -> 2.7500 | AL52: =VLOOKUP(D52,劳育基础分!B$3:AF$182,31,FALSE) -> 42.0000 | AM52: 0.0000 | AN52: =AL52+AM52 -> 42.0000 | AO52: =AN52*0.05 -> 2.1000 | AP52: =S52+Y52+AG52+AK52+AO52 -> 66.8892 | AQ52: =VLOOKUP(D52,必修课优良率!A$1:B$173,2,FALSE) -> 80.95% | AR52: =VLOOKUP(D52,四级成绩!B$2:C$178,2,FALSE) -> 521 | AS52: =VLOOKUP(D52,必修课优良率!A$1:D$173,4,FALSE) -> 否
A53: 50 | B53: 48 | C53: 2024010520 | D53: 刘诗雨 | E53: =VLOOKUP(D53,美育!B$2:E$182,2,FALSE) -> 化工类24-3班 | F53: =VLOOKUP(D53,互评分!C$2:F$181,4,FALSE) -> 99.5926 | G53: =VLOOKUP(D53,辅导员加分!B$2:C$176,2,FALSE) -> 96.0000 | H53: =VLOOKUP(D53,互评分!C$2:F$181,3,FALSE) -> 100.0000 | I53: =VLOOKUP(D53,互评分!C$2:F$181,2,FALSE) -> 100.0000 | J53: =F53*0.2 -> 19.9185 | K53: =G53*0.5 -> 48.0000 | L53: =H53*0.2 -> 20.0000 | M53: =I53*0.1 -> 10.0000 | N53: =SUM(J53:M53)*0.7 -> 68.5430 | O53: =VLOOKUP(D53,学生干部加分!A$1:C$140,3,FALSE) -> 7.0000 | P53: 0.0000 | Q53: 10.0000 | R53: =N53+O53+P53-Q53 -> 65.5430 | S53: =R53*0.15 -> 9.8314 | T53: 81.3214 | U53: 88.8000 | V53: =IF(U53>0,T53*0.9+U53*0.1,T53) -> 82.0693 | W53: 0.0000 | X53: =V53*0.85+W53 -> 69.7589 | Y53: =0.7*X53 -> 48.8312 | Z53: =VLOOKUP(D53,体测成绩!B$2:C$273,2,FALSE) -> 76.1000 | AA53: =VLOOKUP(D53,体育锻炼成绩!A$2:B$182,2,FALSE) -> 100.00 | AB53: =0.8*Z53 -> 60.8800 | AC53: =AA53*0.2 -> 20.0000 | AD53: =SUM(AB53:AC53)*0.7 -> 56.6160 | AE53: =VLOOKUP(D53,体育加分汇总!A$1:C$79,3,FALSE) -> 1.0000 | AF53: =AD53+AE53 -> 57.6160 | AG53: =AF53*0.05 -> 2.8808 | AH53: =VLOOKUP(D53,美育!B$2:F$182,5,FALSE) -> 63.0000 | AI53: =VLOOKUP(D53,美育!B$2:E$182,4,FALSE) -> 0.0000 | AJ53: =AH53+AI53 -> 63.0000 | AK53: =AJ53*0.05 -> 3.1500 | AL53: =VLOOKUP(D53,劳育基础分!B$3:AF$182,31,FALSE) -> 42.0000 | AM53: 0.0000 | AN53: =AL53+AM53 -> 42.0000 | AO53: =AN53*0.05 -> 2.1000 | AP53: =S53+Y53+AG53+AK53+AO53 -> 66.7935 | AQ53: =VLOOKUP(D53,必修课优良率!A$1:B$173,2,FALSE) -> 80.95% | AR53: =VLOOKUP(D53,四级成绩!B$2:C$178,2,FALSE) -> 477 | AS53: =VLOOKUP(D53,必修课优良率!A$1:D$173,4,FALSE) -> 否
A54: 51 | B54: 39 | C54: 2024010476 | D54: 杨修齐 | E54: =VLOOKUP(D54,美育!B$2:E$182,2,FALSE) -> 化工类24-1班 | F54: =VLOOKUP(D54,互评分!C$2:F$181,4,FALSE) -> 98.3333 | G54: =VLOOKUP(D54,辅导员加分!B$2:C$176,2,FALSE) -> 92.0000 | H54: =VLOOKUP(D54,互评分!C$2:F$181,3,FALSE) -> 100.0000 | I54: =VLOOKUP(D54,互评分!C$2:F$181,2,FALSE) -> 99.0000 | J54: =F54*0.2 -> 19.6667 | K54: =G54*0.5 -> 46.0000 | L54: =H54*0.2 -> 20.0000 | M54: =I54*0.1 -> 9.9000 | N54: =SUM(J54:M54)*0.7 -> 66.8967 | O54: =VLOOKUP(D54,学生干部加分!A$1:C$140,3,FALSE) -> 6.0000 | P54: 0.0000 | Q54: 0.0000 | R54: =N54+O54+P54-Q54 -> 72.8967 | S54: =R54*0.15 -> 10.9345 | T54: 82.3902 | U54: 92.5714 | V54: =IF(U54>0,T54*0.9+U54*0.1,T54) -> 83.4084 | W54: 0.0000 | X54: =V54*0.85+W54 -> 70.8971 | Y54: =0.7*X54 -> 49.6280 | Z54: =VLOOKUP(D54,体测成绩!B$2:C$273,2,FALSE) -> 72.7000 | AA54: =VLOOKUP(D54,体育锻炼成绩!A$2:B$182,2,FALSE) -> 100.00 | AB54: =0.8*Z54 -> 58.1600 | AC54: =AA54*0.2 -> 20.0000 | AD54: =SUM(AB54:AC54)*0.7 -> 54.7120 | AE54: =VLOOKUP(D54,体育加分汇总!A$1:C$79,3,FALSE) -> 2.0000 | AF54: =AD54+AE54 -> 56.7120 | AG54: =AF54*0.05 -> 2.8356 | AH54: =VLOOKUP(D54,美育!B$2:F$182,5,FALSE) -> 25.0000 | AI54: =VLOOKUP(D54,美育!B$2:E$182,4,FALSE) -> 0.0000 | AJ54: =AH54+AI54 -> 25.0000 | AK54: =AJ54*0.05 -> 1.2500 | AL54: =VLOOKUP(D54,劳育基础分!B$3:AF$182,31,FALSE) -> 42.0000 | AM54: 0.0000 | AN54: =AL54+AM54 -> 42.0000 | AO54: =AN54*0.05 -> 2.1000 | AP54: =S54+Y54+AG54+AK54+AO54 -> 66.7481 | AQ54: =VLOOKUP(D54,必修课优良率!A$1:B$173,2,FALSE) -> 80.95% | AR54: =VLOOKUP(D54,四级成绩!B$2:C$178,2,FALSE) -> 515 | AS54: =VLOOKUP(D54,必修课优良率!A$1:D$173,4,FALSE) -> 否
A55: 52 | B55: 105 | C55: 2024010583 | D55: 路倢利 | E55: =VLOOKUP(D55,美育!B$2:E$182,2,FALSE) -> 化工类24-5班 | F55: =VLOOKUP(D55,互评分!C$2:F$181,4,FALSE) -> 99.6667 | G55: =VLOOKUP(D55,辅导员加分!B$2:C$176,2,FALSE) -> 94.0000 | H55: =VLOOKUP(D55,互评分!C$2:F$181,3,FALSE) -> 100.0000 | I55: =VLOOKUP(D55,互评分!C$2:F$181,2,FALSE) -> 88.0000 | J55: =F55*0.2 -> 19.9333 | K55: =G55*0.5 -> 47.0000 | L55: =H55*0.2 -> 20.0000 | M55: =I55*0.1 -> 8.8000 | N55: =SUM(J55:M55)*0.7 -> 67.0133 | O55: =VLOOKUP(D55,学生干部加分!A$1:C$140,3,FALSE) -> 10.0000 | P55: 0.0000 | Q55: 0.0000 | R55: =N55+O55+P55-Q55 -> 77.0133 | S55: =R55*0.15 -> 11.5520 | T55: 75.5119 | U55: 80.5000 | V55: =IF(U55>0,T55*0.9+U55*0.1,T55) -> 76.0107 | W55: =VLOOKUP(D55,智育加分汇总!A$2:C$44,3,FALSE) -> 0.7500 | X55: =V55*0.85+W55 -> 65.3591 | Y55: =0.7*X55 -> 45.7514 | Z55: =VLOOKUP(D55,体测成绩!B$2:C$273,2,FALSE) -> 79.2000 | AA55: =VLOOKUP(D55,体育锻炼成绩!A$2:B$182,2,FALSE) -> 100.00 | AB55: =0.8*Z55 -> 63.3600 | AC55: =AA55*0.2 -> 20.0000 | AD55: =SUM(AB55:AC55)*0.7 -> 58.3520 | AE55: =VLOOKUP(D55,体育加分汇总!A$1:C$79,3,FALSE) -> 14.0000 | AF55: =AD55+AE55 -> 72.3520 | AG55: =AF55*0.05 -> 3.6176 | AH55: =VLOOKUP(D55,美育!B$2:F$182,5,FALSE) -> 70.0000 | AI55: =VLOOKUP(D55,美育!B$2:E$182,4,FALSE) -> 2.0000 | AJ55: =AH55+AI55 -> 72.0000 | AK55: =AJ55*0.05 -> 3.6000 | AL55: =VLOOKUP(D55,劳育基础分!B$3:AF$182,31,FALSE) -> 44.5000 | AM55: 0.0000 | AN55: =AL55+AM55 -> 44.5000 | AO55: =AN55*0.05 -> 2.2250 | AP55: =S55+Y55+AG55+AK55+AO55 -> 66.7460 | AQ55: =VLOOKUP(D55,必修课优良率!A$1:B$173,2,FALSE) -> 52.38% | AR55: =VLOOKUP(D55,四级成绩!B$2:C$178,2,FALSE) -> 517 | AS55: =VLOOKUP(D55,必修课优良率!A$1:D$173,4,FALSE) -> 否
A56: 53 | B56: 71 | C56: 2024010588 | D56: 陈晨 | E56: =VLOOKUP(D56,美育!B$2:E$182,2,FALSE) -> 化工类24-5班 | F56: =VLOOKUP(D56,互评分!C$2:F$181,4,FALSE) -> 99.6667 | G56: =VLOOKUP(D56,辅导员加分!B$2:C$176,2,FALSE) -> 94.0000 | H56: =VLOOKUP(D56,互评分!C$2:F$181,3,FALSE) -> 100.0000 | I56: =VLOOKUP(D56,互评分!C$2:F$181,2,FALSE) -> 88.0000 | J56: =F56*0.2 -> 19.9333 | K56: =G56*0.5 -> 47.0000 | L56: =H56*0.2 -> 20.0000 | M56: =I56*0.1 -> 8.8000 | N56: =SUM(J56:M56)*0.7 -> 67.0133 | O56: =VLOOKUP(D56,学生干部加分!A$1:C$140,3,FALSE) -> 3.5000 | P56: 0.0000 | Q56: 0.0000 | R56: =N56+O56+P56-Q56 -> 70.5133 | S56: =R56*0.15 -> 10.5770 | T56: 78.9878 | U56: 86.0000 | V56: =IF(U56>0,T56*0.9+U56*0.1,T56) -> 79.6890 | W56: 0.0000 | X56: =V56*0.85+W56 -> 67.7357 | Y56: =0.7*X56 -> 47.4150 | Z56: =VLOOKUP(D56,体测成绩!B$2:C$273,2,FALSE) -> 80.3000 | AA56: =VLOOKUP(D56,体育锻炼成绩!A$2:B$182,2,FALSE) -> 100.00 | AB56: =0.8*Z56 -> 64.2400 | AC56: =AA56*0.2 -> 20.0000 | AD56: =SUM(AB56:AC56)*0.7 -> 58.9680 | AE56: =VLOOKUP(D56,体育加分汇总!A$1:C$79,3,FALSE) -> 20.0000 | AF56: =AD56+AE56 -> 78.9680 | AG56: =AF56*0.05 -> 3.9484 | AH56: =VLOOKUP(D56,美育!B$2:F$182,5,FALSE) -> 51.0000 | AI56: =VLOOKUP(D56,美育!B$2:E$182,4,FALSE) -> 2.0000 | AJ56: =AH56+AI56 -> 53.0000 | AK56: =AJ56*0.05 -> 2.6500 | AL56: =VLOOKUP(D56,劳育基础分!B$3:AF$182,31,FALSE) -> 42.5000 | AM56: 0.0000 | AN56: =AL56+AM56 -> 42.5000 | AO56: =AN56*0.05 -> 2.1250 | AP56: =S56+Y56+AG56+AK56+AO56 -> 66.7154 | AQ56: =VLOOKUP(D56,必修课优良率!A$1:B$173,2,FALSE) -> 71.43% | AR56: =VLOOKUP(D56,四级成绩!B$2:C$178,2,FALSE) -> 444 | AS56: =VLOOKUP(D56,必修课优良率!A$1:D$173,4,FALSE) -> 否
A57: 54 | B57: 36 | C57: 2024010483 | D57: 杨清朋 | E57: =VLOOKUP(D57,美育!B$2:E$182,2,FALSE) -> 化工类24-1班 | F57: =VLOOKUP(D57,互评分!C$2:F$181,4,FALSE) -> 99.2963 | G57: =VLOOKUP(D57,辅导员加分!B$2:C$176,2,FALSE) -> 90.0000 | H57: =VLOOKUP(D57,互评分!C$2:F$181,3,FALSE) -> 100.0000 | I57: =VLOOKUP(D57,互评分!C$2:F$181,2,FALSE) -> 97.0000 | J57: =F57*0.2 -> 19.8593 | K57: =G57*0.5 -> 45.0000 | L57: =H57*0.2 -> 20.0000 | M57: =I57*0.1 -> 9.7000 | N57: =SUM(J57:M57)*0.7 -> 66.1915 | O57: =VLOOKUP(D57,学生干部加分!A$1:C$140,3,FALSE) -> 5.7500 | P57: =VLOOKUP(D57,德育加分!C$2:K$30,9,FALSE) -> 2.0000 | Q57: 0.0000 | R57: =N57+O57+P57-Q57 -> 73.9415 | S57: =R57*0.15 -> 11.0912 | T57: 82.6585 | U57: 78.6667 | V57: =IF(U57>0,T57*0.9+U57*0.1,T57) -> 82.2593 | W57: 0.0000 | X57: =V57*0.85+W57 -> 69.9204 | Y57: =0.7*X57 -> 48.9443 | Z57: =VLOOKUP(D57,体测成绩!B$2:C$273,2,FALSE) -> 60.9000 | AA57: =VLOOKUP(D57,体育锻炼成绩!A$2:B$182,2,FALSE) -> 100.00 | AB57: =0.8*Z57 -> 48.7200 | AC57: =AA57*0.2 -> 20.0000 | AD57: =SUM(AB57:AC57)*0.7 -> 48.1040 | AE57: =VLOOKUP(D57,体育加分汇总!A$1:C$79,3,FALSE) -> 8.0000 | AF57: =AD57+AE57 -> 56.1040 | AG57: =AF57*0.05 -> 2.8052 | AH57: =VLOOKUP(D57,美育!B$2:F$182,5,FALSE) -> 30.0000 | AI57: =VLOOKUP(D57,美育!B$2:E$182,4,FALSE) -> 4.0000 | AJ57: =AH57+AI57 -> 34.0000 | AK57: =AJ57*0.05 -> 1.7000 | AL57: =VLOOKUP(D57,劳育基础分!B$3:AF$182,31,FALSE) -> 42.0000 | AM57: 0.0000 | AN57: =AL57+AM57 -> 42.0000 | AO57: =AN57*0.05 -> 2.1000 | AP57: =S57+Y57+AG57+AK57+AO57 -> 66.6407 | AQ57: =VLOOKUP(D57,必修课优良率!A$1:B$173,2,FALSE) -> 76.19% | AR57: =VLOOKUP(D57,四级成绩!B$2:C$178,2,FALSE) -> 570 | AS57: =VLOOKUP(D57,必修课优良率!A$1:D$173,4,FALSE) -> 否
A58: 55 | B58: 83 | C58: 2024010493 | D58: 苗思蕊 | E58: =VLOOKUP(D58,美育!B$2:E$182,2,FALSE) -> 化工类24-2班 | F58: =VLOOKUP(D58,互评分!C$2:F$181,4,FALSE) -> 97.0714 | G58: =VLOOKUP(D58,辅导员加分!B$2:C$176,2,FALSE) -> 94.0000 | H58: =VLOOKUP(D58,互评分!C$2:F$181,3,FALSE) -> 98.0000 | I58: =VLOOKUP(D58,互评分!C$2:F$181,2,FALSE) -> 96.0000 | J58: =F58*0.2 -> 19.4143 | K58: =G58*0.5 -> 47.0000 | L58: =H58*0.2 -> 19.6000 | M58: =I58*0.1 -> 9.6000 | N58: =SUM(J58:M58)*0.7 -> 66.9300 | O58: =VLOOKUP(D58,学生干部加分!A$1:C$140,3,FALSE) -> 9.0000 | P58: 0.0000 | Q58: 0.0000 | R58: =N58+O58+P58-Q58 -> 75.9300 | S58: =R58*0.15 -> 11.3895 | T58: 77.9405 | U58: 82.5000 | V58: =IF(U58>0,T58*0.9+U58*0.1,T58) -> 78.3964 | W58: 0.0000 | X58: =V58*0.85+W58 -> 66.6370 | Y58: =0.7*X58 -> 46.6459 | Z58: =VLOOKUP(D58,体测成绩!B$2:C$273,2,FALSE) -> 67.9000 | AA58: =VLOOKUP(D58,体育锻炼成绩!A$2:B$182,2,FALSE) -> 100.00 | AB58: =0.8*Z58 -> 54.3200 | AC58: =AA58*0.2 -> 20.0000 | AD58: =SUM(AB58:AC58)*0.7 -> 52.0240 | AE58: 0.0000 | AF58: =AD58+AE58 -> 52.0240 | AG58: =AF58*0.05 -> 2.6012 | AH58: =VLOOKUP(D58,美育!B$2:F$182,5,FALSE) -> 70.0000 | AI58: =VLOOKUP(D58,美育!B$2:E$182,4,FALSE) -> 10.0000 | AJ58: =AH58+AI58 -> 80.0000 | AK58: =AJ58*0.05 -> 4.0000 | AL58: =VLOOKUP(D58,劳育基础分!B$3:AF$182,31,FALSE) -> 40.0000 | AM58: 0.0000 | AN58: =AL58+AM58 -> 40.0000 | AO58: =AN58*0.05 -> 2.0000 | AP58: =S58+Y58+AG58+AK58+AO58 -> 66.6366 | AQ58: =VLOOKUP(D58,必修课优良率!A$1:B$173,2,FALSE) -> 61.90% | AR58: =VLOOKUP(D58,四级成绩!B$2:C$178,2,FALSE) -> 495 | AS58: =VLOOKUP(D58,必修课优良率!A$1:D$173,4,FALSE) -> 否
A59: 56 | B59: 33 | C59: 2024010596 | D59: 王爽 | E59: =VLOOKUP(D59,美育!B$2:E$182,2,FALSE) -> 化工类24-5班 | F59: =VLOOKUP(D59,互评分!C$2:F$181,4,FALSE) -> 99.2963 | G59: =VLOOKUP(D59,辅导员加分!B$2:C$176,2,FALSE) -> 90.0000 | H59: =VLOOKUP(D59,互评分!C$2:F$181,3,FALSE) -> 100.0000 | I59: =VLOOKUP(D59,互评分!C$2:F$181,2,FALSE) -> 93.0000 | J59: =F59*0.2 -> 19.8593 | K59: =G59*0.5 -> 45.0000 | L59: =H59*0.2 -> 20.0000 | M59: =I59*0.1 -> 9.3000 | N59: =SUM(J59:M59)*0.7 -> 65.9115 | O59: 0.0000 | P59: 0.0000 | Q59: 0.0000 | R59: =N59+O59+P59-Q59 -> 65.9115 | S59: =R59*0.15 -> 9.8867 | T59: 83.2927 | U59: 84.2000 | V59: =IF(U59>0,T59*0.9+U59*0.1,T59) -> 83.3834 | W59: 0.0000 | X59: =V59*0.85+W59 -> 70.8759 | Y59: =0.7*X59 -> 49.6131 | Z59: =VLOOKUP(D59,体测成绩!B$2:C$273,2,FALSE) -> 87.4000 | AA59: =VLOOKUP(D59,体育锻炼成绩!A$2:B$182,2,FALSE) -> 100.00 | AB59: =0.8*Z59 -> 69.9200 | AC59: =AA59*0.2 -> 20.0000 | AD59: =SUM(AB59:AC59)*0.7 -> 62.9440 | AE59: =VLOOKUP(D59,体育加分汇总!A$1:C$79,3,FALSE) -> 0.0000 | AF59: =AD59+AE59 -> 62.9440 | AG59: =AF59*0.05 -> 3.1472 | AH59: =VLOOKUP(D59,美育!B$2:F$182,5,FALSE) -> 35.0000 | AI59: =VLOOKUP(D59,美育!B$2:E$182,4,FALSE) -> 0.0000 | AJ59: =AH59+AI59 -> 35.0000 | AK59: =AJ59*0.05 -> 1.7500 | AL59: =VLOOKUP(D59,劳育基础分!B$3:AF$182,31,FALSE) -> 42.5000 | AM59: 0.0000 | AN59: =AL59+AM59 -> 42.5000 | AO59: =AN59*0.05 -> 2.1250 | AP59: =S59+Y59+AG59+AK59+AO59 -> 66.5221 | AQ59: =VLOOKUP(D59,必修课优良率!A$1:B$173,2,FALSE) -> 76.19% | AR59: =VLOOKUP(D59,四级成绩!B$2:C$178,2,FALSE) -> 424 | AS59: =VLOOKUP(D59,必修课优良率!A$1:D$173,4,FALSE) -> 否
A60: 57 | B60: 22 | C60: 2024010486 | D60: 彭一航 | E60: =VLOOKUP(D60,美育!B$2:E$182,2,FALSE) -> 化工类24-1班 | F60: =VLOOKUP(D60,互评分!C$2:F$181,4,FALSE) -> 98.0000 | G60: =VLOOKUP(D60,辅导员加分!B$2:C$176,2,FALSE) -> 92.0000 | H60: =VLOOKUP(D60,互评分!C$2:F$181,3,FALSE) -> 100.0000 | I60: =VLOOKUP(D60,互评分!C$2:F$181,2,FALSE) -> 98.0000 | J60: =F60*0.2 -> 19.6000 | K60: =G60*0.5 -> 46.0000 | L60: =H60*0.2 -> 20.0000 | M60: =I60*0.1 -> 9.8000 | N60: =SUM(J60:M60)*0.7 -> 66.7800 | O60: =VLOOKUP(D60,学生干部加分!A$1:C$140,3,FALSE) -> 3.5000 | P60: 0.0000 | Q60: 0.0000 | R60: =N60+O60+P60-Q60 -> 70.2800 | S60: =R60*0.15 -> 10.5420 | T60: 84.9390 | U60: 80.6667 | V60: =IF(U60>0,T60*0.9+U60*0.1,T60) -> 84.5118 | W60: 0.0000 | X60: =V60*0.85+W60 -> 71.8350 | Y60: =0.7*X60 -> 50.2845 | Z60: =VLOOKUP(D60,体测成绩!B$2:C$273,2,FALSE) -> 60.0000 | AA60: =VLOOKUP(D60,体育锻炼成绩!A$2:B$182,2,FALSE) -> 100.00 | AB60: =0.8*Z60 -> 48.0000 | AC60: =AA60*0.2 -> 20.0000 | AD60: =SUM(AB60:AC60)*0.7 -> 47.6000 | AE60: 0.0000 | AF60: =AD60+AE60 -> 47.6000 | AG60: =AF60*0.05 -> 2.3800 | AH60: =VLOOKUP(D60,美育!B$2:F$182,5,FALSE) -> 20.0000 | AI60: =VLOOKUP(D60,美育!B$2:E$182,4,FALSE) -> 0.0000 | AJ60: =AH60+AI60 -> 20.0000 | AK60: =AJ60*0.05 -> 1.0000 | AL60: =VLOOKUP(D60,劳育基础分!B$3:AF$182,31,FALSE) -> 39.5000 | AM60: =VLOOKUP(D60,劳育加分!A$3:I$34,9,FALSE) -> 4.0000 | AN60: =AL60+AM60 -> 43.5000 | AO60: =AN60*0.05 -> 2.1750 | AP60: =S60+Y60+AG60+AK60+AO60 -> 66.3815 | AQ60: =VLOOKUP(D60,必修课优良率!A$1:B$173,2,FALSE) -> 71.43% | AR60: =VLOOKUP(D60,四级成绩!B$2:C$178,2,FALSE) -> 542 | AS60: =VLOOKUP(D60,必修课优良率!A$1:D$173,4,FALSE) -> 否
A61: 58 | B61: 58 | C61: 2024010573 | D61: 王韬哲 | E61: =VLOOKUP(D61,美育!B$2:E$182,2,FALSE) -> 化工类24-4班 | F61: =VLOOKUP(D61,互评分!C$2:F$181,4,FALSE) -> 97.1429 | G61: =VLOOKUP(D61,辅导员加分!B$2:C$176,2,FALSE) -> 92.0000 | H61: =VLOOKUP(D61,互评分!C$2:F$181,3,FALSE) -> 95.5714 | I61: =VLOOKUP(D61,互评分!C$2:F$181,2,FALSE) -> 100.0000 | J61: =F61*0.2 -> 19.4286 | K61: =G61*0.5 -> 46.0000 | L61: =H61*0.2 -> 19.1143 | M61: =I61*0.1 -> 10.0000 | N61: =SUM(J61:M61)*0.7 -> 66.1800 | O61: =VLOOKUP(D61,学生干部加分!A$1:C$140,3,FALSE) -> 3.7500 | P61: 0.0000 | Q61: 0.0000 | R61: =N61+O61+P61-Q61 -> 69.9300 | S61: =R61*0.15 -> 10.4895 | T61: 80.0732 | U61: 83.8000 | V61: =IF(U61>0,T61*0.9+U61*0.1,T61) -> 80.4459 | W61: =VLOOKUP(D61,智育加分汇总!A$2:C$44,3,FALSE) -> 1.8000 | X61: =V61*0.85+W61 -> 70.1790 | Y61: =0.7*X61 -> 49.1253 | Z61: =VLOOKUP(D61,体测成绩!B$2:C$273,2,FALSE) -> 73.7000 | AA61: =VLOOKUP(D61,体育锻炼成绩!A$2:B$182,2,FALSE) -> 100.00 | AB61: =0.8*Z61 -> 58.9600 | AC61: =AA61*0.2 -> 20.0000 | AD61: =SUM(AB61:AC61)*0.7 -> 55.2720 | AE61: =VLOOKUP(D61,体育加分汇总!A$1:C$79,3,FALSE) -> 11.0000 | AF61: =AD61+AE61 -> 66.2720 | AG61: =AF61*0.05 -> 3.3136 | AH61: =VLOOKUP(D61,美育!B$2:F$182,5,FALSE) -> 43.0000 | AI61: =VLOOKUP(D61,美育!B$2:E$182,4,FALSE) -> 0.0000 | AJ61: =AH61+AI61 -> 43.0000 | AK61: =AJ61*0.05 -> 2.1500 | AL61: =VLOOKUP(D61,劳育基础分!B$3:AF$182,31,FALSE) -> 26.0000 | AM61: 0.0000 | AN61: =AL61+AM61 -> 26.0000 | AO61: =AN61*0.05 -> 1.3000 | AP61: =S61+Y61+AG61+AK61+AO61 -> 66.3784 | AQ61: =VLOOKUP(D61,必修课优良率!A$1:B$173,2,FALSE) -> 85.71% | AR61: =VLOOKUP(D61,四级成绩!B$2:C$178,2,FALSE) -> 572 | AS61: =VLOOKUP(D61,必修课优良率!A$1:D$173,4,FALSE) -> 否
A62: 59 | B62: 45 | C62: 2024010505 | D62: 李志聪 | E62: =VLOOKUP(D62,美育!B$2:E$182,2,FALSE) -> 化工类24-2班 | F62: =VLOOKUP(D62,互评分!C$2:F$181,4,FALSE) -> 97.7500 | G62: =VLOOKUP(D62,辅导员加分!B$2:C$176,2,FALSE) -> 94.0000 | H62: =VLOOKUP(D62,互评分!C$2:F$181,3,FALSE) -> 100.0000 | I62: =VLOOKUP(D62,互评分!C$2:F$181,2,FALSE) -> 97.0000 | J62: =F62*0.2 -> 19.5500 | K62: =G62*0.5 -> 47.0000 | L62: =H62*0.2 -> 20.0000 | M62: =I62*0.1 -> 9.7000 | N62: =SUM(J62:M62)*0.7 -> 67.3750 | O62: =VLOOKUP(D62,学生干部加分!A$1:C$140,3,FALSE) -> 8.0000 | P62: 0.0000 | Q62: 0.0000 | R62: =N62+O62+P62-Q62 -> 75.3750 | S62: =R62*0.15 -> 11.3063 | T62: 81.9405 | U62: 75.0000 | V62: =IF(U62>0,T62*0.9+U62*0.1,T62) -> 81.2464 | W62: 0.0000 | X62: =V62*0.85+W62 -> 69.0595 | Y62: =0.7*X62 -> 48.3416 | Z62: =VLOOKUP(D62,体测成绩!B$2:C$273,2,FALSE) -> 58.5000 | AA62: =VLOOKUP(D62,体育锻炼成绩!A$2:B$182,2,FALSE) -> 100.00 | AB62: =0.8*Z62 -> 46.8000 | AC62: =AA62*0.2 -> 20.0000 | AD62: =SUM(AB62:AC62)*0.7 -> 46.7600 | AE62: 0.0000 | AF62: =AD62+AE62 -> 46.7600 | AG62: =AF62*0.05 -> 2.3380 | AH62: =VLOOKUP(D62,美育!B$2:F$182,5,FALSE) -> 43.0000 | AI62: =VLOOKUP(D62,美育!B$2:E$182,4,FALSE) -> 0.0000 | AJ62: =AH62+AI62 -> 43.0000 | AK62: =AJ62*0.05 -> 2.1500 | AL62: =VLOOKUP(D62,劳育基础分!B$3:AF$182,31,FALSE) -> 44.0000 | AM62: 0.0000 | AN62: =AL62+AM62 -> 44.0000 | AO62: =AN62*0.05 -> 2.2000 | AP62: =S62+Y62+AG62+AK62+AO62 -> 66.3359 | AQ62: =VLOOKUP(D62,必修课优良率!A$1:B$173,2,FALSE) -> 85.71% | AR62: =VLOOKUP(D62,四级成绩!B$2:C$178,2,FALSE) -> 497 | AS62: =VLOOKUP(D62,必修课优良率!A$1:D$173,4,FALSE) -> 否
A63: 60 | B63: 37 | C63: 2024010511 | D63: 吕程 | E63: =VLOOKUP(D63,美育!B$2:E$182,2,FALSE) -> 化工类24-2班 | F63: =VLOOKUP(D63,互评分!C$2:F$181,4,FALSE) -> 97.2857 | G63: =VLOOKUP(D63,辅导员加分!B$2:C$176,2,FALSE) -> 90.0000 | H63: =VLOOKUP(D63,互评分!C$2:F$181,3,FALSE) -> 100.0000 | I63: =VLOOKUP(D63,互评分!C$2:F$181,2,FALSE) -> 90.0000 | J63: =F63*0.2 -> 19.4571 | K63: =G63*0.5 -> 45.0000 | L63: =H63*0.2 -> 20.0000 | M63: =I63*0.1 -> 9.0000 | N63: =SUM(J63:M63)*0.7 -> 65.4200 | O63: =VLOOKUP(D63,学生干部加分!A$1:C$140,3,FALSE) -> 4.0000 | P63: 0.0000 | Q63: 0.0000 | R63: =N63+O63+P63-Q63 -> 69.4200 | S63: =R63*0.15 -> 10.4130 | T63: 82.5244 | U63: 87.0000 | V63: =IF(U63>0,T63*0.9+U63*0.1,T63) -> 82.9720 | W63: 0.0000 | X63: =V63*0.85+W63 -> 70.5262 | Y63: =0.7*X63 -> 49.3683 | Z63: =VLOOKUP(D63,体测成绩!B$2:C$273,2,FALSE) -> 60.0000 | AA63: =VLOOKUP(D63,体育锻炼成绩!A$2:B$182,2,FALSE) -> 100.00 | AB63: =0.8*Z63 -> 48.0000 | AC63: =AA63*0.2 -> 20.0000 | AD63: =SUM(AB63:AC63)*0.7 -> 47.6000 | AE63: 0.0000 | AF63: =AD63+AE63 -> 47.6000 | AG63: =AF63*0.05 -> 2.3800 | AH63: =VLOOKUP(D63,美育!B$2:F$182,5,FALSE) -> 35.0000 | AI63: =VLOOKUP(D63,美育!B$2:E$182,4,FALSE) -> 0.0000 | AJ63: =AH63+AI63 -> 35.0000 | AK63: =AJ63*0.05 -> 1.7500 | AL63: =VLOOKUP(D63,劳育基础分!B$3:AF$182,31,FALSE) -> 41.5000 | AM63: 0.0000 | AN63: =AL63+AM63 -> 41.5000 | AO63: =AN63*0.05 -> 2.0750 | AP63: =S63+Y63+AG63+AK63+AO63 -> 65.9863 | AQ63: =VLOOKUP(D63,必修课优良率!A$1:B$173,2,FALSE) -> 66.67% | AR63: =VLOOKUP(D63,四级成绩!B$2:C$178,2,FALSE) -> 502 | AS63: =VLOOKUP(D63,必修课优良率!A$1:D$173,4,FALSE) -> 否
A64: 61 | B64: 95 | C64: 2024010521 | D64: 张蕊 | E64: =VLOOKUP(D64,美育!B$2:E$182,2,FALSE) -> 化工类24-3班 | F64: =VLOOKUP(D64,互评分!C$2:F$181,4,FALSE) -> 99.5926 | G64: =VLOOKUP(D64,辅导员加分!B$2:C$176,2,FALSE) -> 94.0000 | H64: =VLOOKUP(D64,互评分!C$2:F$181,3,FALSE) -> 100.0000 | I64: =VLOOKUP(D64,互评分!C$2:F$181,2,FALSE) -> 100.0000 | J64: =F64*0.2 -> 19.9185 | K64: =G64*0.5 -> 47.0000 | L64: =H64*0.2 -> 20.0000 | M64: =I64*0.1 -> 10.0000 | N64: =SUM(J64:M64)*0.7 -> 67.8430 | O64: =VLOOKUP(D64,学生干部加分!A$1:C$140,3,FALSE) -> 8.0000 | P64: 0.0000 | Q64: 0.0000 | R64: =N64+O64+P64-Q64 -> 75.8430 | S64: =R64*0.15 -> 11.3764 | T64: =VLOOKUP(D64,[1]必修课成绩!C$71:AE$100,29,FALSE) -> 76.5250 | U64: =VLOOKUP(D64,[1]选修课成绩!C$72:AC$101,27,FALSE) -> 87.6667 | V64: =IF(U64>0,T64*0.9+U64*0.1,T64) -> 77.6392 | W64: 0.0000 | X64: =V64*0.85+W64 -> 65.9933 | Y64: =0.7*X64 -> 46.1953 | Z64: =VLOOKUP(D64,体测成绩!B$2:C$273,2,FALSE) -> 74.6000 | AA64: =VLOOKUP(D64,体育锻炼成绩!A$2:B$182,2,FALSE) -> 100.00 | AB64: =0.8*Z64 -> 59.6800 | AC64: =AA64*0.2 -> 20.0000 | AD64: =SUM(AB64:AC64)*0.7 -> 55.7760 | AE64: =VLOOKUP(D64,体育加分汇总!A$1:C$79,3,FALSE) -> 4.0000 | AF64: =AD64+AE64 -> 59.7760 | AG64: =AF64*0.05 -> 2.9888 | AH64: =VLOOKUP(D64,美育!B$2:F$182,5,FALSE) -> 55.0000 | AI64: =VLOOKUP(D64,美育!B$2:E$182,4,FALSE) -> 0.0000 | AJ64: =AH64+AI64 -> 55.0000 | AK64: =AJ64*0.05 -> 2.7500 | AL64: =VLOOKUP(D64,劳育基础分!B$3:AF$182,31,FALSE) -> 52.0000 | AM64: 0.0000 | AN64: =AL64+AM64 -> 52.0000 | AO64: =AN64*0.05 -> 2.6000 | AP64: =S64+Y64+AG64+AK64+AO64 -> 65.9105 | AQ64: =VLOOKUP(D64,必修课优良率!A$1:B$173,2,FALSE) -> 61.90% | AR64: =VLOOKUP(D64,四级成绩!B$2:C$178,2,FALSE) -> 528 | AS64: =VLOOKUP(D64,必修课优良率!A$1:D$173,4,FALSE) -> 否
A65: 62 | B65: 35 | C65: 2024010561 | D65: 刘子炜 | E65: =VLOOKUP(D65,美育!B$2:E$182,2,FALSE) -> 化工类24-4班 | F65: =VLOOKUP(D65,互评分!C$2:F$181,4,FALSE) -> 96.2857 | G65: =VLOOKUP(D65,辅导员加分!B$2:C$176,2,FALSE) -> 92.0000 | H65: =VLOOKUP(D65,互评分!C$2:F$181,3,FALSE) -> 95.1429 | I65: =VLOOKUP(D65,互评分!C$2:F$181,2,FALSE) -> 100.0000 | J65: =F65*0.2 -> 19.2571 | K65: =G65*0.5 -> 46.0000 | L65: =H65*0.2 -> 19.0286 | M65: =I65*0.1 -> 10.0000 | N65: =SUM(J65:M65)*0.7 -> 66.0000 | O65: =VLOOKUP(D65,学生干部加分!A$1:C$140,3,FALSE) -> 4.5000 | P65: 0.0000 | Q65: 0.0000 | R65: =N65+O65+P65-Q65 -> 70.5000 | S65: =R65*0.15 -> 10.5750 | T65: 82.7927 | U65: 79.2000 | V65: =IF(U65>0,T65*0.9+U65*0.1,T65) -> 82.4334 | W65: =VLOOKUP(D65,智育加分汇总!A$2:C$44,3,FALSE) -> 0.3000 | X65: =V65*0.85+W65 -> 70.3684 | Y65: =0.7*X65 -> 49.2579 | Z65: =VLOOKUP(D65,体测成绩!B$2:C$273,2,FALSE) -> 84.0000 | AA65: =VLOOKUP(D65,体育锻炼成绩!A$2:B$182,2,FALSE) -> 100.00 | AB65: =0.8*Z65 -> 67.2000 | AC65: =AA65*0.2 -> 20.0000 | AD65: =SUM(AB65:AC65)*0.7 -> 61.0400 | AE65: =VLOOKUP(D65,体育加分汇总!A$1:C$79,3,FALSE) -> 20.0000 | AF65: =AD65+AE65 -> 81.0400 | AG65: =AF65*0.05 -> 4.0520 | AH65: =VLOOKUP(D65,美育!B$2:F$182,5,FALSE) -> 0.0000 | AI65: =VLOOKUP(D65,美育!B$2:E$182,4,FALSE) -> 0.0000 | AJ65: =AH65+AI65 -> 0.0000 | AK65: =AJ65*0.05 -> 0.0000 | AL65: =VLOOKUP(D65,劳育基础分!B$3:AF$182,31,FALSE) -> 40.0000 | AM65: 0.0000 | AN65: =AL65+AM65 -> 40.0000 | AO65: =AN65*0.05 -> 2.0000 | AP65: =S65+Y65+AG65+AK65+AO65 -> 65.8849 | AQ65: =VLOOKUP(D65,必修课优良率!A$1:B$173,2,FALSE) -> 71.43% | AR65: =VLOOKUP(D65,四级成绩!B$2:C$178,2,FALSE) -> 445 | AS65: =VLOOKUP(D65,必修课优良率!A$1:D$173,4,FALSE) -> 否
A66: 63 | B66: 139 | C66: 2024010466 | D66: 王南南 | E66: =VLOOKUP(D66,美育!B$2:E$182,2,FALSE) -> 化工类24-1班 | F66: =VLOOKUP(D66,互评分!C$2:F$181,4,FALSE) -> 98.5556 | G66: =VLOOKUP(D66,辅导员加分!B$2:C$176,2,FALSE) -> 92.0000 | H66: =VLOOKUP(D66,互评分!C$2:F$181,3,FALSE) -> 100.0000 | I66: =VLOOKUP(D66,互评分!C$2:F$181,2,FALSE) -> 98.0000 | J66: =F66*0.2 -> 19.7111 | K66: =G66*0.5 -> 46.0000 | L66: =H66*0.2 -> 20.0000 | M66: =I66*0.1 -> 9.8000 | N66: =SUM(J66:M66)*0.7 -> 66.8578 | O66: =VLOOKUP(D66,学生干部加分!A$1:C$140,3,FALSE) -> 8.0000 | P66: 0.0000 | Q66: 0.0000 | R66: =N66+O66+P66-Q66 -> 74.8578 | S66: =R66*0.15 -> 11.2287 | T66: 72.5641 | U66: 87.3333 | V66: =IF(U66>0,T66*0.9+U66*0.1,T66) -> 74.0410 | W66: =VLOOKUP(D66,智育加分汇总!A$2:C$44,3,FALSE) -> 3.0000 | X66: =V66*0.85+W66 -> 65.9349 | Y66: =0.7*X66 -> 46.1544 | Z66: =VLOOKUP(D66,体测成绩!B$2:C$273,2,FALSE) -> 60.0000 | AA66: =VLOOKUP(D66,体育锻炼成绩!A$2:B$182,2,FALSE) -> 100.00 | AB66: =0.8*Z66 -> 48.0000 | AC66: =AA66*0.2 -> 20.0000 | AD66: =SUM(AB66:AC66)*0.7 -> 47.6000 | AE66: =VLOOKUP(D66,体育加分汇总!A$1:C$79,3,FALSE) -> 8.0000 | AF66: =AD66+AE66 -> 55.6000 | AG66: =AF66*0.05 -> 2.7800 | AH66: =VLOOKUP(D66,美育!B$2:F$182,5,FALSE) -> 70.0000 | AI66: =VLOOKUP(D66,美育!B$2:E$182,4,FALSE) -> 0.0000 | AJ66: =AH66+AI66 -> 70.0000 | AK66: =AJ66*0.05 -> 3.5000 | AL66: =VLOOKUP(D66,劳育基础分!B$3:AF$182,31,FALSE) -> 40.0000 | AM66: =VLOOKUP(D66,劳育加分!A$3:I$34,9,FALSE) -> 4.0000 | AN66: =AL66+AM66 -> 44.0000 | AO66: =AN66*0.05 -> 2.2000 | AP66: =S66+Y66+AG66+AK66+AO66 -> 65.8631 | AQ66: =VLOOKUP(D66,必修课优良率!A$1:B$173,2,FALSE) -> 57.89% | AR66: =VLOOKUP(D66,四级成绩!B$2:C$178,2,FALSE) -> 515 | AS66: =VLOOKUP(D66,必修课优良率!A$1:D$173,4,FALSE) -> 是
A67: 64 | B67: 44 | C67: 2024010619 | D67: 孔德烨 | E67: =VLOOKUP(D67,美育!B$2:E$182,2,FALSE) -> 化工类24-6班 | F67: =VLOOKUP(D67,互评分!C$2:F$181,4,FALSE) -> 98.4615 | G67: =VLOOKUP(D67,辅导员加分!B$2:C$176,2,FALSE) -> 92.0000 | H67: =VLOOKUP(D67,互评分!C$2:F$181,3,FALSE) -> 100.0000 | I67: =VLOOKUP(D67,互评分!C$2:F$181,2,FALSE) -> 100.0000 | J67: =F67*0.2 -> 19.6923 | K67: =G67*0.5 -> 46.0000 | L67: =H67*0.2 -> 20.0000 | M67: =I67*0.1 -> 10.0000 | N67: =SUM(J67:M67)*0.7 -> 66.9846 | O67: 0.0000 | P67: 0.0000 | Q67: 0.0000 | R67: =N67+O67+P67-Q67 -> 66.9846 | S67: =R67*0.15 -> 10.0477 | T67: 82.0610 | U67: 0.0000 | V67: =IF(U67>0,T67*0.9+U67*0.1,T67) -> 82.0610 | W67: 0.0000 | X67: =V67*0.85+W67 -> 69.7518 | Y67: =0.7*X67 -> 48.8263 | Z67: =VLOOKUP(D67,体测成绩!B$2:C$273,2,FALSE) -> 71.2000 | AA67: =VLOOKUP(D67,体育锻炼成绩!A$2:B$182,2,FALSE) -> 100.00 | AB67: =0.8*Z67 -> 56.9600 | AC67: =AA67*0.2 -> 20.0000 | AD67: =SUM(AB67:AC67)*0.7 -> 53.8720 | AE67: 0.0000 | AF67: =AD67+AE67 -> 53.8720 | AG67: =AF67*0.05 -> 2.6936 | AH67: =VLOOKUP(D67,美育!B$2:F$182,5,FALSE) -> 60.0000 | AI67: =VLOOKUP(D67,美育!B$2:E$182,4,FALSE) -> 0.0000 | AJ67: =AH67+AI67 -> 60.0000 | AK67: =AJ67*0.05 -> 3.0000 | AL67: =VLOOKUP(D67,劳育基础分!B$3:AF$182,31,FALSE) -> 24.0000 | AM67: 0.0000 | AN67: =AL67+AM67 -> 24.0000 | AO67: =AN67*0.05 -> 1.2000 | AP67: =S67+Y67+AG67+AK67+AO67 -> 65.7676 | AQ67: =VLOOKUP(D67,必修课优良率!A$1:B$173,2,FALSE) -> 71.43% | AR67: =VLOOKUP(D67,四级成绩!B$2:C$178,2,FALSE) -> 497 | AS67: =VLOOKUP(D67,必修课优良率!A$1:D$173,4,FALSE) -> 否
A68: 65 | B68: 73 | C68: 2024010620 | D68: 杨磊 | E68: =VLOOKUP(D68,美育!B$2:E$182,2,FALSE) -> 化工类24-6班 | F68: =VLOOKUP(D68,互评分!C$2:F$181,4,FALSE) -> 98.4615 | G68: =VLOOKUP(D68,辅导员加分!B$2:C$176,2,FALSE) -> 92.0000 | H68: =VLOOKUP(D68,互评分!C$2:F$181,3,FALSE) -> 100.0000 | I68: =VLOOKUP(D68,互评分!C$2:F$181,2,FALSE) -> 100.0000 | J68: =F68*0.2 -> 19.6923 | K68: =G68*0.5 -> 46.0000 | L68: =H68*0.2 -> 20.0000 | M68: =I68*0.1 -> 10.0000 | N68: =SUM(J68:M68)*0.7 -> 66.9846 | O68: =VLOOKUP(D68,学生干部加分!A$1:C$140,3,FALSE) -> 3.5000 | P68: 0.0000 | Q68: 0.0000 | R68: =N68+O68+P68-Q68 -> 70.4846 | S68: =R68*0.15 -> 10.5727 | T68: 78.8800 | U68: 89.0000 | V68: =IF(U68>0,T68*0.9+U68*0.1,T68) -> 79.8920 | W68: 0.0000 | X68: =V68*0.85+W68 -> 67.9082 | Y68: =0.7*X68 -> 47.5357 | Z68: =VLOOKUP(D68,体测成绩!B$2:C$273,2,FALSE) -> 77.8000 | AA68: =VLOOKUP(D68,体育锻炼成绩!A$2:B$182,2,FALSE) -> 100.00 | AB68: =0.8*Z68 -> 62.2400 | AC68: =AA68*0.2 -> 20.0000 | AD68: =SUM(AB68:AC68)*0.7 -> 57.5680 | AE68: =VLOOKUP(D68,体育加分汇总!A$1:C$79,3,FALSE) -> 14.0000 | AF68: =AD68+AE68 -> 71.5680 | AG68: =AF68*0.05 -> 3.5784 | AH68: =VLOOKUP(D68,美育!B$2:F$182,5,FALSE) -> 40.0000 | AI68: =VLOOKUP(D68,美育!B$2:E$182,4,FALSE) -> 0.0000 | AJ68: =AH68+AI68 -> 40.0000 | AK68: =AJ68*0.05 -> 2.0000 | AL68: =VLOOKUP(D68,劳育基础分!B$3:AF$182,31,FALSE) -> 40.0000 | AM68: 0.0000 | AN68: =AL68+AM68 -> 40.0000 | AO68: =AN68*0.05 -> 2.0000 | AP68: =S68+Y68+AG68+AK68+AO68 -> 65.6868 | AQ68: 70.0000% | AR68: =VLOOKUP(D68,四级成绩!B$2:C$178,2,FALSE) -> 474 | AS68: 否
A69: 66 | B69: 115 | C69: 2024010614 | D69: 闫乙昕 | E69: =VLOOKUP(D69,美育!B$2:E$182,2,FALSE) -> 化工类24-6班 | F69: =VLOOKUP(D69,互评分!C$2:F$181,4,FALSE) -> 96.9615 | G69: =VLOOKUP(D69,辅导员加分!B$2:C$176,2,FALSE) -> 94.0000 | H69: =VLOOKUP(D69,互评分!C$2:F$181,3,FALSE) -> 100.0000 | I69: =VLOOKUP(D69,互评分!C$2:F$181,2,FALSE) -> 100.0000 | J69: =F69*0.2 -> 19.3923 | K69: =G69*0.5 -> 47.0000 | L69: =H69*0.2 -> 20.0000 | M69: =I69*0.1 -> 10.0000 | N69: =SUM(J69:M69)*0.7 -> 67.4746 | O69: =VLOOKUP(D69,学生干部加分!A$1:C$140,3,FALSE) -> 6.0000 | P69: 0.0000 | Q69: 0.0000 | R69: =N69+O69+P69-Q69 -> 73.4746 | S69: =R69*0.15 -> 11.0212 | T69: =VLOOKUP(D69,[1]必修课成绩!C$71:AE$100,29,FALSE) -> 74.6125 | U69: =VLOOKUP(D69,[1]选修课成绩!C$72:AC$101,27,FALSE) -> 70.0000 | V69: =IF(U69>0,T69*0.9+U69*0.1,T69) -> 74.1513 | W69: =VLOOKUP(D69,智育加分汇总!A$2:C$44,3,FALSE) -> 4.5000 | X69: =V69*0.85+W69 -> 67.5286 | Y69: =0.7*X69 -> 47.2700 | Z69: =VLOOKUP(D69,体测成绩!B$2:C$273,2,FALSE) -> 73.5000 | AA69: =VLOOKUP(D69,体育锻炼成绩!A$2:B$182,2,FALSE) -> 100.00 | AB69: =0.8*Z69 -> 58.8000 | AC69: =AA69*0.2 -> 20.0000 | AD69: =SUM(AB69:AC69)*0.7 -> 55.1600 | AE69: =VLOOKUP(D69,体育加分汇总!A$1:C$79,3,FALSE) -> 0.0000 | AF69: =AD69+AE69 -> 55.1600 | AG69: =AF69*0.05 -> 2.7580 | AH69: =VLOOKUP(D69,美育!B$2:F$182,5,FALSE) -> 40.0000 | AI69: =VLOOKUP(D69,美育!B$2:E$182,4,FALSE) -> 4.0000 | AJ69: =AH69+AI69 -> 44.0000 | AK69: =AJ69*0.05 -> 2.2000 | AL69: =VLOOKUP(D69,劳育基础分!B$3:AF$182,31,FALSE) -> 40.0000 | AM69: =VLOOKUP(D69,劳育加分!A$3:I$34,9,FALSE) -> 4.0000 | AN69: =AL69+AM69 -> 44.0000 | AO69: =AN69*0.05 -> 2.2000 | AP69: =S69+Y69+AG69+AK69+AO69 -> 65.4492 | AQ69: =VLOOKUP(D69,必修课优良率!A$1:B$173,2,FALSE) -> 71.43% | AR69: =VLOOKUP(D69,四级成绩!B$2:C$178,2,FALSE) -> 438 | AS69: =VLOOKUP(D69,必修课优良率!A$1:D$173,4,FALSE) -> 否
A70: 67 | B70: 56 | C70: 2024010552 | D70: 胡语轩 | E70: =VLOOKUP(D70,美育!B$2:E$182,2,FALSE) -> 化工类24-4班 | F70: =VLOOKUP(D70,互评分!C$2:F$181,4,FALSE) -> 96.6429 | G70: =VLOOKUP(D70,辅导员加分!B$2:C$176,2,FALSE) -> 94.0000 | H70: =VLOOKUP(D70,互评分!C$2:F$181,3,FALSE) -> 98.4286 | I70: =VLOOKUP(D70,互评分!C$2:F$181,2,FALSE) -> 100.0000 | J70: =F70*0.2 -> 19.3286 | K70: =G70*0.5 -> 47.0000 | L70: =H70*0.2 -> 19.6857 | M70: =I70*0.1 -> 10.0000 | N70: =SUM(J70:M70)*0.7 -> 67.2100 | O70: =VLOOKUP(D70,学生干部加分!A$1:C$140,3,FALSE) -> 4.0000 | P70: 0.0000 | Q70: 0.0000 | R70: =N70+O70+P70-Q70 -> 71.2100 | S70: =R70*0.15 -> 10.6815 | T70: 80.7317 | U70: 78.5000 | V70: =IF(U70>0,T70*0.9+U70*0.1,T70) -> 80.5085 | W70: 0.0000 | X70: =V70*0.85+W70 -> 68.4323 | Y70: =0.7*X70 -> 47.9026 | Z70: =VLOOKUP(D70,体测成绩!B$2:C$273,2,FALSE) -> 70.0000 | AA70: =VLOOKUP(D70,体育锻炼成绩!A$2:B$182,2,FALSE) -> 100.00 | AB70: =0.8*Z70 -> 56.0000 | AC70: =AA70*0.2 -> 20.0000 | AD70: =SUM(AB70:AC70)*0.7 -> 53.2000 | AE70: 0.0000 | AF70: =AD70+AE70 -> 53.2000 | AG70: =AF70*0.05 -> 2.6600 | AH70: =VLOOKUP(D70,美育!B$2:F$182,5,FALSE) -> 40.0000 | AI70: =VLOOKUP(D70,美育!B$2:E$182,4,FALSE) -> 0.0000 | AJ70: =AH70+AI70 -> 40.0000 | AK70: =AJ70*0.05 -> 2.0000 | AL70: =VLOOKUP(D70,劳育基础分!B$3:AF$182,31,FALSE) -> 40.0000 | AM70: 0.0000 | AN70: =AL70+AM70 -> 40.0000 | AO70: =AN70*0.05 -> 2.0000 | AP70: =S70+Y70+AG70+AK70+AO70 -> 65.2441 | AQ70: =VLOOKUP(D70,必修课优良率!A$1:B$173,2,FALSE) -> 66.67% | AR70: =VLOOKUP(D70,四级成绩!B$2:C$178,2,FALSE) -> 548 | AS70: =VLOOKUP(D70,必修课优良率!A$1:D$173,4,FALSE) -> 否
A71: 68 | B71: 98 | C71: 2024010627 | D71: 王笑睿 | E71: =VLOOKUP(D71,美育!B$2:E$182,2,FALSE) -> 化工类24-6班 | F71: =VLOOKUP(D71,互评分!C$2:F$181,4,FALSE) -> 98.4615 | G71: =VLOOKUP(D71,辅导员加分!B$2:C$176,2,FALSE) -> 92.0000 | H71: =VLOOKUP(D71,互评分!C$2:F$181,3,FALSE) -> 100.0000 | I71: =VLOOKUP(D71,互评分!C$2:F$181,2,FALSE) -> 100.0000 | J71: =F71*0.2 -> 19.6923 | K71: =G71*0.5 -> 46.0000 | L71: =H71*0.2 -> 20.0000 | M71: =I71*0.1 -> 10.0000 | N71: =SUM(J71:M71)*0.7 -> 66.9846 | O71: =VLOOKUP(D71,学生干部加分!A$1:C$140,3,FALSE) -> 7.8000 | P71: 0.0000 | Q71: 0.0000 | R71: =N71+O71+P71-Q71 -> 74.7846 | S71: =R71*0.15 -> 11.2177 | T71: 76.2683 | U71: 86.0000 | V71: =IF(U71>0,T71*0.9+U71*0.1,T71) -> 77.2415 | W71: =VLOOKUP(D71,智育加分汇总!A$2:C$44,3,FALSE) -> 4.1667 | X71: =V71*0.85+W71 -> 69.8219 | Y71: =0.7*X71 -> 48.8754 | Z71: =VLOOKUP(D71,体测成绩!B$2:C$273,2,FALSE) -> 60.7000 | AA71: =VLOOKUP(D71,体育锻炼成绩!A$2:B$182,2,FALSE) -> 100.00 | AB71: =0.8*Z71 -> 48.5600 | AC71: =AA71*0.2 -> 20.0000 | AD71: =SUM(AB71:AC71)*0.7 -> 47.9920 | AE71: =VLOOKUP(D71,体育加分汇总!A$1:C$79,3,FALSE) -> 0.0000 | AF71: =AD71+AE71 -> 47.9920 | AG71: =AF71*0.05 -> 2.3996 | AH71: =VLOOKUP(D71,美育!B$2:F$182,5,FALSE) -> 9.0000 | AI71: =VLOOKUP(D71,美育!B$2:E$182,4,FALSE) -> 0.0000 | AJ71: =AH71+AI71 -> 9.0000 | AK71: =AJ71*0.05 -> 0.4500 | AL71: =VLOOKUP(D71,劳育基础分!B$3:AF$182,31,FALSE) -> 40.0000 | AM71: 0.0000 | AN71: =AL71+AM71 -> 40.0000 | AO71: =AN71*0.05 -> 2.0000 | AP71: =S71+Y71+AG71+AK71+AO71 -> 64.9427 | AQ71: =VLOOKUP(D71,必修课优良率!A$1:B$173,2,FALSE) -> 52.38% | AR71: =VLOOKUP(D71,四级成绩!B$2:C$178,2,FALSE) -> 457 | AS71: =VLOOKUP(D71,必修课优良率!A$1:D$173,4,FALSE) -> 否
A72: 69 | B72: 43 | C72: 2024010598 | D72: 张子木 | E72: =VLOOKUP(D72,美育!B$2:E$182,2,FALSE) -> 化工类24-5班 | F72: =VLOOKUP(D72,互评分!C$2:F$181,4,FALSE) -> 99.7407 | G72: =VLOOKUP(D72,辅导员加分!B$2:C$176,2,FALSE) -> 92.0000 | H72: =VLOOKUP(D72,互评分!C$2:F$181,3,FALSE) -> 100.0000 | I72: =VLOOKUP(D72,互评分!C$2:F$181,2,FALSE) -> 90.0000 | J72: =F72*0.2 -> 19.9481 | K72: =G72*0.5 -> 46.0000 | L72: =H72*0.2 -> 20.0000 | M72: =I72*0.1 -> 9.0000 | N72: =SUM(J72:M72)*0.7 -> 66.4637 | O72: 0.0000 | P72: 0.0000 | Q72: 0.0000 | R72: =N72+O72+P72-Q72 -> 66.4637 | S72: =R72*0.15 -> 9.9696 | T72: 82.1098 | U72: 80.6667 | V72: =IF(U72>0,T72*0.9+U72*0.1,T72) -> 81.9654 | W72: 0.0000 | X72: =V72*0.85+W72 -> 69.6706 | Y72: =0.7*X72 -> 48.7694 | Z72: =VLOOKUP(D72,体测成绩!B$2:C$273,2,FALSE) -> 63.6000 | AA72: =VLOOKUP(D72,体育锻炼成绩!A$2:B$182,2,FALSE) -> 100.00 | AB72: =0.8*Z72 -> 50.8800 | AC72: =AA72*0.2 -> 20.0000 | AD72: =SUM(AB72:AC72)*0.7 -> 49.6160 | AE72: 0.0000 | AF72: =AD72+AE72 -> 49.6160 | AG72: =AF72*0.05 -> 2.4808 | AH72: =VLOOKUP(D72,美育!B$2:F$182,5,FALSE) -> 30.0000 | AI72: =VLOOKUP(D72,美育!B$2:E$182,4,FALSE) -> 0.0000 | AJ72: =AH72+AI72 -> 30.0000 | AK72: =AJ72*0.05 -> 1.5000 | AL72: =VLOOKUP(D72,劳育基础分!B$3:AF$182,31,FALSE) -> 44.0000 | AM72: 0.0000 | AN72: =AL72+AM72 -> 44.0000 | AO72: =AN72*0.05 -> 2.2000 | AP72: =S72+Y72+AG72+AK72+AO72 -> 64.9198 | AQ72: =VLOOKUP(D72,必修课优良率!A$1:B$173,2,FALSE) -> 71.43% | AR72: =VLOOKUP(D72,四级成绩!B$2:C$178,2,FALSE) -> 443 | AS72: =VLOOKUP(D72,必修课优良率!A$1:D$173,4,FALSE) -> 否
A73: 70 | B73: 62 | C73: 2024010589 | D73: 水源 | E73: =VLOOKUP(D73,美育!B$2:E$182,2,FALSE) -> 化工类24-5班 | F73: =VLOOKUP(D73,互评分!C$2:F$181,4,FALSE) -> 99.6667 | G73: =VLOOKUP(D73,辅导员加分!B$2:C$176,2,FALSE) -> 92.0000 | H73: =VLOOKUP(D73,互评分!C$2:F$181,3,FALSE) -> 100.0000 | I73: =VLOOKUP(D73,互评分!C$2:F$181,2,FALSE) -> 90.0000 | J73: =F73*0.2 -> 19.9333 | K73: =G73*0.5 -> 46.0000 | L73: =H73*0.2 -> 20.0000 | M73: =I73*0.1 -> 9.0000 | N73: =SUM(J73:M73)*0.7 -> 66.4533 | O73: =VLOOKUP(D73,学生干部加分!A$1:C$140,3,FALSE) -> 3.0000 | P73: 0.0000 | Q73: 0.0000 | R73: =N73+O73+P73-Q73 -> 69.4533 | S73: =R73*0.15 -> 10.4180 | T73: 79.6667 | U73: 91.0000 | V73: =IF(U73>0,T73*0.9+U73*0.1,T73) -> 80.8000 | W73: 0.0000 | X73: =V73*0.85+W73 -> 68.6800 | Y73: =0.7*X73 -> 48.0760 | Z73: =VLOOKUP(D73,体测成绩!B$2:C$273,2,FALSE) -> 65.8000 | AA73: =VLOOKUP(D73,体育锻炼成绩!A$2:B$182,2,FALSE) -> 100.00 | AB73: =0.8*Z73 -> 52.6400 | AC73: =AA73*0.2 -> 20.0000 | AD73: =SUM(AB73:AC73)*0.7 -> 50.8480 | AE73: =VLOOKUP(D73,体育加分汇总!A$1:C$79,3,FALSE) -> 2.0000 | AF73: =AD73+AE73 -> 52.8480 | AG73: =AF73*0.05 -> 2.6424 | AH73: =VLOOKUP(D73,美育!B$2:F$182,5,FALSE) -> 38.0000 | AI73: =VLOOKUP(D73,美育!B$2:E$182,4,FALSE) -> 0.0000 | AJ73: =AH73+AI73 -> 38.0000 | AK73: =AJ73*0.05 -> 1.9000 | AL73: =VLOOKUP(D73,劳育基础分!B$3:AF$182,31,FALSE) -> 37.0000 | AM73: 0.0000 | AN73: =AL73+AM73 -> 37.0000 | AO73: =AN73*0.05 -> 1.8500 | AP73: =S73+Y73+AG73+AK73+AO73 -> 64.8864 | AQ73: =VLOOKUP(D73,必修课优良率!A$1:B$173,2,FALSE) -> 71.43% | AR73: =VLOOKUP(D73,四级成绩!B$2:C$178,2,FALSE) -> 507 | AS73: =VLOOKUP(D73,必修课优良率!A$1:D$173,4,FALSE) -> 否
A74: 71 | B74: 60 | C74: 2024010499 | D74: 李耀初 | E74: =VLOOKUP(D74,美育!B$2:E$182,2,FALSE) -> 化工类24-2班 | F74: =VLOOKUP(D74,互评分!C$2:F$181,4,FALSE) -> 97.5714 | G74: =VLOOKUP(D74,辅导员加分!B$2:C$176,2,FALSE) -> 94.0000 | H74: =VLOOKUP(D74,互评分!C$2:F$181,3,FALSE) -> 100.0000 | I74: =VLOOKUP(D74,互评分!C$2:F$181,2,FALSE) -> 94.0000 | J74: =F74*0.2 -> 19.5143 | K74: =G74*0.5 -> 47.0000 | L74: =H74*0.2 -> 20.0000 | M74: =I74*0.1 -> 9.4000 | N74: =SUM(J74:M74)*0.7 -> 67.1400 | O74: =VLOOKUP(D74,学生干部加分!A$1:C$140,3,FALSE) -> 5.0000 | P74: 0.0000 | Q74: 0.0000 | R74: =N74+O74+P74-Q74 -> 72.1400 | S74: =R74*0.15 -> 10.8210 | T74: 79.9634 | U74: 0.0000 | V74: =IF(U74>0,T74*0.9+U74*0.1,T74) -> 79.9634 | W74: 0.0000 | X74: =V74*0.85+W74 -> 67.9689 | Y74: =0.7*X74 -> 47.5782 | Z74: =VLOOKUP(D74,体测成绩!B$2:C$273,2,FALSE) -> 75.4000 | AA74: =VLOOKUP(D74,体育锻炼成绩!A$2:B$182,2,FALSE) -> 100.00 | AB74: =0.8*Z74 -> 60.3200 | AC74: =AA74*0.2 -> 20.0000 | AD74: =SUM(AB74:AC74)*0.7 -> 56.2240 | AE74: =VLOOKUP(D74,体育加分汇总!A$1:C$79,3,FALSE) -> 27.0000 | AF74: =AD74+AE74 -> 83.2240 | AG74: =AF74*0.05 -> 4.1612 | AH74: =VLOOKUP(D74,美育!B$2:F$182,5,FALSE) -> 5.0000 | AI74: =VLOOKUP(D74,美育!B$2:E$182,4,FALSE) -> 0.0000 | AJ74: =AH74+AI74 -> 5.0000 | AK74: =AJ74*0.05 -> 0.2500 | AL74: =VLOOKUP(D74,劳育基础分!B$3:AF$182,31,FALSE) -> 40.0000 | AM74: 0.0000 | AN74: =AL74+AM74 -> 40.0000 | AO74: =AN74*0.05 -> 2.0000 | AP74: =S74+Y74+AG74+AK74+AO74 -> 64.8104 | AQ74: =VLOOKUP(D74,必修课优良率!A$1:B$173,2,FALSE) -> 57.14% | AR74: =VLOOKUP(D74,四级成绩!B$2:C$178,2,FALSE) -> 471 | AS74: =VLOOKUP(D74,必修课优良率!A$1:D$173,4,FALSE) -> 是
A75: 72 | B75: 49 | C75: 2024010609 | D75: 王晓娜 | E75: =VLOOKUP(D75,美育!B$2:E$182,2,FALSE) -> 化工类24-6班 | F75: =VLOOKUP(D75,互评分!C$2:F$181,4,FALSE) -> 98.8462 | G75: =VLOOKUP(D75,辅导员加分!B$2:C$176,2,FALSE) -> 92.0000 | H75: =VLOOKUP(D75,互评分!C$2:F$181,3,FALSE) -> 100.0000 | I75: =VLOOKUP(D75,互评分!C$2:F$181,2,FALSE) -> 100.0000 | J75: =F75*0.2 -> 19.7692 | K75: =G75*0.5 -> 46.0000 | L75: =H75*0.2 -> 20.0000 | M75: =I75*0.1 -> 10.0000 | N75: =SUM(J75:M75)*0.7 -> 67.0385 | O75: 0.0000 | P75: 0.0000 | Q75: 0.0000 | R75: =N75+O75+P75-Q75 -> 67.0385 | S75: =R75*0.15 -> 10.0558 | T75: 81.2658 | U75: 86.2000 | V75: =IF(U75>0,T75*0.9+U75*0.1,T75) -> 81.7592 | W75: 0.0000 | X75: =V75*0.85+W75 -> 69.4954 | Y75: =0.7*X75 -> 48.6467 | Z75: =VLOOKUP(D75,体测成绩!B$2:C$273,2,FALSE) -> 69.4000 | AA75: =VLOOKUP(D75,体育锻炼成绩!A$2:B$182,2,FALSE) -> 100.00 | AB75: =0.8*Z75 -> 55.5200 | AC75: =AA75*0.2 -> 20.0000 | AD75: =SUM(AB75:AC75)*0.7 -> 52.8640 | AE75: 0.0000 | AF75: =AD75+AE75 -> 52.8640 | AG75: =AF75*0.05 -> 2.6432 | AH75: =VLOOKUP(D75,美育!B$2:F$182,5,FALSE) -> 18.0000 | AI75: =VLOOKUP(D75,美育!B$2:E$182,4,FALSE) -> 0.0000 | AJ75: =AH75+AI75 -> 18.0000 | AK75: =AJ75*0.05 -> 0.9000 | AL75: =VLOOKUP(D75,劳育基础分!B$3:AF$182,31,FALSE) -> 40.0000 | AM75: =VLOOKUP(D75,劳育加分!A$3:I$34,9,FALSE) -> 4.0000 | AN75: =AL75+AM75 -> 44.0000 | AO75: =AN75*0.05 -> 2.2000 | AP75: =S75+Y75+AG75+AK75+AO75 -> 64.4457 | AQ75: 70.0000% | AR75: =VLOOKUP(D75,四级成绩!B$2:C$178,2,FALSE) -> 515 | AS75: 否
A76: 73 | B76: 63 | C76: 2024010601 | D76: 李毅恒 | E76: =VLOOKUP(D76,美育!B$2:E$182,2,FALSE) -> 化工类24-5班 | F76: =VLOOKUP(D76,互评分!C$2:F$181,4,FALSE) -> 99.6667 | G76: =VLOOKUP(D76,辅导员加分!B$2:C$176,2,FALSE) -> 92.0000 | H76: =VLOOKUP(D76,互评分!C$2:F$181,3,FALSE) -> 100.0000 | I76: =VLOOKUP(D76,互评分!C$2:F$181,2,FALSE) -> 88.0000 | J76: =F76*0.2 -> 19.9333 | K76: =G76*0.5 -> 46.0000 | L76: =H76*0.2 -> 20.0000 | M76: =I76*0.1 -> 8.8000 | N76: =SUM(J76:M76)*0.7 -> 66.3133 | O76: =VLOOKUP(D76,学生干部加分!A$1:C$140,3,FALSE) -> 4.0000 | P76: 0.0000 | Q76: 0.0000 | R76: =N76+O76+P76-Q76 -> 70.3133 | S76: =R76*0.15 -> 10.5470 | T76: 79.6585 | U76: 80.5000 | V76: =IF(U76>0,T76*0.9+U76*0.1,T76) -> 79.7427 | W76: 0.0000 | X76: =V76*0.85+W76 -> 67.7813 | Y76: =0.7*X76 -> 47.4469 | Z76: =VLOOKUP(D76,体测成绩!B$2:C$273,2,FALSE) -> 68.0000 | AA76: =VLOOKUP(D76,体育锻炼成绩!A$2:B$182,2,FALSE) -> 100.00 | AB76: =0.8*Z76 -> 54.4000 | AC76: =AA76*0.2 -> 20.0000 | AD76: =SUM(AB76:AC76)*0.7 -> 52.0800 | AE76: 0.0000 | AF76: =AD76+AE76 -> 52.0800 | AG76: =AF76*0.05 -> 2.6040 | AH76: =VLOOKUP(D76,美育!B$2:F$182,5,FALSE) -> 32.0000 | AI76: =VLOOKUP(D76,美育!B$2:E$182,4,FALSE) -> 0.0000 | AJ76: =AH76+AI76 -> 32.0000 | AK76: =AJ76*0.05 -> 1.6000 | AL76: =VLOOKUP(D76,劳育基础分!B$3:AF$182,31,FALSE) -> 44.0000 | AM76: 0.0000 | AN76: =AL76+AM76 -> 44.0000 | AO76: =AN76*0.05 -> 2.2000 | AP76: =S76+Y76+AG76+AK76+AO76 -> 64.3979 | AQ76: =VLOOKUP(D76,必修课优良率!A$1:B$173,2,FALSE) -> 76.19% | AR76: =VLOOKUP(D76,四级成绩!B$2:C$178,2,FALSE) -> 524 | AS76: =VLOOKUP(D76,必修课优良率!A$1:D$173,4,FALSE) -> 否
A77: 74 | B77: 131 | C77: 2024010522 | D77: 艾芯蕊 | E77: =VLOOKUP(D77,美育!B$2:E$182,2,FALSE) -> 化工类24-3班 | F77: =VLOOKUP(D77,互评分!C$2:F$181,4,FALSE) -> 99.1481 | G77: =VLOOKUP(D77,辅导员加分!B$2:C$176,2,FALSE) -> 92.0000 | H77: =VLOOKUP(D77,互评分!C$2:F$181,3,FALSE) -> 100.0000 | I77: =VLOOKUP(D77,互评分!C$2:F$181,2,FALSE) -> 99.0000 | J77: =F77*0.2 -> 19.8296 | K77: =G77*0.5 -> 46.0000 | L77: =H77*0.2 -> 20.0000 | M77: =I77*0.1 -> 9.9000 | N77: =SUM(J77:M77)*0.7 -> 67.0107 | O77: =VLOOKUP(D77,学生干部加分!A$1:C$140,3,FALSE) -> 5.0000 | P77: =VLOOKUP(D77,德育加分!C$2:K$30,9,FALSE) -> 8.0000 | Q77: 0.0000 | R77: =N77+O77+P77-Q77 -> 80.0107 | S77: =R77*0.15 -> 12.0016 | T77: 73.5595 | U77: 88.5000 | V77: =IF(U77>0,T77*0.9+U77*0.1,T77) -> 75.0536 | W77: 0.0000 | X77: =V77*0.85+W77 -> 63.7955 | Y77: =0.7*X77 -> 44.6569 | Z77: =VLOOKUP(D77,体测成绩!B$2:C$273,2,FALSE) -> 72.6000 | AA77: =VLOOKUP(D77,体育锻炼成绩!A$2:B$182,2,FALSE) -> 100.00 | AB77: =0.8*Z77 -> 58.0800 | AC77: =AA77*0.2 -> 20.0000 | AD77: =SUM(AB77:AC77)*0.7 -> 54.6560 | AE77: =VLOOKUP(D77,体育加分汇总!A$1:C$79,3,FALSE) -> 15.0000 | AF77: =AD77+AE77 -> 69.6560 | AG77: =AF77*0.05 -> 3.4828 | AH77: =VLOOKUP(D77,美育!B$2:F$182,5,FALSE) -> 45.0000 | AI77: =VLOOKUP(D77,美育!B$2:E$182,4,FALSE) -> 0.0000 | AJ77: =AH77+AI77 -> 45.0000 | AK77: =AJ77*0.05 -> 2.2500 | AL77: =VLOOKUP(D77,劳育基础分!B$3:AF$182,31,FALSE) -> 40.0000 | AM77: 0.0000 | AN77: =AL77+AM77 -> 40.0000 | AO77: =AN77*0.05 -> 2.0000 | AP77: =S77+Y77+AG77+AK77+AO77 -> 64.3913 | AQ77: =VLOOKUP(D77,必修课优良率!A$1:B$173,2,FALSE) -> 61.90% | AR77: =VLOOKUP(D77,四级成绩!B$2:C$178,2,FALSE) -> 540 | AS77: =VLOOKUP(D77,必修课优良率!A$1:D$173,4,FALSE) -> 是
A78: 75 | B78: 79 | C78: 2024010508 | D78: 谢文博 | E78: =VLOOKUP(D78,美育!B$2:E$182,2,FALSE) -> 化工类24-2班 | F78: =VLOOKUP(D78,互评分!C$2:F$181,4,FALSE) -> 98.1071 | G78: =VLOOKUP(D78,辅导员加分!B$2:C$176,2,FALSE) -> 94.0000 | H78: =VLOOKUP(D78,互评分!C$2:F$181,3,FALSE) -> 100.0000 | I78: =VLOOKUP(D78,互评分!C$2:F$181,2,FALSE) -> 97.0000 | J78: =F78*0.2 -> 19.6214 | K78: =G78*0.5 -> 47.0000 | L78: =H78*0.2 -> 20.0000 | M78: =I78*0.1 -> 9.7000 | N78: =SUM(J78:M78)*0.7 -> 67.4250 | O78: =VLOOKUP(D78,学生干部加分!A$1:C$140,3,FALSE) -> 6.0000 | P78: 0.0000 | Q78: 0.0000 | R78: =N78+O78+P78-Q78 -> 73.4250 | S78: =R78*0.15 -> 11.0138 | T78: 78.2927 | U78: 0.0000 | V78: =IF(U78>0,T78*0.9+U78*0.1,T78) -> 78.2927 | W78: 0.0000 | X78: =V78*0.85+W78 -> 66.5488 | Y78: =0.7*X78 -> 46.5841 | Z78: =VLOOKUP(D78,体测成绩!B$2:C$273,2,FALSE) -> 69.0000 | AA78: =VLOOKUP(D78,体育锻炼成绩!A$2:B$182,2,FALSE) -> 100.00 | AB78: =0.8*Z78 -> 55.2000 | AC78: =AA78*0.2 -> 20.0000 | AD78: =SUM(AB78:AC78)*0.7 -> 52.6400 | AE78: 0.0000 | AF78: =AD78+AE78 -> 52.6400 | AG78: =AF78*0.05 -> 2.6320 | AH78: =VLOOKUP(D78,美育!B$2:F$182,5,FALSE) -> 35.0000 | AI78: =VLOOKUP(D78,美育!B$2:E$182,4,FALSE) -> 0.0000 | AJ78: =AH78+AI78 -> 35.0000 | AK78: =AJ78*0.05 -> 1.7500 | AL78: =VLOOKUP(D78,劳育基础分!B$3:AF$182,31,FALSE) -> 44.0000 | AM78: =VLOOKUP(D78,劳育加分!A$3:I$34,9,FALSE) -> 4.0000 | AN78: =AL78+AM78 -> 48.0000 | AO78: =AN78*0.05 -> 2.4000 | AP78: =S78+Y78+AG78+AK78+AO78 -> 64.3799 | AQ78: =VLOOKUP(D78,必修课优良率!A$1:B$173,2,FALSE) -> 66.67% | AR78: =VLOOKUP(D78,四级成绩!B$2:C$178,2,FALSE) -> 449 | AS78: =VLOOKUP(D78,必修课优良率!A$1:D$173,4,FALSE) -> 否
A79: 76 | B79: 112 | C79: 2024010606 | D79: 王睦钧 | E79: =VLOOKUP(D79,美育!B$2:E$182,2,FALSE) -> 化工类24-5班 | F79: =VLOOKUP(D79,互评分!C$2:F$181,4,FALSE) -> 99.6296 | G79: =VLOOKUP(D79,辅导员加分!B$2:C$176,2,FALSE) -> 94.0000 | H79: =VLOOKUP(D79,互评分!C$2:F$181,3,FALSE) -> 100.0000 | I79: =VLOOKUP(D79,互评分!C$2:F$181,2,FALSE) -> 85.0000 | J79: =F79*0.2 -> 19.9259 | K79: =G79*0.5 -> 47.0000 | L79: =H79*0.2 -> 20.0000 | M79: =I79*0.1 -> 8.5000 | N79: =SUM(J79:M79)*0.7 -> 66.7981 | O79: =VLOOKUP(D79,学生干部加分!A$1:C$140,3,FALSE) -> 4.0000 | P79: 0.0000 | Q79: 0.0000 | R79: =N79+O79+P79-Q79 -> 70.7981 | S79: =R79*0.15 -> 10.6197 | T79: 74.9881 | U79: 0.0000 | V79: =IF(U79>0,T79*0.9+U79*0.1,T79) -> 74.9881 | W79: =VLOOKUP(D79,智育加分汇总!A$2:C$44,3,FALSE) -> 1.5000 | X79: =V79*0.85+W79 -> 65.2399 | Y79: =0.7*X79 -> 45.6679 | Z79: =VLOOKUP(D79,体测成绩!B$2:C$273,2,FALSE) -> 80.3000 | AA79: =VLOOKUP(D79,体育锻炼成绩!A$2:B$182,2,FALSE) -> 100.00 | AB79: =0.8*Z79 -> 64.2400 | AC79: =AA79*0.2 -> 20.0000 | AD79: =SUM(AB79:AC79)*0.7 -> 58.9680 | AE79: =VLOOKUP(D79,体育加分汇总!A$1:C$79,3,FALSE) -> 11.0000 | AF79: =AD79+AE79 -> 69.9680 | AG79: =AF79*0.05 -> 3.4984 | AH79: =VLOOKUP(D79,美育!B$2:F$182,5,FALSE) -> 43.0000 | AI79: =VLOOKUP(D79,美育!B$2:E$182,4,FALSE) -> 2.0000 | AJ79: =AH79+AI79 -> 45.0000 | AK79: =AJ79*0.05 -> 2.2500 | AL79: =VLOOKUP(D79,劳育基础分!B$3:AF$182,31,FALSE) -> 42.5000 | AM79: =VLOOKUP(D79,劳育加分!A$3:I$34,9,FALSE) -> 4.0000 | AN79: =AL79+AM79 -> 46.5000 | AO79: =AN79*0.05 -> 2.3250 | AP79: =S79+Y79+AG79+AK79+AO79 -> 64.3610 | AQ79: =VLOOKUP(D79,必修课优良率!A$1:B$173,2,FALSE) -> 57.14% | AR79: =VLOOKUP(D79,四级成绩!B$2:C$178,2,FALSE) -> 485 | AS79: =VLOOKUP(D79,必修课优良率!A$1:D$173,4,FALSE) -> 否
A80: 77 | B80: 72 | C80: 2024010632 | D80: 贾金鑫 | E80: =VLOOKUP(D80,美育!B$2:E$182,2,FALSE) -> 化工类24-6班 | F80: =VLOOKUP(D80,互评分!C$2:F$181,4,FALSE) -> 96.5385 | G80: =VLOOKUP(D80,辅导员加分!B$2:C$176,2,FALSE) -> 92.0000 | H80: =VLOOKUP(D80,互评分!C$2:F$181,3,FALSE) -> 100.0000 | I80: =VLOOKUP(D80,互评分!C$2:F$181,2,FALSE) -> 100.0000 | J80: =F80*0.2 -> 19.3077 | K80: =G80*0.5 -> 46.0000 | L80: =H80*0.2 -> 20.0000 | M80: =I80*0.1 -> 10.0000 | N80: =SUM(J80:M80)*0.7 -> 66.7154 | O80: =VLOOKUP(D80,学生干部加分!A$1:C$140,3,FALSE) -> 7.0000 | P80: 0.0000 | Q80: 0.0000 | R80: =N80+O80+P80-Q80 -> 73.7154 | S80: =R80*0.15 -> 11.0573 | T80: 78.9268 | U80: 0.0000 | V80: =IF(U80>0,T80*0.9+U80*0.1,T80) -> 78.9268 | W80: 0.0000 | X80: =V80*0.85+W80 -> 67.0878 | Y80: =0.7*X80 -> 46.9615 | Z80: =VLOOKUP(D80,体测成绩!B$2:C$273,2,FALSE) -> 73.9000 | AA80: =VLOOKUP(D80,体育锻炼成绩!A$2:B$182,2,FALSE) -> 100.0000 | AB80: =0.8*Z80 -> 59.1200 | AC80: =AA80*0.2 -> 20.0000 | AD80: =SUM(AB80:AC80)*0.7 -> 55.3840 | AE80: 0.0000 | AF80: =AD80+AE80 -> 55.3840 | AG80: =AF80*0.05 -> 2.7692 | AH80: =VLOOKUP(D80,美育!B$2:F$182,5,FALSE) -> 31.0000 | AI80: =VLOOKUP(D80,美育!B$2:E$182,4,FALSE) -> 0.0000 | AJ80: =AH80+AI80 -> 31.0000 | AK80: =AJ80*0.05 -> 1.5500 | AL80: =VLOOKUP(D80,劳育基础分!B$3:AF$182,31,FALSE) -> 39.5000 | AM80: 0.0000 | AN80: =AL80+AM80 -> 39.5000 | AO80: =AN80*0.05 -> 1.9750 | AP80: =S80+Y80+AG80+AK80+AO80 -> 64.3130 | AQ80: =VLOOKUP(D80,必修课优良率!A$1:B$173,2,FALSE) -> 71.43% | AR80: =VLOOKUP(D80,四级成绩!B$2:C$178,2,FALSE) -> 460 | AS80: =VLOOKUP(D80,必修课优良率!A$1:D$173,4,FALSE) -> 否
A81: 78 | B81: 66 | C81: 2024010469 | D81: 何俊希 | E81: =VLOOKUP(D81,美育!B$2:E$182,2,FALSE) -> 化工类24-1班 | F81: =VLOOKUP(D81,互评分!C$2:F$181,4,FALSE) -> 97.6667 | G81: =VLOOKUP(D81,辅导员加分!B$2:C$176,2,FALSE) -> 94.0000 | H81: =VLOOKUP(D81,互评分!C$2:F$181,3,FALSE) -> 99.1667 | I81: =VLOOKUP(D81,互评分!C$2:F$181,2,FALSE) -> 90.0000 | J81: =F81*0.2 -> 19.5333 | K81: =G81*0.5 -> 47.0000 | L81: =H81*0.2 -> 19.8333 | M81: =I81*0.1 -> 9.0000 | N81: =SUM(J81:M81)*0.7 -> 66.7567 | O81: =VLOOKUP(D81,学生干部加分!A$1:C$140,3,FALSE) -> 3.5000 | P81: 0.0000 | Q81: 0.0000 | R81: =N81+O81+P81-Q81 -> 70.2567 | S81: =R81*0.15 -> 10.5385 | T81: =VLOOKUP(D81,[2]必修课成绩!C$59:BO$82,65,FALSE) -> 79.5366 | U81: =VLOOKUP(D81,[2]选修课成绩!C$60:BI$83,59,FALSE) -> 84.2500 | V81: =IF(U81>0,T81*0.9+U81*0.1,T81) -> 80.0079 | W81: =VLOOKUP(D81,智育加分汇总!A$2:C$44,3,FALSE) -> 1.5000 | X81: =V81*0.85+W81 -> 69.5067 | Y81: =0.7*X81 -> 48.6547 | Z81: =VLOOKUP(D81,体测成绩!B$2:C$273,2,FALSE) -> 60.0000 | AA81: =VLOOKUP(D81,体育锻炼成绩!A$2:B$182,2,FALSE) -> 100.0000 | AB81: =0.8*Z81 -> 48.0000 | AC81: =AA81*0.2 -> 20.0000 | AD81: =SUM(AB81:AC81)*0.7 -> 47.6000 | AE81: 0.0000 | AF81: =AD81+AE81 -> 47.6000 | AG81: =AF81*0.05 -> 2.3800 | AH81: =VLOOKUP(D81,美育!B$2:F$182,5,FALSE) -> 0.0000 | AI81: =VLOOKUP(D81,美育!B$2:E$182,4,FALSE) -> 6.0000 | AJ81: =AH81+AI81 -> 6.0000 | AK81: =AJ81*0.05 -> 0.3000 | AL81: =VLOOKUP(D81,劳育基础分!B$3:AF$182,31,FALSE) -> 44.0000 | AM81: 0.0000 | AN81: =AL81+AM81 -> 44.0000 | AO81: =AN81*0.05 -> 2.2000 | AP81: =S81+Y81+AG81+AK81+AO81 -> 64.0732 | AQ81: =VLOOKUP(D81,必修课优良率!A$1:B$173,2,FALSE) -> 61.90% | AR81: =VLOOKUP(D81,四级成绩!B$2:C$178,2,FALSE) -> 489 | AS81: =VLOOKUP(D81,必修课优良率!A$1:D$173,4,FALSE) -> 否
A82: 79 | B82: 30 | C82: 2024010491 | D82: 田慧慧 | E82: =VLOOKUP(D82,美育!B$2:E$182,2,FALSE) -> 化工类24-2班 | F82: =VLOOKUP(D82,互评分!C$2:F$181,4,FALSE) -> 97.5714 | G82: =VLOOKUP(D82,辅导员加分!B$2:C$176,2,FALSE) -> 92.0000 | H82: =VLOOKUP(D82,互评分!C$2:F$181,3,FALSE) -> 99.1667 | I82: =VLOOKUP(D82,互评分!C$2:F$181,2,FALSE) -> 92.0000 | J82: =F82*0.2 -> 19.5143 | K82: =G82*0.5 -> 46.0000 | L82: =H82*0.2 -> 19.8333 | M82: =I82*0.1 -> 9.2000 | N82: =SUM(J82:M82)*0.7 -> 66.1833 | O82: 0.0000 | P82: 0.0000 | Q82: 0.0000 | R82: =N82+O82+P82-Q82 -> 66.1833 | S82: =R82*0.15 -> 9.9275 | T82: 83.8095 | U82: 0.0000 | V82: =IF(U82>0,T82*0.9+U82*0.1,T82) -> 83.8095 | W82: 0.0000 | X82: =V82*0.85+W82 -> 71.2381 | Y82: =0.7*X82 -> 49.8667 | Z82: =VLOOKUP(D82,体测成绩!B$2:C$273,2,FALSE) -> 81.0000 | AA82: =VLOOKUP(D82,体育锻炼成绩!A$2:B$182,2,FALSE) -> 0.00 | AB82: =0.8*Z82 -> 64.8000 | AC82: =AA82*0.2 -> 0.0000 | AD82: =SUM(AB82:AC82)*0.7 -> 45.3600 | AE82: 0.0000 | AF82: =AD82+AE82 -> 45.3600 | AG82: =AF82*0.05 -> 2.2680 | AH82: =VLOOKUP(D82,美育!B$2:F$182,5,FALSE) -> 0.0000 | AI82: =VLOOKUP(D82,美育!B$2:E$182,4,FALSE) -> 0.0000 | AJ82: =AH82+AI82 -> 0.0000 | AK82: =AJ82*0.05 -> 0.0000 | AL82: =VLOOKUP(D82,劳育基础分!B$3:AF$182,31,FALSE) -> 40.0000 | AM82: 0.0000 | AN82: =AL82+AM82 -> 40.0000 | AO82: =AN82*0.05 -> 2.0000 | AP82: =S82+Y82+AG82+AK82+AO82 -> 64.0622 | AQ82: =VLOOKUP(D82,必修课优良率!A$1:B$173,2,FALSE) -> 85.71% | AR82: =VLOOKUP(D82,四级成绩!B$2:C$178,2,FALSE) -> 647 | AS82: =VLOOKUP(D82,必修课优良率!A$1:D$173,4,FALSE) -> 否
A83: 80 | B83: 113 | C83: 2024010478 | D83: 杨州 | E83: =VLOOKUP(D83,美育!B$2:E$182,2,FALSE) -> 化工类24-1班 | F83: =VLOOKUP(D83,互评分!C$2:F$181,4,FALSE) -> 99.0741 | G83: =VLOOKUP(D83,辅导员加分!B$2:C$176,2,FALSE) -> 92.0000 | H83: =VLOOKUP(D83,互评分!C$2:F$181,3,FALSE) -> 100.0000 | I83: =VLOOKUP(D83,互评分!C$2:F$181,2,FALSE) -> 98.0000 | J83: =F83*0.2 -> 19.8148 | K83: =G83*0.5 -> 46.0000 | L83: =H83*0.2 -> 20.0000 | M83: =I83*0.1 -> 9.8000 | N83: =SUM(J83:M83)*0.7 -> 66.9304 | O83: =VLOOKUP(D83,学生干部加分!A$1:C$140,3,FALSE) -> 7.2500 | P83: 0.0000 | Q83: 0.0000 | R83: =N83+O83+P83-Q83 -> 74.1804 | S83: =R83*0.15 -> 11.1271 | T83: 74.9512 | U83: 84.3333 | V83: =IF(U83>0,T83*0.9+U83*0.1,T83) -> 75.8894 | W83: 0.0000 | X83: =V83*0.85+W83 -> 64.5060 | Y83: =0.7*X83 -> 45.1542 | Z83: =VLOOKUP(D83,体测成绩!B$2:C$273,2,FALSE) -> 67.6000 | AA83: =VLOOKUP(D83,体育锻炼成绩!A$2:B$182,2,FALSE) -> 100.00 | AB83: =0.8*Z83 -> 54.0800 | AC83: =AA83*0.2 -> 20.0000 | AD83: =SUM(AB83:AC83)*0.7 -> 51.8560 | AE83: =VLOOKUP(D83,体育加分汇总!A$1:C$79,3,FALSE) -> 9.0000 | AF83: =AD83+AE83 -> 60.8560 | AG83: =AF83*0.05 -> 3.0428 | AH83: =VLOOKUP(D83,美育!B$2:F$182,5,FALSE) -> 60.0000 | AI83: =VLOOKUP(D83,美育!B$2:E$182,4,FALSE) -> 0.0000 | AJ83: =AH83+AI83 -> 60.0000 | AK83: =AJ83*0.05 -> 3.0000 | AL83: =VLOOKUP(D83,劳育基础分!B$3:AF$182,31,FALSE) -> 29.0000 | AM83: 0.0000 | AN83: =AL83+AM83 -> 29.0000 | AO83: =AN83*0.05 -> 1.4500 | AP83: =S83+Y83+AG83+AK83+AO83 -> 63.7741 | AQ83: =VLOOKUP(D83,必修课优良率!A$1:B$173,2,FALSE) -> 52.38% | AR83: =VLOOKUP(D83,四级成绩!B$2:C$178,2,FALSE) -> 439 | AS83: =VLOOKUP(D83,必修课优良率!A$1:D$173,4,FALSE) -> 是
A84: 81 | B84: 59 | C84: 2024010597 | D84: 潘兴顺 | E84: =VLOOKUP(D84,美育!B$2:E$182,2,FALSE) -> 化工类24-5班 | F84: =VLOOKUP(D84,互评分!C$2:F$181,4,FALSE) -> 99.7037 | G84: =VLOOKUP(D84,辅导员加分!B$2:C$176,2,FALSE) -> 90.0000 | H84: =VLOOKUP(D84,互评分!C$2:F$181,3,FALSE) -> 100.0000 | I84: =VLOOKUP(D84,互评分!C$2:F$181,2,FALSE) -> 90.0000 | J84: =F84*0.2 -> 19.9407 | K84: =G84*0.5 -> 45.0000 | L84: =H84*0.2 -> 20.0000 | M84: =I84*0.1 -> 9.0000 | N84: =SUM(J84:M84)*0.7 -> 65.7585 | O84: 0.0000 | P84: 0.0000 | Q84: 0.0000 | R84: =N84+O84+P84-Q84 -> 65.7585 | S84: =R84*0.15 -> 9.8638 | T84: 79.9737 | U84: 89.1600 | V84: =IF(U84>0,T84*0.9+U84*0.1,T84) -> 80.8923 | W84: 0.0000 | X84: =V84*0.85+W84 -> 68.7585 | Y84: =0.7*X84 -> 48.1309 | Z84: =VLOOKUP(D84,体测成绩!B$2:C$273,2,FALSE) -> 73.7000 | AA84: =VLOOKUP(D84,体育锻炼成绩!A$2:B$182,2,FALSE) -> 100.00 | AB84: =0.8*Z84 -> 58.9600 | AC84: =AA84*0.2 -> 20.0000 | AD84: =SUM(AB84:AC84)*0.7 -> 55.2720 | AE84: 0.0000 | AF84: =AD84+AE84 -> 55.2720 | AG84: =AF84*0.05 -> 2.7636 | AH84: =VLOOKUP(D84,美育!B$2:F$182,5,FALSE) -> 20.0000 | AI84: =VLOOKUP(D84,美育!B$2:E$182,4,FALSE) -> 0.0000 | AJ84: =AH84+AI84 -> 20.0000 | AK84: =AJ84*0.05 -> 1.0000 | AL84: =VLOOKUP(D84,劳育基础分!B$3:AF$182,31,FALSE) -> 40.0000 | AM84: 0.0000 | AN84: =AL84+AM84 -> 40.0000 | AO84: =AN84*0.05 -> 2.0000 | AP84: =S84+Y84+AG84+AK84+AO84 -> 63.7583 | AQ84: =VLOOKUP(D84,必修课优良率!A$1:B$173,2,FALSE) -> 84.21% | AR84: =VLOOKUP(D84,四级成绩!B$2:C$178,2,FALSE) -> 0 | AS84: =VLOOKUP(D84,必修课优良率!A$1:D$173,4,FALSE) -> 否
A85: 82 | B85: 32 | C85: 2024010537 | D85: 龚贝 | E85: =VLOOKUP(D85,美育!B$2:E$182,2,FALSE) -> 化工类24-3班 | F85: =VLOOKUP(D85,互评分!C$2:F$181,4,FALSE) -> 99.1481 | G85: =VLOOKUP(D85,辅导员加分!B$2:C$176,2,FALSE) -> 92.0000 | H85: =VLOOKUP(D85,互评分!C$2:F$181,3,FALSE) -> 100.0000 | I85: =VLOOKUP(D85,互评分!C$2:F$181,2,FALSE) -> 99.0000 | J85: =F85*0.2 -> 19.8296 | K85: =G85*0.5 -> 46.0000 | L85: =H85*0.2 -> 20.0000 | M85: =I85*0.1 -> 9.9000 | N85: =SUM(J85:M85)*0.7 -> 67.0107 | O85: 0.0000 | P85: 0.0000 | Q85: 0.0000 | R85: =N85+O85+P85-Q85 -> 67.0107 | S85: =R85*0.15 -> 10.0516 | T85: 83.2976 | U85: 73.0000 | V85: =IF(U85>0,T85*0.9+U85*0.1,T85) -> 82.2679 | W85: 0.0000 | X85: =V85*0.85+W85 -> 69.9277 | Y85: =0.7*X85 -> 48.9494 | Z85: =VLOOKUP(D85,体测成绩!B$2:C$273,2,FALSE) -> 69.5000 | AA85: =VLOOKUP(D85,体育锻炼成绩!A$2:B$182,2,FALSE) -> 100.00 | AB85: =0.8*Z85 -> 55.6000 | AC85: =AA85*0.2 -> 20.0000 | AD85: =SUM(AB85:AC85)*0.7 -> 52.9200 | AE85: 0.0000 | AF85: =AD85+AE85 -> 52.9200 | AG85: =AF85*0.05 -> 2.6460 | AH85: =VLOOKUP(D85,美育!B$2:F$182,5,FALSE) -> 5.0000 | AI85: =VLOOKUP(D85,美育!B$2:E$182,4,FALSE) -> 0.0000 | AJ85: =AH85+AI85 -> 5.0000 | AK85: =AJ85*0.05 -> 0.2500 | AL85: =VLOOKUP(D85,劳育基础分!B$3:AF$182,31,FALSE) -> 37.0000 | AM85: 0.0000 | AN85: =AL85+AM85 -> 37.0000 | AO85: =AN85*0.05 -> 1.8500 | AP85: =S85+Y85+AG85+AK85+AO85 -> 63.7470 | AQ85: =VLOOKUP(D85,必修课优良率!A$1:B$173,2,FALSE) -> 66.67% | AR85: =VLOOKUP(D85,四级成绩!B$2:C$178,2,FALSE) -> 442 | AS85: =VLOOKUP(D85,必修课优良率!A$1:D$173,4,FALSE) -> 是
A86: 83 | B86: 82 | C86: 2024010494 | D86: 姜明明 | E86: =VLOOKUP(D86,美育!B$2:E$182,2,FALSE) -> 化工类24-2班 | F86: =VLOOKUP(D86,互评分!C$2:F$181,4,FALSE) -> 97.4643 | G86: =VLOOKUP(D86,辅导员加分!B$2:C$176,2,FALSE) -> 92.0000 | H86: =VLOOKUP(D86,互评分!C$2:F$181,3,FALSE) -> 98.4000 | I86: =VLOOKUP(D86,互评分!C$2:F$181,2,FALSE) -> 96.0000 | J86: =F86*0.2 -> 19.4929 | K86: =G86*0.5 -> 46.0000 | L86: =H86*0.2 -> 19.6800 | M86: =I86*0.1 -> 9.6000 | N86: =SUM(J86:M86)*0.7 -> 66.3410 | O86: =VLOOKUP(D86,学生干部加分!A$1:C$140,3,FALSE) -> 8.0000 | P86: 0.0000 | Q86: 0.0000 | R86: =N86+O86+P86-Q86 -> 74.3410 | S86: =R86*0.15 -> 11.1512 | T86: =VLOOKUP(D86,[2]必修课成绩!C$59:BO$82,65,FALSE) -> 77.9634 | U86: =VLOOKUP(D86,[2]选修课成绩!C$60:BI$83,59,FALSE) -> 90.0000 | V86: =IF(U86>0,T86*0.9+U86*0.1,T86) -> 79.1671 | W86: 0.0000 | X86: =V86*0.85+W86 -> 67.2920 | Y86: =0.7*X86 -> 47.1044 | Z86: =VLOOKUP(D86,体测成绩!B$2:C$273,2,FALSE) -> 60.0000 | AA86: =VLOOKUP(D86,体育锻炼成绩!A$2:B$182,2,FALSE) -> 100.00 | AB86: =0.8*Z86 -> 48.0000 | AC86: =AA86*0.2 -> 20.0000 | AD86: =SUM(AB86:AC86)*0.7 -> 47.6000 | AE86: 0.0000 | AF86: =AD86+AE86 -> 47.6000 | AG86: =AF86*0.05 -> 2.3800 | AH86: =VLOOKUP(D86,美育!B$2:F$182,5,FALSE) -> 20.0000 | AI86: =VLOOKUP(D86,美育!B$2:E$182,4,FALSE) -> 0.0000 | AJ86: =AH86+AI86 -> 20.0000 | AK86: =AJ86*0.05 -> 1.0000 | AL86: =VLOOKUP(D86,劳育基础分!B$3:AF$182,31,FALSE) -> 42.0000 | AM86: 0.0000 | AN86: =AL86+AM86 -> 42.0000 | AO86: =AN86*0.05 -> 2.1000 | AP86: =S86+Y86+AG86+AK86+AO86 -> 63.7356 | AQ86: =VLOOKUP(D86,必修课优良率!A$1:B$173,2,FALSE) -> 57.14% | AR86: =VLOOKUP(D86,四级成绩!B$2:C$178,2,FALSE) -> 539 | AS86: =VLOOKUP(D86,必修课优良率!A$1:D$173,4,FALSE) -> 否
A87: 84 | B87: 61 | C87: 2024010468 | D87: 王诚毅 | E87: =VLOOKUP(D87,美育!B$2:E$182,2,FALSE) -> 化工类24-1班 | F87: =VLOOKUP(D87,互评分!C$2:F$181,4,FALSE) -> 98.7407 | G87: =VLOOKUP(D87,辅导员加分!B$2:C$176,2,FALSE) -> 92.0000 | H87: =VLOOKUP(D87,互评分!C$2:F$181,3,FALSE) -> 100.0000 | I87: =VLOOKUP(D87,互评分!C$2:F$181,2,FALSE) -> 97.0000 | J87: =F87*0.2 -> 19.7481 | K87: =G87*0.5 -> 46.0000 | L87: =H87*0.2 -> 20.0000 | M87: =I87*0.1 -> 9.7000 | N87: =SUM(J87:M87)*0.7 -> 66.8137 | O87: =VLOOKUP(D87,学生干部加分!A$1:C$140,3,FALSE) -> 6.0000 | P87: 0.0000 | Q87: 0.0000 | R87: =N87+O87+P87-Q87 -> 72.8137 | S87: =R87*0.15 -> 10.9221 | T87: 79.7439 | U87: 86.1818 | V87: =IF(U87>0,T87*0.9+U87*0.1,T87) -> 80.3877 | W87: 0.0000 | X87: =V87*0.85+W87 -> 68.3295 | Y87: =0.7*X87 -> 47.8307 | Z87: =VLOOKUP(D87,体测成绩!B$2:C$273,2,FALSE) -> 64.5000 | AA87: =VLOOKUP(D87,体育锻炼成绩!A$2:B$182,2,FALSE) -> 100.00 | AB87: =0.8*Z87 -> 51.6000 | AC87: =AA87*0.2 -> 20.0000 | AD87: =SUM(AB87:AC87)*0.7 -> 50.1200 | AE87: =VLOOKUP(D87,体育加分汇总!A$1:C$79,3,FALSE) -> 6.0000 | AF87: =AD87+AE87 -> 56.1200 | AG87: =AF87*0.05 -> 2.8060 | AH87: =VLOOKUP(D87,美育!B$2:F$182,5,FALSE) -> 8.0000 | AI87: =VLOOKUP(D87,美育!B$2:E$182,4,FALSE) -> 0.0000 | AJ87: =AH87+AI87 -> 8.0000 | AK87: =AJ87*0.05 -> 0.4000 | AL87: =VLOOKUP(D87,劳育基础分!B$3:AF$182,31,FALSE) -> 34.0000 | AM87: 0.0000 | AN87: =AL87+AM87 -> 34.0000 | AO87: =AN87*0.05 -> 1.7000 | AP87: =S87+Y87+AG87+AK87+AO87 -> 63.6587 | AQ87: =VLOOKUP(D87,必修课优良率!A$1:B$173,2,FALSE) -> 57.14% | AR87: =VLOOKUP(D87,四级成绩!B$2:C$178,2,FALSE) -> 524 | AS87: =VLOOKUP(D87,必修课优良率!A$1:D$173,4,FALSE) -> 否
A88: 85 | B88: 123 | C88: 2024010495 | D88: 韩子路 | E88: =VLOOKUP(D88,美育!B$2:E$182,2,FALSE) -> 化工类24-2班 | F88: =VLOOKUP(D88,互评分!C$2:F$181,4,FALSE) -> 97.4286 | G88: =VLOOKUP(D88,辅导员加分!B$2:C$176,2,FALSE) -> 94.0000 | H88: =VLOOKUP(D88,互评分!C$2:F$181,3,FALSE) -> 99.0000 | I88: =VLOOKUP(D88,互评分!C$2:F$181,2,FALSE) -> 90.0000 | J88: =F88*0.2 -> 19.4857 | K88: =G88*0.5 -> 47.0000 | L88: =H88*0.2 -> 19.8000 | M88: =I88*0.1 -> 9.0000 | N88: =SUM(J88:M88)*0.7 -> 66.7000 | O88: =VLOOKUP(D88,学生干部加分!A$1:C$140,3,FALSE) -> 6.0000 | P88: 0.0000 | Q88: 0.0000 | R88: =N88+O88+P88-Q88 -> 72.7000 | S88: =R88*0.15 -> 10.9050 | T88: 74.3049 | U88: 90.7500 | V88: =IF(U88>0,T88*0.9+U88*0.1,T88) -> 75.9494 | W88: 0.0000 | X88: =V88*0.85+W88 -> 64.5570 | Y88: =0.7*X88 -> 45.1899 | Z88: =VLOOKUP(D88,体测成绩!B$2:C$273,2,FALSE) -> 66.2000 | AA88: =VLOOKUP(D88,体育锻炼成绩!A$2:B$182,2,FALSE) -> 100.0000 | AB88: =0.8*Z88 -> 52.9600 | AC88: =AA88*0.2 -> 20.0000 | AD88: =SUM(AB88:AC88)*0.7 -> 51.0720 | AE88: =VLOOKUP(D88,体育加分汇总!A$1:C$79,3,FALSE) -> 0.0000 | AF88: =AD88+AE88 -> 51.0720 | AG88: =AF88*0.05 -> 2.5536 | AH88: =VLOOKUP(D88,美育!B$2:F$182,5,FALSE) -> 55.0000 | AI88: =VLOOKUP(D88,美育!B$2:E$182,4,FALSE) -> 0.0000 | AJ88: =AH88+AI88 -> 55.0000 | AK88: =AJ88*0.05 -> 2.7500 | AL88: =VLOOKUP(D88,劳育基础分!B$3:AF$182,31,FALSE) -> 40.0000 | AM88: =VLOOKUP(D88,劳育加分!A$3:I$34,9,FALSE) -> 4.0000 | AN88: =AL88+AM88 -> 44.0000 | AO88: =AN88*0.05 -> 2.2000 | AP88: =S88+Y88+AG88+AK88+AO88 -> 63.5985 | AQ88: =VLOOKUP(D88,必修课优良率!A$1:B$173,2,FALSE) -> 52.38% | AR88: =VLOOKUP(D88,四级成绩!B$2:C$178,2,FALSE) -> 505 | AS88: =VLOOKUP(D88,必修课优良率!A$1:D$173,4,FALSE) -> 是
A89: 86 | B89: 128 | C89: 2024010487 | D89: 杨悦 | E89: =VLOOKUP(D89,美育!B$2:E$182,2,FALSE) -> 化工类24-2班 | F89: =VLOOKUP(D89,互评分!C$2:F$181,4,FALSE) -> 96.8929 | G89: =VLOOKUP(D89,辅导员加分!B$2:C$176,2,FALSE) -> 92.0000 | H89: =VLOOKUP(D89,互评分!C$2:F$181,3,FALSE) -> 98.3333 | I89: =VLOOKUP(D89,互评分!C$2:F$181,2,FALSE) -> 90.0000 | J89: =F89*0.2 -> 19.3786 | K89: =G89*0.5 -> 46.0000 | L89: =H89*0.2 -> 19.6667 | M89: =I89*0.1 -> 9.0000 | N89: =SUM(J89:M89)*0.7 -> 65.8317 | O89: =VLOOKUP(D89,学生干部加分!A$1:C$140,3,FALSE) -> 4.0000 | P89: 0.0000 | Q89: 0.0000 | R89: =N89+O89+P89-Q89 -> 69.8317 | S89: =R89*0.15 -> 10.4748 | T89: 73.7619 | U89: 90.0000 | V89: =IF(U89>0,T89*0.9+U89*0.1,T89) -> 75.3857 | W89: 0.0000 | X89: =V89*0.85+W89 -> 64.0779 | Y89: =0.7*X89 -> 44.8545 | Z89: =VLOOKUP(D89,体测成绩!B$2:C$273,2,FALSE) -> 76.7000 | AA89: =VLOOKUP(D89,体育锻炼成绩!A$2:B$182,2,FALSE) -> 100.00 | AB89: =0.8*Z89 -> 61.3600 | AC89: =AA89*0.2 -> 20.0000 | AD89: =SUM(AB89:AC89)*0.7 -> 56.9520 | AE89: =VLOOKUP(D89,体育加分汇总!A$1:C$79,3,FALSE) -> 8.0000 | AF89: =AD89+AE89 -> 64.9520 | AG89: =AF89*0.05 -> 3.2476 | AH89: =VLOOKUP(D89,美育!B$2:F$182,5,FALSE) -> 55.0000 | AI89: =VLOOKUP(D89,美育!B$2:E$182,4,FALSE) -> 0.0000 | AJ89: =AH89+AI89 -> 55.0000 | AK89: =AJ89*0.05 -> 2.7500 | AL89: =VLOOKUP(D89,劳育基础分!B$3:AF$182,31,FALSE) -> 40.0000 | AM89: =VLOOKUP(D89,劳育加分!A$3:I$34,9,FALSE) -> 4.0000 | AN89: =AL89+AM89 -> 44.0000 | AO89: =AN89*0.05 -> 2.2000 | AP89: =S89+Y89+AG89+AK89+AO89 -> 63.5269 | AQ89: =VLOOKUP(D89,必修课优良率!A$1:B$173,2,FALSE) -> 47.62% | AR89: =VLOOKUP(D89,四级成绩!B$2:C$178,2,FALSE) -> 454 | AS89: =VLOOKUP(D89,必修课优良率!A$1:D$173,4,FALSE) -> 是
A90: 87 | B90: 92 | C90: 2024010600 | D90: 王思远 | E90: =VLOOKUP(D90,美育!B$2:E$182,2,FALSE) -> 化工类24-5班 | F90: =VLOOKUP(D90,互评分!C$2:F$181,4,FALSE) -> 99.2593 | G90: =VLOOKUP(D90,辅导员加分!B$2:C$176,2,FALSE) -> 94.0000 | H90: =VLOOKUP(D90,互评分!C$2:F$181,3,FALSE) -> 100.0000 | I90: =VLOOKUP(D90,互评分!C$2:F$181,2,FALSE) -> 90.0000 | J90: =F90*0.2 -> 19.8519 | K90: =G90*0.5 -> 47.0000 | L90: =H90*0.2 -> 20.0000 | M90: =I90*0.1 -> 9.0000 | N90: =SUM(J90:M90)*0.7 -> 67.0963 | O90: =VLOOKUP(D90,学生干部加分!A$1:C$140,3,FALSE) -> 3.0000 | P90: 0.0000 | Q90: 0.0000 | R90: =N90+O90+P90-Q90 -> 70.0963 | S90: =R90*0.15 -> 10.5144 | T90: 76.9620 | U90: 83.2727 | V90: =IF(U90>0,T90*0.9+U90*0.1,T90) -> 77.5931 | W90: 0.0000 | X90: =V90*0.85+W90 -> 65.9541 | Y90: =0.7*X90 -> 46.1679 | Z90: =VLOOKUP(D90,体测成绩!B$2:C$273,2,FALSE) -> 72.4000 | AA90: =VLOOKUP(D90,体育锻炼成绩!A$2:B$182,2,FALSE) -> 100.00 | AB90: =0.8*Z90 -> 57.9200 | AC90: =AA90*0.2 -> 20.0000 | AD90: =SUM(AB90:AC90)*0.7 -> 54.5440 | AE90: =VLOOKUP(D90,体育加分汇总!A$1:C$79,3,FALSE) -> 13.0000 | AF90: =AD90+AE90 -> 67.5440 | AG90: =AF90*0.05 -> 3.3772 | AH90: =VLOOKUP(D90,美育!B$2:F$182,5,FALSE) -> 18.0000 | AI90: =VLOOKUP(D90,美育!B$2:E$182,4,FALSE) -> 0.0000 | AJ90: =AH90+AI90 -> 18.0000 | AK90: =AJ90*0.05 -> 0.9000 | AL90: =VLOOKUP(D90,劳育基础分!B$3:AF$182,31,FALSE) -> 46.5000 | AM90: =VLOOKUP(D90,劳育加分!A$3:I$34,9,FALSE) -> 2.0000 | AN90: =AL90+AM90 -> 48.5000 | AO90: =AN90*0.05 -> 2.4250 | AP90: =S90+Y90+AG90+AK90+AO90 -> 63.3845 | AQ90: 65.0000% | AR90: =VLOOKUP(D90,四级成绩!B$2:C$178,2,FALSE) -> 478 | AS90: 否
A91: 88 | B91: 81 | C91: 2024010631 | D91: 宋梦博 | E91: =VLOOKUP(D91,美育!B$2:E$182,2,FALSE) -> 化工类24-6班 | F91: =VLOOKUP(D91,互评分!C$2:F$181,4,FALSE) -> 96.5385 | G91: =VLOOKUP(D91,辅导员加分!B$2:C$176,2,FALSE) -> 92.0000 | H91: =VLOOKUP(D91,互评分!C$2:F$181,3,FALSE) -> 100.0000 | I91: =VLOOKUP(D91,互评分!C$2:F$181,2,FALSE) -> 100.0000 | J91: =F91*0.2 -> 19.3077 | K91: =G91*0.5 -> 46.0000 | L91: =H91*0.2 -> 20.0000 | M91: =I91*0.1 -> 10.0000 | N91: =SUM(J91:M91)*0.7 -> 66.7154 | O91: =VLOOKUP(D91,学生干部加分!A$1:C$140,3,FALSE) -> 5.0000 | P91: 0.0000 | Q91: 0.0000 | R91: =N91+O91+P91-Q91 -> 71.7154 | S91: =R91*0.15 -> 10.7573 | T91: 77.9756 | U91: 0.0000 | V91: =IF(U91>0,T91*0.9+U91*0.1,T91) -> 77.9756 | W91: 0.0000 | X91: =V91*0.85+W91 -> 66.2793 | Y91: =0.7*X91 -> 46.3955 | Z91: =VLOOKUP(D91,体测成绩!B$2:C$273,2,FALSE) -> 83.2000 | AA91: =VLOOKUP(D91,体育锻炼成绩!A$2:B$182,2,FALSE) -> 100.00 | AB91: =0.8*Z91 -> 66.5600 | AC91: =AA91*0.2 -> 20.0000 | AD91: =SUM(AB91:AC91)*0.7 -> 60.5920 | AE91: 0.0000 | AF91: =AD91+AE91 -> 60.5920 | AG91: =AF91*0.05 -> 3.0296 | AH91: =VLOOKUP(D91,美育!B$2:F$182,5,FALSE) -> 30.0000 | AI91: =VLOOKUP(D91,美育!B$2:E$182,4,FALSE) -> 0.0000 | AJ91: =AH91+AI91 -> 30.0000 | AK91: =AJ91*0.05 -> 1.5000 | AL91: =VLOOKUP(D91,劳育基础分!B$3:AF$182,31,FALSE) -> 34.0000 | AM91: 0.0000 | AN91: =AL91+AM91 -> 34.0000 | AO91: =AN91*0.05 -> 1.7000 | AP91: =S91+Y91+AG91+AK91+AO91 -> 63.3824 | AQ91: =VLOOKUP(D91,必修课优良率!A$1:B$173,2,FALSE) -> 57.14% | AR91: =VLOOKUP(D91,四级成绩!B$2:C$178,2,FALSE) -> 433 | AS91: =VLOOKUP(D91,必修课优良率!A$1:D$173,4,FALSE) -> 否
A92: 89 | B92: 68 | C92: 2024010544 | D92: 陈永利 | E92: =VLOOKUP(D92,美育!B$2:E$182,2,FALSE) -> 化工类24-3班 | F92: =VLOOKUP(D92,互评分!C$2:F$181,4,FALSE) -> 98.8214 | G92: =VLOOKUP(D92,辅导员加分!B$2:C$176,2,FALSE) -> 90.0000 | H92: =VLOOKUP(D92,互评分!C$2:F$181,3,FALSE) -> 100.0000 | I92: =VLOOKUP(D92,互评分!C$2:F$181,2,FALSE) -> 99.0000 | J92: =F92*0.2 -> 19.7643 | K92: =G92*0.5 -> 45.0000 | L92: =H92*0.2 -> 20.0000 | M92: =I92*0.1 -> 9.9000 | N92: =SUM(J92:M92)*0.7 -> 66.2650 | O92: =VLOOKUP(D92,学生干部加分!A$1:C$140,3,FALSE) -> 3.5000 | P92: 0.0000 | Q92: 0.0000 | R92: =N92+O92+P92-Q92 -> 69.7650 | S92: =R92*0.15 -> 10.4648 | T92: =VLOOKUP(D92,[1]必修课成绩!C$71:AE$100,29,FALSE) -> 79.3375 | U92: =VLOOKUP(D92,[1]选修课成绩!C$72:AC$101,27,FALSE) -> 0.0000 | V92: =IF(U92>0,T92*0.9+U92*0.1,T92) -> 79.3375 | W92: 0.0000 | X92: =V92*0.85+W92 -> 67.4369 | Y92: =0.7*X92 -> 47.2058 | Z92: =VLOOKUP(D92,体测成绩!B$2:C$273,2,FALSE) -> 68.8000 | AA92: =VLOOKUP(D92,体育锻炼成绩!A$2:B$182,2,FALSE) -> 100.00 | AB92: =0.8*Z92 -> 55.0400 | AC92: =AA92*0.2 -> 20.0000 | AD92: =SUM(AB92:AC92)*0.7 -> 52.5280 | AE92: =VLOOKUP(D92,体育加分汇总!A$1:C$79,3,FALSE) -> 4.0000 | AF92: =AD92+AE92 -> 56.5280 | AG92: =AF92*0.05 -> 2.8264 | AH92: =VLOOKUP(D92,美育!B$2:F$182,5,FALSE) -> 28.0000 | AI92: =VLOOKUP(D92,美育!B$2:E$182,4,FALSE) -> 0.0000 | AJ92: =AH92+AI92 -> 28.0000 | AK92: =AJ92*0.05 -> 1.4000 | AL92: =VLOOKUP(D92,劳育基础分!B$3:AF$182,31,FALSE) -> 29.0000 | AM92: 0.0000 | AN92: =AL92+AM92 -> 29.0000 | AO92: =AN92*0.05 -> 1.4500 | AP92: =S92+Y92+AG92+AK92+AO92 -> 63.3470 | AQ92: =VLOOKUP(D92,必修课优良率!A$1:B$173,2,FALSE) -> 76.19% | AR92: =VLOOKUP(D92,四级成绩!B$2:C$178,2,FALSE) -> 509 | AS92: =VLOOKUP(D92,必修课优良率!A$1:D$173,4,FALSE) -> 否
A93: 90 | B93: 53 | C93: 2024010470 | D93: 陈韵轩 | E93: =VLOOKUP(D93,美育!B$2:E$182,2,FALSE) -> 化工类24-1班 | F93: =VLOOKUP(D93,互评分!C$2:F$181,4,FALSE) -> 97.6667 | G93: =VLOOKUP(D93,辅导员加分!B$2:C$176,2,FALSE) -> 92.0000 | H93: =VLOOKUP(D93,互评分!C$2:F$181,3,FALSE) -> 99.1667 | I93: =VLOOKUP(D93,互评分!C$2:F$181,2,FALSE) -> 80.0000 | J93: =F93*0.2 -> 19.5333 | K93: =G93*0.5 -> 46.0000 | L93: =H93*0.2 -> 19.8333 | M93: =I93*0.1 -> 8.0000 | N93: =SUM(J93:M93)*0.7 -> 65.3567 | O93: =VLOOKUP(D93,学生干部加分!A$1:C$140,3,FALSE) -> 4.0000 | P93: 0.0000 | Q93: 0.0000 | R93: =N93+O93+P93-Q93 -> 69.3567 | S93: =R93*0.15 -> 10.4035 | T93: 80.9747 | U93: 0.0000 | V93: =IF(U93>0,T93*0.9+U93*0.1,T93) -> 80.9747 | W93: 0.0000 | X93: =V93*0.85+W93 -> 68.8285 | Y93: =0.7*X93 -> 48.1799 | Z93: =VLOOKUP(D93,体测成绩!B$2:C$273,2,FALSE) -> 55.6000 | AA93: =VLOOKUP(D93,体育锻炼成绩!A$2:B$182,2,FALSE) -> 100.0000 | AB93: =0.8*Z93 -> 44.4800 | AC93: =AA93*0.2 -> 20.0000 | AD93: =SUM(AB93:AC93)*0.7 -> 45.1360 | AE93: 0.0000 | AF93: =AD93+AE93 -> 45.1360 | AG93: =AF93*0.05 -> 2.2568 | AH93: =VLOOKUP(D93,美育!B$2:F$182,5,FALSE) -> 10.0000 | AI93: =VLOOKUP(D93,美育!B$2:E$182,4,FALSE) -> 0.0000 | AJ93: =AH93+AI93 -> 10.0000 | AK93: =AJ93*0.05 -> 0.5000 | AL93: =VLOOKUP(D93,劳育基础分!B$3:AF$182,31,FALSE) -> 40.0000 | AM93: 0.0000 | AN93: =AL93+AM93 -> 40.0000 | AO93: =AN93*0.05 -> 2.0000 | AP93: =S93+Y93+AG93+AK93+AO93 -> 63.3402 | AQ93: 65.0000% | AR93: 0 | AS93: 否
A94: 91 | B94: 42 | C94: 2024010472 | D94: 赵延奇 | E94: =VLOOKUP(D94,美育!B$2:E$182,2,FALSE) -> 化工类24-1班 | F94: =VLOOKUP(D94,互评分!C$2:F$181,4,FALSE) -> 98.4074 | G94: =VLOOKUP(D94,辅导员加分!B$2:C$176,2,FALSE) -> 90.0000 | H94: =VLOOKUP(D94,互评分!C$2:F$181,3,FALSE) -> 100.0000 | I94: =VLOOKUP(D94,互评分!C$2:F$181,2,FALSE) -> 99.0000 | J94: =F94*0.2 -> 19.6815 | K94: =G94*0.5 -> 45.0000 | L94: =H94*0.2 -> 20.0000 | M94: =I94*0.1 -> 9.9000 | N94: =SUM(J94:M94)*0.7 -> 66.2070 | O94: 0.0000 | P94: 0.0000 | Q94: 0.0000 | R94: =N94+O94+P94-Q94 -> 66.2070 | S94: =R94*0.15 -> 9.9311 | T94: 82.1486 | U94: 89.6667 | V94: =IF(U94>0,T94*0.9+U94*0.1,T94) -> 82.9005 | W94: 0.0000 | X94: =V94*0.85+W94 -> 70.4654 | Y94: =0.7*X94 -> 49.3258 | Z94: =VLOOKUP(D94,体测成绩!B$2:C$273,2,FALSE) -> 56.5000 | AA94: =VLOOKUP(D94,体育锻炼成绩!A$2:B$182,2,FALSE) -> 100.00 | AB94: =0.8*Z94 -> 45.2000 | AC94: =AA94*0.2 -> 20.0000 | AD94: =SUM(AB94:AC94)*0.7 -> 45.6400 | AE94: 0.0000 | AF94: =AD94+AE94 -> 45.6400 | AG94: =AF94*0.05 -> 2.2820 | AH94: =VLOOKUP(D94,美育!B$2:F$182,5,FALSE) -> 0.0000 | AI94: =VLOOKUP(D94,美育!B$2:E$182,4,FALSE) -> 0.0000 | AJ94: =AH94+AI94 -> 0.0000 | AK94: =AJ94*0.05 -> 0.0000 | AL94: =VLOOKUP(D94,劳育基础分!B$3:AF$182,31,FALSE) -> 36.0000 | AM94: 0.0000 | AN94: =AL94+AM94 -> 36.0000 | AO94: =AN94*0.05 -> 1.8000 | AP94: =S94+Y94+AG94+AK94+AO94 -> 63.3388 | AQ94: =VLOOKUP(D94,必修课优良率!A$1:B$173,2,FALSE) -> 47.37% | AS94: =VLOOKUP(D94,必修课优良率!A$1:D$173,4,FALSE) -> 否
A95: 92 | B95: 129 | C95: 2024010539 | D95: 赵毅轩 | E95: =VLOOKUP(D95,美育!B$2:E$182,2,FALSE) -> 化工类24-3班 | F95: =VLOOKUP(D95,互评分!C$2:F$181,4,FALSE) -> 98.7500 | G95: =VLOOKUP(D95,辅导员加分!B$2:C$176,2,FALSE) -> 92.0000 | H95: =VLOOKUP(D95,互评分!C$2:F$181,3,FALSE) -> 100.0000 | I95: =VLOOKUP(D95,互评分!C$2:F$181,2,FALSE) -> 99.0000 | J95: =F95*0.2 -> 19.7500 | K95: =G95*0.5 -> 46.0000 | L95: =H95*0.2 -> 20.0000 | M95: =I95*0.1 -> 9.9000 | N95: =SUM(J95:M95)*0.7 -> 66.9550 | O95: =VLOOKUP(D95,学生干部加分!A$1:C$140,3,FALSE) -> 6.0000 | P95: 0.0000 | Q95: 0.0000 | R95: =N95+O95+P95-Q95 -> 72.9550 | S95: =R95*0.15 -> 10.9433 | T95: 73.5833 | U95: 88.7333 | V95: =IF(U95>0,T95*0.9+U95*0.1,T95) -> 75.0983 | W95: =VLOOKUP(D95,智育加分汇总!A$2:C$44,3,FALSE) -> 5.0000 | X95: =V95*0.85+W95 -> 68.8336 | Y95: =0.7*X95 -> 48.1835 | Z95: =VLOOKUP(D95,体测成绩!B$2:C$273,2,FALSE) -> 67.3000 | AA95: =VLOOKUP(D95,体育锻炼成绩!A$2:B$182,2,FALSE) -> 100.00 | AB95: =0.8*Z95 -> 53.8400 | AC95: =AA95*0.2 -> 20.0000 | AD95: =SUM(AB95:AC95)*0.7 -> 51.6880 | AE95: 0.0000 | AF95: =AD95+AE95 -> 51.6880 | AG95: =AF95*0.05 -> 2.5844 | AH95: =VLOOKUP(D95,美育!B$2:F$182,5,FALSE) -> 5.0000 | AI95: =VLOOKUP(D95,美育!B$2:E$182,4,FALSE) -> 0.0000 | AJ95: =AH95+AI95 -> 5.0000 | AK95: =AJ95*0.05 -> 0.2500 | AL95: =VLOOKUP(D95,劳育基础分!B$3:AF$182,31,FALSE) -> 25.5000 | AM95: 0.0000 | AN95: =AL95+AM95 -> 25.5000 | AO95: =AN95*0.05 -> 1.2750 | AP95: =S95+Y95+AG95+AK95+AO95 -> 63.2362 | AQ95: =VLOOKUP(D95,必修课优良率!A$1:B$173,2,FALSE) -> 52.38% | AR95: =VLOOKUP(D95,四级成绩!B$2:C$178,2,FALSE) -> 611 | AS95: =VLOOKUP(D95,必修课优良率!A$1:D$173,4,FALSE) -> 否
A96: 93 | B96: 65 | C96: 2024010633 | D96: 陈朕 | E96: =VLOOKUP(D96,美育!B$2:E$182,2,FALSE) -> 化工类24-6班 | F96: =VLOOKUP(D96,互评分!C$2:F$181,4,FALSE) -> 98.4615 | G96: =VLOOKUP(D96,辅导员加分!B$2:C$176,2,FALSE) -> 92.0000 | H96: =VLOOKUP(D96,互评分!C$2:F$181,3,FALSE) -> 100.0000 | I96: =VLOOKUP(D96,互评分!C$2:F$181,2,FALSE) -> 100.0000 | J96: =F96*0.2 -> 19.6923 | K96: =G96*0.5 -> 46.0000 | L96: =H96*0.2 -> 20.0000 | M96: =I96*0.1 -> 10.0000 | N96: =SUM(J96:M96)*0.7 -> 66.9846 | O96: 0.0000 | P96: 0.0000 | Q96: 0.0000 | R96: =N96+O96+P96-Q96 -> 66.9846 | S96: =R96*0.15 -> 10.0477 | T96: 79.5488 | U96: 0.0000 | V96: =IF(U96>0,T96*0.9+U96*0.1,T96) -> 79.5488 | W96: 0.0000 | X96: =V96*0.85+W96 -> 67.6165 | Y96: =0.7*X96 -> 47.3315 | Z96: =VLOOKUP(D96,体测成绩!B$2:C$273,2,FALSE) -> 65.7000 | AA96: =VLOOKUP(D96,体育锻炼成绩!A$2:B$182,2,FALSE) -> 100.00 | AB96: =0.8*Z96 -> 52.5600 | AC96: =AA96*0.2 -> 20.0000 | AD96: =SUM(AB96:AC96)*0.7 -> 50.7920 | AE96: 0.0000 | AF96: =AD96+AE96 -> 50.7920 | AG96: =AF96*0.05 -> 2.5396 | AH96: =VLOOKUP(D96,美育!B$2:F$182,5,FALSE) -> 18.0000 | AI96: =VLOOKUP(D96,美育!B$2:E$182,4,FALSE) -> 0.0000 | AJ96: =AH96+AI96 -> 18.0000 | AK96: =AJ96*0.05 -> 0.9000 | AL96: =VLOOKUP(D96,劳育基础分!B$3:AF$182,31,FALSE) -> 46.5000 | AM96: 0.0000 | AN96: =AL96+AM96 -> 46.5000 | AO96: =AN96*0.05 -> 2.3250 | AP96: =S96+Y96+AG96+AK96+AO96 -> 63.1438 | AQ96: =VLOOKUP(D96,必修课优良率!A$1:B$173,2,FALSE) -> 57.14% | AR96: =VLOOKUP(D96,四级成绩!B$2:C$178,2,FALSE) -> 456 | AS96: =VLOOKUP(D96,必修课优良率!A$1:D$173,4,FALSE) -> 否
A97: 94 | B97: 80 | C97: 2024010543 | D97: 张家诚 | E97: =VLOOKUP(D97,美育!B$2:E$182,2,FALSE) -> 化工类24-3班 | F97: =VLOOKUP(D97,互评分!C$2:F$181,4,FALSE) -> 98.8929 | G97: =VLOOKUP(D97,辅导员加分!B$2:C$176,2,FALSE) -> 92.0000 | H97: =VLOOKUP(D97,互评分!C$2:F$181,3,FALSE) -> 100.0000 | I97: =VLOOKUP(D97,互评分!C$2:F$181,2,FALSE) -> 99.0000 | J97: =F97*0.2 -> 19.7786 | K97: =G97*0.5 -> 46.0000 | L97: =H97*0.2 -> 20.0000 | M97: =I97*0.1 -> 9.9000 | N97: =SUM(J97:M97)*0.7 -> 66.9750 | O97: =VLOOKUP(D97,学生干部加分!A$1:C$140,3,FALSE) -> 6.0000 | P97: 0.0000 | Q97: 0.0000 | R97: =N97+O97+P97-Q97 -> 72.9750 | S97: =R97*0.15 -> 10.9463 | T97: =VLOOKUP(D97,[1]必修课成绩!C$71:AE$100,29,FALSE) -> 78.2658 | U97: =VLOOKUP(D97,[1]选修课成绩!C$72:AC$101,27,FALSE) -> 0.0000 | V97: =IF(U97>0,T97*0.9+U97*0.1,T97) -> 78.2658 | W97: 0.0000 | X97: =V97*0.85+W97 -> 66.5259 | Y97: =0.7*X97 -> 46.5682 | Z97: =VLOOKUP(D97,体测成绩!B$2:C$273,2,FALSE) -> 71.0000 | AA97: =VLOOKUP(D97,体育锻炼成绩!A$2:B$182,2,FALSE) -> 100.00 | AB97: =0.8*Z97 -> 56.8000 | AC97: =AA97*0.2 -> 20.0000 | AD97: =SUM(AB97:AC97)*0.7 -> 53.7600 | AE97: =VLOOKUP(D97,体育加分汇总!A$1:C$79,3,FALSE) -> 4.0000 | AF97: =AD97+AE97 -> 57.7600 | AG97: =AF97*0.05 -> 2.8880 | AH97: =VLOOKUP(D97,美育!B$2:F$182,5,FALSE) -> 18.0000 | AI97: =VLOOKUP(D97,美育!B$2:E$182,4,FALSE) -> 0.0000 | AJ97: =AH97+AI97 -> 18.0000 | AK97: =AJ97*0.05 -> 0.9000 | AL97: =VLOOKUP(D97,劳育基础分!B$3:AF$182,31,FALSE) -> 32.0000 | AM97: 0.0000 | AN97: =AL97+AM97 -> 32.0000 | AO97: =AN97*0.05 -> 1.6000 | AP97: =S97+Y97+AG97+AK97+AO97 -> 62.9024 | AQ97: =VLOOKUP(D97,必修课优良率!A$1:B$173,2,FALSE) -> 47.62% | AR97: =VLOOKUP(D97,四级成绩!B$2:C$178,2,FALSE) -> 499 | AS97: =VLOOKUP(D97,必修课优良率!A$1:D$173,4,FALSE) -> 否
A98: 95 | B98: 84 | C98: 2024010503 | D98: 孙立夫 | E98: =VLOOKUP(D98,美育!B$2:E$182,2,FALSE) -> 化工类24-2班 | F98: =VLOOKUP(D98,互评分!C$2:F$181,4,FALSE) -> 97.4643 | G98: =VLOOKUP(D98,辅导员加分!B$2:C$176,2,FALSE) -> 90.0000 | H98: =VLOOKUP(D98,互评分!C$2:F$181,3,FALSE) -> 100.0000 | I98: =VLOOKUP(D98,互评分!C$2:F$181,2,FALSE) -> 91.0000 | J98: =F98*0.2 -> 19.4929 | K98: =G98*0.5 -> 45.0000 | L98: =H98*0.2 -> 20.0000 | M98: =I98*0.1 -> 9.1000 | N98: =SUM(J98:M98)*0.7 -> 65.5150 | O98: 0.0000 | P98: =VLOOKUP(D98,德育加分!C$2:K$30,9,FALSE) -> 5.0000 | Q98: 0.0000 | R98: =N98+O98+P98-Q98 -> 70.5150 | S98: =R98*0.15 -> 10.5773 | T98: 77.5854 | U98: 0.0000 | V98: =IF(U98>0,T98*0.9+U98*0.1,T98) -> 77.5854 | W98: 0.0000 | X98: =V98*0.85+W98 -> 65.9476 | Y98: =0.7*X98 -> 46.1633 | Z98: =VLOOKUP(D98,体测成绩!B$2:C$273,2,FALSE) -> 52.6000 | AA98: =VLOOKUP(D98,体育锻炼成绩!A$2:B$182,2,FALSE) -> 100.00 | AB98: =0.8*Z98 -> 42.0800 | AC98: =AA98*0.2 -> 20.0000 | AD98: =SUM(AB98:AC98)*0.7 -> 43.4560 | AE98: 0.0000 | AF98: =AD98+AE98 -> 43.4560 | AG98: =AF98*0.05 -> 2.1728 | AH98: =VLOOKUP(D98,美育!B$2:F$182,5,FALSE) -> 35.0000 | AI98: =VLOOKUP(D98,美育!B$2:E$182,4,FALSE) -> 0.0000 | AJ98: =AH98+AI98 -> 35.0000 | AK98: =AJ98*0.05 -> 1.7500 | AL98: =VLOOKUP(D98,劳育基础分!B$3:AF$182,31,FALSE) -> 44.0000 | AM98: 0.0000 | AN98: =AL98+AM98 -> 44.0000 | AO98: =AN98*0.05 -> 2.2000 | AP98: =S98+Y98+AG98+AK98+AO98 -> 62.8633 | AQ98: =VLOOKUP(D98,必修课优良率!A$1:B$173,2,FALSE) -> 57.14% | AR98: =VLOOKUP(D98,四级成绩!B$2:C$178,2,FALSE) -> 417 | AS98: =VLOOKUP(D98,必修课优良率!A$1:D$173,4,FALSE) -> 否
A99: 96 | B99: 102 | C99: 2024010500 | D99: 黄大原 | E99: =VLOOKUP(D99,美育!B$2:E$182,2,FALSE) -> 化工类24-2班 | F99: =VLOOKUP(D99,互评分!C$2:F$181,4,FALSE) -> 97.0000 | G99: =VLOOKUP(D99,辅导员加分!B$2:C$176,2,FALSE) -> 92.0000 | H99: =VLOOKUP(D99,互评分!C$2:F$181,3,FALSE) -> 98.3333 | I99: =VLOOKUP(D99,互评分!C$2:F$181,2,FALSE) -> 96.0000 | J99: =F99*0.2 -> 19.4000 | K99: =G99*0.5 -> 46.0000 | L99: =H99*0.2 -> 19.6667 | M99: =I99*0.1 -> 9.6000 | N99: =SUM(J99:M99)*0.7 -> 66.2667 | O99: =VLOOKUP(D99,学生干部加分!A$1:C$140,3,FALSE) -> 7.7500 | P99: 0.0000 | Q99: 0.0000 | R99: =N99+O99+P99-Q99 -> 74.0167 | S99: =R99*0.15 -> 11.1025 | T99: 75.6905 | U99: 60.0000 | V99: =IF(U99>0,T99*0.9+U99*0.1,T99) -> 74.1214 | W99: =VLOOKUP(D99,智育加分汇总!A$2:C$44,3,FALSE) -> 1.5000 | X99: =V99*0.85+W99 -> 64.5032 | Y99: =0.7*X99 -> 45.1523 | Z99: =VLOOKUP(D99,体测成绩!B$2:C$273,2,FALSE) -> 67.4000 | AA99: =VLOOKUP(D99,体育锻炼成绩!A$2:B$182,2,FALSE) -> 100.00 | AB99: =0.8*Z99 -> 53.9200 | AC99: =AA99*0.2 -> 20.0000 | AD99: =SUM(AB99:AC99)*0.7 -> 51.7440 | AE99: =VLOOKUP(D99,体育加分汇总!A$1:C$79,3,FALSE) -> 0.0000 | AF99: =AD99+AE99 -> 51.7440 | AG99: =AF99*0.05 -> 2.5872 | AH99: =VLOOKUP(D99,美育!B$2:F$182,5,FALSE) -> 40.0000 | AI99: =VLOOKUP(D99,美育!B$2:E$182,4,FALSE) -> 0.0000 | AJ99: =AH99+AI99 -> 40.0000 | AK99: =AJ99*0.05 -> 2.0000 | AL99: =VLOOKUP(D99,劳育基础分!B$3:AF$182,31,FALSE) -> 40.0000 | AM99: 0.0000 | AN99: =AL99+AM99 -> 40.0000 | AO99: =AN99*0.05 -> 2.0000 | AP99: =S99+Y99+AG99+AK99+AO99 -> 62.8420 | AQ99: =VLOOKUP(D99,必修课优良率!A$1:B$173,2,FALSE) -> 57.14% | AR99: =VLOOKUP(D99,四级成绩!B$2:C$178,2,FALSE) -> 497 | AS99: =VLOOKUP(D99,必修课优良率!A$1:D$173,4,FALSE) -> 否
A100: 97 | B100: 133 | C100: 2024010517 | D100: 洪瑞 | E100: =VLOOKUP(D100,美育!B$2:E$182,2,FALSE) -> 化工类24-3班 | F100: =VLOOKUP(D100,互评分!C$2:F$181,4,FALSE) -> 99.0741 | G100: =VLOOKUP(D100,辅导员加分!B$2:C$176,2,FALSE) -> 92.0000 | H100: =VLOOKUP(D100,互评分!C$2:F$181,3,FALSE) -> 100.0000 | I100: =VLOOKUP(D100,互评分!C$2:F$181,2,FALSE) -> 99.0000 | J100: =F100*0.2 -> 19.8148 | K100: =G100*0.5 -> 46.0000 | L100: =H100*0.2 -> 20.0000 | M100: =I100*0.1 -> 9.9000 | N100: =SUM(J100:M100)*0.7 -> 67.0004 | O100: =VLOOKUP(D100,学生干部加分!A$1:C$140,3,FALSE) -> 2.5000 | P100: 0.0000 | Q100: 0.0000 | R100: =N100+O100+P100-Q100 -> 69.5004 | S100: =R100*0.15 -> 10.4251 | T100: =VLOOKUP(D100,[1]必修课成绩!C$71:AE$100,29,FALSE) -> 73.5250 | U100: =VLOOKUP(D100,[1]选修课成绩!C$72:AC$101,27,FALSE) -> 88.0000 | V100: =IF(U100>0,T100*0.9+U100*0.1,T100) -> 74.9725 | W100: 0.0000 | X100: =V100*0.85+W100 -> 63.7266 | Y100: =0.7*X100 -> 44.6086 | Z100: =VLOOKUP(D100,体测成绩!B$2:C$273,2,FALSE) -> 80.7000 | AA100: =VLOOKUP(D100,体育锻炼成绩!A$2:B$182,2,FALSE) -> 100.00 | AB100: =0.8*Z100 -> 64.5600 | AC100: =AA100*0.2 -> 20.0000 | AD100: =SUM(AB100:AC100)*0.7 -> 59.1920 | AE100: =VLOOKUP(D100,体育加分汇总!A$1:C$79,3,FALSE) -> 17.0000 | AF100: =AD100+AE100 -> 76.1920 | AG100: =AF100*0.05 -> 3.8096 | AH100: =VLOOKUP(D100,美育!B$2:F$182,5,FALSE) -> 43.0000 | AI100: =VLOOKUP(D100,美育!B$2:E$182,4,FALSE) -> 0.0000 | AJ100: =AH100+AI100 -> 43.0000 | AK100: =AJ100*0.05 -> 2.1500 | AL100: =VLOOKUP(D100,劳育基础分!B$3:AF$182,31,FALSE) -> 30.0000 | AM100: =VLOOKUP(D100,劳育加分!A$3:I$34,9,FALSE) -> 4.0000 | AN100: =AL100+AM100 -> 34.0000 | AO100: =AN100*0.05 -> 1.7000 | AP100: =S100+Y100+AG100+AK100+AO100 -> 62.6933 | AQ100: =VLOOKUP(D100,必修课优良率!A$1:B$173,2,FALSE) -> 47.62% | AR100: =VLOOKUP(D100,四级成绩!B$2:C$178,2,FALSE) -> 476 | AS100: =VLOOKUP(D100,必修课优良率!A$1:D$173,4,FALSE) -> 否
A101: 98 | B101: 121 | C101: 2024010524 | D101: 吕秋桦 | E101: =VLOOKUP(D101,美育!B$2:E$182,2,FALSE) -> 化工类24-3班 | F101: =VLOOKUP(D101,互评分!C$2:F$181,4,FALSE) -> 98.6429 | G101: =VLOOKUP(D101,辅导员加分!B$2:C$176,2,FALSE) -> 92.0000 | H101: =VLOOKUP(D101,互评分!C$2:F$181,3,FALSE) -> 100.0000 | I101: =VLOOKUP(D101,互评分!C$2:F$181,2,FALSE) -> 99.0000 | J101: =F101*0.2 -> 19.7286 | K101: =G101*0.5 -> 46.0000 | L101: =H101*0.2 -> 20.0000 | M101: =I101*0.1 -> 9.9000 | N101: =SUM(J101:M101)*0.7 -> 66.9400 | O101: =VLOOKUP(D101,学生干部加分!A$1:C$140,3,FALSE) -> 4.0000 | P101: 0.0000 | Q101: 0.0000 | R101: =N101+O101+P101-Q101 -> 70.9400 | S101: =R101*0.15 -> 10.6410 | T101: 74.4048 | U101: 90.0000 | V101: =IF(U101>0,T101*0.9+U101*0.1,T101) -> 75.9643 | W101: 0.0000 | X101: =V101*0.85+W101 -> 64.5696 | Y101: =0.7*X101 -> 45.1988 | Z101: =VLOOKUP(D101,体测成绩!B$2:C$273,2,FALSE) -> 36.6000 | AA101: 100.0000 | AB101: =0.8*Z101 -> 29.2800 | AC101: =AA101*0.2 -> 20.0000 | AD101: =SUM(AB101:AC101)*0.7 -> 34.4960 | AE101: =VLOOKUP(D101,体育加分汇总!A$1:C$79,3,FALSE) -> 0.0000 | AF101: =AD101+AE101 -> 34.4960 | AG101: =AF101*0.05 -> 1.7248 | AH101: =VLOOKUP(D101,美育!B$2:F$182,5,FALSE) -> 70.0000 | AI101: =VLOOKUP(D101,美育!B$2:E$182,4,FALSE) -> 0.0000 | AJ101: =AH101+AI101 -> 70.0000 | AK101: =AJ101*0.05 -> 3.5000 | AL101: =VLOOKUP(D101,劳育基础分!B$3:AF$182,31,FALSE) -> 31.0000 | AM101: 0.0000 | AN101: =AL101+AM101 -> 31.0000 | AO101: =AN101*0.05 -> 1.5500 | AP101: =S101+Y101+AG101+AK101+AO101 -> 62.6146 | AQ101: =VLOOKUP(D101,必修课优良率!A$1:B$173,2,FALSE) -> 52.38% | AR101: =VLOOKUP(D101,四级成绩!B$2:C$178,2,FALSE) -> 409 | AS101: =VLOOKUP(D101,必修课优良率!A$1:D$173,4,FALSE) -> 是
A102: 99 | B102: 90 | C102: 2024010604 | D102: 刘俊超 | E102: =VLOOKUP(D102,美育!B$2:E$182,2,FALSE) -> 化工类24-5班 | F102: =VLOOKUP(D102,互评分!C$2:F$181,4,FALSE) -> 99.6296 | G102: =VLOOKUP(D102,辅导员加分!B$2:C$176,2,FALSE) -> 92.0000 | H102: =VLOOKUP(D102,互评分!C$2:F$181,3,FALSE) -> 100.0000 | I102: =VLOOKUP(D102,互评分!C$2:F$181,2,FALSE) -> 88.0000 | J102: =F102*0.2 -> 19.9259 | K102: =G102*0.5 -> 46.0000 | L102: =H102*0.2 -> 20.0000 | M102: =I102*0.1 -> 8.8000 | N102: =SUM(J102:M102)*0.7 -> 66.3081 | O102: =VLOOKUP(D102,学生干部加分!A$1:C$140,3,FALSE) -> 6.0000 | P102: 0.0000 | Q102: 0.0000 | R102: =N102+O102+P102-Q102 -> 72.3081 | S102: =R102*0.15 -> 10.8462 | T102: 77.1026 | U102: 94.5000 | V102: =IF(U102>0,T102*0.9+U102*0.1,T102) -> 78.8423 | W102: 0.0000 | X102: =V102*0.85+W102 -> 67.0160 | Y102: =0.7*X102 -> 46.9112 | Z102: =VLOOKUP(D102,体测成绩!B$2:C$273,2,FALSE) -> 60.0000 | AA102: =VLOOKUP(D102,体育锻炼成绩!A$2:B$182,2,FALSE) -> 100.00 | AB102: =0.8*Z102 -> 48.0000 | AC102: =AA102*0.2 -> 20.0000 | AD102: =SUM(AB102:AC102)*0.7 -> 47.6000 | AE102: 0.0000 | AF102: =AD102+AE102 -> 47.6000 | AG102: =AF102*0.05 -> 2.3800 | AH102: =VLOOKUP(D102,美育!B$2:F$182,5,FALSE) -> 5.0000 | AI102: =VLOOKUP(D102,美育!B$2:E$182,4,FALSE) -> 0.0000 | AJ102: =AH102+AI102 -> 5.0000 | AK102: =AJ102*0.05 -> 0.2500 | AL102: =VLOOKUP(D102,劳育基础分!B$3:AF$182,31,FALSE) -> 42.5000 | AM102: 0.0000 | AN102: =AL102+AM102 -> 42.5000 | AO102: =AN102*0.05 -> 2.1250 | AP102: =S102+Y102+AG102+AK102+AO102 -> 62.5124 | AQ102: =VLOOKUP(D102,必修课优良率!A$1:B$173,2,FALSE) -> 47.37% | AR102: =VLOOKUP(D102,四级成绩!B$2:C$178,2,FALSE) -> 510 | AS102: =VLOOKUP(D102,必修课优良率!A$1:D$173,4,FALSE) -> 否
A103: 100 | B103: 122 | C103: 2024010594 | D103: 王志龙 | E103: =VLOOKUP(D103,美育!B$2:E$182,2,FALSE) -> 化工类24-5班 | F103: =VLOOKUP(D103,互评分!C$2:F$181,4,FALSE) -> 99.6296 | G103: =VLOOKUP(D103,辅导员加分!B$2:C$176,2,FALSE) -> 90.0000 | H103: =VLOOKUP(D103,互评分!C$2:F$181,3,FALSE) -> 100.0000 | I103: =VLOOKUP(D103,互评分!C$2:F$181,2,FALSE) -> 85.0000 | J103: =F103*0.2 -> 19.9259 | K103: =G103*0.5 -> 45.0000 | L103: =H103*0.2 -> 20.0000 | M103: =I103*0.1 -> 8.5000 | N103: =SUM(J103:M103)*0.7 -> 65.3981 | O103: =VLOOKUP(D103,学生干部加分!A$1:C$140,3,FALSE) -> 2.0000 | P103: 0.0000 | Q103: 0.0000 | R103: =N103+O103+P103-Q103 -> 67.3981 | S103: =R103*0.15 -> 10.1097 | T103: 74.3902 | U103: 83.3333 | V103: =IF(U103>0,T103*0.9+U103*0.1,T103) -> 75.2846 | W103: 0.0000 | X103: =V103*0.85+W103 -> 63.9919 | Y103: =0.7*X103 -> 44.7943 | Z103: =VLOOKUP(D103,体测成绩!B$2:C$273,2,FALSE) -> 70.0000 | AA103: =VLOOKUP(D103,体育锻炼成绩!A$2:B$182,2,FALSE) -> 100.0000 | AB103: =0.8*Z103 -> 56.0000 | AC103: =AA103*0.2 -> 20.0000 | AD103: =SUM(AB103:AC103)*0.7 -> 53.2000 | AE103: 0.0000 | AF103: =AD103+AE103 -> 53.2000 | AG103: =AF103*0.05 -> 2.6600 | AH103: =VLOOKUP(D103,美育!B$2:F$182,5,FALSE) -> 53.0000 | AI103: =VLOOKUP(D103,美育!B$2:E$182,4,FALSE) -> 0.0000 | AJ103: =AH103+AI103 -> 53.0000 | AK103: =AJ103*0.05 -> 2.6500 | AL103: =VLOOKUP(D103,劳育基础分!B$3:AF$182,31,FALSE) -> 40.0000 | AM103: =VLOOKUP(D103,劳育加分!A$3:I$34,9,FALSE) -> 4.0000 | AN103: =AL103+AM103 -> 44.0000 | AO103: =AN103*0.05 -> 2.2000 | AP103: =S103+Y103+AG103+AK103+AO103 -> 62.4140 | AQ103: =VLOOKUP(D103,必修课优良率!A$1:B$173,2,FALSE) -> 47.62% | AR103: =VLOOKUP(D103,四级成绩!B$2:C$178,2,FALSE) -> 495 | AS103: =VLOOKUP(D103,必修课优良率!A$1:D$173,4,FALSE) -> 是
A104: 101 | B104: 70 | C104: 2024010504 | D104: 陈启骏 | E104: =VLOOKUP(D104,美育!B$2:E$182,2,FALSE) -> 化工类24-2班 | F104: =VLOOKUP(D104,互评分!C$2:F$181,4,FALSE) -> 96.8571 | G104: =VLOOKUP(D104,辅导员加分!B$2:C$176,2,FALSE) -> 92.0000 | H104: =VLOOKUP(D104,互评分!C$2:F$181,3,FALSE) -> 99.1667 | I104: =VLOOKUP(D104,互评分!C$2:F$181,2,FALSE) -> 89.0000 | J104: =F104*0.2 -> 19.3714 | K104: =G104*0.5 -> 46.0000 | L104: =H104*0.2 -> 19.8333 | M104: =I104*0.1 -> 8.9000 | N104: =SUM(J104:M104)*0.7 -> 65.8733 | O104: 0.0000 | P104: 0.0000 | Q104: 0.0000 | R104: =N104+O104+P104-Q104 -> 65.8733 | S104: =R104*0.15 -> 9.8810 | T104: 78.9881 | U104: 0.0000 | V104: =IF(U104>0,T104*0.9+U104*0.1,T104) -> 78.9881 | W104: 0.0000 | X104: =V104*0.85+W104 -> 67.1399 | Y104: =0.7*X104 -> 46.9979 | Z104: =VLOOKUP(D104,体测成绩!B$2:C$273,2,FALSE) -> 73.5000 | AA104: =VLOOKUP(D104,体育锻炼成绩!A$2:B$182,2,FALSE) -> 100.00 | AB104: =0.8*Z104 -> 58.8000 | AC104: =AA104*0.2 -> 20.0000 | AD104: =SUM(AB104:AC104)*0.7 -> 55.1600 | AE104: 0.0000 | AF104: =AD104+AE104 -> 55.1600 | AG104: =AF104*0.05 -> 2.7580 | AH104: =VLOOKUP(D104,美育!B$2:F$182,5,FALSE) -> 30.0000 | AI104: =VLOOKUP(D104,美育!B$2:E$182,4,FALSE) -> 0.0000 | AJ104: =AH104+AI104 -> 30.0000 | AK104: =AJ104*0.05 -> 1.5000 | AL104: =VLOOKUP(D104,劳育基础分!B$3:AF$182,31,FALSE) -> 25.5000 | AM104: 0.0000 | AN104: =AL104+AM104 -> 25.5000 | AO104: =AN104*0.05 -> 1.2750 | AP104: =S104+Y104+AG104+AK104+AO104 -> 62.4119 | AQ104: =VLOOKUP(D104,必修课优良率!A$1:B$173,2,FALSE) -> 71.43% | AR104: =VLOOKUP(D104,四级成绩!B$2:C$178,2,FALSE) -> 576 | AS104: =VLOOKUP(D104,必修课优良率!A$1:D$173,4,FALSE) -> 否
A105: 102 | B105: 100 | C105: 2024010572 | D105: 邱子恒 | E105: =VLOOKUP(D105,美育!B$2:E$182,2,FALSE) -> 化工类24-4班 | F105: =VLOOKUP(D105,互评分!C$2:F$181,4,FALSE) -> 97.2500 | G105: =VLOOKUP(D105,辅导员加分!B$2:C$176,2,FALSE) -> 94.0000 | H105: =VLOOKUP(D105,互评分!C$2:F$181,3,FALSE) -> 96.5714 | I105: =VLOOKUP(D105,互评分!C$2:F$181,2,FALSE) -> 100.0000 | J105: =F105*0.2 -> 19.4500 | K105: =G105*0.5 -> 47.0000 | L105: =H105*0.2 -> 19.3143 | M105: =I105*0.1 -> 10.0000 | N105: =SUM(J105:M105)*0.7 -> 67.0350 | O105: =VLOOKUP(D105,学生干部加分!A$1:C$140,3,FALSE) -> 4.0000 | P105: 0.0000 | Q105: 0.0000 | R105: =N105+O105+P105-Q105 -> 71.0350 | S105: =R105*0.15 -> 10.6553 | T105: 76.0732 | U105: 77.0000 | V105: =IF(U105>0,T105*0.9+U105*0.1,T105) -> 76.1659 | W105: =VLOOKUP(D105,智育加分汇总!A$2:C$44,3,FALSE) -> 2.5000 | X105: =V105*0.85+W105 -> 67.2410 | Y105: =0.7*X105 -> 47.0687 | Z105: =VLOOKUP(D105,体测成绩!B$2:C$273,2,FALSE) -> 60.0000 | AA105: =VLOOKUP(D105,体育锻炼成绩!A$2:B$182,2,FALSE) -> 100.00 | AB105: =0.8*Z105 -> 48.0000 | AC105: =AA105*0.2 -> 20.0000 | AD105: =SUM(AB105:AC105)*0.7 -> 47.6000 | AE105: 0.0000 | AF105: =AD105+AE105 -> 47.6000 | AG105: =AF105*0.05 -> 2.3800 | AH105: =VLOOKUP(D105,美育!B$2:F$182,5,FALSE) -> 18.0000 | AI105: =VLOOKUP(D105,美育!B$2:E$182,4,FALSE) -> 0.0000 | AJ105: =AH105+AI105 -> 18.0000 | AK105: =AJ105*0.05 -> 0.9000 | AL105: =VLOOKUP(D105,劳育基础分!B$3:AF$182,31,FALSE) -> 20.0000 | AM105: =VLOOKUP(D105,劳育加分!A$3:I$34,9,FALSE) -> 4.0000 | AN105: =AL105+AM105 -> 24.0000 | AO105: =AN105*0.05 -> 1.2000 | AP105: =S105+Y105+AG105+AK105+AO105 -> 62.2039 | AQ105: =VLOOKUP(D105,必修课优良率!A$1:B$173,2,FALSE) -> 61.90% | AR105: =VLOOKUP(D105,四级成绩!B$2:C$178,2,FALSE) -> 445 | AS105: =VLOOKUP(D105,必修课优良率!A$1:D$173,4,FALSE) -> 否
A106: 103 | B106: 69 | C106: 2024010514 | D106: 蒋卓达 | E106: =VLOOKUP(D106,美育!B$2:E$182,2,FALSE) -> 化工类24-2班 | F106: =VLOOKUP(D106,互评分!C$2:F$181,4,FALSE) -> 96.4286 | G106: =VLOOKUP(D106,辅导员加分!B$2:C$176,2,FALSE) -> 92.0000 | H106: =VLOOKUP(D106,互评分!C$2:F$181,3,FALSE) -> 99.1667 | I106: =VLOOKUP(D106,互评分!C$2:F$181,2,FALSE) -> 89.0000 | J106: =F106*0.2 -> 19.2857 | K106: =G106*0.5 -> 46.0000 | L106: =H106*0.2 -> 19.8333 | M106: =I106*0.1 -> 8.9000 | N106: =SUM(J106:M106)*0.7 -> 65.8133 | O106: =VLOOKUP(D106,学生干部加分!A$1:C$140,3,FALSE) -> 3.5000 | P106: 0.0000 | Q106: 0.0000 | R106: =N106+O106+P106-Q106 -> 69.3133 | S106: =R106*0.15 -> 10.3970 | T106: =VLOOKUP(D106,[1]必修课成绩!C$71:AE$100,29,FALSE) -> 79.1026 | U106: =VLOOKUP(D106,[1]选修课成绩!C$72:AC$101,27,FALSE) -> 39.0000 | V106: =IF(U106>0,T106*0.9+U106*0.1,T106) -> 75.0923 | W106: =VLOOKUP(D106,智育加分汇总!A$2:C$44,3,FALSE) -> 1.5000 | X106: =V106*0.85+W106 -> 65.3285 | Y106: =0.7*X106 -> 45.7299 | Z106: =VLOOKUP(D106,体测成绩!B$2:C$273,2,FALSE) -> 66.8000 | AA106: =VLOOKUP(D106,体育锻炼成绩!A$2:B$182,2,FALSE) -> 100.00 | AB106: =0.8*Z106 -> 53.4400 | AC106: =AA106*0.2 -> 20.0000 | AD106: =SUM(AB106:AC106)*0.7 -> 51.4080 | AE106: 0.0000 | AF106: =AD106+AE106 -> 51.4080 | AG106: =AF106*0.05 -> 2.5704 | AH106: =VLOOKUP(D106,美育!B$2:F$182,5,FALSE) -> 25.0000 | AI106: =VLOOKUP(D106,美育!B$2:E$182,4,FALSE) -> 0.0000 | AJ106: =AH106+AI106 -> 25.0000 | AK106: =AJ106*0.05 -> 1.2500 | AL106: =VLOOKUP(D106,劳育基础分!B$3:AF$182,31,FALSE) -> 40.0000 | AM106: =VLOOKUP(D106,劳育加分!A$3:I$34,9,FALSE) -> 4.0000 | AN106: =AL106+AM106 -> 44.0000 | AO106: =AN106*0.05 -> 2.2000 | AP106: =S106+Y106+AG106+AK106+AO106 -> 62.1473 | AQ106: =VLOOKUP(D106,必修课优良率!A$1:B$173,2,FALSE) -> 63.16% | AR106: =VLOOKUP(D106,四级成绩!B$2:C$178,2,FALSE) -> 446 | AS106: =VLOOKUP(D106,必修课优良率!A$1:D$173,4,FALSE) -> 是
A107: 104 | B107: 118 | C107: 2024010528 | D107: 黄贤君 | E107: =VLOOKUP(D107,美育!B$2:E$182,2,FALSE) -> 化工类24-3班 | F107: =VLOOKUP(D107,互评分!C$2:F$181,4,FALSE) -> 99.2222 | G107: =VLOOKUP(D107,辅导员加分!B$2:C$176,2,FALSE) -> 94.0000 | H107: =VLOOKUP(D107,互评分!C$2:F$181,3,FALSE) -> 100.0000 | I107: =VLOOKUP(D107,互评分!C$2:F$181,2,FALSE) -> 99.0000 | J107: =F107*0.2 -> 19.8444 | K107: =G107*0.5 -> 47.0000 | L107: =H107*0.2 -> 20.0000 | M107: =I107*0.1 -> 9.9000 | N107: =SUM(J107:M107)*0.7 -> 67.7211 | O107: =VLOOKUP(D107,学生干部加分!A$1:C$140,3,FALSE) -> 5.7500 | P107: 0.0000 | Q107: 0.0000 | R107: =N107+O107+P107-Q107 -> 73.4711 | S107: =R107*0.15 -> 11.0207 | T107: =VLOOKUP(D107,[1]必修课成绩!C$71:AE$100,29,FALSE) -> 74.4507 | U107: =VLOOKUP(D107,[1]选修课成绩!C$72:AC$101,27,FALSE) -> 0.0000 | V107: =IF(U107>0,T107*0.9+U107*0.1,T107) -> 74.4507 | W107: 0.0000 | X107: =V107*0.85+W107 -> 63.2831 | Y107: =0.7*X107 -> 44.2982 | Z107: =VLOOKUP(D107,体测成绩!B$2:C$273,2,FALSE) -> 71.4000 | AA107: =VLOOKUP(D107,体育锻炼成绩!A$2:B$182,2,FALSE) -> 100.00 | AB107: =0.8*Z107 -> 57.1200 | AC107: =AA107*0.2 -> 20.0000 | AD107: =SUM(AB107:AC107)*0.7 -> 53.9840 | AE107: =VLOOKUP(D107,体育加分汇总!A$1:C$79,3,FALSE) -> 10.0000 | AF107: =AD107+AE107 -> 63.9840 | AG107: =AF107*0.05 -> 3.1992 | AH107: =VLOOKUP(D107,美育!B$2:F$182,5,FALSE) -> 40.0000 | AI107: =VLOOKUP(D107,美育!B$2:E$182,4,FALSE) -> 0.0000 | AJ107: =AH107+AI107 -> 40.0000 | AK107: =AJ107*0.05 -> 2.0000 | AL107: =VLOOKUP(D107,劳育基础分!B$3:AF$182,31,FALSE) -> 31.0000 | AM107: 0.0000 | AN107: =AL107+AM107 -> 31.0000 | AO107: =AN107*0.05 -> 1.5500 | AP107: =S107+Y107+AG107+AK107+AO107 -> 62.0680 | AQ107: =VLOOKUP(D107,必修课优良率!A$1:B$173,2,FALSE) -> 52.94% | AR107: =VLOOKUP(D107,四级成绩!B$2:C$178,2,FALSE) -> 378 | AS107: =VLOOKUP(D107,必修课优良率!A$1:D$173,4,FALSE) -> 否
A108: 105 | B108: 125 | C108: 2024010557 | D108: 李政阳 | E108: =VLOOKUP(D108,美育!B$2:E$182,2,FALSE) -> 化工类24-4班 | F108: =VLOOKUP(D108,互评分!C$2:F$181,4,FALSE) -> 97.3571 | G108: =VLOOKUP(D108,辅导员加分!B$2:C$176,2,FALSE) -> 94.0000 | H108: =VLOOKUP(D108,互评分!C$2:F$181,3,FALSE) -> 95.5714 | I108: =VLOOKUP(D108,互评分!C$2:F$181,2,FALSE) -> 100.0000 | J108: =F108*0.2 -> 19.4714 | K108: =G108*0.5 -> 47.0000 | L108: =H108*0.2 -> 19.1143 | M108: =I108*0.1 -> 10.0000 | N108: =SUM(J108:M108)*0.7 -> 66.9100 | O108: =VLOOKUP(D108,学生干部加分!A$1:C$140,3,FALSE) -> 6.0000 | P108: 0.0000 | Q108: 0.0000 | R108: =N108+O108+P108-Q108 -> 72.9100 | S108: =R108*0.15 -> 10.9365 | T108: 74.0244 | U108: 80.1429 | V108: =IF(U108>0,T108*0.9+U108*0.1,T108) -> 74.6362 | W108: 0.0000 | X108: =V108*0.85+W108 -> 63.4408 | Y108: =0.7*X108 -> 44.4086 | Z108: =VLOOKUP(D108,体测成绩!B$2:C$273,2,FALSE) -> 71.0000 | AA108: =VLOOKUP(D108,体育锻炼成绩!A$2:B$182,2,FALSE) -> 100.00 | AB108: =0.8*Z108 -> 56.8000 | AC108: =AA108*0.2 -> 20.0000 | AD108: =SUM(AB108:AC108)*0.7 -> 53.7600 | AE108: 0.0000 | AF108: =AD108+AE108 -> 53.7600 | AG108: =AF108*0.05 -> 2.6880 | AH108: =VLOOKUP(D108,美育!B$2:F$182,5,FALSE) -> 30.0000 | AI108: =VLOOKUP(D108,美育!B$2:E$182,4,FALSE) -> 0.0000 | AJ108: =AH108+AI108 -> 30.0000 | AK108: =AJ108*0.05 -> 1.5000 | AL108: =VLOOKUP(D108,劳育基础分!B$3:AF$182,31,FALSE) -> 44.0000 | AM108: =VLOOKUP(D108,劳育加分!A$3:I$34,9,FALSE) -> 4.0000 | AN108: =AL108+AM108 -> 48.0000 | AO108: =AN108*0.05 -> 2.4000 | AP108: =S108+Y108+AG108+AK108+AO108 -> 61.9331 | AQ108: =VLOOKUP(D108,必修课优良率!A$1:B$173,2,FALSE) -> 61.90% | AR108: =VLOOKUP(D108,四级成绩!B$2:C$178,2,FALSE) -> 451 | AS108: =VLOOKUP(D108,必修课优良率!A$1:D$173,4,FALSE) -> 是
A109: 106 | B109: 146 | C109: 2024010497 | D109: 赵晶晶 | E109: =VLOOKUP(D109,美育!B$2:E$182,2,FALSE) -> 化工类24-2班 | F109: =VLOOKUP(D109,互评分!C$2:F$181,4,FALSE) -> 97.2857 | G109: =VLOOKUP(D109,辅导员加分!B$2:C$176,2,FALSE) -> 95.0000 | H109: =VLOOKUP(D109,互评分!C$2:F$181,3,FALSE) -> 98.3333 | I109: =VLOOKUP(D109,互评分!C$2:F$181,2,FALSE) -> 92.0000 | J109: =F109*0.2 -> 19.4571 | K109: =G109*0.5 -> 47.5000 | L109: =H109*0.2 -> 19.6667 | M109: =I109*0.1 -> 9.2000 | N109: =SUM(J109:M109)*0.7 -> 67.0767 | O109: =VLOOKUP(D109,学生干部加分!A$1:C$140,3,FALSE) -> 6.0000 | P109: 0.0000 | Q109: 0.0000 | R109: =N109+O109+P109-Q109 -> 73.0767 | S109: =R109*0.15 -> 10.9615 | T109: 71.7195 | U109: 72.7500 | V109: =IF(U109>0,T109*0.9+U109*0.1,T109) -> 71.8226 | W109: 0.0000 | X109: =V109*0.85+W109 -> 61.0492 | Y109: =0.7*X109 -> 42.7344 | Z109: =VLOOKUP(D109,体测成绩!B$2:C$273,2,FALSE) -> 81.3000 | AA109: =VLOOKUP(D109,体育锻炼成绩!A$2:B$182,2,FALSE) -> 100.00 | AB109: =0.8*Z109 -> 65.0400 | AC109: =AA109*0.2 -> 20.0000 | AD109: =SUM(AB109:AC109)*0.7 -> 59.5280 | AE109: =VLOOKUP(D109,体育加分汇总!A$1:C$79,3,FALSE) -> 0.0000 | AF109: =AD109+AE109 -> 59.5280 | AG109: =AF109*0.05 -> 2.9764 | AH109: =VLOOKUP(D109,美育!B$2:F$182,5,FALSE) -> 60.0000 | AI109: =VLOOKUP(D109,美育!B$2:E$182,4,FALSE) -> 0.0000 | AJ109: =AH109+AI109 -> 60.0000 | AK109: =AJ109*0.05 -> 3.0000 | AL109: =VLOOKUP(D109,劳育基础分!B$3:AF$182,31,FALSE) -> 40.0000 | AM109: =VLOOKUP(D109,劳育加分!A$3:I$34,9,FALSE) -> 4.0000 | AN109: =AL109+AM109 -> 44.0000 | AO109: =AN109*0.05 -> 2.2000 | AP109: =S109+Y109+AG109+AK109+AO109 -> 61.8723 | AQ109: =VLOOKUP(D109,必修课优良率!A$1:B$173,2,FALSE) -> 38.10% | AR109: =VLOOKUP(D109,四级成绩!B$2:C$178,2,FALSE) -> 465 | AS109: =VLOOKUP(D109,必修课优良率!A$1:D$173,4,FALSE) -> 是
A110: 107 | B110: 164 | C110: 2024010630 | D110: 周子晨 | E110: =VLOOKUP(D110,美育!B$2:E$182,2,FALSE) -> 化工类24-6班 | F110: =VLOOKUP(D110,互评分!C$2:F$181,4,FALSE) -> 98.0769 | G110: =VLOOKUP(D110,辅导员加分!B$2:C$176,2,FALSE) -> 94.0000 | H110: =VLOOKUP(D110,互评分!C$2:F$181,3,FALSE) -> 100.0000 | I110: =VLOOKUP(D110,互评分!C$2:F$181,2,FALSE) -> 100.0000 | J110: =F110*0.2 -> 19.6154 | K110: =G110*0.5 -> 47.0000 | L110: =H110*0.2 -> 20.0000 | M110: =I110*0.1 -> 10.0000 | N110: =SUM(J110:M110)*0.7 -> 67.6308 | O110: =VLOOKUP(D110,学生干部加分!A$1:C$140,3,FALSE) -> 8.0000 | P110: 0.0000 | Q110: 0.0000 | R110: =N110+O110+P110-Q110 -> 75.6308 | S110: =R110*0.15 -> 11.3446 | T110: 66.4512 | U110: 92.0000 | V110: =IF(U110>0,T110*0.9+U110*0.1,T110) -> 69.0061 | W110: =VLOOKUP(D110,智育加分汇总!A$2:C$44,3,FALSE) -> 6.2500 | X110: =V110*0.85+W110 -> 64.9052 | Y110: =0.7*X110 -> 45.4336 | Z110: =VLOOKUP(D110,体测成绩!B$2:C$273,2,FALSE) -> 67.1000 | AA110: =VLOOKUP(D110,体育锻炼成绩!A$2:B$182,2,FALSE) -> 100.00 | AB110: =0.8*Z110 -> 53.6800 | AC110: =AA110*0.2 -> 20.0000 | AD110: =SUM(AB110:AC110)*0.7 -> 51.5760 | AE110: 0.0000 | AF110: =AD110+AE110 -> 51.5760 | AG110: =AF110*0.05 -> 2.5788 | AH110: =VLOOKUP(D110,美育!B$2:F$182,5,FALSE) -> 5.0000 | AI110: =VLOOKUP(D110,美育!B$2:E$182,4,FALSE) -> 0.0000 | AJ110: =AH110+AI110 -> 5.0000 | AK110: =AJ110*0.05 -> 0.2500 | AL110: =VLOOKUP(D110,劳育基础分!B$3:AF$182,31,FALSE) -> 40.0000 | AM110: =VLOOKUP(D110,劳育加分!A$3:I$34,9,FALSE) -> 4.0000 | AN110: =AL110+AM110 -> 44.0000 | AO110: =AN110*0.05 -> 2.2000 | AP110: =S110+Y110+AG110+AK110+AO110 -> 61.8070 | AQ110: =VLOOKUP(D110,必修课优良率!A$1:B$173,2,FALSE) -> 28.57% | AR110: =VLOOKUP(D110,四级成绩!B$2:C$178,2,FALSE) -> 没考 | AS110: =VLOOKUP(D110,必修课优良率!A$1:D$173,4,FALSE) -> 是
A111: 108 | B111: 108 | C111: 2024010629 | D111: 杨恒 | E111: =VLOOKUP(D111,美育!B$2:E$182,2,FALSE) -> 化工类24-6班 | F111: =VLOOKUP(D111,互评分!C$2:F$181,4,FALSE) -> 98.4615 | G111: =VLOOKUP(D111,辅导员加分!B$2:C$176,2,FALSE) -> 92.0000 | H111: =VLOOKUP(D111,互评分!C$2:F$181,3,FALSE) -> 100.0000 | I111: =VLOOKUP(D111,互评分!C$2:F$181,2,FALSE) -> 100.0000 | J111: =F111*0.2 -> 19.6923 | K111: =G111*0.5 -> 46.0000 | L111: =H111*0.2 -> 20.0000 | M111: =I111*0.1 -> 10.0000 | N111: =SUM(J111:M111)*0.7 -> 66.9846 | O111: =VLOOKUP(D111,学生干部加分!A$1:C$140,3,FALSE) -> 4.0000 | P111: 0.0000 | Q111: 0.0000 | R111: =N111+O111+P111-Q111 -> 70.9846 | S111: =R111*0.15 -> 10.6477 | T111: 75.2439 | U111: 79.0000 | V111: =IF(U111>0,T111*0.9+U111*0.1,T111) -> 75.6195 | W111: =VLOOKUP(D111,智育加分汇总!A$2:C$44,3,FALSE) -> 2.0000 | X111: =V111*0.85+W111 -> 66.2766 | Y111: =0.7*X111 -> 46.3936 | Z111: =VLOOKUP(D111,体测成绩!B$2:C$273,2,FALSE) -> 68.3000 | AA111: =VLOOKUP(D111,体育锻炼成绩!A$2:B$182,2,FALSE) -> 100.00 | AB111: =0.8*Z111 -> 54.6400 | AC111: =AA111*0.2 -> 20.0000 | AD111: =SUM(AB111:AC111)*0.7 -> 52.2480 | AE111: 0.0000 | AF111: =AD111+AE111 -> 52.2480 | AG111: =AF111*0.05 -> 2.6124 | AH111: =VLOOKUP(D111,美育!B$2:F$182,5,FALSE) -> 0.0000 | AI111: =VLOOKUP(D111,美育!B$2:E$182,4,FALSE) -> 0.0000 | AJ111: =AH111+AI111 -> 0.0000 | AK111: =AJ111*0.05 -> 0.0000 | AL111: =VLOOKUP(D111,劳育基础分!B$3:AF$182,31,FALSE) -> 41.0000 | AM111: 0.0000 | AN111: =AL111+AM111 -> 41.0000 | AO111: =AN111*0.05 -> 2.0500 | AP111: =S111+Y111+AG111+AK111+AO111 -> 61.7037 | AQ111: =VLOOKUP(D111,必修课优良率!A$1:B$173,2,FALSE) -> 57.14% | AR111: =VLOOKUP(D111,四级成绩!B$2:C$178,2,FALSE) -> 439 | AS111: =VLOOKUP(D111,必修课优良率!A$1:D$173,4,FALSE) -> 否
A112: 109 | B112: 109 | C112: 2024010591 | D112: 黄皓仑 | E112: =VLOOKUP(D112,美育!B$2:E$182,2,FALSE) -> 化工类24-5班 | F112: =VLOOKUP(D112,互评分!C$2:F$181,4,FALSE) -> 99.6667 | G112: =VLOOKUP(D112,辅导员加分!B$2:C$176,2,FALSE) -> 92.0000 | H112: =VLOOKUP(D112,互评分!C$2:F$181,3,FALSE) -> 100.0000 | I112: =VLOOKUP(D112,互评分!C$2:F$181,2,FALSE) -> 90.0000 | J112: =F112*0.2 -> 19.9333 | K112: =G112*0.5 -> 46.0000 | L112: =H112*0.2 -> 20.0000 | M112: =I112*0.1 -> 9.0000 | N112: =SUM(J112:M112)*0.7 -> 66.4533 | O112: =VLOOKUP(D112,学生干部加分!A$1:C$140,3,FALSE) -> 6.0000 | P112: 0.0000 | Q112: 0.0000 | R112: =N112+O112+P112-Q112 -> 72.4533 | S112: =R112*0.15 -> 10.8680 | T112: 75.2439 | U112: 82.0000 | V112: =IF(U112>0,T112*0.9+U112*0.1,T112) -> 75.9195 | W112: 0.0000 | X112: =V112*0.85+W112 -> 64.5316 | Y112: =0.7*X112 -> 45.1721 | Z112: =VLOOKUP(D112,体测成绩!B$2:C$273,2,FALSE) -> 61.2000 | AA112: =VLOOKUP(D112,体育锻炼成绩!A$2:B$182,2,FALSE) -> 100.00 | AB112: =0.8*Z112 -> 48.9600 | AC112: =AA112*0.2 -> 20.0000 | AD112: =SUM(AB112:AC112)*0.7 -> 48.2720 | AE112: 0.0000 | AF112: =AD112+AE112 -> 48.2720 | AG112: =AF112*0.05 -> 2.4136 | AH112: =VLOOKUP(D112,美育!B$2:F$182,5,FALSE) -> 18.0000 | AI112: =VLOOKUP(D112,美育!B$2:E$182,4,FALSE) -> 0.0000 | AJ112: =AH112+AI112 -> 18.0000 | AK112: =AJ112*0.05 -> 0.9000 | AL112: =VLOOKUP(D112,劳育基础分!B$3:AF$182,31,FALSE) -> 42.5000 | AM112: =VLOOKUP(D112,劳育加分!A$3:I$34,9,FALSE) -> 4.0000 | AN112: =AL112+AM112 -> 46.5000 | AO112: =AN112*0.05 -> 2.3250 | AP112: =S112+Y112+AG112+AK112+AO112 -> 61.6787 | AQ112: =VLOOKUP(D112,必修课优良率!A$1:B$173,2,FALSE) -> 57.14% | AR112: =VLOOKUP(D112,四级成绩!B$2:C$178,2,FALSE) -> 515 | AS112: =VLOOKUP(D112,必修课优良率!A$1:D$173,4,FALSE) -> 否
A113: 110 | B113: 147 | C113: 2024010477 | D113: 李俊义 | E113: =VLOOKUP(D113,美育!B$2:E$182,2,FALSE) -> 化工类24-1班 | F113: =VLOOKUP(D113,互评分!C$2:F$181,4,FALSE) -> 99.4815 | G113: =VLOOKUP(D113,辅导员加分!B$2:C$176,2,FALSE) -> 92.0000 | H113: =VLOOKUP(D113,互评分!C$2:F$181,3,FALSE) -> 100.0000 | I113: =VLOOKUP(D113,互评分!C$2:F$181,2,FALSE) -> 99.0000 | J113: =F113*0.2 -> 19.8963 | K113: =G113*0.5 -> 46.0000 | L113: =H113*0.2 -> 20.0000 | M113: =I113*0.1 -> 9.9000 | N113: =SUM(J113:M113)*0.7 -> 67.0574 | O113: =VLOOKUP(D113,学生干部加分!A$1:C$140,3,FALSE) -> 5.0000 | P113: 0.0000 | Q113: 0.0000 | R113: =N113+O113+P113-Q113 -> 72.0574 | S113: =R113*0.15 -> 10.8086 | T113: 71.6341 | U113: 87.2857 | V113: =IF(U113>0,T113*0.9+U113*0.1,T113) -> 73.1993 | W113: 0.0000 | X113: =V113*0.85+W113 -> 62.2194 | Y113: =0.7*X113 -> 43.5536 | Z113: =VLOOKUP(D113,体测成绩!B$2:C$273,2,FALSE) -> 76.2000 | AA113: =VLOOKUP(D113,体育锻炼成绩!A$2:B$182,2,FALSE) -> 100.00 | AB113: =0.8*Z113 -> 60.9600 | AC113: =AA113*0.2 -> 20.0000 | AD113: =SUM(AB113:AC113)*0.7 -> 56.6720 | AE113: =VLOOKUP(D113,体育加分汇总!A$1:C$79,3,FALSE) -> 1.0000 | AF113: =AD113+AE113 -> 57.6720 | AG113: =AF113*0.05 -> 2.8836 | AH113: =VLOOKUP(D113,美育!B$2:F$182,5,FALSE) -> 25.0000 | AI113: =VLOOKUP(D113,美育!B$2:E$182,4,FALSE) -> 0.0000 | AJ113: =AH113+AI113 -> 25.0000 | AK113: =AJ113*0.05 -> 1.2500 | AL113: =VLOOKUP(D113,劳育基础分!B$3:AF$182,31,FALSE) -> 62.0000 | AM113: 0.0000 | AN113: =AL113+AM113 -> 62.0000 | AO113: =AN113*0.05 -> 3.1000 | AP113: =S113+Y113+AG113+AK113+AO113 -> 61.5958 | AQ113: =VLOOKUP(D113,必修课优良率!A$1:B$173,2,FALSE) -> 47.62% | AR113: 0 | AS113: =VLOOKUP(D113,必修课优良率!A$1:D$173,4,FALSE) -> 是
A114: 111 | B114: 87 | C114: 2024010498 | D114: 杨胤泽 | E114: =VLOOKUP(D114,美育!B$2:E$182,2,FALSE) -> 化工类24-2班 | F114: =VLOOKUP(D114,互评分!C$2:F$181,4,FALSE) -> 96.4643 | G114: =VLOOKUP(D114,辅导员加分!B$2:C$176,2,FALSE) -> 94.0000 | H114: =VLOOKUP(D114,互评分!C$2:F$181,3,FALSE) -> 98.3333 | I114: =VLOOKUP(D114,互评分!C$2:F$181,2,FALSE) -> 90.0000 | J114: =F114*0.2 -> 19.2929 | K114: =G114*0.5 -> 47.0000 | L114: =H114*0.2 -> 19.6667 | M114: =I114*0.1 -> 9.0000 | N114: =SUM(J114:M114)*0.7 -> 66.4717 | O114: 0.0000 | P114: 0.0000 | Q114: 0.0000 | R114: =N114+O114+P114-Q114 -> 66.4717 | S114: =R114*0.15 -> 9.9708 | T114: =VLOOKUP(D114,[1]必修课成绩!C$71:AE$100,29,FALSE) -> 77.4000 | U114: =VLOOKUP(D114,[1]选修课成绩!C$72:AC$101,27,FALSE) -> 0.0000 | V114: =IF(U114>0,T114*0.9+U114*0.1,T114) -> 77.4000 | W114: 0.0000 | X114: =V114*0.85+W114 -> 65.7900 | Y114: =0.7*X114 -> 46.0530 | Z114: =VLOOKUP(D114,体测成绩!B$2:C$273,2,FALSE) -> 75.8000 | AA114: =VLOOKUP(D114,体育锻炼成绩!A$2:B$182,2,FALSE) -> 100.00 | AB114: =0.8*Z114 -> 60.6400 | AC114: =AA114*0.2 -> 20.0000 | AD114: =SUM(AB114:AC114)*0.7 -> 56.4480 | AE114: 0.0000 | AF114: =AD114+AE114 -> 56.4480 | AG114: =AF114*0.05 -> 2.8224 | AH114: =VLOOKUP(D114,美育!B$2:F$182,5,FALSE) -> 25.0000 | AI114: =VLOOKUP(D114,美育!B$2:E$182,4,FALSE) -> 0.0000 | AJ114: =AH114+AI114 -> 25.0000 | AK114: =AJ114*0.05 -> 1.2500 | AL114: =VLOOKUP(D114,劳育基础分!B$3:AF$182,31,FALSE) -> 29.5000 | AM114: 0.0000 | AN114: =AL114+AM114 -> 29.5000 | AO114: =AN114*0.05 -> 1.4750 | AP114: =S114+Y114+AG114+AK114+AO114 -> 61.5712 | AQ114: =VLOOKUP(D114,必修课优良率!A$1:B$173,2,FALSE) -> 66.67% | AR114: =VLOOKUP(D114,四级成绩!B$2:C$178,2,FALSE) -> 416 | AS114: =VLOOKUP(D114,必修课优良率!A$1:D$173,4,FALSE) -> 否
A115: 112 | B115: 88 | C115: 2024010624 | D115: 任务 | E115: =VLOOKUP(D115,美育!B$2:E$182,2,FALSE) -> 化工类24-6班 | F115: =VLOOKUP(D115,互评分!C$2:F$181,4,FALSE) -> 98.4615 | G115: =VLOOKUP(D115,辅导员加分!B$2:C$176,2,FALSE) -> 92.0000 | H115: =VLOOKUP(D115,互评分!C$2:F$181,3,FALSE) -> 100.0000 | I115: =VLOOKUP(D115,互评分!C$2:F$181,2,FALSE) -> 100.0000 | J115: =F115*0.2 -> 19.6923 | K115: =G115*0.5 -> 46.0000 | L115: =H115*0.2 -> 20.0000 | M115: =I115*0.1 -> 10.0000 | N115: =SUM(J115:M115)*0.7 -> 66.9846 | O115: 0.0000 | P115: 0.0000 | Q115: 0.0000 | R115: =N115+O115+P115-Q115 -> 66.9846 | S115: =R115*0.15 -> 10.0477 | T115: 77.3659 | U115: 87.0000 | V115: =IF(U115>0,T115*0.9+U115*0.1,T115) -> 78.3293 | W115: 0.0000 | X115: =V115*0.85+W115 -> 66.5799 | Y115: =0.7*X115 -> 46.6059 | Z115: =VLOOKUP(D115,体测成绩!B$2:C$273,2,FALSE) -> 69.4000 | AA115: =VLOOKUP(D115,体育锻炼成绩!A$2:B$182,2,FALSE) -> 100.00 | AB115: =0.8*Z115 -> 55.5200 | AC115: =AA115*0.2 -> 20.0000 | AD115: =SUM(AB115:AC115)*0.7 -> 52.8640 | AE115: 0.0000 | AF115: =AD115+AE115 -> 52.8640 | AG115: =AF115*0.05 -> 2.6432 | AH115: =VLOOKUP(D115,美育!B$2:F$182,5,FALSE) -> 10.0000 | AI115: =VLOOKUP(D115,美育!B$2:E$182,4,FALSE) -> 0.0000 | AJ115: =AH115+AI115 -> 10.0000 | AK115: =AJ115*0.05 -> 0.5000 | AL115: =VLOOKUP(D115,劳育基础分!B$3:AF$182,31,FALSE) -> 35.0000 | AM115: 0.0000 | AN115: =AL115+AM115 -> 35.0000 | AO115: =AN115*0.05 -> 1.7500 | AP115: =S115+Y115+AG115+AK115+AO115 -> 61.5468 | AQ115: =VLOOKUP(D115,必修课优良率!A$1:B$173,2,FALSE) -> 66.67% | AR115: =VLOOKUP(D115,四级成绩!B$2:C$178,2,FALSE) -> 545 | AS115: =VLOOKUP(D115,必修课优良率!A$1:D$173,4,FALSE) -> 否
A116: 113 | B116: 101 | C116: 2024010510 | D116: 钟家豪 | E116: =VLOOKUP(D116,美育!B$2:E$182,2,FALSE) -> 化工类24-2班 | F116: =VLOOKUP(D116,互评分!C$2:F$181,4,FALSE) -> 96.6786 | G116: =VLOOKUP(D116,辅导员加分!B$2:C$176,2,FALSE) -> 90.0000 | H116: =VLOOKUP(D116,互评分!C$2:F$181,3,FALSE) -> 98.3333 | I116: =VLOOKUP(D116,互评分!C$2:F$181,2,FALSE) -> 94.0000 | J116: =F116*0.2 -> 19.3357 | K116: =G116*0.5 -> 45.0000 | L116: =H116*0.2 -> 19.6667 | M116: =I116*0.1 -> 9.4000 | N116: =SUM(J116:M116)*0.7 -> 65.3817 | O116: 0.0000 | P116: 0.0000 | Q116: 0.0000 | R116: =N116+O116+P116-Q116 -> 65.3817 | S116: =R116*0.15 -> 9.8073 | T116: 75.9250 | U116: 82.6667 | V116: =IF(U116>0,T116*0.9+U116*0.1,T116) -> 76.5992 | W116: 0.0000 | X116: =V116*0.85+W116 -> 65.1093 | Y116: =0.7*X116 -> 45.5765 | Z116: =VLOOKUP(D116,体测成绩!B$2:C$273,2,FALSE) -> 60.0000 | AA116: =VLOOKUP(D116,体育锻炼成绩!A$2:B$182,2,FALSE) -> 100.00 | AB116: =0.8*Z116 -> 48.0000 | AC116: =AA116*0.2 -> 20.0000 | AD116: =SUM(AB116:AC116)*0.7 -> 47.6000 | AE116: 0.0000 | AF116: =AD116+AE116 -> 47.6000 | AG116: =AF116*0.05 -> 2.3800 | AH116: =VLOOKUP(D116,美育!B$2:F$182,5,FALSE) -> 34.0000 | AI116: =VLOOKUP(D116,美育!B$2:E$182,4,FALSE) -> 0.0000 | AJ116: =AH116+AI116 -> 34.0000 | AK116: =AJ116*0.05 -> 1.7000 | AL116: =VLOOKUP(D116,劳育基础分!B$3:AF$182,31,FALSE) -> 41.5000 | AM116: 0.0000 | AN116: =AL116+AM116 -> 41.5000 | AO116: =AN116*0.05 -> 2.0750 | AP116: =S116+Y116+AG116+AK116+AO116 -> 61.5388 | AQ116: =VLOOKUP(D116,必修课优良率!A$1:B$173,2,FALSE) -> 75.00% | AR116: =VLOOKUP(D116,四级成绩!B$2:C$178,2,FALSE) -> 426 | AS116: =VLOOKUP(D116,必修课优良率!A$1:D$173,4,FALSE) -> 是
A117: 114 | B117: 135 | C117: 2024010462 | D117: 佟安冉 | E117: =VLOOKUP(D117,美育!B$2:E$182,2,FALSE) -> 化工类24-1班 | F117: =VLOOKUP(D117,互评分!C$2:F$181,4,FALSE) -> 96.5185 | G117: =VLOOKUP(D117,辅导员加分!B$2:C$176,2,FALSE) -> 92.0000 | H117: =VLOOKUP(D117,互评分!C$2:F$181,3,FALSE) -> 97.5000 | I117: =VLOOKUP(D117,互评分!C$2:F$181,2,FALSE) -> 90.0000 | J117: =F117*0.2 -> 19.3037 | K117: =G117*0.5 -> 46.0000 | L117: =H117*0.2 -> 19.5000 | M117: =I117*0.1 -> 9.0000 | N117: =SUM(J117:M117)*0.7 -> 65.6626 | O117: 0.0000 | P117: 0.0000 | Q117: 0.0000 | R117: =N117+O117+P117-Q117 -> 65.6626 | S117: =R117*0.15 -> 9.8494 | T117: =VLOOKUP(D117,[1]必修课成绩!C$71:AE$100,29,FALSE) -> 72.9500 | U117: =VLOOKUP(D117,[1]选修课成绩!C$72:AC$101,27,FALSE) -> 89.0000 | V117: =IF(U117>0,T117*0.9+U117*0.1,T117) -> 74.5550 | W117: 0.0000 | X117: =V117*0.85+W117 -> 63.3718 | Y117: =0.7*X117 -> 44.3602 | Z117: =VLOOKUP(D117,体测成绩!B$2:C$273,2,FALSE) -> 64.7000 | AA117: =VLOOKUP(D117,体育锻炼成绩!A$2:B$182,2,FALSE) -> 100.00 | AB117: =0.8*Z117 -> 51.7600 | AC117: =AA117*0.2 -> 20.0000 | AD117: =SUM(AB117:AC117)*0.7 -> 50.2320 | AE117: 0.0000 | AF117: =AD117+AE117 -> 50.2320 | AG117: =AF117*0.05 -> 2.5116 | AH117: =VLOOKUP(D117,美育!B$2:F$182,5,FALSE) -> 48.0000 | AI117: =VLOOKUP(D117,美育!B$2:E$182,4,FALSE) -> 4.0000 | AJ117: =AH117+AI117 -> 52.0000 | AK117: =AJ117*0.05 -> 2.6000 | AL117: =VLOOKUP(D117,劳育基础分!B$3:AF$182,31,FALSE) -> 40.0000 | AM117: =VLOOKUP(D117,劳育加分!A$3:I$34,9,FALSE) -> 4.0000 | AN117: =AL117+AM117 -> 44.0000 | AO117: =AN117*0.05 -> 2.2000 | AP117: =S117+Y117+AG117+AK117+AO117 -> 61.5212 | AQ117: =VLOOKUP(D117,必修课优良率!A$1:B$173,2,FALSE) -> 52.38% | AR117: =VLOOKUP(D117,四级成绩!B$2:C$178,2,FALSE) -> 343 | AS117: =VLOOKUP(D117,必修课优良率!A$1:D$173,4,FALSE) -> 是
A118: 115 | B118: 154 | C118: 2024010616 | D118: 吕佳琳 | E118: =VLOOKUP(D118,美育!B$2:E$182,2,FALSE) -> 化工类24-6班 | F118: =VLOOKUP(D118,互评分!C$2:F$181,4,FALSE) -> 97.3077 | G118: =VLOOKUP(D118,辅导员加分!B$2:C$176,2,FALSE) -> 92.0000 | H118: =VLOOKUP(D118,互评分!C$2:F$181,3,FALSE) -> 100.0000 | I118: =VLOOKUP(D118,互评分!C$2:F$181,2,FALSE) -> 100.0000 | J118: =F118*0.2 -> 19.4615 | K118: =G118*0.5 -> 46.0000 | L118: =H118*0.2 -> 20.0000 | M118: =I118*0.1 -> 10.0000 | N118: =SUM(J118:M118)*0.7 -> 66.8231 | O118: =VLOOKUP(D118,学生干部加分!A$1:C$140,3,FALSE) -> 6.0000 | P118: 0.0000 | Q118: 0.0000 | R118: =N118+O118+P118-Q118 -> 72.8231 | S118: =R118*0.15 -> 10.9235 | T118: 69.2805 | U118: 82.5000 | V118: =IF(U118>0,T118*0.9+U118*0.1,T118) -> 70.6024 | W118: 0.0000 | X118: =V118*0.85+W118 -> 60.0121 | Y118: =0.7*X118 -> 42.0085 | Z118: =VLOOKUP(D118,体测成绩!B$2:C$273,2,FALSE) -> 70.5000 | AA118: =VLOOKUP(D118,体育锻炼成绩!A$2:B$182,2,FALSE) -> 100.00 | AB118: =0.8*Z118 -> 56.4000 | AC118: =AA118*0.2 -> 20.0000 | AD118: =SUM(AB118:AC118)*0.7 -> 53.4800 | AE118: =VLOOKUP(D118,体育加分汇总!A$1:C$79,3,FALSE) -> 8.0000 | AF118: =AD118+AE118 -> 61.4800 | AG118: =AF118*0.05 -> 3.0740 | AH118: =VLOOKUP(D118,美育!B$2:F$182,5,FALSE) -> 68.0000 | AI118: =VLOOKUP(D118,美育!B$2:E$182,4,FALSE) -> 0.0000 | AJ118: =AH118+AI118 -> 68.0000 | AK118: =AJ118*0.05 -> 3.4000 | AL118: =VLOOKUP(D118,劳育基础分!B$3:AF$182,31,FALSE) -> 42.0000 | AM118: 0.0000 | AN118: =AL118+AM118 -> 42.0000 | AO118: =AN118*0.05 -> 2.1000 | AP118: =S118+Y118+AG118+AK118+AO118 -> 61.5059 | AQ118: =VLOOKUP(D118,必修课优良率!A$1:B$173,2,FALSE) -> 61.90% | AR118: =VLOOKUP(D118,四级成绩!B$2:C$178,2,FALSE) -> 484 | AS118: =VLOOKUP(D118,必修课优良率!A$1:D$173,4,FALSE) -> 是
A119: 116 | B119: 137 | C119: 2024010485 | D119: 马永龙 | E119: =VLOOKUP(D119,美育!B$2:E$182,2,FALSE) -> 化工类24-1班 | F119: =VLOOKUP(D119,互评分!C$2:F$181,4,FALSE) -> 99.6667 | G119: =VLOOKUP(D119,辅导员加分!B$2:C$176,2,FALSE) -> 92.0000 | H119: =VLOOKUP(D119,互评分!C$2:F$181,3,FALSE) -> 100.0000 | I119: =VLOOKUP(D119,互评分!C$2:F$181,2,FALSE) -> 99.0000 | J119: =F119*0.2 -> 19.9333 | K119: =G119*0.5 -> 46.0000 | L119: =H119*0.2 -> 20.0000 | M119: =I119*0.1 -> 9.9000 | N119: =SUM(J119:M119)*0.7 -> 67.0833 | O119: =VLOOKUP(D119,学生干部加分!A$1:C$140,3,FALSE) -> 6.0000 | P119: 0.0000 | Q119: 0.0000 | R119: =N119+O119+P119-Q119 -> 73.0833 | S119: =R119*0.15 -> 10.9625 | T119: 72.6098 | U119: 79.3333 | V119: =IF(U119>0,T119*0.9+U119*0.1,T119) -> 73.2821 | W119: 0.0000 | X119: =V119*0.85+W119 -> 62.2898 | Y119: =0.7*X119 -> 43.6029 | Z119: =VLOOKUP(D119,体测成绩!B$2:C$273,2,FALSE) -> 75.7000 | AA119: =VLOOKUP(D119,体育锻炼成绩!A$2:B$182,2,FALSE) -> 100.00 | AB119: =0.8*Z119 -> 60.5600 | AC119: =AA119*0.2 -> 20.0000 | AD119: =SUM(AB119:AC119)*0.7 -> 56.3920 | AE119: =VLOOKUP(D119,体育加分汇总!A$1:C$79,3,FALSE) -> 8.0000 | AF119: =AD119+AE119 -> 64.3920 | AG119: =AF119*0.05 -> 3.2196 | AH119: =VLOOKUP(D119,美育!B$2:F$182,5,FALSE) -> 40.0000 | AI119: =VLOOKUP(D119,美育!B$2:E$182,4,FALSE) -> 0.0000 | AJ119: =AH119+AI119 -> 40.0000 | AK119: =AJ119*0.05 -> 2.0000 | AL119: =VLOOKUP(D119,劳育基础分!B$3:AF$182,31,FALSE) -> 33.0000 | AM119: 0.0000 | AN119: =AL119+AM119 -> 33.0000 | AO119: =AN119*0.05 -> 1.6500 | AP119: =S119+Y119+AG119+AK119+AO119 -> 61.4350 | AQ119: =VLOOKUP(D119,必修课优良率!A$1:B$173,2,FALSE) -> 47.62% | AR119: =VLOOKUP(D119,四级成绩!B$2:C$178,2,FALSE) -> 375 | AS119: =VLOOKUP(D119,必修课优良率!A$1:D$173,4,FALSE) -> 是
A120: 117 | B120: 117 | C120: 2024010560 | D120: 葸旺 | E120: =VLOOKUP(D120,美育!B$2:E$182,2,FALSE) -> 化工类24-4班 | F120: =VLOOKUP(D120,互评分!C$2:F$181,4,FALSE) -> 95.2500 | G120: =VLOOKUP(D120,辅导员加分!B$2:C$176,2,FALSE) -> 92.0000 | H120: =VLOOKUP(D120,互评分!C$2:F$181,3,FALSE) -> 94.2857 | I120: =VLOOKUP(D120,互评分!C$2:F$181,2,FALSE) -> 100.0000 | J120: =F120*0.2 -> 19.0500 | K120: =G120*0.5 -> 46.0000 | L120: =H120*0.2 -> 18.8571 | M120: =I120*0.1 -> 10.0000 | N120: =SUM(J120:M120)*0.7 -> 65.7350 | O120: =VLOOKUP(D120,学生干部加分!A$1:C$140,3,FALSE) -> 6.0000 | P120: 0.0000 | Q120: 0.0000 | R120: =N120+O120+P120-Q120 -> 71.7350 | S120: =R120*0.15 -> 10.7602 | T120: =VLOOKUP(D120,[2]必修课成绩!C$59:BO$82,65,FALSE) -> 74.5122 | U120: =VLOOKUP(D120,[2]选修课成绩!C$60:BI$83,59,FALSE) -> 78.3333 | V120: =IF(U120>0,T120*0.9+U120*0.1,T120) -> 74.8943 | W120: 0.0000 | X120: =V120*0.85+W120 -> 63.6602 | Y120: =0.7*X120 -> 44.5621 | Z120: =VLOOKUP(D120,体测成绩!B$2:C$273,2,FALSE) -> 67.9000 | AA120: =VLOOKUP(D120,体育锻炼成绩!A$2:B$182,2,FALSE) -> 100.00 | AB120: =0.8*Z120 -> 54.3200 | AC120: =AA120*0.2 -> 20.0000 | AD120: =SUM(AB120:AC120)*0.7 -> 52.0240 | AE120: 0.0000 | AF120: =AD120+AE120 -> 52.0240 | AG120: =AF120*0.05 -> 2.6012 | AH120: =VLOOKUP(D120,美育!B$2:F$182,5,FALSE) -> 30.0000 | AI120: =VLOOKUP(D120,美育!B$2:E$182,4,FALSE) -> 0.0000 | AJ120: =AH120+AI120 -> 30.0000 | AK120: =AJ120*0.05 -> 1.5000 | AL120: =VLOOKUP(D120,劳育基础分!B$3:AF$182,31,FALSE) -> 40.0000 | AM120: 0.0000 | AN120: =AL120+AM120 -> 40.0000 | AO120: =AN120*0.05 -> 2.0000 | AP120: =S120+Y120+AG120+AK120+AO120 -> 61.4236 | AQ120: =VLOOKUP(D120,必修课优良率!A$1:B$173,2,FALSE) -> 47.62% | AR120: 535 | AS120: =VLOOKUP(D120,必修课优良率!A$1:D$173,4,FALSE) -> 否
A121: 118 | B121: 148 | C121: 2024010595 | D121: 王二壮 | E121: =VLOOKUP(D121,美育!B$2:E$182,2,FALSE) -> 化工类24-5班 | F121: =VLOOKUP(D121,互评分!C$2:F$181,4,FALSE) -> 99.8519 | G121: =VLOOKUP(D121,辅导员加分!B$2:C$176,2,FALSE) -> 92.0000 | H121: =VLOOKUP(D121,互评分!C$2:F$181,3,FALSE) -> 100.0000 | I121: =VLOOKUP(D121,互评分!C$2:F$181,2,FALSE) -> 85.0000 | J121: =F121*0.2 -> 19.9704 | K121: =G121*0.5 -> 46.0000 | L121: =H121*0.2 -> 20.0000 | M121: =I121*0.1 -> 8.5000 | N121: =SUM(J121:M121)*0.7 -> 66.1293 | O121: =VLOOKUP(D121,学生干部加分!A$1:C$140,3,FALSE) -> 8.0000 | P121: 0.0000 | Q121: 0.0000 | R121: =N121+O121+P121-Q121 -> 74.1293 | S121: =R121*0.15 -> 11.1194 | T121: 71.5488 | U121: 83.0000 | V121: =IF(U121>0,T121*0.9+U121*0.1,T121) -> 72.6939 | W121: 0.0000 | X121: =V121*0.85+W121 -> 61.7898 | Y121: =0.7*X121 -> 43.2529 | Z121: =VLOOKUP(D121,体测成绩!B$2:C$273,2,FALSE) -> 72.3000 | AA121: =VLOOKUP(D121,体育锻炼成绩!A$2:B$182,2,FALSE) -> 100.00 | AB121: =0.8*Z121 -> 57.8400 | AC121: =AA121*0.2 -> 20.0000 | AD121: =SUM(AB121:AC121)*0.7 -> 54.4880 | AE121: =VLOOKUP(D121,体育加分汇总!A$1:C$79,3,FALSE) -> 6.0000 | AF121: =AD121+AE121 -> 60.4880 | AG121: =AF121*0.05 -> 3.0244 | AH121: =VLOOKUP(D121,美育!B$2:F$182,5,FALSE) -> 30.0000 | AI121: =VLOOKUP(D121,美育!B$2:E$182,4,FALSE) -> 0.0000 | AJ121: =AH121+AI121 -> 30.0000 | AK121: =AJ121*0.05 -> 1.5000 | AL121: =VLOOKUP(D121,劳育基础分!B$3:AF$182,31,FALSE) -> 46.5000 | AM121: =VLOOKUP(D121,劳育加分!A$3:I$34,9,FALSE) -> 4.0000 | AN121: =AL121+AM121 -> 50.5000 | AO121: =AN121*0.05 -> 2.5250 | AP121: =S121+Y121+AG121+AK121+AO121 -> 61.4217 | AQ121: =VLOOKUP(D121,必修课优良率!A$1:B$173,2,FALSE) -> 33.33% | AR121: =VLOOKUP(D121,四级成绩!B$2:C$178,2,FALSE) -> 477 | AS121: =VLOOKUP(D121,必修课优良率!A$1:D$173,4,FALSE) -> 否
A122: 119 | B122: 96 | C122: 2024010551 | D122: 王珏 | E122: =VLOOKUP(D122,美育!B$2:E$182,2,FALSE) -> 化工类24-4班 | F122: =VLOOKUP(D122,互评分!C$2:F$181,4,FALSE) -> 97.3210 | G122: =VLOOKUP(D122,辅导员加分!B$2:C$176,2,FALSE) -> 92.0000 | H122: =VLOOKUP(D122,互评分!C$2:F$181,3,FALSE) -> 98.4286 | I122: =VLOOKUP(D122,互评分!C$2:F$181,2,FALSE) -> 100.0000 | J122: =F122*0.2 -> 19.4642 | K122: =G122*0.5 -> 46.0000 | L122: =H122*0.2 -> 19.6857 | M122: =I122*0.1 -> 10.0000 | N122: =SUM(J122:M122)*0.7 -> 66.6049 | O122: =VLOOKUP(D122,学生干部加分!A$1:C$140,3,FALSE) -> 2.0000 | P122: 0.0000 | Q122: 0.0000 | R122: =N122+O122+P122-Q122 -> 68.6049 | S122: =R122*0.15 -> 10.2907 | T122: =VLOOKUP(D122,[2]必修课成绩!C$59:BO$82,65,FALSE) -> 76.4634 | U122: =VLOOKUP(D122,[2]选修课成绩!C$60:BI$83,59,FALSE) -> 73.0000 | V122: =IF(U122>0,T122*0.9+U122*0.1,T122) -> 76.1171 | W122: 0.0000 | X122: =V122*0.85+W122 -> 64.6995 | Y122: =0.7*X122 -> 45.2897 | Z122: =VLOOKUP(D122,体测成绩!B$2:C$273,2,FALSE) -> 63.9000 | AA122: =VLOOKUP(D122,体育锻炼成绩!A$2:B$182,2,FALSE) -> 100.00 | AB122: =0.8*Z122 -> 51.1200 | AC122: =AA122*0.2 -> 20.0000 | AD122: =SUM(AB122:AC122)*0.7 -> 49.7840 | AE122: =VLOOKUP(D122,体育加分汇总!A$1:C$79,3,FALSE) -> 0.0000 | AF122: =AD122+AE122 -> 49.7840 | AG122: =AF122*0.05 -> 2.4892 | AH122: =VLOOKUP(D122,美育!B$2:F$182,5,FALSE) -> 25.0000 | AI122: =VLOOKUP(D122,美育!B$2:E$182,4,FALSE) -> 0.0000 | AJ122: =AH122+AI122 -> 25.0000 | AK122: =AJ122*0.05 -> 1.2500 | AL122: =VLOOKUP(D122,劳育基础分!B$3:AF$182,31,FALSE) -> 42.0000 | AM122: 0.0000 | AN122: =AL122+AM122 -> 42.0000 | AO122: =AN122*0.05 -> 2.1000 | AP122: =S122+Y122+AG122+AK122+AO122 -> 61.4196 | AQ122: =VLOOKUP(D122,必修课优良率!A$1:B$173,2,FALSE) -> 52.38% | AR122: =VLOOKUP(D122,四级成绩!B$2:C$178,2,FALSE) -> 557 | AS122: =VLOOKUP(D122,必修课优良率!A$1:D$173,4,FALSE) -> 否
A123: 120 | B123: 114 | C123: 2024010488 | D123: 郭圣元 | E123: =VLOOKUP(D123,美育!B$2:E$182,2,FALSE) -> 化工类24-2班 | F123: =VLOOKUP(D123,互评分!C$2:F$181,4,FALSE) -> 96.5357 | G123: =VLOOKUP(D123,辅导员加分!B$2:C$176,2,FALSE) -> 92.0000 | H123: =VLOOKUP(D123,互评分!C$2:F$181,3,FALSE) -> 98.3333 | I123: =VLOOKUP(D123,互评分!C$2:F$181,2,FALSE) -> 91.0000 | J123: =F123*0.2 -> 19.3071 | K123: =G123*0.5 -> 46.0000 | L123: =H123*0.2 -> 19.6667 | M123: =I123*0.1 -> 9.1000 | N123: =SUM(J123:M123)*0.7 -> 65.8517 | O123: =VLOOKUP(D123,学生干部加分!A$1:C$140,3,FALSE) -> 4.0000 | P123: 0.0000 | Q123: 0.0000 | R123: =N123+O123+P123-Q123 -> 69.8517 | S123: =R123*0.15 -> 10.4778 | T123: =VLOOKUP(D123,[2]必修课成绩!C$59:BO$82,65,FALSE) -> 74.8415 | U123: =VLOOKUP(D123,[2]选修课成绩!C$60:BI$83,59,FALSE) -> 0.0000 | V123: =IF(U123>0,T123*0.9+U123*0.1,T123) -> 74.8415 | W123: 0.0000 | X123: =V123*0.85+W123 -> 63.6152 | Y123: =0.7*X123 -> 44.5307 | Z123: =VLOOKUP(D123,体测成绩!B$2:C$273,2,FALSE) -> 60.0000 | AA123: =VLOOKUP(D123,体育锻炼成绩!A$2:B$182,2,FALSE) -> 100.00 | AB123: =0.8*Z123 -> 48.0000 | AC123: =AA123*0.2 -> 20.0000 | AD123: =SUM(AB123:AC123)*0.7 -> 47.6000 | AE123: 0.0000 | AF123: =AD123+AE123 -> 47.6000 | AG123: =AF123*0.05 -> 2.3800 | AH123: =VLOOKUP(D123,美育!B$2:F$182,5,FALSE) -> 40.0000 | AI123: =VLOOKUP(D123,美育!B$2:E$182,4,FALSE) -> 0.0000 | AJ123: =AH123+AI123 -> 40.0000 | AK123: =AJ123*0.05 -> 2.0000 | AL123: =VLOOKUP(D123,劳育基础分!B$3:AF$182,31,FALSE) -> 40.0000 | AM123: 0.0000 | AN123: =AL123+AM123 -> 40.0000 | AO123: =AN123*0.05 -> 2.0000 | AP123: =S123+Y123+AG123+AK123+AO123 -> 61.3884 | AQ123: =VLOOKUP(D123,必修课优良率!A$1:B$173,2,FALSE) -> 57.14% | AR123: =VLOOKUP(D123,四级成绩!B$2:C$178,2,FALSE) -> 419 | AS123: =VLOOKUP(D123,必修课优良率!A$1:D$173,4,FALSE) -> 否
A124: 121 | B124: 104 | C124: 2024010603 | D124: 彭天佑 | E124: =VLOOKUP(D124,美育!B$2:E$182,2,FALSE) -> 化工类24-5班 | F124: =VLOOKUP(D124,互评分!C$2:F$181,4,FALSE) -> 99.6296 | G124: =VLOOKUP(D124,辅导员加分!B$2:C$176,2,FALSE) -> 92.0000 | H124: =VLOOKUP(D124,互评分!C$2:F$181,3,FALSE) -> 100.0000 | I124: =VLOOKUP(D124,互评分!C$2:F$181,2,FALSE) -> 85.0000 | J124: =F124*0.2 -> 19.9259 | K124: =G124*0.5 -> 46.0000 | L124: =H124*0.2 -> 20.0000 | M124: =I124*0.1 -> 8.5000 | N124: =SUM(J124:M124)*0.7 -> 66.0981 | O124: =VLOOKUP(D124,学生干部加分!A$1:C$140,3,FALSE) -> 4.0000 | P124: 0.0000 | Q124: 0.0000 | R124: =N124+O124+P124-Q124 -> 70.0981 | S124: =R124*0.15 -> 10.5147 | T124: 75.6310 | U124: 0.0000 | V124: =IF(U124>0,T124*0.9+U124*0.1,T124) -> 75.6310 | W124: 0.0000 | X124: =V124*0.85+W124 -> 64.2863 | Y124: =0.7*X124 -> 45.0004 | Z124: =VLOOKUP(D124,体测成绩!B$2:C$273,2,FALSE) -> 69.2000 | AA124: =VLOOKUP(D124,体育锻炼成绩!A$2:B$182,2,FALSE) -> 100.00 | AB124: =0.8*Z124 -> 55.3600 | AC124: =AA124*0.2 -> 20.0000 | AD124: =SUM(AB124:AC124)*0.7 -> 52.7520 | AE124: 0.0000 | AF124: =AD124+AE124 -> 52.7520 | AG124: =AF124*0.05 -> 2.6376 | AH124: =VLOOKUP(D124,美育!B$2:F$182,5,FALSE) -> 20.0000 | AI124: =VLOOKUP(D124,美育!B$2:E$182,4,FALSE) -> 0.0000 | AJ124: =AH124+AI124 -> 20.0000 | AK124: =AJ124*0.05 -> 1.0000 | AL124: =VLOOKUP(D124,劳育基础分!B$3:AF$182,31,FALSE) -> 42.5000 | AM124: 0.0000 | AN124: =AL124+AM124 -> 42.5000 | AO124: =AN124*0.05 -> 2.1250 | AP124: =S124+Y124+AG124+AK124+AO124 -> 61.2777 | AQ124: =VLOOKUP(D124,必修课优良率!A$1:B$173,2,FALSE) -> 52.38% | AR124: =VLOOKUP(D124,四级成绩!B$2:C$178,2,FALSE) -> 425 | AS124: =VLOOKUP(D124,必修课优良率!A$1:D$173,4,FALSE) -> 是
A125: 122 | B125: 132 | C125: 2024010610 | D125: 姜柏彤 | E125: =VLOOKUP(D125,美育!B$2:E$182,2,FALSE) -> 化工类24-6班 | F125: =VLOOKUP(D125,互评分!C$2:F$181,4,FALSE) -> 98.8846 | G125: =VLOOKUP(D125,辅导员加分!B$2:C$176,2,FALSE) -> 94.0000 | H125: =VLOOKUP(D125,互评分!C$2:F$181,3,FALSE) -> 100.0000 | I125: =VLOOKUP(D125,互评分!C$2:F$181,2,FALSE) -> 100.0000 | J125: =F125*0.2 -> 19.7769 | K125: =G125*0.5 -> 47.0000 | L125: =H125*0.2 -> 20.0000 | M125: =I125*0.1 -> 10.0000 | N125: =SUM(J125:M125)*0.7 -> 67.7438 | O125: =VLOOKUP(D125,学生干部加分!A$1:C$140,3,FALSE) -> 8.0000 | P125: 0.0000 | Q125: 0.0000 | R125: =N125+O125+P125-Q125 -> 75.7438 | S125: =R125*0.15 -> 11.3616 | T125: =VLOOKUP(D125,[1]必修课成绩!C$71:AE$100,29,FALSE) -> 73.5500 | U125: =VLOOKUP(D125,[1]选修课成绩!C$72:AC$101,27,FALSE) -> 78.0000 | V125: =IF(U125>0,T125*0.9+U125*0.1,T125) -> 73.9950 | W125: 0.0000 | X125: =V125*0.85+W125 -> 62.8958 | Y125: =0.7*X125 -> 44.0270 | Z125: =VLOOKUP(D125,体测成绩!B$2:C$273,2,FALSE) -> 76.4000 | AA125: =VLOOKUP(D125,体育锻炼成绩!A$2:B$182,2,FALSE) -> 100.00 | AB125: =0.8*Z125 -> 61.1200 | AC125: =AA125*0.2 -> 20.0000 | AD125: =SUM(AB125:AC125)*0.7 -> 56.7840 | AE125: 0.0000 | AF125: =AD125+AE125 -> 56.7840 | AG125: =AF125*0.05 -> 2.8392 | AH125: =VLOOKUP(D125,美育!B$2:F$182,5,FALSE) -> 20.0000 | AI125: =VLOOKUP(D125,美育!B$2:E$182,4,FALSE) -> 0.0000 | AJ125: =AH125+AI125 -> 20.0000 | AK125: =AJ125*0.05 -> 1.0000 | AL125: =VLOOKUP(D125,劳育基础分!B$3:AF$182,31,FALSE) -> 40.0000 | AM125: 0.0000 | AN125: =AL125+AM125 -> 40.0000 | AO125: =AN125*0.05 -> 2.0000 | AP125: =S125+Y125+AG125+AK125+AO125 -> 61.2278 | AQ125: =VLOOKUP(D125,必修课优良率!A$1:B$173,2,FALSE) -> 61.90% | AR125: =VLOOKUP(D125,四级成绩!B$2:C$178,2,FALSE) -> 522 | AS125: =VLOOKUP(D125,必修课优良率!A$1:D$173,4,FALSE) -> 否
A126: 123 | B126: 91 | C126: 2024010463 | D126: 杨子惠 | E126: =VLOOKUP(D126,美育!B$2:E$182,2,FALSE) -> 化工类24-1班 | F126: =VLOOKUP(D126,互评分!C$2:F$181,4,FALSE) -> 97.0000 | G126: =VLOOKUP(D126,辅导员加分!B$2:C$176,2,FALSE) -> 92.0000 | H126: =VLOOKUP(D126,互评分!C$2:F$181,3,FALSE) -> 100.0000 | I126: =VLOOKUP(D126,互评分!C$2:F$181,2,FALSE) -> 99.0000 | J126: =F126*0.2 -> 19.4000 | K126: =G126*0.5 -> 46.0000 | L126: =H126*0.2 -> 20.0000 | M126: =I126*0.1 -> 9.9000 | N126: =SUM(J126:M126)*0.7 -> 66.7100 | O126: 0.0000 | P126: 0.0000 | Q126: 0.0000 | R126: =N126+O126+P126-Q126 -> 66.7100 | S126: =R126*0.15 -> 10.0065 | T126: 77.0732 | U126: 61.0000 | V126: =IF(U126>0,T126*0.9+U126*0.1,T126) -> 75.4659 | W126: 0.0000 | X126: =V126*0.85+W126 -> 64.1460 | Y126: =0.7*X126 -> 44.9022 | Z126: =VLOOKUP(D126,体测成绩!B$2:C$273,2,FALSE) -> 78.2000 | AA126: =VLOOKUP(D126,体育锻炼成绩!A$2:B$182,2,FALSE) -> 100.00 | AB126: =0.8*Z126 -> 62.5600 | AC126: =AA126*0.2 -> 20.0000 | AD126: =SUM(AB126:AC126)*0.7 -> 57.7920 | AE126: 0.0000 | AF126: =AD126+AE126 -> 57.7920 | AG126: =AF126*0.05 -> 2.8896 | AH126: =VLOOKUP(D126,美育!B$2:F$182,5,FALSE) -> 30.0000 | AI126: =VLOOKUP(D126,美育!B$2:E$182,4,FALSE) -> 0.0000 | AJ126: =AH126+AI126 -> 30.0000 | AK126: =AJ126*0.05 -> 1.5000 | AL126: =VLOOKUP(D126,劳育基础分!B$3:AF$182,31,FALSE) -> 35.0000 | AM126: 0.0000 | AN126: =AL126+AM126 -> 35.0000 | AO126: =AN126*0.05 -> 1.7500 | AP126: =S126+Y126+AG126+AK126+AO126 -> 61.0483 | AQ126: =VLOOKUP(D126,必修课优良率!A$1:B$173,2,FALSE) -> 57.14% | AR126: =VLOOKUP(D126,四级成绩!B$2:C$178,2,FALSE) -> 475 | AS126: =VLOOKUP(D126,必修课优良率!A$1:D$173,4,FALSE) -> 否
A127: 124 | B127: 74 | C127: 2024010618 | D127: 肖港权 | E127: =VLOOKUP(D127,美育!B$2:E$182,2,FALSE) -> 化工类24-6班 | F127: =VLOOKUP(D127,互评分!C$2:F$181,4,FALSE) -> 98.4615 | G127: =VLOOKUP(D127,辅导员加分!B$2:C$176,2,FALSE) -> 92.0000 | H127: =VLOOKUP(D127,互评分!C$2:F$181,3,FALSE) -> 100.0000 | I127: =VLOOKUP(D127,互评分!C$2:F$181,2,FALSE) -> 100.0000 | J127: =F127*0.2 -> 19.6923 | K127: =G127*0.5 -> 46.0000 | L127: =H127*0.2 -> 20.0000 | M127: =I127*0.1 -> 10.0000 | N127: =SUM(J127:M127)*0.7 -> 66.9846 | O127: 0.0000 | P127: 0.0000 | Q127: 0.0000 | R127: =N127+O127+P127-Q127 -> 66.9846 | S127: =R127*0.15 -> 10.0477 | T127: 78.8049 | U127: 83.0000 | V127: =IF(U127>0,T127*0.9+U127*0.1,T127) -> 79.2244 | W127: 0.0000 | X127: =V127*0.85+W127 -> 67.3407 | Y127: =0.7*X127 -> 47.1385 | Z127: =VLOOKUP(D127,体测成绩!B$2:C$273,2,FALSE) -> 69.3000 | AA127: =VLOOKUP(D127,体育锻炼成绩!A$2:B$182,2,FALSE) -> 100.00 | AB127: =0.8*Z127 -> 55.4400 | AC127: =AA127*0.2 -> 20.0000 | AD127: =SUM(AB127:AC127)*0.7 -> 52.8080 | AE127: 0.0000 | AF127: =AD127+AE127 -> 52.8080 | AG127: =AF127*0.05 -> 2.6404 | AH127: =VLOOKUP(D127,美育!B$2:F$182,5,FALSE) -> 0.0000 | AI127: =VLOOKUP(D127,美育!B$2:E$182,4,FALSE) -> 0.0000 | AJ127: =AH127+AI127 -> 0.0000 | AK127: =AJ127*0.05 -> 0.0000 | AL127: =VLOOKUP(D127,劳育基础分!B$3:AF$182,31,FALSE) -> 20.0000 | AM127: 0.0000 | AN127: =AL127+AM127 -> 20.0000 | AO127: =AN127*0.05 -> 1.0000 | AP127: =S127+Y127+AG127+AK127+AO127 -> 60.8266 | AQ127: =VLOOKUP(D127,必修课优良率!A$1:B$173,2,FALSE) -> 57.14% | AR127: =VLOOKUP(D127,四级成绩!B$2:C$178,2,FALSE) -> 524 | AS127: =VLOOKUP(D127,必修课优良率!A$1:D$173,4,FALSE) -> 否
A128: 125 | B128: 94 | C128: 2024010567 | D128: 张玉杨 | E128: =VLOOKUP(D128,美育!B$2:E$182,2,FALSE) -> 化工类24-4班 | F128: =VLOOKUP(D128,互评分!C$2:F$181,4,FALSE) -> 96.6786 | G128: =VLOOKUP(D128,辅导员加分!B$2:C$176,2,FALSE) -> 92.0000 | H128: =VLOOKUP(D128,互评分!C$2:F$181,3,FALSE) -> 95.7143 | I128: =VLOOKUP(D128,互评分!C$2:F$181,2,FALSE) -> 100.0000 | J128: =F128*0.2 -> 19.3357 | K128: =G128*0.5 -> 46.0000 | L128: =H128*0.2 -> 19.1429 | M128: =I128*0.1 -> 10.0000 | N128: =SUM(J128:M128)*0.7 -> 66.1350 | O128: =VLOOKUP(D128,学生干部加分!A$1:C$140,3,FALSE) -> 4.0000 | P128: 0.0000 | Q128: 0.0000 | R128: =N128+O128+P128-Q128 -> 70.1350 | S128: =R128*0.15 -> 10.5203 | T128: =VLOOKUP(D128,[1]必修课成绩!C$71:AE$100,29,FALSE) -> 76.9250 | U128: =VLOOKUP(D128,[1]选修课成绩!C$72:AC$101,27,FALSE) -> 0.0000 | V128: =IF(U128>0,T128*0.9+U128*0.1,T128) -> 76.9250 | W128: 0.0000 | X128: =V128*0.85+W128 -> 65.3863 | Y128: =0.7*X128 -> 45.7704 | Z128: =VLOOKUP(D128,体测成绩!B$2:C$273,2,FALSE) -> 88.9000 | AA128: =VLOOKUP(D128,体育锻炼成绩!A$2:B$182,2,FALSE) -> 100.0000 | AB128: =0.8*Z128 -> 71.1200 | AC128: =AA128*0.2 -> 20.0000 | AD128: =SUM(AB128:AC128)*0.7 -> 63.7840 | AE128: 0.0000 | AF128: =AD128+AE128 -> 63.7840 | AG128: =AF128*0.05 -> 3.1892 | AH128: =VLOOKUP(D128,美育!B$2:F$182,5,FALSE) -> 5.0000 | AI128: =VLOOKUP(D128,美育!B$2:E$182,4,FALSE) -> 0.0000 | AJ128: =AH128+AI128 -> 5.0000 | AK128: =AJ128*0.05 -> 0.2500 | AL128: =VLOOKUP(D128,劳育基础分!B$3:AF$182,31,FALSE) -> 21.0000 | AM128: 0.0000 | AN128: =AL128+AM128 -> 21.0000 | AO128: =AN128*0.05 -> 1.0500 | AP128: =S128+Y128+AG128+AK128+AO128 -> 60.7798 | AQ128: =VLOOKUP(D128,必修课优良率!A$1:B$173,2,FALSE) -> 61.90% | AR128: =VLOOKUP(D128,四级成绩!B$2:C$178,2,FALSE) -> 548 | AS128: =VLOOKUP(D128,必修课优良率!A$1:D$173,4,FALSE) -> 否
A129: 126 | B129: 78 | C129: 2024010559 | D129: 郑翔鸿 | E129: =VLOOKUP(D129,美育!B$2:E$182,2,FALSE) -> 化工类24-4班 | F129: =VLOOKUP(D129,互评分!C$2:F$181,4,FALSE) -> 95.7500 | G129: =VLOOKUP(D129,辅导员加分!B$2:C$176,2,FALSE) -> 92.0000 | H129: =VLOOKUP(D129,互评分!C$2:F$181,3,FALSE) -> 95.1429 | I129: =VLOOKUP(D129,互评分!C$2:F$181,2,FALSE) -> 100.0000 | J129: =F129*0.2 -> 19.1500 | K129: =G129*0.5 -> 46.0000 | L129: =H129*0.2 -> 19.0286 | M129: =I129*0.1 -> 10.0000 | N129: =SUM(J129:M129)*0.7 -> 65.9250 | O129: 0.0000 | P129: 0.0000 | Q129: 0.0000 | R129: =N129+O129+P129-Q129 -> 65.9250 | S129: =R129*0.15 -> 9.8888 | T129: =VLOOKUP(D129,[2]必修课成绩!C$59:BO$82,65,FALSE) -> 78.4268 | U129: =VLOOKUP(D129,[2]选修课成绩!C$60:BI$83,59,FALSE) -> 75.0000 | V129: =IF(U129>0,T129*0.9+U129*0.1,T129) -> 78.0841 | W129: 0.0000 | X129: =V129*0.85+W129 -> 66.3715 | Y129: =0.7*X129 -> 46.4601 | Z129: =VLOOKUP(D129,体测成绩!B$2:C$273,2,FALSE) -> 60.0000 | AA129: 100.0000 | AB129: =0.8*Z129 -> 48.0000 | AC129: =AA129*0.2 -> 20.0000 | AD129: =SUM(AB129:AC129)*0.7 -> 47.6000 | AE129: 0.0000 | AF129: =AD129+AE129 -> 47.6000 | AG129: =AF129*0.05 -> 2.3800 | AH129: =VLOOKUP(D129,美育!B$2:F$182,5,FALSE) -> 15.0000 | AI129: =VLOOKUP(D129,美育!B$2:E$182,4,FALSE) -> 0.0000 | AJ129: =AH129+AI129 -> 15.0000 | AK129: =AJ129*0.05 -> 0.7500 | AL129: =VLOOKUP(D129,劳育基础分!B$3:AF$182,31,FALSE) -> 25.0000 | AM129: 0.0000 | AN129: =AL129+AM129 -> 25.0000 | AO129: =AN129*0.05 -> 1.2500 | AP129: =S129+Y129+AG129+AK129+AO129 -> 60.7288 | AQ129: =VLOOKUP(D129,必修课优良率!A$1:B$173,2,FALSE) -> 57.14% | AR129: =VLOOKUP(D129,四级成绩!B$2:C$178,2,FALSE) -> 462 | AS129: =VLOOKUP(D129,必修课优良率!A$1:D$173,4,FALSE) -> 否
A130: 127 | B130: 86 | C130: 2024010507 | D130: 赵佳富 | E130: =VLOOKUP(D130,美育!B$2:E$182,2,FALSE) -> 化工类24-2班 | F130: =VLOOKUP(D130,互评分!C$2:F$181,4,FALSE) -> 97.0000 | G130: =VLOOKUP(D130,辅导员加分!B$2:C$176,2,FALSE) -> 90.0000 | H130: =VLOOKUP(D130,互评分!C$2:F$181,3,FALSE) -> 96.6667 | I130: =VLOOKUP(D130,互评分!C$2:F$181,2,FALSE) -> 89.0000 | J130: =F130*0.2 -> 19.4000 | K130: =G130*0.5 -> 45.0000 | L130: =H130*0.2 -> 19.3333 | M130: =I130*0.1 -> 8.9000 | N130: =SUM(J130:M130)*0.7 -> 64.8433 | O130: =VLOOKUP(D130,学生干部加分!A$1:C$140,3,FALSE) -> 4.0000 | P130: 0.0000 | Q130: 0.0000 | R130: =N130+O130+P130-Q130 -> 68.8433 | S130: =R130*0.15 -> 10.3265 | T130: 77.4512 | U130: 82.0000 | V130: =IF(U130>0,T130*0.9+U130*0.1,T130) -> 77.9061 | W130: 0.0000 | X130: =V130*0.85+W130 -> 66.2202 | Y130: =0.7*X130 -> 46.3541 | Z130: =VLOOKUP(D130,体测成绩!B$2:C$273,2,FALSE) -> 58.0000 | AA130: =VLOOKUP(D130,体育锻炼成绩!A$2:B$182,2,FALSE) -> 100.00 | AB130: =0.8*Z130 -> 46.4000 | AC130: =AA130*0.2 -> 20.0000 | AD130: =SUM(AB130:AC130)*0.7 -> 46.4800 | AE130: 0.0000 | AF130: =AD130+AE130 -> 46.4800 | AG130: =AF130*0.05 -> 2.3240 | AH130: =VLOOKUP(D130,美育!B$2:F$182,5,FALSE) -> 5.0000 | AI130: =VLOOKUP(D130,美育!B$2:E$182,4,FALSE) -> 0.0000 | AJ130: =AH130+AI130 -> 5.0000 | AK130: =AJ130*0.05 -> 0.2500 | AL130: =VLOOKUP(D130,劳育基础分!B$3:AF$182,31,FALSE) -> 27.0000 | AM130: 0.0000 | AN130: =AL130+AM130 -> 27.0000 | AO130: =AN130*0.05 -> 1.3500 | AP130: =S130+Y130+AG130+AK130+AO130 -> 60.6046 | AQ130: =VLOOKUP(D130,必修课优良率!A$1:B$173,2,FALSE) -> 57.14% | AR130: =VLOOKUP(D130,四级成绩!B$2:C$178,2,FALSE) -> 472 | AS130: =VLOOKUP(D130,必修课优良率!A$1:D$173,4,FALSE) -> 否
A131: 128 | B131: 99 | C131: 2024010622 | D131: 李宇春 | E131: =VLOOKUP(D131,美育!B$2:E$182,2,FALSE) -> 化工类24-6班 | F131: =VLOOKUP(D131,互评分!C$2:F$181,4,FALSE) -> 98.4615 | G131: =VLOOKUP(D131,辅导员加分!B$2:C$176,2,FALSE) -> 92.0000 | H131: =VLOOKUP(D131,互评分!C$2:F$181,3,FALSE) -> 100.0000 | I131: =VLOOKUP(D131,互评分!C$2:F$181,2,FALSE) -> 100.0000 | J131: =F131*0.2 -> 19.6923 | K131: =G131*0.5 -> 46.0000 | L131: =H131*0.2 -> 20.0000 | M131: =I131*0.1 -> 10.0000 | N131: =SUM(J131:M131)*0.7 -> 66.9846 | O131: =VLOOKUP(D131,学生干部加分!A$1:C$140,3,FALSE) -> 4.0000 | P131: 0.0000 | Q131: 0.0000 | R131: =N131+O131+P131-Q131 -> 70.9846 | S131: =R131*0.15 -> 10.6477 | T131: 76.1585 | U131: 0.0000 | V131: =IF(U131>0,T131*0.9+U131*0.1,T131) -> 76.1585 | W131: 0.0000 | X131: =V131*0.85+W131 -> 64.7348 | Y131: =0.7*X131 -> 45.3143 | Z131: =VLOOKUP(D131,体测成绩!B$2:C$273,2,FALSE) -> 75.0000 | AA131: =VLOOKUP(D131,体育锻炼成绩!A$2:B$182,2,FALSE) -> 100.00 | AB131: =0.8*Z131 -> 60.0000 | AC131: =AA131*0.2 -> 20.0000 | AD131: =SUM(AB131:AC131)*0.7 -> 56.0000 | AE131: =VLOOKUP(D131,体育加分汇总!A$1:C$79,3,FALSE) -> 0.0000 | AF131: =AD131+AE131 -> 56.0000 | AG131: =AF131*0.05 -> 2.8000 | AH131: =VLOOKUP(D131,美育!B$2:F$182,5,FALSE) -> 15.0000 | AI131: =VLOOKUP(D131,美育!B$2:E$182,4,FALSE) -> 0.0000 | AJ131: =AH131+AI131 -> 15.0000 | AK131: =AJ131*0.05 -> 0.7500 | AL131: =VLOOKUP(D131,劳育基础分!B$3:AF$182,31,FALSE) -> 20.0000 | AM131: 0.0000 | AN131: =AL131+AM131 -> 20.0000 | AO131: =AN131*0.05 -> 1.0000 | AP131: =S131+Y131+AG131+AK131+AO131 -> 60.5120 | AQ131: =VLOOKUP(D131,必修课优良率!A$1:B$173,2,FALSE) -> 57.14% | AR131: =VLOOKUP(D131,四级成绩!B$2:C$178,2,FALSE) -> 384 | AS131: =VLOOKUP(D131,必修课优良率!A$1:D$173,4,FALSE) -> 否
A132: 129 | B132: 151 | C132: 2024010615 | D132: 刘钢彬 | E132: =VLOOKUP(D132,美育!B$2:E$182,2,FALSE) -> 化工类24-6班 | F132: =VLOOKUP(D132,互评分!C$2:F$181,4,FALSE) -> 99.2308 | G132: =VLOOKUP(D132,辅导员加分!B$2:C$176,2,FALSE) -> 92.0000 | H132: =VLOOKUP(D132,互评分!C$2:F$181,3,FALSE) -> 100.0000 | I132: =VLOOKUP(D132,互评分!C$2:F$181,2,FALSE) -> 100.0000 | J132: =F132*0.2 -> 19.8462 | K132: =G132*0.5 -> 46.0000 | L132: =H132*0.2 -> 20.0000 | M132: =I132*0.1 -> 10.0000 | N132: =SUM(J132:M132)*0.7 -> 67.0923 | O132: =VLOOKUP(D132,学生干部加分!A$1:C$140,3,FALSE) -> 6.0000 | P132: 0.0000 | Q132: 0.0000 | R132: =N132+O132+P132-Q132 -> 73.0923 | S132: =R132*0.15 -> 10.9638 | T132: 70.8462 | U132: 80.0000 | V132: =IF(U132>0,T132*0.9+U132*0.1,T132) -> 71.7615 | W132: 0.0000 | X132: =V132*0.85+W132 -> 60.9973 | Y132: =0.7*X132 -> 42.6981 | Z132: =VLOOKUP(D132,体测成绩!B$2:C$273,2,FALSE) -> 91.2000 | AA132: =VLOOKUP(D132,体育锻炼成绩!A$2:B$182,2,FALSE) -> 100.00 | AB132: =0.8*Z132 -> 72.9600 | AC132: =AA132*0.2 -> 20.0000 | AD132: =SUM(AB132:AC132)*0.7 -> 65.0720 | AE132: 0.0000 | AF132: =AD132+AE132 -> 65.0720 | AG132: =AF132*0.05 -> 3.2536 | AH132: =VLOOKUP(D132,美育!B$2:F$182,5,FALSE) -> 23.0000 | AI132: =VLOOKUP(D132,美育!B$2:E$182,4,FALSE) -> 0.0000 | AJ132: =AH132+AI132 -> 23.0000 | AK132: =AJ132*0.05 -> 1.1500 | AL132: =VLOOKUP(D132,劳育基础分!B$3:AF$182,31,FALSE) -> 43.0000 | AM132: 0.0000 | AN132: =AL132+AM132 -> 43.0000 | AO132: =AN132*0.05 -> 2.1500 | AP132: =S132+Y132+AG132+AK132+AO132 -> 60.2156 | AQ132: =VLOOKUP(D132,必修课优良率!A$1:B$173,2,FALSE) -> 47.62% | AR132: =VLOOKUP(D132,四级成绩!B$2:C$178,2,FALSE) -> 477 | AS132: =VLOOKUP(D132,必修课优良率!A$1:D$173,4,FALSE) -> 是
A133: 130 | B133: 103 | C133: 2024010531 | D133: 王崇南 | E133: =VLOOKUP(D133,美育!B$2:E$182,2,FALSE) -> 化工类24-3班 | F133: =VLOOKUP(D133,互评分!C$2:F$181,4,FALSE) -> 99.1111 | G133: =VLOOKUP(D133,辅导员加分!B$2:C$176,2,FALSE) -> 90.0000 | H133: =VLOOKUP(D133,互评分!C$2:F$181,3,FALSE) -> 100.0000 | I133: =VLOOKUP(D133,互评分!C$2:F$181,2,FALSE) -> 99.0000 | J133: =F133*0.2 -> 19.8222 | K133: =G133*0.5 -> 45.0000 | L133: =H133*0.2 -> 20.0000 | M133: =I133*0.1 -> 9.9000 | N133: =SUM(J133:M133)*0.7 -> 66.3056 | O133: 0.0000 | P133: 0.0000 | Q133: 0.0000 | R133: =N133+O133+P133-Q133 -> 66.3056 | S133: =R133*0.15 -> 9.9458 | T133: 75.6786 | U133: 0.0000 | V133: =IF(U133>0,T133*0.9+U133*0.1,T133) -> 75.6786 | W133: 0.0000 | X133: =V133*0.85+W133 -> 64.3268 | Y133: =0.7*X133 -> 45.0288 | Z133: =VLOOKUP(D133,体测成绩!B$2:C$273,2,FALSE) -> 74.1000 | AA133: =VLOOKUP(D133,体育锻炼成绩!A$2:B$182,2,FALSE) -> 100.00 | AB133: =0.8*Z133 -> 59.2800 | AC133: =AA133*0.2 -> 20.0000 | AD133: =SUM(AB133:AC133)*0.7 -> 55.4960 | AE133: 0.0000 | AF133: =AD133+AE133 -> 55.4960 | AG133: =AF133*0.05 -> 2.7748 | AH133: =VLOOKUP(D133,美育!B$2:F$182,5,FALSE) -> 23.0000 | AI133: =VLOOKUP(D133,美育!B$2:E$182,4,FALSE) -> 0.0000 | AJ133: =AH133+AI133 -> 23.0000 | AK133: =AJ133*0.05 -> 1.1500 | AL133: =VLOOKUP(D133,劳育基础分!B$3:AF$182,31,FALSE) -> 24.0000 | AM133: 0.0000 | AN133: =AL133+AM133 -> 24.0000 | AO133: =AN133*0.05 -> 1.2000 | AP133: =S133+Y133+AG133+AK133+AO133 -> 60.0994 | AQ133: =VLOOKUP(D133,必修课优良率!A$1:B$173,2,FALSE) -> 61.90% | AR133: =VLOOKUP(D133,四级成绩!B$2:C$178,2,FALSE) -> 412 | AS133: =VLOOKUP(D133,必修课优良率!A$1:D$173,4,FALSE) -> 否
A134: 131 | B134: 158 | C134: 2024010592 | D134: 罗晓珍 | E134: =VLOOKUP(D134,美育!B$2:E$182,2,FALSE) -> 化工类24-5班 | F134: =VLOOKUP(D134,互评分!C$2:F$181,4,FALSE) -> 99.6296 | G134: =VLOOKUP(D134,辅导员加分!B$2:C$176,2,FALSE) -> 90.0000 | H134: =VLOOKUP(D134,互评分!C$2:F$181,3,FALSE) -> 100.0000 | I134: =VLOOKUP(D134,互评分!C$2:F$181,2,FALSE) -> 85.0000 | J134: =F134*0.2 -> 19.9259 | K134: =G134*0.5 -> 45.0000 | L134: =H134*0.2 -> 20.0000 | M134: =I134*0.1 -> 8.5000 | N134: =SUM(J134:M134)*0.7 -> 65.3981 | O134: =VLOOKUP(D134,学生干部加分!A$1:C$140,3,FALSE) -> 5.0000 | P134: 0.0000 | Q134: 0.0000 | R134: =N134+O134+P134-Q134 -> 70.3981 | S134: =R134*0.15 -> 10.5597 | T134: 68.4878 | U134: 78.0000 | V134: =IF(U134>0,T134*0.9+U134*0.1,T134) -> 69.4390 | W134: 0.0000 | X134: =V134*0.85+W134 -> 59.0232 | Y134: =0.7*X134 -> 41.3162 | Z134: =VLOOKUP(D134,体测成绩!B$2:C$273,2,FALSE) -> 86.2000 | AA134: =VLOOKUP(D134,体育锻炼成绩!A$2:B$182,2,FALSE) -> 100.00 | AB134: =0.8*Z134 -> 68.9600 | AC134: =AA134*0.2 -> 20.0000 | AD134: =SUM(AB134:AC134)*0.7 -> 62.2720 | AE134: =VLOOKUP(D134,体育加分汇总!A$1:C$79,3,FALSE) -> 6.0000 | AF134: =AD134+AE134 -> 68.2720 | AG134: =AF134*0.05 -> 3.4136 | AH134: =VLOOKUP(D134,美育!B$2:F$182,5,FALSE) -> 51.0000 | AI134: =VLOOKUP(D134,美育!B$2:E$182,4,FALSE) -> 0.0000 | AJ134: =AH134+AI134 -> 51.0000 | AK134: =AJ134*0.05 -> 2.5500 | AL134: =VLOOKUP(D134,劳育基础分!B$3:AF$182,31,FALSE) -> 43.5000 | AM134: 0.0000 | AN134: =AL134+AM134 -> 43.5000 | AO134: =AN134*0.05 -> 2.1750 | AP134: =S134+Y134+AG134+AK134+AO134 -> 60.0145 | AQ134: =VLOOKUP(D134,必修课优良率!A$1:B$173,2,FALSE) -> 42.86% | AR134: =VLOOKUP(D134,四级成绩!B$2:C$178,2,FALSE) -> 380 | AS134: =VLOOKUP(D134,必修课优良率!A$1:D$173,4,FALSE) -> 是
A135: 132 | B135: 143 | C135: 2024010575 | D135: 寇笑源 | E135: =VLOOKUP(D135,美育!B$2:E$182,2,FALSE) -> 化工类24-4班 | F135: =VLOOKUP(D135,互评分!C$2:F$181,4,FALSE) -> 96.6429 | G135: =VLOOKUP(D135,辅导员加分!B$2:C$176,2,FALSE) -> 94.0000 | H135: =VLOOKUP(D135,互评分!C$2:F$181,3,FALSE) -> 95.5714 | I135: =VLOOKUP(D135,互评分!C$2:F$181,2,FALSE) -> 100.0000 | J135: =F135*0.2 -> 19.3286 | K135: =G135*0.5 -> 47.0000 | L135: =H135*0.2 -> 19.1143 | M135: =I135*0.1 -> 10.0000 | N135: =SUM(J135:M135)*0.7 -> 66.8100 | O135: =VLOOKUP(D135,学生干部加分!A$1:C$140,3,FALSE) -> 6.0000 | P135: 0.0000 | Q135: 0.0000 | R135: =N135+O135+P135-Q135 -> 72.8100 | S135: =R135*0.15 -> 10.9215 | T135: =VLOOKUP(D135,[2]必修课成绩!C$59:BO$82,65,FALSE) -> 72.0976 | U135: =VLOOKUP(D135,[2]选修课成绩!C$60:BI$83,59,FALSE) -> 0.0000 | V135: =IF(U135>0,T135*0.9+U135*0.1,T135) -> 72.0976 | W135: 0.0000 | X135: =V135*0.85+W135 -> 61.2829 | Y135: =0.7*X135 -> 42.8980 | Z135: =VLOOKUP(D135,体测成绩!B$2:C$273,2,FALSE) -> 80.4000 | AA135: =VLOOKUP(D135,体育锻炼成绩!A$2:B$182,2,FALSE) -> 100.00 | AB135: =0.8*Z135 -> 64.3200 | AC135: =AA135*0.2 -> 20.0000 | AD135: =SUM(AB135:AC135)*0.7 -> 59.0240 | AE135: 0.0000 | AF135: =AD135+AE135 -> 59.0240 | AG135: =AF135*0.05 -> 2.9512 | AH135: =VLOOKUP(D135,美育!B$2:F$182,5,FALSE) -> 20.0000 | AI135: =VLOOKUP(D135,美育!B$2:E$182,4,FALSE) -> 0.0000 | AJ135: =AH135+AI135 -> 20.0000 | AK135: =AJ135*0.05 -> 1.0000 | AL135: =VLOOKUP(D135,劳育基础分!B$3:AF$182,31,FALSE) -> 40.0000 | AM135: 0.0000 | AN135: =AL135+AM135 -> 40.0000 | AO135: =AN135*0.05 -> 2.0000 | AP135: =S135+Y135+AG135+AK135+AO135 -> 59.7707 | AQ135: =VLOOKUP(D135,必修课优良率!A$1:B$173,2,FALSE) -> 42.86% | AR135: =VLOOKUP(D135,四级成绩!B$2:C$178,2,FALSE) -> 508 | AS135: =VLOOKUP(D135,必修课优良率!A$1:D$173,4,FALSE) -> 是
A136: 133 | B136: 111 | C136: 2024010545 | D136: 徐旋 | E136: =VLOOKUP(D136,美育!B$2:E$182,2,FALSE) -> 化工类24-3班 | F136: =VLOOKUP(D136,互评分!C$2:F$181,4,FALSE) -> 98.9643 | G136: =VLOOKUP(D136,辅导员加分!B$2:C$176,2,FALSE) -> 92.0000 | H136: =VLOOKUP(D136,互评分!C$2:F$181,3,FALSE) -> 100.0000 | I136: =VLOOKUP(D136,互评分!C$2:F$181,2,FALSE) -> 99.0000 | J136: =F136*0.2 -> 19.7929 | K136: =G136*0.5 -> 46.0000 | L136: =H136*0.2 -> 20.0000 | M136: =I136*0.1 -> 9.9000 | N136: =SUM(J136:M136)*0.7 -> 66.9850 | O136: 0.0000 | P136: 0.0000 | Q136: 0.0000 | R136: =N136+O136+P136-Q136 -> 66.9850 | S136: =R136*0.15 -> 10.0478 | T136: =VLOOKUP(D136,[1]必修课成绩!C$71:AE$100,29,FALSE) -> 75.1000 | U136: =VLOOKUP(D136,[1]选修课成绩!C$72:AC$101,27,FALSE) -> 0.0000 | V136: =IF(U136>0,T136*0.9+U136*0.1,T136) -> 75.1000 | W136: 0.0000 | X136: =V136*0.85+W136 -> 63.8350 | Y136: =0.7*X136 -> 44.6845 | Z136: =VLOOKUP(D136,体测成绩!B$2:C$273,2,FALSE) -> 76.3000 | AA136: =VLOOKUP(D136,体育锻炼成绩!A$2:B$182,2,FALSE) -> 100.00 | AB136: =0.8*Z136 -> 61.0400 | AC136: =AA136*0.2 -> 20.0000 | AD136: =SUM(AB136:AC136)*0.7 -> 56.7280 | AE136: =VLOOKUP(D136,体育加分汇总!A$1:C$79,3,FALSE) -> 4.0000 | AF136: =AD136+AE136 -> 60.7280 | AG136: =AF136*0.05 -> 3.0364 | AH136: =VLOOKUP(D136,美育!B$2:F$182,5,FALSE) -> 10.0000 | AI136: =VLOOKUP(D136,美育!B$2:E$182,4,FALSE) -> 0.0000 | AJ136: =AH136+AI136 -> 10.0000 | AK136: =AJ136*0.05 -> 0.5000 | AL136: =VLOOKUP(D136,劳育基础分!B$3:AF$182,31,FALSE) -> 29.0000 | AM136: 0.0000 | AN136: =AL136+AM136 -> 29.0000 | AO136: =AN136*0.05 -> 1.4500 | AP136: =S136+Y136+AG136+AK136+AO136 -> 59.7187 | AQ136: =VLOOKUP(D136,必修课优良率!A$1:B$173,2,FALSE) -> 66.67% | AR136: =VLOOKUP(D136,四级成绩!B$2:C$178,2,FALSE) -> 428 | AS136: =VLOOKUP(D136,必修课优良率!A$1:D$173,4,FALSE) -> 是
A137: 134 | B137: 77 | C137: 2024010471 | D137: 王路寒 | E137: =VLOOKUP(D137,美育!B$2:E$182,2,FALSE) -> 化工类24-1班 | F137: =VLOOKUP(D137,互评分!C$2:F$181,4,FALSE) -> 98.7778 | G137: =VLOOKUP(D137,辅导员加分!B$2:C$176,2,FALSE) -> 92.0000 | H137: =VLOOKUP(D137,互评分!C$2:F$181,3,FALSE) -> 99.1667 | I137: =VLOOKUP(D137,互评分!C$2:F$181,2,FALSE) -> 98.0000 | J137: =F137*0.2 -> 19.7556 | K137: =G137*0.5 -> 46.0000 | L137: =H137*0.2 -> 19.8333 | M137: =I137*0.1 -> 9.8000 | N137: =SUM(J137:M137)*0.7 -> 66.7722 | O137: =VLOOKUP(D137,学生干部加分!A$1:C$140,3,FALSE) -> 2.0000 | P137: 0.0000 | Q137: 0.0000 | R137: =N137+O137+P137-Q137 -> 68.7722 | S137: =R137*0.15 -> 10.3158 | T137: 78.4390 | U137: 60.0000 | V137: =IF(U137>0,T137*0.9+U137*0.1,T137) -> 76.5951 | W137: 0.0000 | X137: =V137*0.85+W137 -> 65.1059 | Y137: =0.7*X137 -> 45.5741 | Z137: =VLOOKUP(D137,体测成绩!B$2:C$273,2,FALSE) -> 60.0000 | AA137: =VLOOKUP(D137,体育锻炼成绩!A$2:B$182,2,FALSE) -> 100.0000 | AB137: =0.8*Z137 -> 48.0000 | AC137: =AA137*0.2 -> 20.0000 | AD137: =SUM(AB137:AC137)*0.7 -> 47.6000 | AE137: 0.0000 | AF137: =AD137+AE137 -> 47.6000 | AG137: =AF137*0.05 -> 2.3800 | AH137: =VLOOKUP(D137,美育!B$2:F$182,5,FALSE) -> 0.0000 | AI137: =VLOOKUP(D137,美育!B$2:E$182,4,FALSE) -> 0.0000 | AJ137: =AH137+AI137 -> 0.0000 | AK137: =AJ137*0.05 -> 0.0000 | AL137: =VLOOKUP(D137,劳育基础分!B$3:AF$182,31,FALSE) -> 28.0000 | AM137: 0.0000 | AN137: =AL137+AM137 -> 28.0000 | AO137: =AN137*0.05 -> 1.4000 | AP137: =S137+Y137+AG137+AK137+AO137 -> 59.6699 | AQ137: =VLOOKUP(D137,必修课优良率!A$1:B$173,2,FALSE) -> 38.10% | AR137: =VLOOKUP(D137,四级成绩!B$2:C$178,2,FALSE) -> 442 | AS137: =VLOOKUP(D137,必修课优良率!A$1:D$173,4,FALSE) -> 否
A138: 135 | B138: 107 | C138: 2024010509 | D138: 孙铭徽 | E138: =VLOOKUP(D138,美育!B$2:E$182,2,FALSE) -> 化工类24-2班 | F138: =VLOOKUP(D138,互评分!C$2:F$181,4,FALSE) -> 96.7143 | G138: =VLOOKUP(D138,辅导员加分!B$2:C$176,2,FALSE) -> 92.0000 | H138: =VLOOKUP(D138,互评分!C$2:F$181,3,FALSE) -> 98.3333 | I138: =VLOOKUP(D138,互评分!C$2:F$181,2,FALSE) -> 92.0000 | J138: =F138*0.2 -> 19.3429 | K138: =G138*0.5 -> 46.0000 | L138: =H138*0.2 -> 19.6667 | M138: =I138*0.1 -> 9.2000 | N138: =SUM(J138:M138)*0.7 -> 65.9467 | O138: 0.0000 | P138: 0.0000 | Q138: 0.0000 | R138: =N138+O138+P138-Q138 -> 65.9467 | S138: =R138*0.15 -> 9.8920 | T138: 75.2927 | U138: 61.5000 | V138: =IF(U138>0,T138*0.9+U138*0.1,T138) -> 73.9134 | W138: 0.0000 | X138: =V138*0.85+W138 -> 62.8264 | Y138: =0.7*X138 -> 43.9785 | Z138: =VLOOKUP(D138,体测成绩!B$2:C$273,2,FALSE) -> 69.0000 | AA138: =VLOOKUP(D138,体育锻炼成绩!A$2:B$182,2,FALSE) -> 100.00 | AB138: =0.8*Z138 -> 55.2000 | AC138: =AA138*0.2 -> 20.0000 | AD138: =SUM(AB138:AC138)*0.7 -> 52.6400 | AE138: 0.0000 | AF138: =AD138+AE138 -> 52.6400 | AG138: =AF138*0.05 -> 2.6320 | AH138: =VLOOKUP(D138,美育!B$2:F$182,5,FALSE) -> 15.0000 | AI138: =VLOOKUP(D138,美育!B$2:E$182,4,FALSE) -> 0.0000 | AJ138: =AH138+AI138 -> 15.0000 | AK138: =AJ138*0.05 -> 0.7500 | AL138: =VLOOKUP(D138,劳育基础分!B$3:AF$182,31,FALSE) -> 40.0000 | AM138: 0.0000 | AN138: =AL138+AM138 -> 40.0000 | AO138: =AN138*0.05 -> 2.0000 | AP138: =S138+Y138+AG138+AK138+AO138 -> 59.2525 | AQ138: =VLOOKUP(D138,必修课优良率!A$1:B$173,2,FALSE) -> 66.67% | AR138: =VLOOKUP(D138,四级成绩!B$2:C$178,2,FALSE) -> 466 | AS138: =VLOOKUP(D138,必修课优良率!A$1:D$173,4,FALSE) -> 否
A139: 136 | B139: 126 | C139: 2024010635 | D139: 吴俊 | E139: =VLOOKUP(D139,美育!B$2:E$182,2,FALSE) -> 化工类24-6班 | F139: =VLOOKUP(D139,互评分!C$2:F$181,4,FALSE) -> 98.8077 | G139: =VLOOKUP(D139,辅导员加分!B$2:C$176,2,FALSE) -> 90.0000 | H139: =VLOOKUP(D139,互评分!C$2:F$181,3,FALSE) -> 100.0000 | I139: =VLOOKUP(D139,互评分!C$2:F$181,2,FALSE) -> 100.0000 | J139: =F139*0.2 -> 19.7615 | K139: =G139*0.5 -> 45.0000 | L139: =H139*0.2 -> 20.0000 | M139: =I139*0.1 -> 10.0000 | N139: =SUM(J139:M139)*0.7 -> 66.3331 | O139: =VLOOKUP(D139,学生干部加分!A$1:C$140,3,FALSE) -> 4.0000 | P139: 0.0000 | Q139: 0.0000 | R139: =N139+O139+P139-Q139 -> 70.3331 | S139: =R139*0.15 -> 10.5500 | T139: 73.9634 | U139: 0.0000 | V139: =IF(U139>0,T139*0.9+U139*0.1,T139) -> 73.9634 | W139: =VLOOKUP(D139,智育加分汇总!A$2:C$44,3,FALSE) -> 1.5000 | X139: =V139*0.85+W139 -> 64.3689 | Y139: =0.7*X139 -> 45.0582 | Z139: =VLOOKUP(D139,体测成绩!B$2:C$273,2,FALSE) -> 58.6000 | AA139: =VLOOKUP(D139,体育锻炼成绩!A$2:B$182,2,FALSE) -> 100.00 | AB139: =0.8*Z139 -> 46.8800 | AC139: =AA139*0.2 -> 20.0000 | AD139: =SUM(AB139:AC139)*0.7 -> 46.8160 | AE139: 0.0000 | AF139: =AD139+AE139 -> 46.8160 | AG139: =AF139*0.05 -> 2.3408 | AH139: =VLOOKUP(D139,美育!B$2:F$182,5,FALSE) -> 0.0000 | AI139: =VLOOKUP(D139,美育!B$2:E$182,4,FALSE) -> 0.0000 | AJ139: =AH139+AI139 -> 0.0000 | AK139: =AJ139*0.05 -> 0.0000 | AL139: =VLOOKUP(D139,劳育基础分!B$3:AF$182,31,FALSE) -> 22.0000 | AM139: 0.0000 | AN139: =AL139+AM139 -> 22.0000 | AO139: =AN139*0.05 -> 1.1000 | AP139: =S139+Y139+AG139+AK139+AO139 -> 59.0490 | AQ139: =VLOOKUP(D139,必修课优良率!A$1:B$173,2,FALSE) -> 47.62% | AR139: =VLOOKUP(D139,四级成绩!B$2:C$178,2,FALSE) -> 533 | AS139: =VLOOKUP(D139,必修课优良率!A$1:D$173,4,FALSE) -> 否
A140: 137 | B140: 124 | C140: 2024010532 | D140: 陈萍洋 | E140: =VLOOKUP(D140,美育!B$2:E$182,2,FALSE) -> 化工类24-3班 | F140: =VLOOKUP(D140,互评分!C$2:F$181,4,FALSE) -> 99.4815 | G140: =VLOOKUP(D140,辅导员加分!B$2:C$176,2,FALSE) -> 92.0000 | H140: =VLOOKUP(D140,互评分!C$2:F$181,3,FALSE) -> 100.0000 | I140: =VLOOKUP(D140,互评分!C$2:F$181,2,FALSE) -> 99.0000 | J140: =F140*0.2 -> 19.8963 | K140: =G140*0.5 -> 46.0000 | L140: =H140*0.2 -> 20.0000 | M140: =I140*0.1 -> 9.9000 | N140: =SUM(J140:M140)*0.7 -> 67.0574 | O140: 0.0000 | P140: 0.0000 | Q140: 0.0000 | R140: =N140+O140+P140-Q140 -> 67.0574 | S140: =R140*0.15 -> 10.0586 | T140: 74.0921 | U140: 83.0000 | V140: =IF(U140>0,T140*0.9+U140*0.1,T140) -> 74.9829 | W140: 0.0000 | X140: =V140*0.85+W140 -> 63.7355 | Y140: =0.7*X140 -> 44.6148 | Z140: =VLOOKUP(D140,体测成绩!B$2:C$273,2,FALSE) -> 60.0000 | AA140: =VLOOKUP(D140,体育锻炼成绩!A$2:B$182,2,FALSE) -> 100.00 | AB140: =0.8*Z140 -> 48.0000 | AC140: =AA140*0.2 -> 20.0000 | AD140: =SUM(AB140:AC140)*0.7 -> 47.6000 | AE140: 0.0000 | AF140: =AD140+AE140 -> 47.6000 | AG140: =AF140*0.05 -> 2.3800 | AH140: =VLOOKUP(D140,美育!B$2:F$182,5,FALSE) -> 15.0000 | AI140: =VLOOKUP(D140,美育!B$2:E$182,4,FALSE) -> 0.0000 | AJ140: =AH140+AI140 -> 15.0000 | AK140: =AJ140*0.05 -> 0.7500 | AL140: =VLOOKUP(D140,劳育基础分!B$3:AF$182,31,FALSE) -> 24.0000 | AM140: 0.0000 | AN140: =AL140+AM140 -> 24.0000 | AO140: =AN140*0.05 -> 1.2000 | AP140: =S140+Y140+AG140+AK140+AO140 -> 59.0034 | AQ140: =VLOOKUP(D140,必修课优良率!A$1:B$173,2,FALSE) -> 47.37% | AR140: =VLOOKUP(D140,四级成绩!B$2:C$178,2,FALSE) -> 0 | AS140: =VLOOKUP(D140,必修课优良率!A$1:D$173,4,FALSE) -> 否
A141: 138 | B141: 97 | C141: 2024010566 | D141: 王泽轩 | E141: =VLOOKUP(D141,美育!B$2:E$182,2,FALSE) -> 化工类24-4班 | F141: =VLOOKUP(D141,互评分!C$2:F$181,4,FALSE) -> 96.6786 | G141: =VLOOKUP(D141,辅导员加分!B$2:C$176,2,FALSE) -> 90.0000 | H141: =VLOOKUP(D141,互评分!C$2:F$181,3,FALSE) -> 95.7143 | I141: =VLOOKUP(D141,互评分!C$2:F$181,2,FALSE) -> 100.0000 | J141: =F141*0.2 -> 19.3357 | K141: =G141*0.5 -> 45.0000 | L141: =H141*0.2 -> 19.1429 | M141: =I141*0.1 -> 10.0000 | N141: =SUM(J141:M141)*0.7 -> 65.4350 | O141: 0.0000 | P141: 0.0000 | Q141: 0.0000 | R141: =N141+O141+P141-Q141 -> 65.4350 | S141: =R141*0.15 -> 9.8153 | T141: =VLOOKUP(D141,[1]必修课成绩!C$71:AE$100,29,FALSE) -> 76.3500 | U141: =VLOOKUP(D141,[1]选修课成绩!C$72:AC$101,27,FALSE) -> 0.0000 | V141: =IF(U141>0,T141*0.9+U141*0.1,T141) -> 76.3500 | W141: 0.0000 | X141: =V141*0.85+W141 -> 64.8975 | Y141: =0.7*X141 -> 45.4283 | Z141: =VLOOKUP(D141,体测成绩!B$2:C$273,2,FALSE) -> 73.5000 | AA141: =VLOOKUP(D141,体育锻炼成绩!A$2:B$182,2,FALSE) -> 100.00 | AB141: =0.8*Z141 -> 58.8000 | AC141: =AA141*0.2 -> 20.0000 | AD141: =SUM(AB141:AC141)*0.7 -> 55.1600 | AE141: 0.0000 | AF141: =AD141+AE141 -> 55.1600 | AG141: =AF141*0.05 -> 2.7580 | AH141: =VLOOKUP(D141,美育!B$2:F$182,5,FALSE) -> 0.0000 | AI141: =VLOOKUP(D141,美育!B$2:E$182,4,FALSE) -> 0.0000 | AJ141: =AH141+AI141 -> 0.0000 | AK141: =AJ141*0.05 -> 0.0000 | AL141: =VLOOKUP(D141,劳育基础分!B$3:AF$182,31,FALSE) -> 20.0000 | AM141: 0.0000 | AN141: =AL141+AM141 -> 20.0000 | AO141: =AN141*0.05 -> 1.0000 | AP141: =S141+Y141+AG141+AK141+AO141 -> 59.0015 | AQ141: =VLOOKUP(D141,必修课优良率!A$1:B$173,2,FALSE) -> 42.86% | AR141: =VLOOKUP(D141,四级成绩!B$2:C$178,2,FALSE) -> 518 | AS141: =VLOOKUP(D141,必修课优良率!A$1:D$173,4,FALSE) -> 否
A142: 139 | B142: 156 | C142: 2024010612 | D142: 马秋阳 | E142: =VLOOKUP(D142,美育!B$2:E$182,2,FALSE) -> 化工类24-6班 | F142: =VLOOKUP(D142,互评分!C$2:F$181,4,FALSE) -> 98.8846 | G142: =VLOOKUP(D142,辅导员加分!B$2:C$176,2,FALSE) -> 92.0000 | H142: =VLOOKUP(D142,互评分!C$2:F$181,3,FALSE) -> 100.0000 | I142: =VLOOKUP(D142,互评分!C$2:F$181,2,FALSE) -> 100.0000 | J142: =F142*0.2 -> 19.7769 | K142: =G142*0.5 -> 46.0000 | L142: =H142*0.2 -> 20.0000 | M142: =I142*0.1 -> 10.0000 | N142: =SUM(J142:M142)*0.7 -> 67.0438 | O142: =VLOOKUP(D142,学生干部加分!A$1:C$140,3,FALSE) -> 2.0000 | P142: 0.0000 | Q142: 0.0000 | R142: =N142+O142+P142-Q142 -> 69.0438 | S142: =R142*0.15 -> 10.3566 | T142: =VLOOKUP(D142,[1]必修课成绩!C$71:AE$100,29,FALSE) -> 69.0250 | U142: =VLOOKUP(D142,[1]选修课成绩!C$72:AC$101,27,FALSE) -> 75.0000 | V142: =IF(U142>0,T142*0.9+U142*0.1,T142) -> 69.6225 | W142: 0.0000 | X142: =V142*0.85+W142 -> 59.1791 | Y142: =0.7*X142 -> 41.4254 | Z142: =VLOOKUP(D142,体测成绩!B$2:C$273,2,FALSE) -> 80.2000 | AA142: =VLOOKUP(D142,体育锻炼成绩!A$2:B$182,2,FALSE) -> 100.00 | AB142: =0.8*Z142 -> 64.1600 | AC142: =AA142*0.2 -> 20.0000 | AD142: =SUM(AB142:AC142)*0.7 -> 58.9120 | AE142: =VLOOKUP(D142,体育加分汇总!A$1:C$79,3,FALSE) -> 8.0000 | AF142: =AD142+AE142 -> 66.9120 | AG142: =AF142*0.05 -> 3.3456 | AH142: =VLOOKUP(D142,美育!B$2:F$182,5,FALSE) -> 35.0000 | AI142: =VLOOKUP(D142,美育!B$2:E$182,4,FALSE) -> 0.0000 | AJ142: =AH142+AI142 -> 35.0000 | AK142: =AJ142*0.05 -> 1.7500 | AL142: =VLOOKUP(D142,劳育基础分!B$3:AF$182,31,FALSE) -> 42.0000 | AM142: 0.0000 | AN142: =AL142+AM142 -> 42.0000 | AO142: =AN142*0.05 -> 2.1000 | AP142: =S142+Y142+AG142+AK142+AO142 -> 58.9776 | AQ142: =VLOOKUP(D142,必修课优良率!A$1:B$173,2,FALSE) -> 52.38% | AR142: =VLOOKUP(D142,四级成绩!B$2:C$178,2,FALSE) -> 427 | AS142: =VLOOKUP(D142,必修课优良率!A$1:D$173,4,FALSE) -> 是
A143: 140 | B143: 160 | C143: 2024010613 | D143: 吴淑金 | E143: =VLOOKUP(D143,美育!B$2:E$182,2,FALSE) -> 化工类24-6班 | F143: =VLOOKUP(D143,互评分!C$2:F$181,4,FALSE) -> 98.9615 | G143: =VLOOKUP(D143,辅导员加分!B$2:C$176,2,FALSE) -> 90.0000 | H143: =VLOOKUP(D143,互评分!C$2:F$181,3,FALSE) -> 100.0000 | I143: =VLOOKUP(D143,互评分!C$2:F$181,2,FALSE) -> 100.0000 | J143: =F143*0.2 -> 19.7923 | K143: =G143*0.5 -> 45.0000 | L143: =H143*0.2 -> 20.0000 | M143: =I143*0.1 -> 10.0000 | N143: =SUM(J143:M143)*0.7 -> 66.3546 | O143: =VLOOKUP(D143,学生干部加分!A$1:C$140,3,FALSE) -> 8.0000 | P143: 0.0000 | Q143: 0.0000 | R143: =N143+O143+P143-Q143 -> 74.3546 | S143: =R143*0.15 -> 11.1532 | T143: =VLOOKUP(D143,[1]必修课成绩!C$71:AE$100,29,FALSE) -> 67.9000 | U143: =VLOOKUP(D143,[1]选修课成绩!C$72:AC$101,27,FALSE) -> 84.5263 | V143: =IF(U143>0,T143*0.9+U143*0.1,T143) -> 69.5626 | W143: 0.0000 | X143: =V143*0.85+W143 -> 59.1282 | Y143: =0.7*X143 -> 41.3898 | Z143: =VLOOKUP(D143,体测成绩!B$2:C$273,2,FALSE) -> 81.2000 | AA143: =VLOOKUP(D143,体育锻炼成绩!A$2:B$182,2,FALSE) -> 100.00 | AB143: =0.8*Z143 -> 64.9600 | AC143: =AA143*0.2 -> 20.0000 | AD143: =SUM(AB143:AC143)*0.7 -> 59.4720 | AE143: 0.0000 | AF143: =AD143+AE143 -> 59.4720 | AG143: =AF143*0.05 -> 2.9736 | AH143: =VLOOKUP(D143,美育!B$2:F$182,5,FALSE) -> 18.0000 | AI143: =VLOOKUP(D143,美育!B$2:E$182,4,FALSE) -> 6.0000 | AJ143: =AH143+AI143 -> 24.0000 | AK143: =AJ143*0.05 -> 1.2000 | AL143: =VLOOKUP(D143,劳育基础分!B$3:AF$182,31,FALSE) -> 42.0000 | AM143: 0.0000 | AN143: =AL143+AM143 -> 42.0000 | AO143: =AN143*0.05 -> 2.1000 | AP143: =S143+Y143+AG143+AK143+AO143 -> 58.8166 | AQ143: =VLOOKUP(D143,必修课优良率!A$1:B$173,2,FALSE) -> 52.38% | AR143: =VLOOKUP(D143,四级成绩!B$2:C$178,2,FALSE) -> 481 | AS143: =VLOOKUP(D143,必修课优良率!A$1:D$173,4,FALSE) -> 是
A144: 141 | B144: 116 | C144: 2024010562 | D144: 冯子洋 | E144: =VLOOKUP(D144,美育!B$2:E$182,2,FALSE) -> 化工类24-4班 | F144: =VLOOKUP(D144,互评分!C$2:F$181,4,FALSE) -> 96.6429 | G144: =VLOOKUP(D144,辅导员加分!B$2:C$176,2,FALSE) -> 90.0000 | H144: =VLOOKUP(D144,互评分!C$2:F$181,3,FALSE) -> 95.7143 | I144: =VLOOKUP(D144,互评分!C$2:F$181,2,FALSE) -> 100.0000 | J144: =F144*0.2 -> 19.3286 | K144: =G144*0.5 -> 45.0000 | L144: =H144*0.2 -> 19.1429 | M144: =I144*0.1 -> 10.0000 | N144: =SUM(J144:M144)*0.7 -> 65.4300 | O144: =VLOOKUP(D144,学生干部加分!A$1:C$140,3,FALSE) -> 4.0000 | P144: 0.0000 | Q144: 0.0000 | R144: =N144+O144+P144-Q144 -> 69.4300 | S144: =R144*0.15 -> 10.4145 | T144: =VLOOKUP(D144,[1]必修课成绩!C$71:AE$100,29,FALSE) -> 74.5500 | U144: =VLOOKUP(D144,[1]选修课成绩!C$72:AC$101,27,FALSE) -> 0.0000 | V144: =IF(U144>0,T144*0.9+U144*0.1,T144) -> 74.5500 | W144: 0.0000 | X144: =V144*0.85+W144 -> 63.3675 | Y144: =0.7*X144 -> 44.3573 | Z144: =VLOOKUP(D144,体测成绩!B$2:C$273,2,FALSE) -> 74.4000 | AA144: =VLOOKUP(D144,体育锻炼成绩!A$2:B$182,2,FALSE) -> 100.00 | AB144: =0.8*Z144 -> 59.5200 | AC144: =AA144*0.2 -> 20.0000 | AD144: =SUM(AB144:AC144)*0.7 -> 55.6640 | AE144: 0.0000 | AF144: =AD144+AE144 -> 55.6640 | AG144: =AF144*0.05 -> 2.7832 | AH144: =VLOOKUP(D144,美育!B$2:F$182,5,FALSE) -> 3.0000 | AI144: =VLOOKUP(D144,美育!B$2:E$182,4,FALSE) -> 0.0000 | AJ144: =AH144+AI144 -> 3.0000 | AK144: =AJ144*0.05 -> 0.1500 | AL144: =VLOOKUP(D144,劳育基础分!B$3:AF$182,31,FALSE) -> 20.0000 | AM144: 0.0000 | AN144: =AL144+AM144 -> 20.0000 | AO144: =AN144*0.05 -> 1.0000 | AP144: =S144+Y144+AG144+AK144+AO144 -> 58.7050 | AQ144: =VLOOKUP(D144,必修课优良率!A$1:B$173,2,FALSE) -> 42.86% | AR144: =VLOOKUP(D144,四级成绩!B$2:C$178,2,FALSE) -> 490 | AS144: =VLOOKUP(D144,必修课优良率!A$1:D$173,4,FALSE) -> 否
A145: 142 | B145: 145 | C145: 2024010542 | D145: 谢子翔 | E145: =VLOOKUP(D145,美育!B$2:E$182,2,FALSE) -> 化工类24-3班 | F145: =VLOOKUP(D145,互评分!C$2:F$181,4,FALSE) -> 98.7857 | G145: =VLOOKUP(D145,辅导员加分!B$2:C$176,2,FALSE) -> 92.0000 | H145: =VLOOKUP(D145,互评分!C$2:F$181,3,FALSE) -> 100.0000 | I145: =VLOOKUP(D145,互评分!C$2:F$181,2,FALSE) -> 99.0000 | J145: =F145*0.2 -> 19.7571 | K145: =G145*0.5 -> 46.0000 | L145: =H145*0.2 -> 20.0000 | M145: =I145*0.1 -> 9.9000 | N145: =SUM(J145:M145)*0.7 -> 66.9600 | O145: 0.0000 | P145: 0.0000 | Q145: 0.0000 | R145: =N145+O145+P145-Q145 -> 66.9600 | S145: =R145*0.15 -> 10.0440 | T145: =VLOOKUP(D145,[1]必修课成绩!C$71:AE$100,29,FALSE) -> 71.7375 | U145: =VLOOKUP(D145,[1]选修课成绩!C$72:AC$101,27,FALSE) -> 0.0000 | V145: =IF(U145>0,T145*0.9+U145*0.1,T145) -> 71.7375 | W145: 0.0000 | X145: =V145*0.85+W145 -> 60.9769 | Y145: =0.7*X145 -> 42.6838 | Z145: =VLOOKUP(D145,体测成绩!B$2:C$273,2,FALSE) -> 71.6000 | AA145: =VLOOKUP(D145,体育锻炼成绩!A$2:B$182,2,FALSE) -> 100.00 | AB145: =0.8*Z145 -> 57.2800 | AC145: =AA145*0.2 -> 20.0000 | AD145: =SUM(AB145:AC145)*0.7 -> 54.0960 | AE145: =VLOOKUP(D145,体育加分汇总!A$1:C$79,3,FALSE) -> 0.0000 | AF145: =AD145+AE145 -> 54.0960 | AG145: =AF145*0.05 -> 2.7048 | AH145: =VLOOKUP(D145,美育!B$2:F$182,5,FALSE) -> 25.0000 | AI145: =VLOOKUP(D145,美育!B$2:E$182,4,FALSE) -> 0.0000 | AJ145: =AH145+AI145 -> 25.0000 | AK145: =AJ145*0.05 -> 1.2500 | AL145: =VLOOKUP(D145,劳育基础分!B$3:AF$182,31,FALSE) -> 40.0000 | AM145: 0.0000 | AN145: =AL145+AM145 -> 40.0000 | AO145: =AN145*0.05 -> 2.0000 | AP145: =S145+Y145+AG145+AK145+AO145 -> 58.6826 | AQ145: =VLOOKUP(D145,必修课优良率!A$1:B$173,2,FALSE) -> 52.38% | AR145: =VLOOKUP(D145,四级成绩!B$2:C$178,2,FALSE) -> 505 | AS145: =VLOOKUP(D145,必修课优良率!A$1:D$173,4,FALSE) -> 是
A146: 143 | B146: 106 | C146: 2024010554 | D146: 葛敏 | E146: =VLOOKUP(D146,美育!B$2:E$182,2,FALSE) -> 化工类24-4班 | F146: =VLOOKUP(D146,互评分!C$2:F$181,4,FALSE) -> 96.9640 | G146: =VLOOKUP(D146,辅导员加分!B$2:C$176,2,FALSE) -> 90.0000 | H146: =VLOOKUP(D146,互评分!C$2:F$181,3,FALSE) -> 98.4286 | I146: =VLOOKUP(D146,互评分!C$2:F$181,2,FALSE) -> 100.0000 | J146: =F146*0.2 -> 19.3928 | K146: =G146*0.5 -> 45.0000 | L146: =H146*0.2 -> 19.6857 | M146: =I146*0.1 -> 10.0000 | N146: =SUM(J146:M146)*0.7 -> 65.8550 | O146: 0.0000 | P146: 0.0000 | Q146: 0.0000 | R146: =N146+O146+P146-Q146 -> 65.8550 | S146: =R146*0.15 -> 9.8782 | T146: =VLOOKUP(D146,[2]必修课成绩!C$59:BO$82,65,FALSE) -> 75.3537 | U146: =VLOOKUP(D146,[2]选修课成绩!C$60:BI$83,59,FALSE) -> 84.0000 | V146: =IF(U146>0,T146*0.9+U146*0.1,T146) -> 76.2183 | W146: 0.0000 | X146: =V146*0.85+W146 -> 64.7855 | Y146: =0.7*X146 -> 45.3499 | Z146: =VLOOKUP(D146,体测成绩!B$2:C$273,2,FALSE) -> 72.2000 | AA146: =VLOOKUP(D146,体育锻炼成绩!A$2:B$182,2,FALSE) -> 0.00 | AB146: =0.8*Z146 -> 57.7600 | AC146: =AA146*0.2 -> 0.0000 | AD146: =SUM(AB146:AC146)*0.7 -> 40.4320 | AE146: 0.0000 | AF146: =AD146+AE146 -> 40.4320 | AG146: =AF146*0.05 -> 2.0216 | AH146: =VLOOKUP(D146,美育!B$2:F$182,5,FALSE) -> 0.0000 | AI146: =VLOOKUP(D146,美育!B$2:E$182,4,FALSE) -> 0.0000 | AJ146: =AH146+AI146 -> 0.0000 | AK146: =AJ146*0.05 -> 0.0000 | AL146: =VLOOKUP(D146,劳育基础分!B$3:AF$182,31,FALSE) -> 28.0000 | AM146: 0.0000 | AN146: =AL146+AM146 -> 28.0000 | AO146: =AN146*0.05 -> 1.4000 | AP146: =S146+Y146+AG146+AK146+AO146 -> 58.6497 | AQ146: =VLOOKUP(D146,必修课优良率!A$1:B$173,2,FALSE) -> 52.38% | AR146: 0 | AS146: =VLOOKUP(D146,必修课优良率!A$1:D$173,4,FALSE) -> 否
A147: 144 | B147: 144 | C147: 2024010536 | D147: 郭北辰 | E147: =VLOOKUP(D147,美育!B$2:E$182,2,FALSE) -> 化工类24-3班 | F147: =VLOOKUP(D147,互评分!C$2:F$181,4,FALSE) -> 99.4074 | G147: =VLOOKUP(D147,辅导员加分!B$2:C$176,2,FALSE) -> 94.0000 | H147: =VLOOKUP(D147,互评分!C$2:F$181,3,FALSE) -> 100.0000 | I147: =VLOOKUP(D147,互评分!C$2:F$181,2,FALSE) -> 99.0000 | J147: =F147*0.2 -> 19.8815 | K147: =G147*0.5 -> 47.0000 | L147: =H147*0.2 -> 20.0000 | M147: =I147*0.1 -> 9.9000 | N147: =SUM(J147:M147)*0.7 -> 67.7470 | O147: =VLOOKUP(D147,学生干部加分!A$1:C$140,3,FALSE) -> 4.0000 | P147: 0.0000 | Q147: 0.0000 | R147: =N147+O147+P147-Q147 -> 71.7470 | S147: =R147*0.15 -> 10.7621 | T147: 71.8690 | U147: 74.0000 | V147: =IF(U147>0,T147*0.9+U147*0.1,T147) -> 72.0821 | W147: 0.0000 | X147: =V147*0.85+W147 -> 61.2698 | Y147: =0.7*X147 -> 42.8889 | Z147: =VLOOKUP(D147,体测成绩!B$2:C$273,2,FALSE) -> 72.6000 | AA147: 100.0000 | AB147: =0.8*Z147 -> 58.0800 | AC147: =AA147*0.2 -> 20.0000 | AD147: =SUM(AB147:AC147)*0.7 -> 54.6560 | AE147: 0.0000 | AF147: =AD147+AE147 -> 54.6560 | AG147: =AF147*0.05 -> 2.7328 | AH147: =VLOOKUP(D147,美育!B$2:F$182,5,FALSE) -> 0.0000 | AI147: =VLOOKUP(D147,美育!B$2:E$182,4,FALSE) -> 0.0000 | AJ147: =AH147+AI147 -> 0.0000 | AK147: =AJ147*0.05 -> 0.0000 | AL147: =VLOOKUP(D147,劳育基础分!B$3:AF$182,31,FALSE) -> 42.0000 | AM147: 0.0000 | AN147: =AL147+AM147 -> 42.0000 | AO147: =AN147*0.05 -> 2.1000 | AP147: =S147+Y147+AG147+AK147+AO147 -> 58.4837 | AQ147: =VLOOKUP(D147,必修课优良率!A$1:B$173,2,FALSE) -> 52.38% | AR147: =VLOOKUP(D147,四级成绩!B$2:C$178,2,FALSE) -> 484 | AS147: =VLOOKUP(D147,必修课优良率!A$1:D$173,4,FALSE) -> 否
A148: 145 | B148: 150 | C148: 2024010489 | D148: 赵倩瑶 | E148: =VLOOKUP(D148,美育!B$2:E$182,2,FALSE) -> 化工类24-2班 | F148: =VLOOKUP(D148,互评分!C$2:F$181,4,FALSE) -> 97.3571 | G148: =VLOOKUP(D148,辅导员加分!B$2:C$176,2,FALSE) -> 90.0000 | H148: =VLOOKUP(D148,互评分!C$2:F$181,3,FALSE) -> 99.1667 | I148: =VLOOKUP(D148,互评分!C$2:F$181,2,FALSE) -> 91.0000 | J148: =F148*0.2 -> 19.4714 | K148: =G148*0.5 -> 45.0000 | L148: =H148*0.2 -> 19.8333 | M148: =I148*0.1 -> 9.1000 | N148: =SUM(J148:M148)*0.7 -> 65.3833 | O148: =VLOOKUP(D148,学生干部加分!A$1:C$140,3,FALSE) -> 12.0000 | P148: 0.0000 | Q148: 0.0000 | R148: =N148+O148+P148-Q148 -> 77.3833 | S148: =R148*0.15 -> 11.6075 | T148: 71.0357 | U148: 91.0000 | V148: =IF(U148>0,T148*0.9+U148*0.1,T148) -> 73.0321 | W148: 0.0000 | X148: =V148*0.85+W148 -> 62.0773 | Y148: =0.7*X148 -> 43.4541 | Z148: =VLOOKUP(D148,体测成绩!B$2:C$273,2,FALSE) -> 64.1000 | AA148: =VLOOKUP(D148,体育锻炼成绩!A$2:B$182,2,FALSE) -> 0.00 | AB148: =0.8*Z148 -> 51.2800 | AC148: =AA148*0.2 -> 0.0000 | AD148: =SUM(AB148:AC148)*0.7 -> 35.8960 | AE148: 0.0000 | AF148: =AD148+AE148 -> 35.8960 | AG148: =AF148*0.05 -> 1.7948 | AH148: =VLOOKUP(D148,美育!B$2:F$182,5,FALSE) -> 0.0000 | AI148: =VLOOKUP(D148,美育!B$2:E$182,4,FALSE) -> 0.0000 | AJ148: =AH148+AI148 -> 0.0000 | AK148: =AJ148*0.05 -> 0.0000 | AL148: =VLOOKUP(D148,劳育基础分!B$3:AF$182,31,FALSE) -> 29.0000 | AM148: 0.0000 | AN148: =AL148+AM148 -> 29.0000 | AO148: =AN148*0.05 -> 1.4500 | AP148: =S148+Y148+AG148+AK148+AO148 -> 58.3064 | AQ148: =VLOOKUP(D148,必修课优良率!A$1:B$173,2,FALSE) -> 47.62% | AR148: =VLOOKUP(D148,四级成绩!B$2:C$178,2,FALSE) -> 445 | AS148: =VLOOKUP(D148,必修课优良率!A$1:D$173,4,FALSE) -> 是
A149: 146 | B149: 140 | C149: 2024010574 | D149: 孙愷辰 | E149: =VLOOKUP(D149,美育!B$2:E$182,2,FALSE) -> 化工类24-4班 | F149: =VLOOKUP(D149,互评分!C$2:F$181,4,FALSE) -> 96.4643 | G149: =VLOOKUP(D149,辅导员加分!B$2:C$176,2,FALSE) -> 94.0000 | H149: =VLOOKUP(D149,互评分!C$2:F$181,3,FALSE) -> 95.5714 | I149: =VLOOKUP(D149,互评分!C$2:F$181,2,FALSE) -> 100.0000 | J149: =F149*0.2 -> 19.2929 | K149: =G149*0.5 -> 47.0000 | L149: =H149*0.2 -> 19.1143 | M149: =I149*0.1 -> 10.0000 | N149: =SUM(J149:M149)*0.7 -> 66.7850 | O149: =VLOOKUP(D149,学生干部加分!A$1:C$140,3,FALSE) -> 5.0000 | P149: 0.0000 | Q149: 0.0000 | R149: =N149+O149+P149-Q149 -> 71.7850 | S149: =R149*0.15 -> 10.7678 | T149: 72.3780 | U149: 69.0000 | V149: =IF(U149>0,T149*0.9+U149*0.1,T149) -> 72.0402 | W149: 0.0000 | X149: =V149*0.85+W149 -> 61.2342 | Y149: =0.7*X149 -> 42.8639 | Z149: =VLOOKUP(D149,体测成绩!B$2:C$273,2,FALSE) -> 51.5000 | AA149: =VLOOKUP(D149,体育锻炼成绩!A$2:B$182,2,FALSE) -> 100.00 | AB149: =0.8*Z149 -> 41.2000 | AC149: =AA149*0.2 -> 20.0000 | AD149: =SUM(AB149:AC149)*0.7 -> 42.8400 | AE149: 0.0000 | AF149: =AD149+AE149 -> 42.8400 | AG149: =AF149*0.05 -> 2.1420 | AH149: =VLOOKUP(D149,美育!B$2:F$182,5,FALSE) -> 15.0000 | AI149: =VLOOKUP(D149,美育!B$2:E$182,4,FALSE) -> 0.0000 | AJ149: =AH149+AI149 -> 15.0000 | AK149: =AJ149*0.05 -> 0.7500 | AL149: =VLOOKUP(D149,劳育基础分!B$3:AF$182,31,FALSE) -> 28.0000 | AM149: 0.0000 | AN149: =AL149+AM149 -> 28.0000 | AO149: =AN149*0.05 -> 1.4000 | AP149: =S149+Y149+AG149+AK149+AO149 -> 57.9237 | AQ149: =VLOOKUP(D149,必修课优良率!A$1:B$173,2,FALSE) -> 57.14% | AR149: =VLOOKUP(D149,四级成绩!B$2:C$178,2,FALSE) -> 496 | AS149: =VLOOKUP(D149,必修课优良率!A$1:D$173,4,FALSE) -> 是
A150: 147 | B150: 134 | C150: 2024010473 | D150: 李博航 | E150: =VLOOKUP(D150,美育!B$2:E$182,2,FALSE) -> 化工类24-1班 | F150: =VLOOKUP(D150,互评分!C$2:F$181,4,FALSE) -> 98.7407 | G150: =VLOOKUP(D150,辅导员加分!B$2:C$176,2,FALSE) -> 92.0000 | H150: =VLOOKUP(D150,互评分!C$2:F$181,3,FALSE) -> 100.0000 | I150: =VLOOKUP(D150,互评分!C$2:F$181,2,FALSE) -> 98.0000 | J150: =F150*0.2 -> 19.7481 | K150: =G150*0.5 -> 46.0000 | L150: =H150*0.2 -> 20.0000 | M150: =I150*0.1 -> 9.8000 | N150: =SUM(J150:M150)*0.7 -> 66.8837 | O150: =VLOOKUP(D150,学生干部加分!A$1:C$140,3,FALSE) -> 2.0000 | P150: 0.0000 | Q150: 0.0000 | R150: =N150+O150+P150-Q150 -> 68.8837 | S150: =R150*0.15 -> 10.3326 | T150: 73.5000 | U150: 69.0000 | V150: =IF(U150>0,T150*0.9+U150*0.1,T150) -> 73.0500 | W150: 0.0000 | X150: =V150*0.85+W150 -> 62.0925 | Y150: =0.7*X150 -> 43.4648 | Z150: =VLOOKUP(D150,体测成绩!B$2:C$273,2,FALSE) -> 75.5000 | AA150: =VLOOKUP(D150,体育锻炼成绩!A$2:B$182,2,FALSE) -> 100.00 | AB150: =0.8*Z150 -> 60.4000 | AC150: =AA150*0.2 -> 20.0000 | AD150: =SUM(AB150:AC150)*0.7 -> 56.2800 | AE150: 0.0000 | AF150: =AD150+AE150 -> 56.2800 | AG150: =AF150*0.05 -> 2.8140 | AH150: =VLOOKUP(D150,美育!B$2:F$182,5,FALSE) -> 0.0000 | AI150: =VLOOKUP(D150,美育!B$2:E$182,4,FALSE) -> 0.0000 | AJ150: =AH150+AI150 -> 0.0000 | AK150: =AJ150*0.05 -> 0.0000 | AL150: =VLOOKUP(D150,劳育基础分!B$3:AF$182,31,FALSE) -> 26.0000 | AM150: 0.0000 | AN150: =AL150+AM150 -> 26.0000 | AO150: =AN150*0.05 -> 1.3000 | AP150: =S150+Y150+AG150+AK150+AO150 -> 57.9113 | AQ150: =VLOOKUP(D150,必修课优良率!A$1:B$173,2,FALSE) -> 52.38% | AR150: =VLOOKUP(D150,四级成绩!B$2:C$178,2,FALSE) -> 430 | AS150: =VLOOKUP(D150,必修课优良率!A$1:D$173,4,FALSE) -> 否
A151: 148 | B151: 130 | C151: 2024010571 | D151: 李坤明 | E151: =VLOOKUP(D151,美育!B$2:E$182,2,FALSE) -> 化工类24-4班 | F151: =VLOOKUP(D151,互评分!C$2:F$181,4,FALSE) -> 96.7500 | G151: =VLOOKUP(D151,辅导员加分!B$2:C$176,2,FALSE) -> 92.0000 | H151: =VLOOKUP(D151,互评分!C$2:F$181,3,FALSE) -> 95.5714 | I151: =VLOOKUP(D151,互评分!C$2:F$181,2,FALSE) -> 100.0000 | J151: =F151*0.2 -> 19.3500 | K151: =G151*0.5 -> 46.0000 | L151: =H151*0.2 -> 19.1143 | M151: =I151*0.1 -> 10.0000 | N151: =SUM(J151:M151)*0.7 -> 66.1250 | O151: 0.0000 | P151: 0.0000 | Q151: 0.0000 | R151: =N151+O151+P151-Q151 -> 66.1250 | S151: =R151*0.15 -> 9.9188 | T151: 73.5610 | U151: 73.0000 | V151: =IF(U151>0,T151*0.9+U151*0.1,T151) -> 73.5049 | W151: 0.0000 | X151: =V151*0.85+W151 -> 62.4791 | Y151: =0.7*X151 -> 43.7354 | Z151: =VLOOKUP(D151,体测成绩!B$2:C$273,2,FALSE) -> 76.8000 | AA151: =VLOOKUP(D151,体育锻炼成绩!A$2:B$182,2,FALSE) -> 100.00 | AB151: =0.8*Z151 -> 61.4400 | AC151: =AA151*0.2 -> 20.0000 | AD151: =SUM(AB151:AC151)*0.7 -> 57.0080 | AE151: 0.0000 | AF151: =AD151+AE151 -> 57.0080 | AG151: =AF151*0.05 -> 2.8504 | AH151: =VLOOKUP(D151,美育!B$2:F$182,5,FALSE) -> 8.0000 | AI151: =VLOOKUP(D151,美育!B$2:E$182,4,FALSE) -> 0.0000 | AJ151: =AH151+AI151 -> 8.0000 | AK151: =AJ151*0.05 -> 0.4000 | AL151: =VLOOKUP(D151,劳育基础分!B$3:AF$182,31,FALSE) -> 20.0000 | AM151: 0.0000 | AN151: =AL151+AM151 -> 20.0000 | AO151: =AN151*0.05 -> 1.0000 | AP151: =S151+Y151+AG151+AK151+AO151 -> 57.9046 | AQ151: =VLOOKUP(D151,必修课优良率!A$1:B$173,2,FALSE) -> 57.14% | AR151: =VLOOKUP(D151,四级成绩!B$2:C$178,2,FALSE) -> 398 | AS151: =VLOOKUP(D151,必修课优良率!A$1:D$173,4,FALSE) -> 否
A152: 149 | B152: 157 | C152: 2024010502 | D152: 谯佳伟 | E152: =VLOOKUP(D152,美育!B$2:E$182,2,FALSE) -> 化工类24-2班 | F152: =VLOOKUP(D152,互评分!C$2:F$181,4,FALSE) -> 97.0357 | G152: =VLOOKUP(D152,辅导员加分!B$2:C$176,2,FALSE) -> 90.0000 | H152: =VLOOKUP(D152,互评分!C$2:F$181,3,FALSE) -> 99.0000 | I152: =VLOOKUP(D152,互评分!C$2:F$181,2,FALSE) -> 90.0000 | J152: =F152*0.2 -> 19.4071 | K152: =G152*0.5 -> 45.0000 | L152: =H152*0.2 -> 19.8000 | M152: =I152*0.1 -> 9.0000 | N152: =SUM(J152:M152)*0.7 -> 65.2450 | O152: =VLOOKUP(D152,学生干部加分!A$1:C$140,3,FALSE) -> 4.0000 | P152: 0.0000 | Q152: 0.0000 | R152: =N152+O152+P152-Q152 -> 69.2450 | S152: =R152*0.15 -> 10.3868 | T152: 68.8333 | U152: 0.0000 | V152: =IF(U152>0,T152*0.9+U152*0.1,T152) -> 68.8333 | W152: 0.0000 | X152: =V152*0.85+W152 -> 58.5083 | Y152: =0.7*X152 -> 40.9558 | Z152: =VLOOKUP(D152,体测成绩!B$2:C$273,2,FALSE) -> 80.6000 | AA152: =VLOOKUP(D152,体育锻炼成绩!A$2:B$182,2,FALSE) -> 100.00 | AB152: =0.8*Z152 -> 64.4800 | AC152: =AA152*0.2 -> 20.0000 | AD152: =SUM(AB152:AC152)*0.7 -> 59.1360 | AE152: =VLOOKUP(D152,体育加分汇总!A$1:C$79,3,FALSE) -> 0.0000 | AF152: =AD152+AE152 -> 59.1360 | AG152: =AF152*0.05 -> 2.9568 | AH152: =VLOOKUP(D152,美育!B$2:F$182,5,FALSE) -> 25.0000 | AI152: =VLOOKUP(D152,美育!B$2:E$182,4,FALSE) -> 0.0000 | AJ152: =AH152+AI152 -> 25.0000 | AK152: =AJ152*0.05 -> 1.2500 | AL152: =VLOOKUP(D152,劳育基础分!B$3:AF$182,31,FALSE) -> 42.0000 | AM152: 0.0000 | AN152: =AL152+AM152 -> 42.0000 | AO152: =AN152*0.05 -> 2.1000 | AP152: =S152+Y152+AG152+AK152+AO152 -> 57.6494 | AQ152: =VLOOKUP(D152,必修课优良率!A$1:B$173,2,FALSE) -> 57.14% | AR152: =VLOOKUP(D152,四级成绩!B$2:C$178,2,FALSE) -> 455 | AS152: =VLOOKUP(D152,必修课优良率!A$1:D$173,4,FALSE) -> 是
A153: 150 | B153: 141 | C153: 2024010534 | D153: 李俊豪 | E153: =VLOOKUP(D153,美育!B$2:E$182,2,FALSE) -> 化工类24-3班 | F153: =VLOOKUP(D153,互评分!C$2:F$181,4,FALSE) -> 99.1111 | G153: =VLOOKUP(D153,辅导员加分!B$2:C$176,2,FALSE) -> 92.0000 | H153: =VLOOKUP(D153,互评分!C$2:F$181,3,FALSE) -> 100.0000 | I153: =VLOOKUP(D153,互评分!C$2:F$181,2,FALSE) -> 99.0000 | J153: =F153*0.2 -> 19.8222 | K153: =G153*0.5 -> 46.0000 | L153: =H153*0.2 -> 20.0000 | M153: =I153*0.1 -> 9.9000 | N153: =SUM(J153:M153)*0.7 -> 67.0056 | O153: 0.0000 | P153: 0.0000 | Q153: 0.0000 | R153: =N153+O153+P153-Q153 -> 67.0056 | S153: =R153*0.15 -> 10.0508 | T153: =VLOOKUP(D153,[1]必修课成绩!C$71:AE$100,29,FALSE) -> 72.1500 | U153: =VLOOKUP(D153,[1]选修课成绩!C$72:AC$101,27,FALSE) -> 83.0000 | V153: =IF(U153>0,T153*0.9+U153*0.1,T153) -> 73.2350 | W153: 0.0000 | X153: =V153*0.85+W153 -> 62.2498 | Y153: =0.7*X153 -> 43.5748 | Z153: =VLOOKUP(D153,体测成绩!B$2:C$273,2,FALSE) -> 64.2000 | AA153: =VLOOKUP(D153,体育锻炼成绩!A$2:B$182,2,FALSE) -> 100.0000 | AB153: =0.8*Z153 -> 51.3600 | AC153: =AA153*0.2 -> 20.0000 | AD153: =SUM(AB153:AC153)*0.7 -> 49.9520 | AE153: 0.0000 | AF153: =AD153+AE153 -> 49.9520 | AG153: =AF153*0.05 -> 2.4976 | AH153: =VLOOKUP(D153,美育!B$2:F$182,5,FALSE) -> 6.0000 | AI153: =VLOOKUP(D153,美育!B$2:E$182,4,FALSE) -> 0.0000 | AJ153: =AH153+AI153 -> 6.0000 | AK153: =AJ153*0.05 -> 0.3000 | AL153: =VLOOKUP(D153,劳育基础分!B$3:AF$182,31,FALSE) -> 24.0000 | AM153: 0.0000 | AN153: =AL153+AM153 -> 24.0000 | AO153: =AN153*0.05 -> 1.2000 | AP153: =S153+Y153+AG153+AK153+AO153 -> 57.6233 | AQ153: =VLOOKUP(D153,必修课优良率!A$1:B$173,2,FALSE) -> 52.38% | AR153: =VLOOKUP(D153,四级成绩!B$2:C$178,2,FALSE) -> 487 | AS153: =VLOOKUP(D153,必修课优良率!A$1:D$173,4,FALSE) -> 是
A154: 151 | B154: 136 | C154: 2024010570 | D154: 罗锦洪 | E154: =VLOOKUP(D154,美育!B$2:E$182,2,FALSE) -> 化工类24-4班 | F154: =VLOOKUP(D154,互评分!C$2:F$181,4,FALSE) -> 97.3214 | G154: =VLOOKUP(D154,辅导员加分!B$2:C$176,2,FALSE) -> 90.0000 | H154: =VLOOKUP(D154,互评分!C$2:F$181,3,FALSE) -> 95.5714 | I154: =VLOOKUP(D154,互评分!C$2:F$181,2,FALSE) -> 100.0000 | J154: =F154*0.2 -> 19.4643 | K154: =G154*0.5 -> 45.0000 | L154: =H154*0.2 -> 19.1143 | M154: =I154*0.1 -> 10.0000 | N154: =SUM(J154:M154)*0.7 -> 65.5050 | O154: 0.0000 | P154: 0.0000 | Q154: 0.0000 | R154: =N154+O154+P154-Q154 -> 65.5050 | S154: =R154*0.15 -> 9.8258 | T154: 72.8902 | U154: 82.0000 | V154: =IF(U154>0,T154*0.9+U154*0.1,T154) -> 73.8012 | W154: 0.0000 | X154: =V154*0.85+W154 -> 62.7310 | Y154: =0.7*X154 -> 43.9117 | Z154: =VLOOKUP(D154,体测成绩!B$2:C$273,2,FALSE) -> 82.8000 | AA154: =VLOOKUP(D154,体育锻炼成绩!A$2:B$182,2,FALSE) -> 0.0000 | AB154: =0.8*Z154 -> 66.2400 | AC154: =AA154*0.2 -> 0.0000 | AD154: =SUM(AB154:AC154)*0.7 -> 46.3680 | AE154: =VLOOKUP(D154,体育加分汇总!A$1:C$79,3,FALSE) -> 1.0000 | AF154: =AD154+AE154 -> 47.3680 | AG154: =AF154*0.05 -> 2.3684 | AH154: =VLOOKUP(D154,美育!B$2:F$182,5,FALSE) -> 0.0000 | AI154: =VLOOKUP(D154,美育!B$2:E$182,4,FALSE) -> 0.0000 | AJ154: =AH154+AI154 -> 0.0000 | AK154: =AJ154*0.05 -> 0.0000 | AL154: =VLOOKUP(D154,劳育基础分!B$3:AF$182,31,FALSE) -> 30.0000 | AM154: 0.0000 | AN154: =AL154+AM154 -> 30.0000 | AO154: =AN154*0.05 -> 1.5000 | AP154: =S154+Y154+AG154+AK154+AO154 -> 57.6059 | AQ154: =VLOOKUP(D154,必修课优良率!A$1:B$173,2,FALSE) -> 57.14% | AR154: =VLOOKUP(D154,四级成绩!B$2:C$178,2,FALSE) -> 493 | AS154: =VLOOKUP(D154,必修课优良率!A$1:D$173,4,FALSE) -> 是
A155: 152 | B155: 142 | C155: 2024010548 | D155: 赵淑荣 | E155: =VLOOKUP(D155,美育!B$2:E$182,2,FALSE) -> 化工类24-4班 | F155: =VLOOKUP(D155,互评分!C$2:F$181,4,FALSE) -> 97.2857 | G155: =VLOOKUP(D155,辅导员加分!B$2:C$176,2,FALSE) -> 92.0000 | H155: =VLOOKUP(D155,互评分!C$2:F$181,3,FALSE) -> 98.4286 | I155: =VLOOKUP(D155,互评分!C$2:F$181,2,FALSE) -> 100.0000 | J155: =F155*0.2 -> 19.4571 | K155: =G155*0.5 -> 46.0000 | L155: =H155*0.2 -> 19.6857 | M155: =I155*0.1 -> 10.0000 | N155: =SUM(J155:M155)*0.7 -> 66.6000 | O155: 0.0000 | P155: 0.0000 | Q155: 0.0000 | R155: =N155+O155+P155-Q155 -> 66.6000 | S155: =R155*0.15 -> 9.9900 | T155: 72.1098 | U155: 83.0000 | V155: =IF(U155>0,T155*0.9+U155*0.1,T155) -> 73.1988 | W155: 0.0000 | X155: =V155*0.85+W155 -> 62.2190 | Y155: =0.7*X155 -> 43.5533 | Z155: =VLOOKUP(D155,体测成绩!B$2:C$273,2,FALSE) -> 55.7000 | AA155: =VLOOKUP(D155,体育锻炼成绩!A$2:B$182,2,FALSE) -> 100.00 | AB155: =0.8*Z155 -> 44.5600 | AC155: =AA155*0.2 -> 20.0000 | AD155: =SUM(AB155:AC155)*0.7 -> 45.1920 | AE155: 0.0000 | AF155: =AD155+AE155 -> 45.1920 | AG155: =AF155*0.05 -> 2.2596 | AH155: =VLOOKUP(D155,美育!B$2:F$182,5,FALSE) -> 5.0000 | AI155: =VLOOKUP(D155,美育!B$2:E$182,4,FALSE) -> 0.0000 | AJ155: =AH155+AI155 -> 5.0000 | AK155: =AJ155*0.05 -> 0.2500 | AL155: =VLOOKUP(D155,劳育基础分!B$3:AF$182,31,FALSE) -> 28.0000 | AM155: 0.0000 | AN155: =AL155+AM155 -> 28.0000 | AO155: =AN155*0.05 -> 1.4000 | AP155: =S155+Y155+AG155+AK155+AO155 -> 57.4529 | AQ155: =VLOOKUP(D155,必修课优良率!A$1:B$173,2,FALSE) -> 47.62% | AR155: =VLOOKUP(D155,四级成绩!B$2:C$178,2,FALSE) -> 441 | AS155: =VLOOKUP(D155,必修课优良率!A$1:D$173,4,FALSE) -> 否
A156: 153 | B156: 155 | C156: 2024010602 | D156: 洪培彬 | E156: =VLOOKUP(D156,美育!B$2:E$182,2,FALSE) -> 化工类24-5班 | F156: =VLOOKUP(D156,互评分!C$2:F$181,4,FALSE) -> 99.6296 | G156: =VLOOKUP(D156,辅导员加分!B$2:C$176,2,FALSE) -> 90.0000 | H156: =VLOOKUP(D156,互评分!C$2:F$181,3,FALSE) -> 100.0000 | I156: =VLOOKUP(D156,互评分!C$2:F$181,2,FALSE) -> 85.0000 | J156: =F156*0.2 -> 19.9259 | K156: =G156*0.5 -> 45.0000 | L156: =H156*0.2 -> 20.0000 | M156: =I156*0.1 -> 8.5000 | N156: =SUM(J156:M156)*0.7 -> 65.3981 | O156: =VLOOKUP(D156,学生干部加分!A$1:C$140,3,FALSE) -> 2.0000 | P156: 0.0000 | Q156: 0.0000 | R156: =N156+O156+P156-Q156 -> 67.3981 | S156: =R156*0.15 -> 10.1097 | T156: 69.0714 | U156: 83.7143 | V156: =IF(U156>0,T156*0.9+U156*0.1,T156) -> 70.5357 | W156: =VLOOKUP(D156,智育加分汇总!A$2:C$44,3,FALSE) -> 1.5000 | X156: =V156*0.85+W156 -> 61.4554 | Y156: =0.7*X156 -> 43.0188 | Z156: =VLOOKUP(D156,体测成绩!B$2:C$273,2,FALSE) -> 59.8000 | AA156: =VLOOKUP(D156,体育锻炼成绩!A$2:B$182,2,FALSE) -> 0.00 | AB156: =0.8*Z156 -> 47.8400 | AC156: =AA156*0.2 -> 0.0000 | AD156: =SUM(AB156:AC156)*0.7 -> 33.4880 | AE156: 0.0000 | AF156: =AD156+AE156 -> 33.4880 | AG156: =AF156*0.05 -> 1.6744 | AH156: =VLOOKUP(D156,美育!B$2:F$182,5,FALSE) -> 8.0000 | AI156: =VLOOKUP(D156,美育!B$2:E$182,4,FALSE) -> 0.0000 | AJ156: =AH156+AI156 -> 8.0000 | AK156: =AJ156*0.05 -> 0.4000 | AL156: =VLOOKUP(D156,劳育基础分!B$3:AF$182,31,FALSE) -> 42.5000 | AM156: 0.0000 | AN156: =AL156+AM156 -> 42.5000 | AO156: =AN156*0.05 -> 2.1250 | AP156: =S156+Y156+AG156+AK156+AO156 -> 57.3279 | AQ156: =VLOOKUP(D156,必修课优良率!A$1:B$173,2,FALSE) -> 57.14% | AR156: =VLOOKUP(D156,四级成绩!B$2:C$178,2,FALSE) -> 451 | AS156: =VLOOKUP(D156,必修课优良率!A$1:D$173,4,FALSE) -> 是
A157: 154 | B157: 119 | C157: 2024010530 | D157: 仇雨乐 | E157: =VLOOKUP(D157,美育!B$2:E$182,2,FALSE) -> 化工类24-3班 | F157: =VLOOKUP(D157,互评分!C$2:F$181,4,FALSE) -> 99.5185 | G157: =VLOOKUP(D157,辅导员加分!B$2:C$176,2,FALSE) -> 92.0000 | H157: =VLOOKUP(D157,互评分!C$2:F$181,3,FALSE) -> 100.0000 | I157: =VLOOKUP(D157,互评分!C$2:F$181,2,FALSE) -> 99.0000 | J157: =F157*0.2 -> 19.9037 | K157: =G157*0.5 -> 46.0000 | L157: =H157*0.2 -> 20.0000 | M157: =I157*0.1 -> 9.9000 | N157: =SUM(J157:M157)*0.7 -> 67.0626 | O157: 0.0000 | P157: 0.0000 | Q157: 0.0000 | R157: =N157+O157+P157-Q157 -> 67.0626 | S157: =R157*0.15 -> 10.0594 | T157: 74.4167 | U157: 0.0000 | V157: =IF(U157>0,T157*0.9+U157*0.1,T157) -> 74.4167 | W157: 0.0000 | X157: =V157*0.85+W157 -> 63.2542 | Y157: =0.7*X157 -> 44.2779 | Z157: =VLOOKUP(D157,体测成绩!B$2:C$273,2,FALSE) -> 65.8000 | AA157: =VLOOKUP(D157,体育锻炼成绩!A$2:B$182,2,FALSE) -> 0.00 | AB157: =0.8*Z157 -> 52.6400 | AC157: =AA157*0.2 -> 0.0000 | AD157: =SUM(AB157:AC157)*0.7 -> 36.8480 | AE157: 0.0000 | AF157: =AD157+AE157 -> 36.8480 | AG157: =AF157*0.05 -> 1.8424 | AH157: =VLOOKUP(D157,美育!B$2:F$182,5,FALSE) -> 0.0000 | AI157: =VLOOKUP(D157,美育!B$2:E$182,4,FALSE) -> 0.0000 | AJ157: =AH157+AI157 -> 0.0000 | AK157: =AJ157*0.05 -> 0.0000 | AL157: =VLOOKUP(D157,劳育基础分!B$3:AF$182,31,FALSE) -> 20.0000 | AM157: 0.0000 | AN157: =AL157+AM157 -> 20.0000 | AO157: =AN157*0.05 -> 1.0000 | AP157: =S157+Y157+AG157+AK157+AO157 -> 57.1797 | AQ157: =VLOOKUP(D157,必修课优良率!A$1:B$173,2,FALSE) -> 52.38% | AR157: =VLOOKUP(D157,四级成绩!B$2:C$178,2,FALSE) -> 492 | AS157: =VLOOKUP(D157,必修课优良率!A$1:D$173,4,FALSE) -> 否
A158: 155 | B158: 110 | C158: 2024010516 | D158: 彭好运 | E158: 化工类24-2班 | F158: =VLOOKUP(D158,互评分!C$2:F$181,4,FALSE) -> 96.6786 | G158: 90.0000 | H158: =VLOOKUP(D158,互评分!C$2:F$181,3,FALSE) -> 98.3333 | I158: =VLOOKUP(D158,互评分!C$2:F$181,2,FALSE) -> 90.0000 | J158: =F158*0.2 -> 19.3357 | K158: =G158*0.5 -> 45.0000 | L158: =H158*0.2 -> 19.6667 | M158: =I158*0.1 -> 9.0000 | N158: =SUM(J158:M158)*0.7 -> 65.1017 | O158: 0.0000 | P158: 0.0000 | Q158: 1.0000 | R158: =N158+O158+P158-Q158 -> 64.1017 | S158: =R158*0.15 -> 9.6153 | T158: 75.1454 | U158: 0.0000 | V158: 75.1454 | W158: 0.0000 | X158: =V158*0.85+W158 -> 63.8736 | Y158: =0.7*X158 -> 44.7115 | Z158: =VLOOKUP(D158,体测成绩!B$2:C$273,2,FALSE) -> 60.0000 | AA158: 60.0000 | AB158: =0.8*Z158 -> 48.0000 | AC158: =AA158*0.2 -> 12.0000 | AD158: =SUM(AB158:AC158)*0.7 -> 42.0000 | AE158: 0.0000 | AF158: =AD158+AE158 -> 42.0000 | AG158: =AF158*0.05 -> 2.1000 | AH158: =VLOOKUP(D158,美育!B$2:F$182,5,FALSE) -> 0.0000 | AI158: =VLOOKUP(D158,美育!B$2:E$182,4,FALSE) -> 0.0000 | AJ158: =AH158+AI158 -> 0.0000 | AK158: =AJ158*0.05 -> 0.0000 | AL158: =VLOOKUP(D158,劳育基础分!B$3:AF$182,31,FALSE) -> 11.0000 | AM158: 1.0000 | AN158: =AL158+AM158 -> 12.0000 | AO158: =AN158*0.05 -> 0.6000 | AP158: =S158+Y158+AG158+AK158+AO158 -> 57.0268 | AQ158: 38.0900% | AR158: =VLOOKUP(D158,四级成绩!B$2:C$178,2,FALSE) ->  | AS158: 否
A159: 156 | B159: 138 | C159: 2024010586 | D159: 余若瑜 | E159: =VLOOKUP(D159,美育!B$2:E$182,2,FALSE) -> 化工类24-5班 | F159: =VLOOKUP(D159,互评分!C$2:F$181,4,FALSE) -> 99.8519 | G159: =VLOOKUP(D159,辅导员加分!B$2:C$176,2,FALSE) -> 90.0000 | H159: =VLOOKUP(D159,互评分!C$2:F$181,3,FALSE) -> 100.0000 | I159: =VLOOKUP(D159,互评分!C$2:F$181,2,FALSE) -> 88.0000 | J159: =F159*0.2 -> 19.9704 | K159: =G159*0.5 -> 45.0000 | L159: =H159*0.2 -> 20.0000 | M159: =I159*0.1 -> 8.8000 | N159: =SUM(J159:M159)*0.7 -> 65.6393 | O159: =VLOOKUP(D159,学生干部加分!A$1:C$140,3,FALSE) -> 3.5000 | P159: 0.0000 | Q159: 0.0000 | R159: =N159+O159+P159-Q159 -> 69.1393 | S159: =R159*0.15 -> 10.3709 | T159: 72.6071 | U159: 0.0000 | V159: =IF(U159>0,T159*0.9+U159*0.1,T159) -> 72.6071 | W159: 0.0000 | X159: =V159*0.85+W159 -> 61.7161 | Y159: =0.7*X159 -> 43.2013 | Z159: =VLOOKUP(D159,体测成绩!B$2:C$273,2,FALSE) -> 71.7000 | AA159: =VLOOKUP(D159,体育锻炼成绩!A$2:B$182,2,FALSE) -> 0.0000 | AB159: =0.8*Z159 -> 57.3600 | AC159: =AA159*0.2 -> 0.0000 | AD159: =SUM(AB159:AC159)*0.7 -> 40.1520 | AE159: 0.0000 | AF159: =AD159+AE159 -> 40.1520 | AG159: =AF159*0.05 -> 2.0076 | AH159: =VLOOKUP(D159,美育!B$2:F$182,5,FALSE) -> 0.0000 | AI159: =VLOOKUP(D159,美育!B$2:E$182,4,FALSE) -> 0.0000 | AJ159: =AH159+AI159 -> 0.0000 | AK159: =AJ159*0.05 -> 0.0000 | AL159: =VLOOKUP(D159,劳育基础分!B$3:AF$182,31,FALSE) -> 26.5000 | AM159: 0.0000 | AN159: =AL159+AM159 -> 26.5000 | AO159: =AN159*0.05 -> 1.3250 | AP159: =S159+Y159+AG159+AK159+AO159 -> 56.9047 | AQ159: =VLOOKUP(D159,必修课优良率!A$1:B$173,2,FALSE) -> 38.10% | AR159: =VLOOKUP(D159,四级成绩!B$2:C$178,2,FALSE) -> 621 | AS159: =VLOOKUP(D159,必修课优良率!A$1:D$173,4,FALSE) -> 是
A160: 157 | B160: 159 | C160: 2024010556 | D160: 张煊 | E160: =VLOOKUP(D160,美育!B$2:E$182,2,FALSE) -> 化工类24-4班 | F160: =VLOOKUP(D160,互评分!C$2:F$181,4,FALSE) -> 97.6429 | G160: =VLOOKUP(D160,辅导员加分!B$2:C$176,2,FALSE) -> 92.0000 | H160: =VLOOKUP(D160,互评分!C$2:F$181,3,FALSE) -> 98.4286 | I160: =VLOOKUP(D160,互评分!C$2:F$181,2,FALSE) -> 100.0000 | J160: =F160*0.2 -> 19.5286 | K160: =G160*0.5 -> 46.0000 | L160: =H160*0.2 -> 19.6857 | M160: =I160*0.1 -> 10.0000 | N160: =SUM(J160:M160)*0.7 -> 66.6500 | O160: =VLOOKUP(D160,学生干部加分!A$1:C$140,3,FALSE) -> 4.0000 | P160: 0.0000 | Q160: 0.0000 | R160: =N160+O160+P160-Q160 -> 70.6500 | S160: =R160*0.15 -> 10.5975 | T160: =VLOOKUP(D160,[2]必修课成绩!C$59:BO$82,65,FALSE) -> 68.4512 | U160: =VLOOKUP(D160,[2]选修课成绩!C$60:BI$83,59,FALSE) -> 87.5000 | V160: =IF(U160>0,T160*0.9+U160*0.1,T160) -> 70.3561 | W160: 0.0000 | X160: =V160*0.85+W160 -> 59.8027 | Y160: =0.7*X160 -> 41.8619 | Z160: =VLOOKUP(D160,体测成绩!B$2:C$273,2,FALSE) -> 76.4000 | AA160: =VLOOKUP(D160,体育锻炼成绩!A$2:B$182,2,FALSE) -> 100.00 | AB160: =0.8*Z160 -> 61.1200 | AC160: =AA160*0.2 -> 20.0000 | AD160: =SUM(AB160:AC160)*0.7 -> 56.7840 | AE160: =VLOOKUP(D160,体育加分汇总!A$1:C$79,3,FALSE) -> 0.0000 | AF160: =AD160+AE160 -> 56.7840 | AG160: =AF160*0.05 -> 2.8392 | AH160: =VLOOKUP(D160,美育!B$2:F$182,5,FALSE) -> 5.0000 | AI160: =VLOOKUP(D160,美育!B$2:E$182,4,FALSE) -> 0.0000 | AJ160: =AH160+AI160 -> 5.0000 | AK160: =AJ160*0.05 -> 0.2500 | AL160: =VLOOKUP(D160,劳育基础分!B$3:AF$182,31,FALSE) -> 24.0000 | AM160: =VLOOKUP(D160,劳育加分!A$3:I$34,9,FALSE) -> 1.0000 | AN160: =AL160+AM160 -> 25.0000 | AO160: =AN160*0.05 -> 1.2500 | AP160: =S160+Y160+AG160+AK160+AO160 -> 56.7986 | AQ160: =VLOOKUP(D160,必修课优良率!A$1:B$173,2,FALSE) -> 47.62% | AR160: =VLOOKUP(D160,四级成绩!B$2:C$178,2,FALSE) -> 518 | AS160: =VLOOKUP(D160,必修课优良率!A$1:D$173,4,FALSE) -> 是
A161: 158 | B161: 120 | C161: 2024010546 | D161: 马铭远 | E161: =VLOOKUP(D161,美育!B$2:E$182,2,FALSE) -> 化工类24-3班 | F161: =VLOOKUP(D161,互评分!C$2:F$181,4,FALSE) -> 98.7143 | G161: =VLOOKUP(D161,辅导员加分!B$2:C$176,2,FALSE) -> 92.0000 | H161: =VLOOKUP(D161,互评分!C$2:F$181,3,FALSE) -> 100.0000 | I161: =VLOOKUP(D161,互评分!C$2:F$181,2,FALSE) -> 99.0000 | J161: =F161*0.2 -> 19.7429 | K161: =G161*0.5 -> 46.0000 | L161: =H161*0.2 -> 20.0000 | M161: =I161*0.1 -> 9.9000 | N161: =SUM(J161:M161)*0.7 -> 66.9500 | O161: 0.0000 | P161: 0.0000 | Q161: 0.0000 | R161: =N161+O161+P161-Q161 -> 66.9500 | S161: =R161*0.15 -> 10.0425 | T161: =VLOOKUP(D161,[1]必修课成绩!C$71:AE$100,29,FALSE) -> 74.4079 | U161: =VLOOKUP(D161,[1]选修课成绩!C$72:AC$101,27,FALSE) -> 71.8000 | V161: =IF(U161>0,T161*0.9+U161*0.1,T161) -> 74.1471 | W161: 0.0000 | X161: =V161*0.85+W161 -> 63.0250 | Y161: =0.7*X161 -> 44.1175 | Z161: =VLOOKUP(D161,体测成绩!B$2:C$273,2,FALSE) -> 22.0000 | AA161: =VLOOKUP(D161,体育锻炼成绩!A$2:B$182,2,FALSE) -> 100.0000 | AB161: =0.8*Z161 -> 17.6000 | AC161: =AA161*0.2 -> 20.0000 | AD161: =SUM(AB161:AC161)*0.7 -> 26.3200 | AE161: 0.0000 | AF161: =AD161+AE161 -> 26.3200 | AG161: =AF161*0.05 -> 1.3160 | AH161: =VLOOKUP(D161,美育!B$2:F$182,5,FALSE) -> 0.0000 | AI161: =VLOOKUP(D161,美育!B$2:E$182,4,FALSE) -> 0.0000 | AJ161: =AH161+AI161 -> 0.0000 | AK161: =AJ161*0.05 -> 0.0000 | AL161: =VLOOKUP(D161,劳育基础分!B$3:AF$182,31,FALSE) -> 24.0000 | AM161: 0.0000 | AN161: =AL161+AM161 -> 24.0000 | AO161: =AN161*0.05 -> 1.2000 | AP161: =S161+Y161+AG161+AK161+AO161 -> 56.6760 | AQ161: =VLOOKUP(D161,必修课优良率!A$1:B$173,2,FALSE) -> 31.58% | AR161: =VLOOKUP(D161,四级成绩!B$2:C$178,2,FALSE) -> 570 | AS161: =VLOOKUP(D161,必修课优良率!A$1:D$173,4,FALSE) -> 否
A162: 159 | B162: 166 | C162: 2024010467 | D162: 韦程栋 | E162: =VLOOKUP(D162,美育!B$2:E$182,2,FALSE) -> 化工类24-1班 | F162: =VLOOKUP(D162,互评分!C$2:F$181,4,FALSE) -> 98.9259 | G162: =VLOOKUP(D162,辅导员加分!B$2:C$176,2,FALSE) -> 94.0000 | H162: =VLOOKUP(D162,互评分!C$2:F$181,3,FALSE) -> 100.0000 | I162: =VLOOKUP(D162,互评分!C$2:F$181,2,FALSE) -> 90.0000 | J162: =F162*0.2 -> 19.7852 | K162: =G162*0.5 -> 47.0000 | L162: =H162*0.2 -> 20.0000 | M162: =I162*0.1 -> 9.0000 | N162: =SUM(J162:M162)*0.7 -> 67.0496 | O162: =VLOOKUP(D162,学生干部加分!A$1:C$140,3,FALSE) -> 4.0000 | P162: 0.0000 | Q162: 0.0000 | R162: =N162+O162+P162-Q162 -> 71.0496 | S162: =R162*0.15 -> 10.6574 | T162: =VLOOKUP(D162,[2]必修课成绩!C$59:BO$82,65,FALSE) -> 66.2683 | U162: =VLOOKUP(D162,[2]选修课成绩!C$60:BI$83,59,FALSE) -> 86.0000 | V162: =IF(U162>0,T162*0.9+U162*0.1,T162) -> 68.2415 | W162: 0.0000 | X162: =V162*0.85+W162 -> 58.0052 | Y162: =0.7*X162 -> 40.6037 | Z162: =VLOOKUP(D162,体测成绩!B$2:C$273,2,FALSE) -> 72.1000 | AA162: =VLOOKUP(D162,体育锻炼成绩!A$2:B$182,2,FALSE) -> 0.00 | AB162: =0.8*Z162 -> 57.6800 | AC162: =AA162*0.2 -> 0.0000 | AD162: =SUM(AB162:AC162)*0.7 -> 40.3760 | AE162: =VLOOKUP(D162,体育加分汇总!A$1:C$79,3,FALSE) -> 12.0000 | AF162: =AD162+AE162 -> 52.3760 | AG162: =AF162*0.05 -> 2.6188 | AH162: =VLOOKUP(D162,美育!B$2:F$182,5,FALSE) -> 0.0000 | AI162: =VLOOKUP(D162,美育!B$2:E$182,4,FALSE) -> 0.0000 | AJ162: =AH162+AI162 -> 0.0000 | AK162: =AJ162*0.05 -> 0.0000 | AL162: =VLOOKUP(D162,劳育基础分!B$3:AF$182,31,FALSE) -> 40.0000 | AM162: 0.0000 | AN162: =AL162+AM162 -> 40.0000 | AO162: =AN162*0.05 -> 2.0000 | AP162: =S162+Y162+AG162+AK162+AO162 -> 55.8799 | AQ162: =VLOOKUP(D162,必修课优良率!A$1:B$173,2,FALSE) -> 38.10% | AR162: =VLOOKUP(D162,四级成绩!B$2:C$178,2,FALSE) -> 381 | AS162: =VLOOKUP(D162,必修课优良率!A$1:D$173,4,FALSE) -> 是
A163: 160 | B163: 149 | C163: 2024010564 | D163: 孙筠翔 | E163: =VLOOKUP(D163,美育!B$2:E$182,2,FALSE) -> 化工类24-4班 | F163: =VLOOKUP(D163,互评分!C$2:F$181,4,FALSE) -> 96.6429 | G163: =VLOOKUP(D163,辅导员加分!B$2:C$176,2,FALSE) -> 92.0000 | H163: =VLOOKUP(D163,互评分!C$2:F$181,3,FALSE) -> 95.7143 | I163: =VLOOKUP(D163,互评分!C$2:F$181,2,FALSE) -> 100.0000 | J163: =F163*0.2 -> 19.3286 | K163: =G163*0.5 -> 46.0000 | L163: =H163*0.2 -> 19.1429 | M163: =I163*0.1 -> 10.0000 | N163: =SUM(J163:M163)*0.7 -> 66.1300 | O163: 0.0000 | P163: 0.0000 | Q163: 0.0000 | R163: =N163+O163+P163-Q163 -> 66.1300 | S163: =R163*0.15 -> 9.9195 | T163: =VLOOKUP(D163,[1]必修课成绩!C$71:AE$100,29,FALSE) -> 71.2000 | U163: =VLOOKUP(D163,[1]选修课成绩!C$72:AC$101,27,FALSE) -> 0.0000 | V163: =IF(U163>0,T163*0.9+U163*0.1,T163) -> 71.2000 | W163: 0.0000 | X163: =V163*0.85+W163 -> 60.5200 | Y163: =0.7*X163 -> 42.3640 | Z163: =VLOOKUP(D163,体测成绩!B$2:C$273,2,FALSE) -> 61.1000 | AA163: =VLOOKUP(D163,体育锻炼成绩!A$2:B$182,2,FALSE) -> 100.0000 | AB163: =0.8*Z163 -> 48.8800 | AC163: =AA163*0.2 -> 20.0000 | AD163: =SUM(AB163:AC163)*0.7 -> 48.2160 | AE163: 0.0000 | AF163: =AD163+AE163 -> 48.2160 | AG163: =AF163*0.05 -> 2.4108 | AH163: =VLOOKUP(D163,美育!B$2:F$182,5,FALSE) -> 0.0000 | AI163: =VLOOKUP(D163,美育!B$2:E$182,4,FALSE) -> 0.0000 | AJ163: =AH163+AI163 -> 0.0000 | AK163: =AJ163*0.05 -> 0.0000 | AL163: =VLOOKUP(D163,劳育基础分!B$3:AF$182,31,FALSE) -> 20.0000 | AM163: 0.0000 | AN163: =AL163+AM163 -> 20.0000 | AO163: =AN163*0.05 -> 1.0000 | AP163: =S163+Y163+AG163+AK163+AO163 -> 55.6943 | AQ163: =VLOOKUP(D163,必修课优良率!A$1:B$173,2,FALSE) -> 42.86% | AR163: =VLOOKUP(D163,四级成绩!B$2:C$178,2,FALSE) -> 353 | AS163: =VLOOKUP(D163,必修课优良率!A$1:D$173,4,FALSE) -> 是
A164: 161 | B164: 152 | C164: 2024010565 | D164: 李瑞杰 | E164: =VLOOKUP(D164,美育!B$2:E$182,2,FALSE) -> 化工类24-4班 | F164: =VLOOKUP(D164,互评分!C$2:F$181,4,FALSE) -> 96.7143 | G164: =VLOOKUP(D164,辅导员加分!B$2:C$176,2,FALSE) -> 92.0000 | H164: =VLOOKUP(D164,互评分!C$2:F$181,3,FALSE) -> 95.7143 | I164: =VLOOKUP(D164,互评分!C$2:F$181,2,FALSE) -> 100.0000 | J164: =F164*0.2 -> 19.3429 | K164: =G164*0.5 -> 46.0000 | L164: =H164*0.2 -> 19.1429 | M164: =I164*0.1 -> 10.0000 | N164: =SUM(J164:M164)*0.7 -> 66.1400 | O164: 0.0000 | P164: 0.0000 | Q164: 0.0000 | R164: =N164+O164+P164-Q164 -> 66.1400 | S164: =R164*0.15 -> 9.9210 | T164: =VLOOKUP(D164,[1]必修课成绩!C$71:AE$100,29,FALSE) -> 70.6500 | U164: =VLOOKUP(D164,[1]选修课成绩!C$72:AC$101,27,FALSE) -> 0.0000 | V164: =IF(U164>0,T164*0.9+U164*0.1,T164) -> 70.6500 | W164: 0.0000 | X164: =V164*0.85+W164 -> 60.0525 | Y164: =0.7*X164 -> 42.0368 | Z164: =VLOOKUP(D164,体测成绩!B$2:C$273,2,FALSE) -> 59.8000 | AA164: =VLOOKUP(D164,体育锻炼成绩!A$2:B$182,2,FALSE) -> 100.0000 | AB164: =0.8*Z164 -> 47.8400 | AC164: =AA164*0.2 -> 20.0000 | AD164: =SUM(AB164:AC164)*0.7 -> 47.4880 | AE164: 0.0000 | AF164: =AD164+AE164 -> 47.4880 | AG164: =AF164*0.05 -> 2.3744 | AH164: =VLOOKUP(D164,美育!B$2:F$182,5,FALSE) -> 0.0000 | AI164: =VLOOKUP(D164,美育!B$2:E$182,4,FALSE) -> 0.0000 | AJ164: =AH164+AI164 -> 0.0000 | AK164: =AJ164*0.05 -> 0.0000 | AL164: =VLOOKUP(D164,劳育基础分!B$3:AF$182,31,FALSE) -> 20.0000 | AM164: 0.0000 | AN164: =AL164+AM164 -> 20.0000 | AO164: =AN164*0.05 -> 1.0000 | AP164: =S164+Y164+AG164+AK164+AO164 -> 55.3322 | AQ164: =VLOOKUP(D164,必修课优良率!A$1:B$173,2,FALSE) -> 23.81% | AR164: =VLOOKUP(D164,四级成绩!B$2:C$178,2,FALSE) -> 448 | AS164: =VLOOKUP(D164,必修课优良率!A$1:D$173,4,FALSE) -> 是
A165: 162 | B165: 167 | C165: 2024010501 | D165: 成杰文 | E165: =VLOOKUP(D165,美育!B$2:E$182,2,FALSE) -> 化工类24-2班 | F165: =VLOOKUP(D165,互评分!C$2:F$181,4,FALSE) -> 96.3571 | G165: =VLOOKUP(D165,辅导员加分!B$2:C$176,2,FALSE) -> 90.0000 | H165: =VLOOKUP(D165,互评分!C$2:F$181,3,FALSE) -> 97.5000 | I165: =VLOOKUP(D165,互评分!C$2:F$181,2,FALSE) -> 92.0000 | J165: =F165*0.2 -> 19.2714 | K165: =G165*0.5 -> 45.0000 | L165: =H165*0.2 -> 19.5000 | M165: =I165*0.1 -> 9.2000 | N165: =SUM(J165:M165)*0.7 -> 65.0800 | O165: 0.0000 | P165: 0.0000 | Q165: 0.0000 | R165: =N165+O165+P165-Q165 -> 65.0800 | S165: =R165*0.15 -> 9.7620 | T165: 65.8415 | U165: 0.0000 | V165: =IF(U165>0,T165*0.9+U165*0.1,T165) -> 65.8415 | W165: 0.0000 | X165: =V165*0.85+W165 -> 55.9652 | Y165: =0.7*X165 -> 39.1757 | Z165: =VLOOKUP(D165,体测成绩!B$2:C$273,2,FALSE) -> 76.6000 | AA165: =VLOOKUP(D165,体育锻炼成绩!A$2:B$182,2,FALSE) -> 100.00 | AB165: =0.8*Z165 -> 61.2800 | AC165: =AA165*0.2 -> 20.0000 | AD165: =SUM(AB165:AC165)*0.7 -> 56.8960 | AE165: =VLOOKUP(D165,体育加分汇总!A$1:C$79,3,FALSE) -> 9.0000 | AF165: =AD165+AE165 -> 65.8960 | AG165: =AF165*0.05 -> 3.2948 | AH165: =VLOOKUP(D165,美育!B$2:F$182,5,FALSE) -> 20.0000 | AI165: =VLOOKUP(D165,美育!B$2:E$182,4,FALSE) -> 0.0000 | AJ165: =AH165+AI165 -> 20.0000 | AK165: =AJ165*0.05 -> 1.0000 | AL165: =VLOOKUP(D165,劳育基础分!B$3:AF$182,31,FALSE) -> 40.0000 | AM165: 0.0000 | AN165: =AL165+AM165 -> 40.0000 | AO165: =AN165*0.05 -> 2.0000 | AP165: =S165+Y165+AG165+AK165+AO165 -> 55.2325 | AQ165: =VLOOKUP(D165,必修课优良率!A$1:B$173,2,FALSE) -> 52.38% | AR165: =VLOOKUP(D165,四级成绩!B$2:C$178,2,FALSE) -> 400 | AS165: =VLOOKUP(D165,必修课优良率!A$1:D$173,4,FALSE) -> 是
A166: 163 | B166: 162 | C166: 2024010563 | D166: 刘迪 | E166: =VLOOKUP(D166,美育!B$2:E$182,2,FALSE) -> 化工类24-4班 | F166: =VLOOKUP(D166,互评分!C$2:F$181,4,FALSE) -> 96.3214 | G166: =VLOOKUP(D166,辅导员加分!B$2:C$176,2,FALSE) -> 92.0000 | H166: =VLOOKUP(D166,互评分!C$2:F$181,3,FALSE) -> 95.7143 | I166: =VLOOKUP(D166,互评分!C$2:F$181,2,FALSE) -> 100.0000 | J166: =F166*0.2 -> 19.2643 | K166: =G166*0.5 -> 46.0000 | L166: =H166*0.2 -> 19.1429 | M166: =I166*0.1 -> 10.0000 | N166: =SUM(J166:M166)*0.7 -> 66.0850 | O166: =VLOOKUP(D166,学生干部加分!A$1:C$140,3,FALSE) -> 6.0000 | P166: 0.0000 | Q166: 0.0000 | R166: =N166+O166+P166-Q166 -> 72.0850 | S166: =R166*0.15 -> 10.8127 | T166: =VLOOKUP(D166,[1]必修课成绩!C$71:AE$100,29,FALSE) -> 67.2125 | U166: =VLOOKUP(D166,[1]选修课成绩!C$72:AC$101,27,FALSE) -> 0.0000 | V166: =IF(U166>0,T166*0.9+U166*0.1,T166) -> 67.2125 | W166: 0.0000 | X166: =V166*0.85+W166 -> 57.1306 | Y166: =0.7*X166 -> 39.9914 | Z166: =VLOOKUP(D166,体测成绩!B$2:C$273,2,FALSE) -> 69.4000 | AA166: =VLOOKUP(D166,体育锻炼成绩!A$2:B$182,2,FALSE) -> 100.00 | AB166: =0.8*Z166 -> 55.5200 | AC166: =AA166*0.2 -> 20.0000 | AD166: =SUM(AB166:AC166)*0.7 -> 52.8640 | AE166: =VLOOKUP(D166,体育加分汇总!A$1:C$79,3,FALSE) -> 1.0000 | AF166: =AD166+AE166 -> 53.8640 | AG166: =AF166*0.05 -> 2.6932 | AH166: =VLOOKUP(D166,美育!B$2:F$182,5,FALSE) -> 3.0000 | AI166: =VLOOKUP(D166,美育!B$2:E$182,4,FALSE) -> 0.0000 | AJ166: =AH166+AI166 -> 3.0000 | AK166: =AJ166*0.05 -> 0.1500 | AL166: =VLOOKUP(D166,劳育基础分!B$3:AF$182,31,FALSE) -> 24.0000 | AM166: 0.0000 | AN166: =AL166+AM166 -> 24.0000 | AO166: =AN166*0.05 -> 1.2000 | AP166: =S166+Y166+AG166+AK166+AO166 -> 54.8474 | AQ166: =VLOOKUP(D166,必修课优良率!A$1:B$173,2,FALSE) -> 52.38% | AR166: =VLOOKUP(D166,四级成绩!B$2:C$178,2,FALSE) -> 322 | AS166: =VLOOKUP(D166,必修课优良率!A$1:D$173,4,FALSE) -> 是
A167: 164 | B167: 168 | C167: 2024010533 | D167: 蒋金鹏 | E167: =VLOOKUP(D167,美育!B$2:E$182,2,FALSE) -> 化工类24-3班 | F167: =VLOOKUP(D167,互评分!C$2:F$181,4,FALSE) -> 99.1111 | G167: =VLOOKUP(D167,辅导员加分!B$2:C$176,2,FALSE) -> 92.0000 | H167: =VLOOKUP(D167,互评分!C$2:F$181,3,FALSE) -> 100.0000 | I167: =VLOOKUP(D167,互评分!C$2:F$181,2,FALSE) -> 99.0000 | J167: =F167*0.2 -> 19.8222 | K167: =G167*0.5 -> 46.0000 | L167: =H167*0.2 -> 20.0000 | M167: =I167*0.1 -> 9.9000 | N167: =SUM(J167:M167)*0.7 -> 67.0056 | O167: =VLOOKUP(D167,学生干部加分!A$1:C$140,3,FALSE) -> 3.0000 | P167: 0.0000 | Q167: 0.0000 | R167: =N167+O167+P167-Q167 -> 70.0056 | S167: =R167*0.15 -> 10.5008 | T167: =VLOOKUP(D167,[2]必修课成绩!C$59:BO$82,65,FALSE) -> 65.7927 | U167: =VLOOKUP(D167,[2]选修课成绩!C$60:BI$83,59,FALSE) -> 0.0000 | V167: =IF(U167>0,T167*0.9+U167*0.1,T167) -> 65.7927 | W167: 0.0000 | X167: =V167*0.85+W167 -> 55.9238 | Y167: =0.7*X167 -> 39.1466 | Z167: =VLOOKUP(D167,体测成绩!B$2:C$273,2,FALSE) -> 71.2000 | AA167: =VLOOKUP(D167,体育锻炼成绩!A$2:B$182,2,FALSE) -> 100.00 | AB167: =0.8*Z167 -> 56.9600 | AC167: =AA167*0.2 -> 20.0000 | AD167: =SUM(AB167:AC167)*0.7 -> 53.8720 | AE167: 0.0000 | AF167: =AD167+AE167 -> 53.8720 | AG167: =AF167*0.05 -> 2.6936 | AH167: =VLOOKUP(D167,美育!B$2:F$182,5,FALSE) -> 25.0000 | AI167: =VLOOKUP(D167,美育!B$2:E$182,4,FALSE) -> 0.0000 | AJ167: =AH167+AI167 -> 25.0000 | AK167: =AJ167*0.05 -> 1.2500 | AL167: =VLOOKUP(D167,劳育基础分!B$3:AF$182,31,FALSE) -> 24.0000 | AM167: 0.0000 | AN167: =AL167+AM167 -> 24.0000 | AO167: =AN167*0.05 -> 1.2000 | AP167: =S167+Y167+AG167+AK167+AO167 -> 54.7911 | AQ167: =VLOOKUP(D167,必修课优良率!A$1:B$173,2,FALSE) -> 52.38% | AR167: =VLOOKUP(D167,四级成绩!B$2:C$178,2,FALSE) -> 395 | AS167: =VLOOKUP(D167,必修课优良率!A$1:D$173,4,FALSE) -> 是
A168: 165 | B168: 171 | C168: 2024010526 | D168: 阿优拉·沙帕尔别克 | E168: =VLOOKUP(D168,美育!B$2:E$182,2,FALSE) -> 化工类24-3班 | F168: =VLOOKUP(D168,互评分!C$2:F$181,4,FALSE) -> 99.1111 | G168: =VLOOKUP(D168,辅导员加分!B$2:C$176,2,FALSE) -> 92.0000 | H168: =VLOOKUP(D168,互评分!C$2:F$181,3,FALSE) -> 100.0000 | I168: =VLOOKUP(D168,互评分!C$2:F$181,2,FALSE) -> 99.0000 | J168: =F168*0.2 -> 19.8222 | K168: =G168*0.5 -> 46.0000 | L168: =H168*0.2 -> 20.0000 | M168: =I168*0.1 -> 9.9000 | N168: =SUM(J168:M168)*0.7 -> 67.0056 | O168: =VLOOKUP(D168,学生干部加分!A$1:C$140,3,FALSE) -> 2.0000 | P168: 0.0000 | Q168: 0.0000 | R168: =N168+O168+P168-Q168 -> 69.0056 | S168: =R168*0.15 -> 10.3508 | T168: 64.1341 | U168: 90.5000 | V168: =IF(U168>0,T168*0.9+U168*0.1,T168) -> 66.7707 | W168: 0.0000 | X168: =V168*0.85+W168 -> 56.7551 | Y168: =0.7*X168 -> 39.7286 | Z168: =VLOOKUP(D168,体测成绩!B$2:C$273,2,FALSE) -> 65.8000 | AA168: =VLOOKUP(D168,体育锻炼成绩!A$2:B$182,2,FALSE) -> 100.00 | AB168: =0.8*Z168 -> 52.6400 | AC168: =AA168*0.2 -> 20.0000 | AD168: =SUM(AB168:AC168)*0.7 -> 50.8480 | AE168: 0.0000 | AF168: =AD168+AE168 -> 50.8480 | AG168: =AF168*0.05 -> 2.5424 | AH168: =VLOOKUP(D168,美育!B$2:F$182,5,FALSE) -> 0.0000 | AI168: =VLOOKUP(D168,美育!B$2:E$182,4,FALSE) -> 0.0000 | AJ168: =AH168+AI168 -> 0.0000 | AK168: =AJ168*0.05 -> 0.0000 | AL168: =VLOOKUP(D168,劳育基础分!B$3:AF$182,31,FALSE) -> 40.0000 | AM168: 0.0000 | AN168: =AL168+AM168 -> 40.0000 | AO168: =AN168*0.05 -> 2.0000 | AP168: =S168+Y168+AG168+AK168+AO168 -> 54.6218 | AQ168: =VLOOKUP(D168,必修课优良率!A$1:B$173,2,FALSE) -> 57.14% | AR168: =VLOOKUP(D168,四级成绩!B$2:C$178,2,FALSE) -> 380 | AS168: =VLOOKUP(D168,必修课优良率!A$1:D$173,4,FALSE) -> 是
A169: 166 | B169: 161 | C169: 2024010540 | D169: 王嘉博 | E169: =VLOOKUP(D169,美育!B$2:E$182,2,FALSE) -> 化工类24-3班 | F169: =VLOOKUP(D169,互评分!C$2:F$181,4,FALSE) -> 98.7143 | G169: =VLOOKUP(D169,辅导员加分!B$2:C$176,2,FALSE) -> 92.0000 | H169: =VLOOKUP(D169,互评分!C$2:F$181,3,FALSE) -> 100.0000 | I169: =VLOOKUP(D169,互评分!C$2:F$181,2,FALSE) -> 99.0000 | J169: =F169*0.2 -> 19.7429 | K169: =G169*0.5 -> 46.0000 | L169: =H169*0.2 -> 20.0000 | M169: =I169*0.1 -> 9.9000 | N169: =SUM(J169:M169)*0.7 -> 66.9500 | O169: 0.0000 | P169: 0.0000 | Q169: 0.0000 | R169: =N169+O169+P169-Q169 -> 66.9500 | S169: =R169*0.15 -> 10.0425 | T169: =VLOOKUP(D169,[1]必修课成绩!C$71:AE$100,29,FALSE) -> 67.6875 | U169: =VLOOKUP(D169,[1]选修课成绩!C$72:AC$101,27,FALSE) -> 0.0000 | V169: =IF(U169>0,T169*0.9+U169*0.1,T169) -> 67.6875 | W169: 0.0000 | X169: =V169*0.85+W169 -> 57.5344 | Y169: =0.7*X169 -> 40.2741 | Z169: =VLOOKUP(D169,体测成绩!B$2:C$273,2,FALSE) -> 63.0000 | AA169: =VLOOKUP(D169,体育锻炼成绩!A$2:B$182,2,FALSE) -> 100.00 | AB169: =0.8*Z169 -> 50.4000 | AC169: =AA169*0.2 -> 20.0000 | AD169: =SUM(AB169:AC169)*0.7 -> 49.2800 | AE169: 0.0000 | AF169: =AD169+AE169 -> 49.2800 | AG169: =AF169*0.05 -> 2.4640 | AH169: =VLOOKUP(D169,美育!B$2:F$182,5,FALSE) -> 8.0000 | AI169: =VLOOKUP(D169,美育!B$2:E$182,4,FALSE) -> 0.0000 | AJ169: =AH169+AI169 -> 8.0000 | AK169: =AJ169*0.05 -> 0.4000 | AL169: =VLOOKUP(D169,劳育基础分!B$3:AF$182,31,FALSE) -> 25.0000 | AM169: 0.0000 | AN169: =AL169+AM169 -> 25.0000 | AO169: =AN169*0.05 -> 1.2500 | AP169: =S169+Y169+AG169+AK169+AO169 -> 54.4306 | AQ169: =VLOOKUP(D169,必修课优良率!A$1:B$173,2,FALSE) -> 28.57% | AR169: =VLOOKUP(D169,四级成绩!B$2:C$178,2,FALSE) -> 415 | AS169: =VLOOKUP(D169,必修课优良率!A$1:D$173,4,FALSE) -> 是
A170: 167 | B170: 163 | C170: 2024010558 | D170: 李宇轩 | E170: =VLOOKUP(D170,美育!B$2:E$182,2,FALSE) -> 化工类24-4班 | F170: =VLOOKUP(D170,互评分!C$2:F$181,4,FALSE) -> 95.8571 | G170: =VLOOKUP(D170,辅导员加分!B$2:C$176,2,FALSE) -> 92.0000 | H170: =VLOOKUP(D170,互评分!C$2:F$181,3,FALSE) -> 95.5714 | I170: =VLOOKUP(D170,互评分!C$2:F$181,2,FALSE) -> 100.0000 | J170: =F170*0.2 -> 19.1714 | K170: =G170*0.5 -> 46.0000 | L170: =H170*0.2 -> 19.1143 | M170: =I170*0.1 -> 10.0000 | N170: =SUM(J170:M170)*0.7 -> 66.0000 | O170: 0.0000 | P170: 0.0000 | Q170: 0.0000 | R170: =N170+O170+P170-Q170 -> 66.0000 | S170: =R170*0.15 -> 9.9000 | T170: =VLOOKUP(D170,[2]必修课成绩!C$59:BO$82,65,FALSE) -> 66.8049 | U170: =VLOOKUP(D170,[2]选修课成绩!C$60:BI$83,59,FALSE) -> 0.0000 | V170: =IF(U170>0,T170*0.9+U170*0.1,T170) -> 66.8049 | W170: 0.0000 | X170: =V170*0.85+W170 -> 56.7841 | Y170: =0.7*X170 -> 39.7489 | Z170: =VLOOKUP(D170,体测成绩!B$2:C$273,2,FALSE) -> 60.0000 | AA170: =VLOOKUP(D170,体育锻炼成绩!A$2:B$182,2,FALSE) -> 100.00 | AB170: =0.8*Z170 -> 48.0000 | AC170: =AA170*0.2 -> 20.0000 | AD170: =SUM(AB170:AC170)*0.7 -> 47.6000 | AE170: 0.0000 | AF170: =AD170+AE170 -> 47.6000 | AG170: =AF170*0.05 -> 2.3800 | AH170: =VLOOKUP(D170,美育!B$2:F$182,5,FALSE) -> 25.0000 | AI170: =VLOOKUP(D170,美育!B$2:E$182,4,FALSE) -> 0.0000 | AJ170: =AH170+AI170 -> 25.0000 | AK170: =AJ170*0.05 -> 1.2500 | AL170: =VLOOKUP(D170,劳育基础分!B$3:AF$182,31,FALSE) -> 20.0000 | AM170: 0.0000 | AN170: =AL170+AM170 -> 20.0000 | AO170: =AN170*0.05 -> 1.0000 | AP170: =S170+Y170+AG170+AK170+AO170 -> 54.2789 | AQ170: =VLOOKUP(D170,必修课优良率!A$1:B$173,2,FALSE) -> 42.86% | AR170: =VLOOKUP(D170,四级成绩!B$2:C$178,2,FALSE) -> 453 | AS170: =VLOOKUP(D170,必修课优良率!A$1:D$173,4,FALSE) -> 是
A171: 168 | B171: 169 | C171: 2024010529 | D171: 孟煜杰 | E171: =VLOOKUP(D171,美育!B$2:E$182,2,FALSE) -> 化工类24-3班 | F171: =VLOOKUP(D171,互评分!C$2:F$181,4,FALSE) -> 96.0357 | G171: =VLOOKUP(D171,辅导员加分!B$2:C$176,2,FALSE) -> 90.0000 | H171: =VLOOKUP(D171,互评分!C$2:F$181,3,FALSE) -> 100.0000 | I171: =VLOOKUP(D171,互评分!C$2:F$181,2,FALSE) -> 96.0000 | J171: =F171*0.2 -> 19.2071 | K171: =G171*0.5 -> 45.0000 | L171: =H171*0.2 -> 20.0000 | M171: =I171*0.1 -> 9.6000 | N171: =SUM(J171:M171)*0.7 -> 65.6650 | O171: =VLOOKUP(D171,学生干部加分!A$1:C$140,3,FALSE) -> 5.5000 | P171: 0.0000 | Q171: 0.0000 | R171: =N171+O171+P171-Q171 -> 71.1650 | S171: =R171*0.15 -> 10.6748 | T171: =VLOOKUP(D171,[2]必修课成绩!C$59:BO$82,65,FALSE) -> 65.0854 | U171: =VLOOKUP(D171,[2]选修课成绩!C$60:BI$83,59,FALSE) -> 0.0000 | V171: =IF(U171>0,T171*0.9+U171*0.1,T171) -> 65.0854 | W171: 0.0000 | X171: =V171*0.85+W171 -> 55.3226 | Y171: =0.7*X171 -> 38.7258 | Z171: =VLOOKUP(D171,体测成绩!B$2:C$273,2,FALSE) -> 63.6000 | AA171: =VLOOKUP(D171,体育锻炼成绩!A$2:B$182,2,FALSE) -> 0.00 | AB171: =0.8*Z171 -> 50.8800 | AC171: =AA171*0.2 -> 0.0000 | AD171: =SUM(AB171:AC171)*0.7 -> 35.6160 | AE171: =VLOOKUP(D171,体育加分汇总!A$1:C$79,3,FALSE) -> 1.0000 | AF171: =AD171+AE171 -> 36.6160 | AG171: =AF171*0.05 -> 1.8308 | AH171: =VLOOKUP(D171,美育!B$2:F$182,5,FALSE) -> 35.0000 | AI171: =VLOOKUP(D171,美育!B$2:E$182,4,FALSE) -> 0.0000 | AJ171: =AH171+AI171 -> 35.0000 | AK171: =AJ171*0.05 -> 1.7500 | AL171: =VLOOKUP(D171,劳育基础分!B$3:AF$182,31,FALSE) -> 24.0000 | AM171: 0.0000 | AN171: =AL171+AM171 -> 24.0000 | AO171: =AN171*0.05 -> 1.2000 | AP171: =S171+Y171+AG171+AK171+AO171 -> 54.1813 | AQ171: =VLOOKUP(D171,必修课优良率!A$1:B$173,2,FALSE) -> 61.90% | AR171: =VLOOKUP(D171,四级成绩!B$2:C$178,2,FALSE) -> 424 | AS171: =VLOOKUP(D171,必修课优良率!A$1:D$173,4,FALSE) -> 是
A172: 169 | B172: 153 | C172: 2024010474 | D172: 吴赛扬 | E172: =VLOOKUP(D172,美育!B$2:E$182,2,FALSE) -> 化工类24-1班 | F172: =VLOOKUP(D172,互评分!C$2:F$181,4,FALSE) -> 97.4444 | G172: =VLOOKUP(D172,辅导员加分!B$2:C$176,2,FALSE) -> 92.0000 | H172: =VLOOKUP(D172,互评分!C$2:F$181,3,FALSE) -> 99.6667 | I172: =VLOOKUP(D172,互评分!C$2:F$181,2,FALSE) -> 90.0000 | J172: =F172*0.2 -> 19.4889 | K172: =G172*0.5 -> 46.0000 | L172: =H172*0.2 -> 19.9333 | M172: =I172*0.1 -> 9.0000 | N172: =SUM(J172:M172)*0.7 -> 66.0956 | O172: 0.0000 | P172: 0.0000 | Q172: 0.0000 | R172: =N172+O172+P172-Q172 -> 66.0956 | S172: =R172*0.15 -> 9.9143 | T172: 69.4933 | U172: 60.0000 | V172: =IF(U172>0,T172*0.9+U172*0.1,T172) -> 68.5440 | W172: 0.0000 | X172: =V172*0.85+W172 -> 58.2624 | Y172: =0.7*X172 -> 40.7837 | Z172: =VLOOKUP(D172,体测成绩!B$2:C$273,2,FALSE) -> 34.7000 | AA172: =VLOOKUP(D172,体育锻炼成绩!A$2:B$182,2,FALSE) -> 100.0000 | AB172: =0.8*Z172 -> 27.7600 | AC172: =AA172*0.2 -> 20.0000 | AD172: =SUM(AB172:AC172)*0.7 -> 33.4320 | AE172: 0.0000 | AF172: =AD172+AE172 -> 33.4320 | AG172: =AF172*0.05 -> 1.6716 | AH172: =VLOOKUP(D172,美育!B$2:F$182,5,FALSE) -> 0.0000 | AI172: =VLOOKUP(D172,美育!B$2:E$182,4,FALSE) -> 0.0000 | AJ172: =AH172+AI172 -> 0.0000 | AK172: =AJ172*0.05 -> 0.0000 | AL172: =VLOOKUP(D172,劳育基础分!B$3:AF$182,31,FALSE) -> 28.0000 | AM172: 0.0000 | AN172: =AL172+AM172 -> 28.0000 | AO172: =AN172*0.05 -> 1.4000 | AP172: =S172+Y172+AG172+AK172+AO172 -> 53.7696 | AQ172: =VLOOKUP(D172,必修课优良率!A$1:B$173,2,FALSE) -> 21.05% | AR172: 0 | AS172: =VLOOKUP(D172,必修课优良率!A$1:D$173,4,FALSE) -> 是
A173: 170 | B173: 170 | C173: 2024010496 | D173: 董叶帆 | E173: =VLOOKUP(D173,美育!B$2:E$182,2,FALSE) -> 化工类24-2班 | F173: =VLOOKUP(D173,互评分!C$2:F$181,4,FALSE) -> 96.6786 | G173: =VLOOKUP(D173,辅导员加分!B$2:C$176,2,FALSE) -> 90.0000 | H173: =VLOOKUP(D173,互评分!C$2:F$181,3,FALSE) -> 97.1667 | I173: =VLOOKUP(D173,互评分!C$2:F$181,2,FALSE) -> 90.0000 | J173: =F173*0.2 -> 19.3357 | K173: =G173*0.5 -> 45.0000 | L173: =H173*0.2 -> 19.4333 | M173: =I173*0.1 -> 9.0000 | N173: =SUM(J173:M173)*0.7 -> 64.9383 | O173: =VLOOKUP(D173,学生干部加分!A$1:C$140,3,FALSE) -> 3.5000 | P173: 0.0000 | Q173: 0.0000 | R173: =N173+O173+P173-Q173 -> 68.4383 | S173: =R173*0.15 -> 10.2658 | T173: 64.9024 | U173: 66.2500 | V173: =IF(U173>0,T173*0.9+U173*0.1,T173) -> 65.0372 | W173: 0.0000 | X173: =V173*0.85+W173 -> 55.2816 | Y173: =0.7*X173 -> 38.6971 | Z173: =VLOOKUP(D173,体测成绩!B$2:C$273,2,FALSE) -> 67.6000 | AA173: =VLOOKUP(D173,体育锻炼成绩!A$2:B$182,2,FALSE) -> 100.00 | AB173: =0.8*Z173 -> 54.0800 | AC173: =AA173*0.2 -> 20.0000 | AD173: =SUM(AB173:AC173)*0.7 -> 51.8560 | AE173: 0.0000 | AF173: =AD173+AE173 -> 51.8560 | AG173: =AF173*0.05 -> 2.5928 | AH173: =VLOOKUP(D173,美育!B$2:F$182,5,FALSE) -> 15.0000 | AI173: =VLOOKUP(D173,美育!B$2:E$182,4,FALSE) -> 0.0000 | AJ173: =AH173+AI173 -> 15.0000 | AK173: =AJ173*0.05 -> 0.7500 | AL173: =VLOOKUP(D173,劳育基础分!B$3:AF$182,31,FALSE) -> 22.5000 | AM173: 0.0000 | AN173: =AL173+AM173 -> 22.5000 | AO173: =AN173*0.05 -> 1.1250 | AP173: =S173+Y173+AG173+AK173+AO173 -> 53.4307 | AQ173: =VLOOKUP(D173,必修课优良率!A$1:B$173,2,FALSE) -> 33.33% | AR173: =VLOOKUP(D173,四级成绩!B$2:C$178,2,FALSE) -> 449 | AS173: =VLOOKUP(D173,必修课优良率!A$1:D$173,4,FALSE) -> 是
A174: 171 | B174: 172 | C174: 2024010569 | D174: 吕小川 | E174: =VLOOKUP(D174,美育!B$2:E$182,2,FALSE) -> 化工类24-4班 | F174: =VLOOKUP(D174,互评分!C$2:F$181,4,FALSE) -> 96.7857 | G174: =VLOOKUP(D174,辅导员加分!B$2:C$176,2,FALSE) -> 92.0000 | H174: =VLOOKUP(D174,互评分!C$2:F$181,3,FALSE) -> 95.5714 | I174: =VLOOKUP(D174,互评分!C$2:F$181,2,FALSE) -> 100.0000 | J174: =F174*0.2 -> 19.3571 | K174: =G174*0.5 -> 46.0000 | L174: =H174*0.2 -> 19.1143 | M174: =I174*0.1 -> 10.0000 | N174: =SUM(J174:M174)*0.7 -> 66.1300 | O174: =VLOOKUP(D174,学生干部加分!A$1:C$140,3,FALSE) -> 7.0000 | P174: 0.0000 | Q174: 0.0000 | R174: =N174+O174+P174-Q174 -> 73.1300 | S174: =R174*0.15 -> 10.9695 | T174: =VLOOKUP(D174,[2]必修课成绩!C$59:BO$82,65,FALSE) -> 64.0122 | U174: =VLOOKUP(D174,[2]选修课成绩!C$60:BI$83,59,FALSE) -> 75.0000 | V174: =IF(U174>0,T174*0.9+U174*0.1,T174) -> 65.1110 | W174: 0.0000 | X174: =V174*0.85+W174 -> 55.3443 | Y174: =0.7*X174 -> 38.7410 | Z174: =VLOOKUP(D174,体测成绩!B$2:C$273,2,FALSE) -> 54.2000 | AA174: =VLOOKUP(D174,体育锻炼成绩!A$2:B$182,2,FALSE) -> 0.00 | AB174: =0.8*Z174 -> 43.3600 | AC174: =AA174*0.2 -> 0.0000 | AD174: =SUM(AB174:AC174)*0.7 -> 30.3520 | AE174: 0.0000 | AF174: =AD174+AE174 -> 30.3520 | AG174: =AF174*0.05 -> 1.5176 | AH174: =VLOOKUP(D174,美育!B$2:F$182,5,FALSE) -> 8.0000 | AI174: =VLOOKUP(D174,美育!B$2:E$182,4,FALSE) -> 0.0000 | AJ174: =AH174+AI174 -> 8.0000 | AK174: =AJ174*0.05 -> 0.4000 | AL174: =VLOOKUP(D174,劳育基础分!B$3:AF$182,31,FALSE) -> 28.0000 | AM174: 0.0000 | AN174: =AL174+AM174 -> 28.0000 | AO174: =AN174*0.05 -> 1.4000 | AP174: =S174+Y174+AG174+AK174+AO174 -> 53.0281 | AQ174: =VLOOKUP(D174,必修课优良率!A$1:B$173,2,FALSE) -> 23.81% | AR174: =VLOOKUP(D174,四级成绩!B$2:C$178,2,FALSE) -> 388 | AS174: =VLOOKUP(D174,必修课优良率!A$1:D$173,4,FALSE) -> 是
A175: 172 | B175: 175 | C175: 2024010634 | D175: 李昌泽 | E175: =VLOOKUP(D175,美育!B$2:E$182,2,FALSE) -> 化工类24-6班 | F175: =VLOOKUP(D175,互评分!C$2:F$181,4,FALSE) -> 97.6923 | G175: =VLOOKUP(D175,辅导员加分!B$2:C$176,2,FALSE) -> 92.0000 | H175: =VLOOKUP(D175,互评分!C$2:F$181,3,FALSE) -> 100.0000 | I175: =VLOOKUP(D175,互评分!C$2:F$181,2,FALSE) -> 100.0000 | J175: =F175*0.2 -> 19.5385 | K175: =G175*0.5 -> 46.0000 | L175: =H175*0.2 -> 20.0000 | M175: =I175*0.1 -> 10.0000 | N175: =SUM(J175:M175)*0.7 -> 66.8769 | O175: =VLOOKUP(D175,学生干部加分!A$1:C$140,3,FALSE) -> 7.0000 | P175: 0.0000 | Q175: 0.0000 | R175: =N175+O175+P175-Q175 -> 73.8769 | S175: =R175*0.15 -> 11.0815 | T175: 62.2439 | U175: 0.0000 | V175: =IF(U175>0,T175*0.9+U175*0.1,T175) -> 62.2439 | W175: 0.0000 | X175: =V175*0.85+W175 -> 52.9073 | Y175: =0.7*X175 -> 37.0351 | Z175: =VLOOKUP(D175,体测成绩!B$2:C$273,2,FALSE) -> 70.0000 | AA175: =VLOOKUP(D175,体育锻炼成绩!A$2:B$182,2,FALSE) -> 100.00 | AB175: =0.8*Z175 -> 56.0000 | AC175: =AA175*0.2 -> 20.0000 | AD175: =SUM(AB175:AC175)*0.7 -> 53.2000 | AE175: 0.0000 | AF175: =AD175+AE175 -> 53.2000 | AG175: =AF175*0.05 -> 2.6600 | AH175: =VLOOKUP(D175,美育!B$2:F$182,5,FALSE) -> 20.0000 | AI175: =VLOOKUP(D175,美育!B$2:E$182,4,FALSE) -> 0.0000 | AJ175: =AH175+AI175 -> 20.0000 | AK175: =AJ175*0.05 -> 1.0000 | AL175: =VLOOKUP(D175,劳育基础分!B$3:AF$182,31,FALSE) -> 20.0000 | AM175: 0.0000 | AN175: =AL175+AM175 -> 20.0000 | AO175: =AN175*0.05 -> 1.0000 | AP175: =S175+Y175+AG175+AK175+AO175 -> 52.7767 | AQ175: =VLOOKUP(D175,必修课优良率!A$1:B$173,2,FALSE) -> 38.10% | AR175: =VLOOKUP(D175,四级成绩!B$2:C$178,2,FALSE) -> 359 | AS175: =VLOOKUP(D175,必修课优良率!A$1:D$173,4,FALSE) -> 是
A176: 173 | B176: 165 | C176: 2024010568 | D176: 张川宁 | E176: =VLOOKUP(D176,美育!B$2:E$182,2,FALSE) -> 化工类24-4班 | F176: =VLOOKUP(D176,互评分!C$2:F$181,4,FALSE) -> 97.0000 | G176: =VLOOKUP(D176,辅导员加分!B$2:C$176,2,FALSE) -> 90.0000 | H176: =VLOOKUP(D176,互评分!C$2:F$181,3,FALSE) -> 95.5714 | I176: =VLOOKUP(D176,互评分!C$2:F$181,2,FALSE) -> 100.0000 | J176: =F176*0.2 -> 19.4000 | K176: =G176*0.5 -> 45.0000 | L176: =H176*0.2 -> 19.1143 | M176: =I176*0.1 -> 10.0000 | N176: =SUM(J176:M176)*0.7 -> 65.4600 | O176: 0.0000 | P176: 0.0000 | Q176: 0.0000 | R176: =N176+O176+P176-Q176 -> 65.4600 | S176: =R176*0.15 -> 9.8190 | T176: =VLOOKUP(D176,[2]必修课成绩!C$59:BO$82,65,FALSE) -> 66.3049 | U176: =VLOOKUP(D176,[2]选修课成绩!C$60:BI$83,59,FALSE) -> 72.5000 | V176: =IF(U176>0,T176*0.9+U176*0.1,T176) -> 66.9244 | W176: 0.0000 | X176: =V176*0.85+W176 -> 56.8857 | Y176: =0.7*X176 -> 39.8200 | Z176: =VLOOKUP(D176,体测成绩!B$2:C$273,2,FALSE) -> 52.4000 | AA176: =VLOOKUP(D176,体育锻炼成绩!A$2:B$182,2,FALSE) -> 0.00 | AB176: =0.8*Z176 -> 41.9200 | AC176: =AA176*0.2 -> 0.0000 | AD176: =SUM(AB176:AC176)*0.7 -> 29.3440 | AE176: 0.0000 | AF176: =AD176+AE176 -> 29.3440 | AG176: =AF176*0.05 -> 1.4672 | AH176: =VLOOKUP(D176,美育!B$2:F$182,5,FALSE) -> 3.0000 | AI176: =VLOOKUP(D176,美育!B$2:E$182,4,FALSE) -> 0.0000 | AJ176: =AH176+AI176 -> 3.0000 | AK176: =AJ176*0.05 -> 0.1500 | AL176: =VLOOKUP(D176,劳育基础分!B$3:AF$182,31,FALSE) -> 20.0000 | AM176: 0.0000 | AN176: =AL176+AM176 -> 20.0000 | AO176: =AN176*0.05 -> 1.0000 | AP176: =S176+Y176+AG176+AK176+AO176 -> 52.2562 | AQ176: =VLOOKUP(D176,必修课优良率!A$1:B$173,2,FALSE) -> 42.86% | AR176: =VLOOKUP(D176,四级成绩!B$2:C$178,2,FALSE) -> 382 | AS176: =VLOOKUP(D176,必修课优良率!A$1:D$173,4,FALSE) -> 是
A177: 174 | B177: 177 | C177: 2024010506 | D177: 姚泓宇 | E177: =VLOOKUP(D177,美育!B$2:E$182,2,FALSE) -> 化工类24-2班 | F177: =VLOOKUP(D177,互评分!C$2:F$181,4,FALSE) -> 96.2500 | G177: =VLOOKUP(D177,辅导员加分!B$2:C$176,2,FALSE) -> 90.0000 | H177: =VLOOKUP(D177,互评分!C$2:F$181,3,FALSE) -> 97.5000 | I177: =VLOOKUP(D177,互评分!C$2:F$181,2,FALSE) -> 90.0000 | J177: =F177*0.2 -> 19.2500 | K177: =G177*0.5 -> 45.0000 | L177: =H177*0.2 -> 19.5000 | M177: =I177*0.1 -> 9.0000 | N177: =SUM(J177:M177)*0.7 -> 64.9250 | O177: =VLOOKUP(D177,学生干部加分!A$1:C$140,3,FALSE) -> 3.9000 | P177: 0.0000 | Q177: 0.0000 | R177: =N177+O177+P177-Q177 -> 68.8250 | S177: =R177*0.15 -> 10.3238 | T177: =VLOOKUP(D177,[2]必修课成绩!C$59:BO$82,65,FALSE) -> 59.2000 | U177: =VLOOKUP(D177,[2]选修课成绩!C$60:BI$83,59,FALSE) -> 0.0000 | V177: =IF(U177>0,T177*0.9+U177*0.1,T177) -> 59.2000 | W177: 0.0000 | X177: =V177*0.85+W177 -> 50.3200 | Y177: =0.7*X177 -> 35.2240 | Z177: =VLOOKUP(D177,体测成绩!B$2:C$273,2,FALSE) -> 77.4000 | AA177: =VLOOKUP(D177,体育锻炼成绩!A$2:B$182,2,FALSE) -> 100.00 | AB177: =0.8*Z177 -> 61.9200 | AC177: =AA177*0.2 -> 20.0000 | AD177: =SUM(AB177:AC177)*0.7 -> 57.3440 | AE177: 0.0000 | AF177: =AD177+AE177 -> 57.3440 | AG177: =AF177*0.05 -> 2.8672 | AH177: =VLOOKUP(D177,美育!B$2:F$182,5,FALSE) -> 25.0000 | AI177: =VLOOKUP(D177,美育!B$2:E$182,4,FALSE) -> 0.0000 | AJ177: =AH177+AI177 -> 25.0000 | AK177: =AJ177*0.05 -> 1.2500 | AL177: =VLOOKUP(D177,劳育基础分!B$3:AF$182,31,FALSE) -> 42.0000 | AM177: 0.0000 | AN177: =AL177+AM177 -> 42.0000 | AO177: =AN177*0.05 -> 2.1000 | AP177: =S177+Y177+AG177+AK177+AO177 -> 51.7650 | AQ177: =VLOOKUP(D177,必修课优良率!A$1:B$173,2,FALSE) -> 40.00% | AR177: =VLOOKUP(D177,四级成绩!B$2:C$178,2,FALSE) -> 365 | AS177: =VLOOKUP(D177,必修课优良率!A$1:D$173,4,FALSE) -> 是
A178: 175 | B178: 173 | C178: 2024010518 | D178: 史欣谊 | E178: =VLOOKUP(D178,美育!B$2:E$182,2,FALSE) -> 化工类24-3班 | F178: =VLOOKUP(D178,互评分!C$2:F$181,4,FALSE) -> 99.0741 | G178: =VLOOKUP(D178,辅导员加分!B$2:C$176,2,FALSE) -> 90.0000 | H178: =VLOOKUP(D178,互评分!C$2:F$181,3,FALSE) -> 100.0000 | I178: =VLOOKUP(D178,互评分!C$2:F$181,2,FALSE) -> 99.0000 | J178: =F178*0.2 -> 19.8148 | K178: =G178*0.5 -> 45.0000 | L178: =H178*0.2 -> 20.0000 | M178: =I178*0.1 -> 9.9000 | N178: =SUM(J178:M178)*0.7 -> 66.3004 | O178: =VLOOKUP(D178,学生干部加分!A$1:C$140,3,FALSE) -> 4.0000 | P178: 0.0000 | Q178: 0.0000 | R178: =N178+O178+P178-Q178 -> 70.3004 | S178: =R178*0.15 -> 10.5451 | T178: 63.7143 | U178: 57.7500 | V178: =IF(U178>0,T178*0.9+U178*0.1,T178) -> 63.1179 | W178: 0.0000 | X178: =V178*0.85+W178 -> 53.6502 | Y178: =0.7*X178 -> 37.5551 | Z178: =VLOOKUP(D178,体测成绩!B$2:C$273,2,FALSE) -> 74.0000 | AA178: =VLOOKUP(D178,体育锻炼成绩!A$2:B$182,2,FALSE) -> 0.00 | AB178: =0.8*Z178 -> 59.2000 | AC178: =AA178*0.2 -> 0.0000 | AD178: =SUM(AB178:AC178)*0.7 -> 41.4400 | AE178: 0.0000 | AF178: =AD178+AE178 -> 41.4400 | AG178: =AF178*0.05 -> 2.0720 | AH178: =VLOOKUP(D178,美育!B$2:F$182,5,FALSE) -> 0.0000 | AI178: =VLOOKUP(D178,美育!B$2:E$182,4,FALSE) -> 0.0000 | AJ178: =AH178+AI178 -> 0.0000 | AK178: =AJ178*0.05 -> 0.0000 | AL178: =VLOOKUP(D178,劳育基础分!B$3:AF$182,31,FALSE) -> 29.0000 | AM178: 0.0000 | AN178: =AL178+AM178 -> 29.0000 | AO178: =AN178*0.05 -> 1.4500 | AP178: =S178+Y178+AG178+AK178+AO178 -> 51.6222 | AQ178: =VLOOKUP(D178,必修课优良率!A$1:B$173,2,FALSE) -> 38.10% | AR178: =VLOOKUP(D178,四级成绩!B$2:C$178,2,FALSE) -> 502 | AS178: =VLOOKUP(D178,必修课优良率!A$1:D$173,4,FALSE) -> 是
A179: 176 | B179: 174 | C179: 2024010541 | D179: 王家成 | E179: =VLOOKUP(D179,美育!B$2:E$182,2,FALSE) -> 化工类24-3班 | F179: =VLOOKUP(D179,互评分!C$2:F$181,4,FALSE) -> 98.3571 | G179: =VLOOKUP(D179,辅导员加分!B$2:C$176,2,FALSE) -> 92.0000 | H179: =VLOOKUP(D179,互评分!C$2:F$181,3,FALSE) -> 100.0000 | I179: =VLOOKUP(D179,互评分!C$2:F$181,2,FALSE) -> 98.0000 | J179: =F179*0.2 -> 19.6714 | K179: =G179*0.5 -> 46.0000 | L179: =H179*0.2 -> 20.0000 | M179: =I179*0.1 -> 9.8000 | N179: =SUM(J179:M179)*0.7 -> 66.8300 | O179: =VLOOKUP(D179,学生干部加分!A$1:C$140,3,FALSE) -> 2.0000 | P179: 0.0000 | Q179: 0.0000 | R179: =N179+O179+P179-Q179 -> 68.8300 | S179: =R179*0.15 -> 10.3245 | T179: 62.4024 | U179: 0.0000 | V179: =IF(U179>0,T179*0.9+U179*0.1,T179) -> 62.4024 | W179: 0.0000 | X179: =V179*0.85+W179 -> 53.0421 | Y179: =0.7*X179 -> 37.1295 | Z179: =VLOOKUP(D179,体测成绩!B$2:C$273,2,FALSE) -> 63.0000 | AA179: =VLOOKUP(D179,体育锻炼成绩!A$2:B$182,2,FALSE) -> 50.00 | AB179: =0.8*Z179 -> 50.4000 | AC179: =AA179*0.2 -> 10.0000 | AD179: =SUM(AB179:AC179)*0.7 -> 42.2800 | AE179: =VLOOKUP(D179,体育加分汇总!A$1:C$79,3,FALSE) -> 8.0000 | AF179: =AD179+AE179 -> 50.2800 | AG179: =AF179*0.05 -> 2.5140 | AH179: =VLOOKUP(D179,美育!B$2:F$182,5,FALSE) -> 0.0000 | AI179: =VLOOKUP(D179,美育!B$2:E$182,4,FALSE) -> 0.0000 | AJ179: =AH179+AI179 -> 0.0000 | AK179: =AJ179*0.05 -> 0.0000 | AL179: =VLOOKUP(D179,劳育基础分!B$3:AF$182,31,FALSE) -> 29.0000 | AM179: 0.0000 | AN179: =AL179+AM179 -> 29.0000 | AO179: =AN179*0.05 -> 1.4500 | AP179: =S179+Y179+AG179+AK179+AO179 -> 51.4180 | AQ179: =VLOOKUP(D179,必修课优良率!A$1:B$173,2,FALSE) -> 38.10% | AR179: =VLOOKUP(D179,四级成绩!B$2:C$178,2,FALSE) -> 479 | AS179: =VLOOKUP(D179,必修课优良率!A$1:D$173,4,FALSE) -> 是
A180: 177 | B180: 178 | C180: 2023010381 | D180: 宋佳滢 | E180: =VLOOKUP(D180,美育!B$2:E$182,2,FALSE) -> 化工类24-2班 | F180: =VLOOKUP(D180,互评分!C$2:F$181,4,FALSE) -> 94.9310 | G180: =VLOOKUP(D180,辅导员加分!B$2:C$176,2,FALSE) -> 90.0000 | H180: =VLOOKUP(D180,互评分!C$2:F$181,3,FALSE) -> 98.3333 | I180: =VLOOKUP(D180,互评分!C$2:F$181,2,FALSE) -> 90.0000 | J180: =F180*0.2 -> 18.9862 | K180: =G180*0.5 -> 45.0000 | L180: =H180*0.2 -> 19.6667 | M180: =I180*0.1 -> 9.0000 | N180: =SUM(J180:M180)*0.7 -> 64.8570 | O180: 0.0000 | P180: 0.0000 | Q180: 0.0000 | R180: =N180+O180+P180-Q180 -> 64.8570 | S180: =R180*0.15 -> 9.7286 | T180: 56.8500 | U180: 0.0000 | V180: =IF(U180>0,T180*0.9+U180*0.1,T180) -> 56.8500 | W180: 0.0000 | X180: =V180*0.85+W180 -> 48.3225 | Y180: =0.7*X180 -> 33.8258 | Z180: =VLOOKUP(D180,体测成绩!B$2:C$273,2,FALSE) -> 60.0000 | AA180: =VLOOKUP(D180,体育锻炼成绩!A$2:B$182,2,FALSE) -> 0.00 | AB180: =0.8*Z180 -> 48.0000 | AC180: =AA180*0.2 -> 0.0000 | AD180: =SUM(AB180:AC180)*0.7 -> 33.6000 | AE180: 0.0000 | AF180: =AD180+AE180 -> 33.6000 | AG180: =AF180*0.05 -> 1.6800 | AH180: =VLOOKUP(D180,美育!B$2:F$182,5,FALSE) -> 20.0000 | AI180: =VLOOKUP(D180,美育!B$2:E$182,4,FALSE) -> 0.0000 | AJ180: =AH180+AI180 -> 20.0000 | AK180: =AJ180*0.05 -> 1.0000 | AL180: 0.0000 | AM180: 0.0000 | AN180: =AL180+AM180 -> 0.0000 | AO180: =AN180*0.05 -> 0.0000 | AP180: =S180+Y180+AG180+AK180+AO180 -> 46.2343 | AQ180: =VLOOKUP(D180,必修课优良率!A$1:B$173,2,FALSE) -> 40.00% | AR180: =VLOOKUP(D180,四级成绩!B$2:C$178,2,FALSE) -> 505 | AS180: =VLOOKUP(D180,必修课优良率!A$1:D$173,4,FALSE) -> 是
A181: 178 | B181: 176 | C181: 2024010512 | D181: 桑恒健 | E181: =VLOOKUP(D181,美育!B$2:E$182,2,FALSE) -> 化工类24-2班 | F181: =VLOOKUP(D181,互评分!C$2:F$181,4,FALSE) -> 96.6429 | G181: =VLOOKUP(D181,辅导员加分!B$2:C$176,2,FALSE) -> 90.0000 | H181: =VLOOKUP(D181,互评分!C$2:F$181,3,FALSE) -> 99.0000 | I181: =VLOOKUP(D181,互评分!C$2:F$181,2,FALSE) -> 94.0000 | J181: =F181*0.2 -> 19.3286 | K181: =G181*0.5 -> 45.0000 | L181: =H181*0.2 -> 19.8000 | M181: =I181*0.1 -> 9.4000 | N181: =SUM(J181:M181)*0.7 -> 65.4700 | O181: =VLOOKUP(D181,学生干部加分!A$1:C$140,3,FALSE) -> 4.0000 | P181: 0.0000 | Q181: 0.0000 | R181: =N181+O181+P181-Q181 -> 69.4700 | S181: =R181*0.15 -> 10.4205 | T181: =VLOOKUP(D181,[2]必修课成绩!C$59:BO$82,65,FALSE) -> 60.3514 | U181: =VLOOKUP(D181,[2]选修课成绩!C$60:BI$83,59,FALSE) -> 25.0000 | V181: =IF(U181>0,T181*0.9+U181*0.1,T181) -> 56.8162 | W181: 0.0000 | X181: =V181*0.85+W181 -> 48.2938 | Y181: =0.7*X181 -> 33.8056 | Z181: =VLOOKUP(D181,体测成绩!B$2:C$273,2,FALSE) -> 30.3000 | AA181: =VLOOKUP(D181,体育锻炼成绩!A$2:B$182,2,FALSE) -> 0.00 | AB181: =0.8*Z181 -> 24.2400 | AC181: =AA181*0.2 -> 0.0000 | AD181: =SUM(AB181:AC181)*0.7 -> 16.9680 | AE181: 0.0000 | AF181: =AD181+AE181 -> 16.9680 | AG181: =AF181*0.05 -> 0.8484 | AH181: =VLOOKUP(D181,美育!B$2:F$182,5,FALSE) -> 0.0000 | AI181: =VLOOKUP(D181,美育!B$2:E$182,4,FALSE) -> 0.0000 | AJ181: =AH181+AI181 -> 0.0000 | AK181: =AJ181*0.05 -> 0.0000 | AL181: =VLOOKUP(D181,劳育基础分!B$3:AF$182,31,FALSE) -> 20.0000 | AM181: 0.0000 | AN181: =AL181+AM181 -> 20.0000 | AO181: =AN181*0.05 -> 1.0000 | AP181: =S181+Y181+AG181+AK181+AO181 -> 46.0745 | AQ181: =VLOOKUP(D181,必修课优良率!A$1:B$173,2,FALSE) -> 36.84% | AR181: 0 | AS181: =VLOOKUP(D181,必修课优良率!A$1:D$173,4,FALSE) -> 是
A182: 179 | B182: 179 | C182: 2024010587 | D182: 海米提·麦买提 | E182: 化工类24-5班 | F182: =VLOOKUP(D182,互评分!C$2:F$181,4,FALSE) -> 99.4444 | G182: 90.0000 | H182: =VLOOKUP(D182,互评分!C$2:F$181,3,FALSE) -> 99.8571 | I182: =VLOOKUP(D182,互评分!C$2:F$181,2,FALSE) -> 85.0000 | J182: =F182*0.2 -> 19.8889 | K182: =G182*0.5 -> 45.0000 | L182: =H182*0.2 -> 19.9714 | M182: =I182*0.1 -> 8.5000 | N182: =SUM(J182:M182)*0.7 -> 65.3522 | O182: =VLOOKUP(D182,学生干部加分!A$1:C$140,3,FALSE) -> 7.0000 | P182: 0.0000 | Q182: 3.0000 | R182: =N182+O182+P182-Q182 -> 69.3522 | S182: =R182*0.15 -> 10.4028 | T182: 46.8395 | U182: 0.0000 | V182: 46.8395 | W182: 0.0000 | X182: =V182*0.85+W182 -> 39.8136 | Y182: =0.7*X182 -> 27.8695 | Z182: =VLOOKUP(D182,体测成绩!B$2:C$273,2,FALSE) -> 63.5000 | AA182: =VLOOKUP(D182,体育锻炼成绩!A$2:B$182,2,FALSE) -> 0.0000 | AB182: =0.8*Z182 -> 50.8000 | AC182: =AA182*0.2 -> 0.0000 | AD182: =SUM(AB182:AC182)*0.7 -> 35.5600 | AE182: 0.0000 | AF182: =AD182+AE182 -> 35.5600 | AG182: =AF182*0.05 -> 1.7780 | AH182: =VLOOKUP(D182,美育!B$2:F$182,5,FALSE) -> 0.0000 | AI182: =VLOOKUP(D182,美育!B$2:E$182,4,FALSE) -> 0.0000 | AJ182: =AH182+AI182 -> 0.0000 | AK182: =AJ182*0.05 -> 0.0000 | AL182: =VLOOKUP(D182,劳育基础分!B$3:AF$182,31,FALSE) -> 20.0000 | AM182: 3.0000 | AN182: =AL182+AM182 -> 23.0000 | AO182: =AN182*0.05 -> 1.1500 | AP182: =S182+Y182+AG182+AK182+AO182 -> 41.2003 | AQ182: 15.7800% | AR182: 0 | AS182: 是

Sheet 四级成绩
A1: 学号 | B1: 姓名 | C1: 成绩
A2: 2024010458 | B2: 施朝阳 | C2: 546
A3: 2024010459 | B3: 靳铭超 | C3: 529
A4: 2024010464 | B4: 胡婷 | C4: 452
A5: 2024010467 | B5: 韦程栋 | C5: 381
A6: 2024010469 | B6: 何俊希 | C6: 489
A7: 2024010488 | B7: 郭圣元 | C7: 419
A8: 2024010490 | B8: 聂玲琳 | C8: 521
A9: 2024010494 | B9: 姜明明 | C9: 539
A10: 2024010506 | B10: 姚泓宇 | C10: 365
A11: 2024010512 | B11: 桑恒健 | C11: 未报考
A12: 2024010529 | B12: 孟煜杰 | C12: 424
A13: 2024010533 | B13: 蒋金鹏 | C13: 395
A14: 2024010551 | B14: 王珏 | C14: 557
A15: 2024010553 | B15: 尤雅 | C15: 492
A16: 2024010554 | B16: 葛敏 | C16: 未报考
A17: 2024010555 | B17: 苏晴 | C17: 545
A18: 2024010556 | B18: 张煊 | C18: 518
A19: 2024010558 | B19: 李宇轩 | C19: 453
A20: 2024010559 | B20: 郑翔鸿 | C20: 462
A21: 2024010560 | B21: 葸旺 | C21: 未报考
A22: 2024010568 | B22: 张川宁 | C22: 382
A23: 2024010569 | B23: 吕小川 | C23: 388
A24: 2024010575 | B24: 寇笑源 | C24: 508
A25: 2024010482 | B25: 方泽 | C25: 435
A26: 2024010507 | B26: 赵佳富 | C26: 472
A27: 2024010509 | B27: 孙铭徽 | C27: 466
A28: 2024010510 | B28: 钟家豪 | C28: 426
A29: 2024010511 | B29: 吕程 | C29: 502
A30: 2024010513 | B30: 朱健健 | C30: 481
A31: 2024010525 | B31: 何佳 | C31: 561
A32: 2024010526 | B32: 阿优拉·沙帕尔别克 | C32: 380
A33: 2024010547 | B33: 董宇昕 | C33: 483
A34: 2024010548 | B34: 赵淑荣 | C34: 441
A35: 2024010549 | B35: 冯苗鸽 | C35: 517
A36: 2024010550 | B36: 梁金玉 | C36: 583
A37: 2024010552 | B37: 胡语轩 | C37: 548
A38: 2024010577 | B38: 孔梓涵 | C38: 616
A39: 2024010579 | B39: 刘芮 | C39: 501
A40: 2024010582 | B40: 刘文清 | C40: 540
A41: 2024010584 | B41: 刘玲嘉 | C41: 533
A42: 2024010585 | B42: 吴佳妮 | C42: 540
A43: 2024010590 | B43: 杨航维 | C43: 607
A44: 2024010591 | B44: 黄皓仑 | C44: 515
A45: 2024010592 | B45: 罗晓珍 | C45: 380
A46: 2024010593 | B46: 康铭坤 | C46: 388
A47: 2024010594 | B47: 王志龙 | C47: 495
A48: 2024010595 | B48: 王二壮 | C48: 477
A49: 2024010596 | B49: 王爽 | C49: 424
A50: 2024010598 | B50: 张子木 | C50: 443
A51: 2024010599 | B51: 林方宇 | C51: 576
A52: 2024010601 | B52: 李毅恒 | C52: 524
A53: 2024010604 | B53: 刘俊超 | C53: 510
A54: 2024010630 | B54: 周子晨 | C54: 没考
A56: 2024010607 | B56: 杨睿 | C56: 535
A57: 2024010600 | B57: 王思远 | C57: 478
A58: 2024010609 | B58: 王晓娜 | C58: 515
A59: 2024010620 | B59: 杨磊 | C59: 474
B60: 刘迪 | C60: 322
B61: 高瑞苹 | C61: 337
B62: 佟安冉 | C62: 343
B63: 孙筠翔 | C63: 353
B64: 黄贤君 | C64: 378
B65: 王超卓 | C65: 415
B66: 王嘉博 | C66: 415
B67: 杨胤泽 | C67: 416
B68: 马秋阳 | C68: 427
B69: 徐旋 | C69: 428
B70: 闫乙昕 | C70: 438
B71: 蒋卓达 | C71: 446
B72: 李瑞杰 | C72: 448
B73: 洪瑞 | C73: 476
B74: 林锐 | C74: 480
B75: 吴淑金 | C75: 481
B76: 李俊豪 | C76: 487
B77: 冯子洋 | C77: 490
B78: 张家诚 | C78: 499
B79: 谢子翔 | C79: 505
B80: 侯星辰 | C80: 506
B81: 陈永利 | C81: 509
B82: 王泽轩 | C82: 518
B83: 姜柏彤 | C83: 522
B84: 赵梓伯 | C84: 526
B85: 温晓阳 | C85: 526
B86: 张蕊 | C86: 528
B87: 卢力瑛 | C87: 533
B88: 张玉杨 | C88: 548
B89: 马铭远 | C89: 570
B90: 袁翊淼 | C90: 577
B91: 刘紫杭 | C91: 486
B92: 郭泓岐 | C92: 514
B93: 成杰文 | C93: 400
B94: 葛亿盛 | C94: 519
B95: 郝美超 | C95: 523
B96: 任俊玮 | C96: 484
B97: 宋佳滢 | C97: 505
B98: 董叶帆 | C98: 449
B99: 李政阳 | C99: 451
B100: 方文正 | C100: 521
B101: 刘子炜 | C101: 445
B102: 彭一航 | C102: 542
B103: 柯二文 | C103: 539
B104: 李昌泽 | C104: 359
B105: 李宇春 | C105: 384
B106: 李鑫涛 | C106: 361
B107: 肖港权 | C107: 524
B108: 郝雪普 | C108: 585
B109: 侯垚 | C109: 605
B110: 杨州 | C110: 439
B111: 王诚毅 | C111: 524
B112: 杨清朋 | C112: 570
B113: 王南南 | C113: 515
B114: 刘韬 | C114: 586
B115: 杨修齐 | C115: 515
B116: 任务 | C116: 545
B117: 韩子路 | C117: 505
B118: 孙立夫 | C118: 417
B119: 吕佳琳 | C119: 484
B120: 刘钢彬 | C120: 477
B121: 刘诗雨 | C121: 477
B122: 彭天佑 | C122: 425
B123: 王睦钧 | C123: 485
B124: 洪培彬 | C124: 451
B125: 路倢利 | C125: 517
B126: 余若瑜 | C126: 621
B127: 黄大原 | C127: 497
B128: 赵毅轩 | C128: 611
B129: 龚贝 | C129: 442
B130: 李志聪 | C130: 497
B131: 热依汉古丽·加帕 | C131: 0
B132: 杜向栋 | C132: 451
B133: 郭北辰 | C133: 484
B134: 赵倩瑶 | C134: 445
B135: 吕秋桦 | C135: 409
B136: 仇雨乐 | C136: 492
B137: 杨悦 | C137: 454
B138: 陈启骏 | C138: 576
B139: 艾芯蕊 | C139: 540
B140: 水源 | C140: 507
B141: 谯佳伟 | C141: 455
B142: 陆游 | C142: 404
B143: 潘兴顺 | C143: 0
B144: 王崇南 | C144: 412
B145: 陈萍洋 | C145: 0
B146: 胡启红 | C146: 534
B147: 田慧慧 | C147: 647
B148: 苗思蕊 | C148: 495
B149: 史欣谊 | C149: 502
B150: 谢文博 | C150: 449
B151: 邱子恒 | C151: 445
B152: 王韬哲 | C152: 572
B153: 赵晶晶 | C153: 465
B154: 孙愷辰 | C154: 496
B155: 任熙嘉 | C155: 461
B156: 罗锦洪 | C156: 493
B157: 刘恬宁 | C157: 579
B158: 张钰涵 | C158: 525
B159: 李博航 | C159: 430
B160: 贾金鑫 | C160: 460
B161: 吴赛扬 | C161: 没考
B162: 王笑睿 | C162: 457
B163: 王家成 | C163: 479
B164: 刘春硕 | C164: 553
B165: 马永龙 | C165: 375
B166: 李坤明 | C166: 398
B167: 孔德烨 | C167: 497
B168: 董家慧 | C168: 486
B169: 王路寒 | C169: 442
B170: 李耀初 | C170: 471
B171: 宋梦博 | C171: 433
B172: 严翊中 | C172: 496
B173: 赵延奇 | C173: 未报考
B174: 陈晨 | C174: 444
B175: 杨子惠 | C175: 475
B176: 杨恒 | C176: 439
B177: 陈朕 | C177: 456
B178: 吴俊 | C178: 533

Sheet 体测成绩
A1: 学籍号 | B1: 姓名 | C1: 总分 | D1: 等级
A2: 2024010457 | B2: 胡紫涵 | C2: 72.1 | D2: 及格
A3: 2024010458 | B3: 施朝阳 | C3: 64.3 | D3: 及格
A4: 2024010459 | B4: 靳铭超 | C4: 79.3 | D4: 及格
A5: 2024010460 | B5: 袁翊淼 | C5: 67.2 | D5: 及格
A6: 2024010461 | B6: 卢力瑛 | C6: 80.4 | D6: 良好
A7: 2024010462 | B7: 佟安冉 | C7: 64.7 | D7: 及格
A8: 2024010463 | B8: 杨子惠 | C8: 78.2 | D8: 及格
A9: 2024010464 | B9: 胡婷 | C9: 80.4 | D9: 良好
A10: 2024010465 | B10: 郝美超 | C10: 60 | D10: 及格
A11: 2024010466 | B11: 王南南 | C11: 60 | D11: 免测
A12: 2024010467 | B12: 韦程栋 | C12: 72.1 | D12: 及格
A13: 2024010468 | B13: 王诚毅 | C13: 64.5 | D13: 及格
A14: 2024010469 | B14: 何俊希 | C14: 60 | D14: 及格
A15: 2024010470 | B15: 陈韵轩 | C15: 55.6 | D15: 不及格
A16: 2024010471 | B16: 王路寒 | C16: 60 | D16: 及格
A17: 2024010472 | B17: 赵延奇 | C17: 56.5 | D17: 不及格
A18: 2024010473 | B18: 李博航 | C18: 75.5 | D18: 及格
A19: 2024010474 | B19: 吴赛扬 | C19: 34.7 | D19: 不及格
A20: 2024010475 | B20: 葛亿盛 | C20: 87.8 | D20: 良好
A21: 2024010476 | B21: 杨修齐 | C21: 72.7 | D21: 及格
A22: 2024010477 | B22: 李俊义 | C22: 76.2 | D22: 及格
A23: 2024010478 | B23: 杨州 | C23: 67.6 | D23: 及格
A24: 2024010479 | B24: 刘韬 | C24: 70.5 | D24: 及格
A25: 2024010480 | B25: 谢煜轩 | C25: 71.2 | D25: 及格
A26: 2024010481 | B26: 任熙嘉 | C26: 75.6 | D26: 及格
A27: 2024010482 | B27: 方泽 | C27: 73.3 | D27: 及格
A28: 2024010483 | B28: 杨清朋 | C28: 60.9 | D28: 及格
A29: 2024010484 | B29: 任俊玮 | C29: 78.6 | D29: 及格
A30: 2024010485 | B30: 马永龙 | C30: 75.7 | D30: 及格
A31: 2024010486 | B31: 彭一航 | C31: 60 | D31: 及格
A32: 2023010381 | B32: 宋佳滢 | C32: 60 | D32: 免测
A33: 2024010487 | B33: 杨悦 | C33: 76.7 | D33: 及格
A34: 2024010488 | B34: 郭圣元 | C34: 60 | D34: 及格
A35: 2024010489 | B35: 赵倩瑶 | C35: 64.1 | D35: 及格
A36: 2024010490 | B36: 聂玲琳 | C36: 68.1 | D36: 及格
A37: 2024010491 | B37: 田慧慧 | C37: 81 | D37: 良好
A38: 2024010492 | B38: 吕莎莎 | C38: 80.9 | D38: 良好
A39: 2024010493 | B39: 苗思蕊 | C39: 67.9 | D39: 及格
A40: 2024010494 | B40: 姜明明 | C40: 60 | D40: 及格
A41: 2024010495 | B41: 韩子路 | C41: 66.2 | D41: 及格
A42: 2024010496 | B42: 董叶帆 | C42: 67.6 | D42: 及格
A43: 2024010497 | B43: 赵晶晶 | C43: 81.3 | D43: 良好
A44: 2024010498 | B44: 杨胤泽 | C44: 75.8 | D44: 及格
A45: 2024010499 | B45: 李耀初 | C45: 75.4 | D45: 及格
A46: 2024010500 | B46: 黄大原 | C46: 67.4 | D46: 及格
